Workbook

Sheet START
A1: Choose name from list

Sheet Instructions
D2: 2020
X4: Yes
X5: No
W7: Type of Entities Range: | X7: Parent Municipality
X8: Consolidated Information
W10: Date linked | X10: 2
W11: Date | X11: =VLOOKUP(X10,W39:X55,2) -> M02 August | Y11: 2013-08-01
W19: MTREF Range: | X19: 2014
X20: 2015
X21: 2016
X22: 2017
X23: 2018
X24: 2019
X25: 2020
X26: 2021
X27: 2022
X28: 2023
X29: 2024
X30: 2025
X31: 2026
X32: 2027
X33: 2028
W34: MTREF Linked:
W35: MTREF: | X35: 10
X36: =INDEX(X19:X32,X35,1) -> 2023
W37: Fin Year:
X38: =MTREF&"/"&RIGHT(MTREF,2)+1 -> 2023/24
V39: Date/type of report | W39: 1 | X39: M01 July
W40: 2 | X40: M02 August
W41: 3 | X41: M03 September
W42: 4 | X42: M04 October
W43: 5 | X43: M05 November
W44: 6 | X44: M06 December
W45: 7 | X45: M07 January
W46: 8 | X46: M08 February
W47: 9 | X47: M09 March
W48: 10 | X48: M10 April
W49: 11 | X49: M11 May
W50: 12 | X50: M12 June
W51: 13 | X51: Q1 First Quarter
W52: 14 | X52: Q2 Second Quarter
W53: 15 | X53: Q3 Third Quarter
W54: 16 | X54: Q4 Fourth Quarter
W55: 17 | X55: Mid-Year Assessment

Sheet Template names (hidden)
A1: Common sheet headings
A2: Head1 | B2: =HLOOKUP(MTREF,Headings,2) -> 2022/23 | C2: Prior year -1
A3: Head2 | B3: =HLOOKUP(MTREF,Headings,5) -> Budget Year 2023/24 | C3: Year of approved budget
A4: Head2A | B4: =HLOOKUP(MTREF,Headings,4) -> 2023/24 | C4: Approved budget year
A5: Head3 | B5: =HLOOKUP(MTREF,Headings,3) -> 2023/24 Medium Term Revenue & Expenditure Framework | C5: MTREF header name
A6: Head5 | B6: Audited Outcome
A7: Head5A | B7: Outcome
A8: Head5B | B8: Pre-audit outcome
A9: Head6 | B9: Original Budget
A10: Head7 | B10: Adjusted Budget
A11: Head8 | B11: Full Year Forecast
A12: Head9 | B12: =HLOOKUP(MTREF,Headings,5) -> Budget Year 2023/24 | C12: 1st year of MTREF | D12: Year1
A13: Head10 | B13: =HLOOKUP(MTREF,Headings,6) -> Budget Year +1 2024/25 | C13: 2nd year of MTREF | D13: Year2
A14: Head11 | B14: =HLOOKUP(MTREF,Headings,7) -> Budget Year +2 2025/26 | C14: 3rd year of MTREF | D14: Year3
A15: Head12 | B15: Forecast 2010/11 | D15: Year4
A16: Head13 | B16: Forecast 2011/12 | D16: Year5
A17: Head14 | B17: Forecast 2012/13 | D17: Year6
A18: Head15 | B18: Forecast 2013/14 | D18: Year7
A19: Head16 | B19: Forecast 2014/15 | D19: Year8
A20: Head17 | B20: Forecast 2015/16 | D20: Year9
A21: Head18 | B21: Forecast 2016/17 | D21: Year10
A22: Head19 | B22: Forecast 2017/18 | D22: Year11
A23: Head20 | B23: Forecast 2018/19 | D23: Year12
A24: Head21 | B24: Forecast 2019/20 | D24: Year13
A25: Head22 | B25: Forecast 2020/21 | D25: Year14
A26: Head23 | B26: Forecast 2021/22 | D26: Year15
A27: Head24 | B27: Description | D27: Desc
A28: Head25 | B28: Schedule of funding diligence | D28: fdil
A29: Head26 | B29: Vote Description | D29: VDesc
A30: Head27 | B30: Ref
A31: Head27a | B31: References
A32: Head28 | B32: Surplus/ (Deficit) for the year | D32: Result
A33: Head29 | B33: Annual target 2007/08
A34: Head30 | B34: Revised target 2007/08
A35: Head31 | B35: Quarter ended 30 September
A36: Head32 | B36: Quarter ended 31 December
A37: Head33 | B37: Quarter ended 31 March
A38: Head34 | B38: Quarter ended 30 June
A39: Head35 | B39: Variance explanation
A40: Head36 | B40: YTD Actual 31 Dec
A41: Head37 | B41: YTD Budget 31 Dec
A42: Head38 | B42: Monthly actual
A43: Head39 | B43: YearTD actual
A44: Head40 | B44: YearTD budget
A45: Head41 | B45: YTD variance
A46: Head42 | B46: Surplus/ (Deficit) for the yr/period
A47: Head43 | B47: =Head3&" Summary" -> 2023/24 Medium Term Revenue & Expenditure Framework Summary
A48: Head44 | B48: 1996 Census
A49: Head45 | B49: 2001 Census
A50: Head46 | B50: - Adjustments Budget - Month YYYY
A51: Head47 | B51: Previous target year to complete
A52: Head48 | B52: Present value
A53: Head49 | B53: Virement
A54: Head50 | B54: Other Adjusts.
A55: Head51 | B55: Accum. Funds
A56: Head52 | B56: Multi-year capital
A57: Head53 | B57: Unfore. Unavoid.
A58: Head54 | B58: Prior Adjusted
A59: Head55 | B59: Nat. or Prov. Govt
A60: Head56 | B60: Total Adjusts.
A61: Head57 | B61: =date -> M02 August
A62: Head58 | B62: Parent muni.
A63: Head59 | B63: Downward adjusts
A64: Head60 | B64: Month | C64: Report header part name | D64: =date -> M02 August
A65: SFPerf1 | B65: Budgeted Financial Performance
A66: SFPerf2 | B66: Forecast Financial Performance
A67: SFPos1 | B67: Budgeted Financial Position
A68: SFPos2 | B68: Forecast Financial Position
A69: Cash1 | B69: Budget Cash Flow
A70: Cash2 | B70: Forecast Cash Flow
A71: RandM | B71: Expenditure includes repairs & maintenance of R'000
A72: Standard nomenclature
A73: Muni | B73: ='Lookup and lists'!B27 -> LIM353 Molemole
A74: Municipal Entities | B74: 2 | C74: Type of report: | D74: 1
A75: =IF((MuniEntities=1)*(MuniType=2),"YES","NO") -> NO | B75: Does this municipality have entities (consolidated budget and entity budgets required)? YES/NO
A76: s71 (Monthly Mayor report) schedules and charts
A77: S71sum | B77: =IF(Consolques="YES",E77,F77) -> Table C1 Monthly Budget Statement Summary | D77: Table C1 | E77: =D77&"Consolidated Monthly Budget Statement Summary" -> Table C1 Consolidated Monthly Budget Statement Summary | F77: =D77&"Monthly Budget Statement Summary" -> Table C1 Monthly Budget Statement Summary
A78: S71C | B78: Table C3 Monthly Budget Statement - Financial Performance (revenue and expenditure by municipal vote) | D78: Table C3 | E78: =D78&"Consolidated Monthly Budget Statement - Financial Performance (revenue and expenditure by municipal vote) " -> Table C3 Consolidated Monthly Budget Statement - Financial Performance (revenue and expenditure by municipal vote) | F78: =D78&"Monthly Budget Statement - Financial Performance (revenue and expenditure by municipal vote)" -> Table C3 Monthly Budget Statement - Financial Performance (revenue and expenditure by municipal vote)
A79: S71A | B79: =IF(Consolques="YES",E79,F79) -> Table C2 Monthly Budget Statement - Financial Performance (functional classification) | D79: Table C2 | E79: =D79&"Consolidated Monthly Budget Statement - Financial Performance (functional classification) " -> Table C2 Consolidated Monthly Budget Statement - Financial Performance (functional classification) | F79: =D79&"Monthly Budget Statement - Financial Performance (functional classification)" -> Table C2 Monthly Budget Statement - Financial Performance (functional classification)
A80: S71B | B80: =IF(Consolques="YES",E80,F80) -> Table C4 Monthly Budget Statement - Financial Performance (revenue and expenditure) | D80: Table C4 | E80: =D80&"Consolidated Monthly Budget Statement - Financial Performance (revenue and expenditure) " -> Table C4 Consolidated Monthly Budget Statement - Financial Performance (revenue and expenditure) | F80: =D80&"Monthly Budget Statement - Financial Performance (revenue and expenditure)" -> Table C4 Monthly Budget Statement - Financial Performance (revenue and expenditure)
A81: S71D | B81: =IF(Consolques="YES",E81,F81) -> Table C5 Monthly Budget Statement - Capital Expenditure (municipal vote, functional classification and funding) | D81: Table C5 | E81: =D81&"Consolidated Monthly Budget Statement - Capital Expenditure (municipal vote, functional classification and funding " -> Table C5 Consolidated Monthly Budget Statement - Capital Expenditure (municipal vote, functional classification and funding | F81: =D81&"Monthly Budget Statement - Capital Expenditure (municipal vote, functional classification and funding)" -> Table C5 Monthly Budget Statement - Capital Expenditure (municipal vote, functional classification and funding)
A82: S71E | B82: Table C6 Monthly Budget Statement - Financial Position | D82: Table C6 | E82: =D82&"Consolidated Monthly Budget Statement - Financial Position " -> Table C6 Consolidated Monthly Budget Statement - Financial Position | F82: =D82&"Monthly Budget Statement - Financial Position" -> Table C6 Monthly Budget Statement - Financial Position
A83: S71F | B83: Table C7 Monthly Budget Statement - Cash Flow | D83: Table C7 | E83: =D83&"Consolidated Monthly Budget Statement - Cash Flow " -> Table C7 Consolidated Monthly Budget Statement - Cash Flow | F83: =D83&"Monthly Budget Statement - Cash Flow " -> Table C7 Monthly Budget Statement - Cash Flow
A84: S71G | B84: =D84&"Material variance explanations " -> Supporting Table SC1 Material variance explanations | D84: Supporting Table SC1
A85: S71H | B85: =D85&"Monthly Budget Statement - performance indicators " -> Supporting Table SC2 Monthly Budget Statement - performance indicators | D85: Supporting Table SC2
A86: S71I | B86: =D86&"Monthly Budget Statement - aged debtors" -> Supporting Table SC3 Monthly Budget Statement - aged debtors | D86: Supporting Table SC3
A87: S71J | B87: =D87&"Monthly Budget Statement - aged creditors " -> Supporting Table SC4 Monthly Budget Statement - aged creditors | D87: Supporting Table SC4
A88: S71K | B88: =D88&"Monthly Budget Statement - investment portfolio " -> Supporting Table SC5 Monthly Budget Statement - investment portfolio | D88: Supporting Table SC5
A89: S71L | B89: =D89&"Monthly Budget Statement - transfers and grant receipts " -> Supporting Table SC6 Monthly Budget Statement - transfers and grant receipts | D89: Supporting Table SC6
A90: S71M | B90: =D90&" Monthly Budget Statement - transfers and grant expenditure " -> Supporting Table SC7(1) Monthly Budget Statement - transfers and grant expenditure | D90: Supporting Table SC7(1)
A91: S71N | B91: =D91&"Monthly Budget Statement - councillor and staff benefits " -> Supporting Table SC8 Monthly Budget Statement - councillor and staff benefits | D91: Supporting Table SC8
A92: S71O | B92: =D92&"Monthly Budget Statement - actuals and revised targets for cash receipts" -> Supporting Table SC9 Monthly Budget Statement - actuals and revised targets for cash receipts | D92: Supporting Table SC9
A93: S71P | B93: =IF(Consolques="YES",E93,F93) -> NOT REQUIRED - municipality does not have entities or this is the parent municipality's budget | D93: Supporting Table SC10 | E93: =D93&"Monthly Budget Statement - Parent Municipality Financial Performance (revenue and expenditure) " -> Supporting Table SC10 Monthly Budget Statement - Parent Municipality Financial Performance (revenue and expenditure) | F93: NOT REQUIRED - municipality does not have entities or this is the parent municipality's budget
A94: S71Q | B94: NOT REQUIRED - municipality does not have entities or this is the parent municipality's budget | D94: Supporting Table SC11 | E94: =D94&"Monthly Budget Statement - summary of municipal entities" -> Supporting Table SC11 Monthly Budget Statement - summary of municipal entities | F94: NOT REQUIRED - municipality does not have entities or this is the parent municipality's budget
A95: S71R | B95: Supporting Table SC12 Monthly Budget Statement - capital expenditure trend | D95: Supporting Table SC12 | E95: =D95&"Consolidated Monthly Budget Statement - capital expenditure trend " -> Supporting Table SC12 Consolidated Monthly Budget Statement - capital expenditure trend | F95: =D95&"Monthly Budget Statement - capital expenditure trend" -> Supporting Table SC12 Monthly Budget Statement - capital expenditure trend
A96: S71Sa | B96: Supporting Table SC13a Monthly Budget Statement - capital expenditure on new assets by asset class | D96: Supporting Table SC13a | E96: =D96&"Consolidated Monthly Budget Statement - capital expenditure on new assets by asset class" -> Supporting Table SC13a Consolidated Monthly Budget Statement - capital expenditure on new assets by asset class | F96: =D96&"Monthly Budget Statement - capital expenditure on new assets by asset class" -> Supporting Table SC13a Monthly Budget Statement - capital expenditure on new assets by asset class
A97: S71Sb | B97: Supporting Table SC13b Monthly Budget Statement - capital expenditure on renewal of existing assets by asset class | D97: Supporting Table SC13b | E97: =D97&"Consolidated Monthly Budget Statement - capital expenditure on renewal of existing assets by asset class" -> Supporting Table SC13b Consolidated Monthly Budget Statement - capital expenditure on renewal of existing assets by asset class | F97: =D97&"Monthly Budget Statement - capital expenditure on renewal of existing assets by asset class" -> Supporting Table SC13b Monthly Budget Statement - capital expenditure on renewal of existing assets by asset class
A98: S71Sc | B98: Supporting Table SC13c Monthly Budget Statement - expenditure on repairs and maintenance by asset class | D98: Supporting Table SC13c | E98: =D98&"Consolidated Monthly Budget Statement - expenditure on repairs and maintenance by asset class" -> Supporting Table SC13c Consolidated Monthly Budget Statement - expenditure on repairs and maintenance by asset class | F98: =D98&"Monthly Budget Statement - expenditure on repairs and maintenance by asset class" -> Supporting Table SC13c Monthly Budget Statement - expenditure on repairs and maintenance by asset class
A99: S71Sd | B99: Supporting Table SC13d Monthly Budget Statement - depreciation by asset class | D99: Supporting Table SC13d | E99: =D99&"Consolidated Monthly Budget Statement - depreciation by asset class" -> Supporting Table SC13d Consolidated Monthly Budget Statement - depreciation by asset class | F99: =D99&"Monthly Budget Statement - depreciation by asset class" -> Supporting Table SC13d Monthly Budget Statement - depreciation by asset class
A100: S71Se | B100: =IF(Consolques="YES",E100,F100) -> Supporting Table SC13e Monthly Budget Statement - capital expenditure on upgrading of existing assets by asset class | D100: Supporting Table SC13e | E100: =D100&"Consolidated Monthly Budget Statement - capital expenditure on upgrading of existing assets by asset class" -> Supporting Table SC13e Consolidated Monthly Budget Statement - capital expenditure on upgrading of existing assets by asset class | F100: =D100&"Monthly Budget Statement - capital expenditure on upgrading of existing assets by asset class" -> Supporting Table SC13e Monthly Budget Statement - capital expenditure on upgrading of existing assets by asset class
B101: s71 charts listing
B102: =D102&Head2A&" Capital Expenditure Monthly Trend: actual v target" -> Chart C1 2023/24 Capital Expenditure Monthly Trend: actual v target | D102: Chart C1
B103: =D103&Head2A&" Capital Expenditure: YTD actual v YTD target" -> Chart C2 2023/24 Capital Expenditure: YTD actual v YTD target | D103: Chart C2
B104: =D104&"Aged Consumer Debtors Analysis" -> Chart C3 Aged Consumer Debtors Analysis | D104: Chart C3
B105: =D105&"Consumer Debtors (total by Debtor Customer Category)" -> Chart C4 Consumer Debtors (total by Debtor Customer Category) | D105: Chart C4
B106: =D106&"Aged Creditors Analysis" -> Chart C5 Aged Creditors Analysis | D106: Chart C5
A107: S71T | B107: =D107&" Monthly Budget Statement - Expenditure against approved rollovers" -> Supporting Table SC7(2) Monthly Budget Statement - Expenditure against approved rollovers | D107: Supporting Table SC7(2)

Sheet Lookup and lists (hidden)
A1: Description | B1: 2013 | C1: 2014 | D1: 2015 | E1: 2016 | F1: 2017 | G1: 2018 | H1: 2019 | I1: 2020 | J1: 2021 | K1: 2022 | L1: 2023 | M1: 2024 | N1: 2025 | O1: 2026 | Q1: Grants: | R1: National - opex | S1: Provincial - opex | T1: National - capex | U1: Provincial - capex | V1: YESNO
A2: ='Template names'!C2 -> Prior year -1 | B2: =B1-1&"/"&RIGHT(B1,2)-0 -> 2012/13 | C2: =C1-1&"/"&RIGHT(C1,2)-0 -> 2013/14 | D2: =D1-1&"/"&RIGHT(D1,2)-0 -> 2014/15 | E2: =E1-1&"/"&RIGHT(E1,2)-0 -> 2015/16 | F2: =F1-1&"/"&RIGHT(F1,2)-0 -> 2016/17 | G2: 2017/18 | H2: 2018/19 | I2: 2019/20 | J2: 2020/21 | K2: 2021/22 | L2: 2022/23 | M2: 2023/24 | N2: 2024/25 | O2: 2025/26 | R2: Local Government Equitable Share | S2: Health subsidy | T2: Municipal Infrastructure Grant (MIG) | U2: Agriculture | V2: Yes
A3: ='Template names'!C5 -> MTREF header name | B3: =B1&"/"&RIGHT(B1,2)+1&" Medium Term Revenue & Expenditure Framework" -> 2013/14 Medium Term Revenue & Expenditure Framework | C3: =C1&"/"&RIGHT(C1,2)+1&" Medium Term Revenue & Expenditure Framework" -> 2014/15 Medium Term Revenue & Expenditure Framework | D3: =D1&"/"&RIGHT(D1,2)+1&" Medium Term Revenue & Expenditure Framework" -> 2015/16 Medium Term Revenue & Expenditure Framework | E3: =E1&"/"&RIGHT(E1,2)+1&" Medium Term Revenue & Expenditure Framework" -> 2016/17 Medium Term Revenue & Expenditure Framework | F3: =F1&"/"&RIGHT(F1,2)+1&" Medium Term Revenue & Expenditure Framework" -> 2017/18 Medium Term Revenue & Expenditure Framework | G3: 2018/19 Medium Term Revenue & Expenditure Framework | H3: 2019/20 Medium Term Revenue & Expenditure Framework | I3: 2020/21 Medium Term Revenue & Expenditure Framework | J3: 2021/22 Medium Term Revenue & Expenditure Framework | K3: 2022/23 Medium Term Revenue & Expenditure Framework | L3: 2023/24 Medium Term Revenue & Expenditure Framework | M3: 2024/25 Medium Term Revenue & Expenditure Framework | N3: 2025/26 Medium Term Revenue & Expenditure Framework | O3: 2026/27 Medium Term Revenue & Expenditure Framework | R3: RSC Levy Replacement | S3: Ambulance subsidy | T3: Public Transport and Systems | U3: Education | V3: No
A4: ='Template names'!C4 -> Approved budget year | B4: =B1&"/"&RIGHT(B1,2)+1 -> 2013/14 | C4: =C1&"/"&RIGHT(C1,2)+1 -> 2014/15 | D4: =D1&"/"&RIGHT(D1,2)+1 -> 2015/16 | E4: =E1&"/"&RIGHT(E1,2)+1 -> 2016/17 | F4: =F1&"/"&RIGHT(F1,2)+1 -> 2017/18 | G4: 2018/19 | H4: 2019/20 | I4: 2020/21 | J4: 2021/22 | K4: 2022/23 | L4: 2023/24 | M4: 2024/25 | N4: 2025/26 | O4: 2026/27 | R4: Finance Management | S4: Housing | T4: Rural Transport Services and Infrastructure | U4: Health
A5: ='Template names'!C12 -> 1st year of MTREF | B5: ="Budget Year "&B1&"/"&RIGHT(B1,2)+1 -> Budget Year 2013/14 | C5: ="Budget Year "&C1&"/"&RIGHT(C1,2)+1 -> Budget Year 2014/15 | D5: ="Budget Year "&D1&"/"&RIGHT(D1,2)+1 -> Budget Year 2015/16 | E5: ="Budget Year "&E1&"/"&RIGHT(E1,2)+1 -> Budget Year 2016/17 | F5: ="Budget Year "&F1&"/"&RIGHT(F1,2)+1 -> Budget Year 2017/18 | G5: Budget Year 2018/19 | H5: Budget Year 2019/20 | I5: Budget Year 2020/21 | J5: Budget Year 2021/22 | K5: Budget Year 2022/23 | L5: Budget Year 2023/24 | M5: Budget Year 2024/25 | N5: Budget Year 2025/26 | O5: Budget Year 2026/27 | R5: Municipal Systems Improvement | S5: Sport and Recreation | T5: Regional Bulk Infrastructure | U5: Housing and Local Government
A6: ='Template names'!C13 -> 2nd year of MTREF | B6: ="Budget Year +1 "&B1+1&"/"&RIGHT(B1,2)+2 -> Budget Year +1 2014/15 | C6: ="Budget Year +1 "&C1+1&"/"&RIGHT(C1,2)+2 -> Budget Year +1 2015/16 | D6: ="Budget Year +1 "&D1+1&"/"&RIGHT(D1,2)+2 -> Budget Year +1 2016/17 | E6: ="Budget Year +1 "&E1+1&"/"&RIGHT(E1,2)+2 -> Budget Year +1 2017/18 | F6: ="Budget Year +1 "&F1+1&"/"&RIGHT(F1,2)+2 -> Budget Year +1 2018/19 | G6: Budget Year +1 2019/20 | H6: Budget Year +1 2020/21 | I6: Budget Year +1 2021/22 | J6: Budget Year +1 2022/23 | K6: Budget Year +1 2023/24 | L6: Budget Year +1 2024/25 | M6: Budget Year +1 2025/26 | N6: Budget Year +1 2026/27 | O6: Budget Year +1 2027/28 | R6: Water Services Operating Subsidy | T6: Rural Households Infrastructure | U6: Other Departments
A7: ='Template names'!C14 -> 3rd year of MTREF | B7: ="Budget Year +2 "&B1+2&"/"&RIGHT(B1,2)+3 -> Budget Year +2 2015/16 | C7: ="Budget Year +2 "&C1+2&"/"&RIGHT(C1,2)+3 -> Budget Year +2 2016/17 | D7: ="Budget Year +2 "&D1+2&"/"&RIGHT(D1,2)+3 -> Budget Year +2 2017/18 | E7: ="Budget Year +2 "&E1+2&"/"&RIGHT(E1,2)+3 -> Budget Year +2 2018/19 | F7: ="Budget Year +2 "&F1+2&"/"&RIGHT(F1,2)+3 -> Budget Year +2 2019/20 | G7: Budget Year +2 2020/21 | H7: Budget Year +2 2021/22 | I7: Budget Year +2 2022/23 | J7: Budget Year +2 2023/24 | K7: Budget Year +2 2024/25 | L7: Budget Year +2 2025/26 | M7: Budget Year +2 2026/27 | N7: Budget Year +2 2027/28 | O7: Budget Year +2 2028/29 | R7: Energy Efficiency and Demand Management | T7: Neighbourhood Development Partnership | U7: Public Works, Roads, Transport
A8: NOTE: This sheet should not be directly amended - select headings from sheet 'S' | R8: Integrated National Electrification Programme | T8: 2010 FIFA World Cup Stadiums Development | U8: Sport and Recreation
R9: Municipal Drought Relief
R10: 2010 FIFA World Cup Operating
R11: Electricity Demand Side Management
R12: EPWP Incentive
A26: Name link | B26: 141
A27: Name of Muni | B27: =INDEX(B28:B311,B26,1) -> LIM353 Molemole
B28: Choose name from list | C28: Set name on 'Instructions' sheet
B29: BUF Buffalo City | C29: EC EASTERN CAPE
B30: NMA Nelson Mandela Bay | C30: EC EASTERN CAPE
B31: EC101 Dr Beyers Naude | C31: EC EASTERN CAPE
B32: EC102 Blue Crane Route | C32: EC EASTERN CAPE
B33: EC104 Makana | C33: EC EASTERN CAPE
B34: EC105 Ndlambe | C34: EC EASTERN CAPE
B35: EC106 Sundays River Valley | C35: EC EASTERN CAPE
B36: EC108 Kouga | C36: EC EASTERN CAPE
B37: EC109 Kou-Kamma | C37: EC EASTERN CAPE
B38: DC10 Sarah Baartman | C38: EC EASTERN CAPE
B39: EC121 Mbhashe | C39: EC EASTERN CAPE
B40: EC122 Mnquma | C40: EC EASTERN CAPE
B41: EC123 Great Kei | C41: EC EASTERN CAPE
B42: EC124 Amahlathi | C42: EC EASTERN CAPE
B43: EC126 Ngqushwa | C43: EC EASTERN CAPE
B44: EC129 Raymond Mhlaba | C44: EC EASTERN CAPE
B45: DC12 Amathole | C45: EC EASTERN CAPE
B46: EC131 Inxuba Yethemba | C46: EC EASTERN CAPE
B47: EC135 Intsika Yethu | C47: EC EASTERN CAPE
B48: EC136 Emalahleni (Ec) | C48: EC EASTERN CAPE
B49: EC137 Engcobo | C49: EC EASTERN CAPE
B50: EC138 Sakhisizwe | C50: EC EASTERN CAPE
B51: EC139 Enoch Mgijima | C51: EC EASTERN CAPE
B52: DC13 Chris Hani | C52: EC EASTERN CAPE
B53: EC141 Elundini | C53: EC EASTERN CAPE
B54: EC142 Senqu | C54: EC EASTERN CAPE
B55: EC145 Walter Sisulu | C55: EC EASTERN CAPE
B56: DC14 Joe Gqabi | C56: EC EASTERN CAPE
B57: EC153 Ngquza Hills | C57: EC EASTERN CAPE
B58: EC154 Port St Johns | C58: EC EASTERN CAPE
B59: EC155 Nyandeni | C59: EC EASTERN CAPE
B60: EC156 Mhlontlo | C60: EC EASTERN CAPE
B61: EC157 King Sabata Dalindyebo | C61: EC EASTERN CAPE
B62: DC15 O .R. Tambo | C62: EC EASTERN CAPE
B63: EC441 Matatiele | C63: EC EASTERN CAPE
B64: EC442 Umzimvubu | C64: EC EASTERN CAPE
B65: EC443 Winnie Madikizela Mandela | C65: EC EASTERN CAPE
B66: EC444 Ntabankulu | C66: EC EASTERN CAPE
B67: DC44 Alfred Nzo | C67: EC EASTERN CAPE
B68: MAN Mangaung | C68: FS FREE STATE
B69: FS161 Letsemeng | C69: FS FREE STATE
B70: FS162 Kopanong | C70: FS FREE STATE
B71: FS163 Mohokare | C71: FS FREE STATE
B72: DC16 Xhariep | C72: FS FREE STATE
B73: FS181 Masilonyana | C73: FS FREE STATE
B74: FS182 Tokologo | C74: FS FREE STATE
B75: FS183 Tswelopele | C75: FS FREE STATE
B76: FS184 Matjhabeng | C76: FS FREE STATE
B77: FS185 Nala | C77: FS FREE STATE
B78: DC18 Lejweleputswa | C78: FS FREE STATE
B79: FS191 Setsoto | C79: FS FREE STATE
B80: FS192 Dihlabeng | C80: FS FREE STATE
B81: FS193 Nketoana | C81: FS FREE STATE
B82: FS194 Maluti-a-Phofung | C82: FS FREE STATE
B83: FS195 Phumelela | C83: FS FREE STATE
B84: FS196 Mantsopa | C84: FS FREE STATE
B85: DC19 Thabo Mofutsanyana | C85: FS FREE STATE
B86: FS201 Moqhaka | C86: FS FREE STATE
B87: FS203 Ngwathe | C87: FS FREE STATE
B88: FS204 Metsimaholo | C88: FS FREE STATE
B89: FS205 Mafube | C89: FS FREE STATE
B90: DC20 Fezile Dabi | C90: FS FREE STATE
B91: EKU City of Ekurhuleni | C91: GT GAUTENG
B92: JHB City Of Johannesburg | C92: GT GAUTENG
B93: TSH City Of Tshwane | C93: GT GAUTENG
B94: GT421 Emfuleni | C94: GT GAUTENG
B95: GT422 Midvaal | C95: GT GAUTENG
B96: GT423 Lesedi | C96: GT GAUTENG
B97: DC42 Sedibeng | C97: GT GAUTENG
B98: GT481 Mogale City | C98: GT GAUTENG
B99: GT484 Merafong City | C99: GT GAUTENG
B100: GT485 Rand West City | C100: GT GAUTENG
B101: DC48 West Rand | C101: GT GAUTENG
B102: ETH eThekwini | C102: KZN KWAZULU-NATAL
B103: KZN212 Umdoni | C103: KZN KWAZULU-NATAL
B104: KZN213 Umzumbe | C104: KZN KWAZULU-NATAL
B105: KZN214 uMuziwabantu | C105: KZN KWAZULU-NATAL
B106: KZN216 Ray Nkonyeni | C106: KZN KWAZULU-NATAL
B107: DC21 Ugu | C107: KZN KWAZULU-NATAL
B108: KZN221 uMshwathi | C108: KZN KWAZULU-NATAL
B109: KZN222 uMngeni | C109: KZN KWAZULU-NATAL
B110: KZN223 Mpofana | C110: KZN KWAZULU-NATAL
B111: KZN224 Impendle | C111: KZN KWAZULU-NATAL
B112: KZN225 Msunduzi | C112: KZN KWAZULU-NATAL
B113: KZN226 Mkhambathini | C113: KZN KWAZULU-NATAL
B114: KZN227 Richmond | C114: KZN KWAZULU-NATAL
B115: DC22 uMgungundlovu | C115: KZN KWAZULU-NATAL
B116: KZN235 Okhahlamba | C116: KZN KWAZULU-NATAL
B117: KZN237 Inkosi Langalibalele | C117: KZN KWAZULU-NATAL
B118: KZN238 Alfred Duma | C118: KZN KWAZULU-NATAL
B119: DC23 Uthukela | C119: KZN KWAZULU-NATAL
B120: KZN241 Endumeni | C120: KZN KWAZULU-NATAL
B121: KZN242 Nquthu | C121: KZN KWAZULU-NATAL
B122: KZN244 Msinga | C122: KZN KWAZULU-NATAL
B123: KZN245 Umvoti | C123: KZN KWAZULU-NATAL
B124: DC24 Umzinyathi | C124: KZN KWAZULU-NATAL
B125: KZN252 Newcastle | C125: KZN KWAZULU-NATAL
B126: KZN253 Emadlangeni | C126: KZN KWAZULU-NATAL
B127: KZN254 Dannhauser | C127: KZN KWAZULU-NATAL
B128: DC25 Amajuba | C128: KZN KWAZULU-NATAL
B129: KZN261 eDumbe | C129: KZN KWAZULU-NATAL
B130: KZN262 uPhongolo | C130: KZN KWAZULU-NATAL
B131: KZN263 Abaqulusi | C131: KZN KWAZULU-NATAL
B132: KZN265 Nongoma | C132: KZN KWAZULU-NATAL
B133: KZN266 Ulundi | C133: KZN KWAZULU-NATAL
B134: DC26 Zululand | C134: KZN KWAZULU-NATAL
B135: KZN271 Umhlabuyalingana | C135: KZN KWAZULU-NATAL
B136: KZN272 Jozini | C136: KZN KWAZULU-NATAL
B137: KZN275 Mtubatuba | C137: KZN KWAZULU-NATAL
B138: KZN276 Hlabisa Big Five | C138: KZN KWAZULU-NATAL
B139: DC27 Umkhanyakude | C139: KZN KWAZULU-NATAL
B140: KZN281 Mfolozi | C140: KZN KWAZULU-NATAL
B141: KZN282 uMhlathuze | C141: KZN KWAZULU-NATAL
B142: KZN284 uMlalazi | C142: KZN KWAZULU-NATAL
B143: KZN285 Mthonjaneni | C143: KZN KWAZULU-NATAL
B144: KZN286 Nkandla | C144: KZN KWAZULU-NATAL
B145: DC28 King Cetshwayo | C145: KZN KWAZULU-NATAL
B146: KZN291 Mandeni | C146: KZN KWAZULU-NATAL
B147: KZN292 KwaDukuza | C147: KZN KWAZULU-NATAL
B148: KZN293 Ndwedwe | C148: KZN KWAZULU-NATAL
B149: KZN294 Maphumulo | C149: KZN KWAZULU-NATAL
B150: DC29 iLembe | C150: KZN KWAZULU-NATAL
B151: KZN433 Greater Kokstad | C151: KZN KWAZULU-NATAL
B152: KZN434 Ubuhlebezwe | C152: KZN KWAZULU-NATAL
B153: KZN435 Umzimkhulu | C153: KZN KWAZULU-NATAL
B154: KZN436 Dr Nkosazana Dlamini Zuma | C154: KZN KWAZULU-NATAL
B155: DC43 Harry Gwala | C155: KZN KWAZULU-NATAL
B156: LIM331 Greater Giyani | C156: LIM LIMPOPO
B157: LIM332 Greater Letaba | C157: LIM LIMPOPO
B158: LIM333 Greater Tzaneen | C158: LIM LIMPOPO
B159: LIM334 Ba-Phalaborwa | C159: LIM LIMPOPO
B160: LIM335 Maruleng | C160: LIM LIMPOPO
B161: DC33 Mopani | C161: LIM LIMPOPO
B162: LIM341 Musina | C162: LIM LIMPOPO
B163: LIM343 Thulamela | C163: LIM LIMPOPO
B164: LIM344 Makhado | C164: LIM LIMPOPO
B165: LIM345 Collins Chabane | C165: LIM LIMPOPO
B166: DC34 Vhembe | C166: LIM LIMPOPO
B167: LIM351 Blouberg | C167: LIM LIMPOPO
B168: LIM353 Molemole | C168: LIM LIMPOPO
B169: LIM354 Polokwane | C169: LIM LIMPOPO
B170: LIM355 Lepelle-Nkumpi | C170: LIM LIMPOPO
B171: DC35 Capricorn | C171: LIM LIMPOPO
B172: LIM361 Thabazimbi | C172: LIM LIMPOPO
B173: LIM362 Lephalale | C173: LIM LIMPOPO
B174: LIM366 Bela Bela | C174: LIM LIMPOPO
B175: LIM367 Mogalakwena | C175: LIM LIMPOPO
B176: LIM368 Modimolle-Mookgopong | C176: LIM LIMPOPO
B177: DC36 Waterberg | C177: LIM LIMPOPO
B178: LIM471 Ephraim Mogale | C178: LIM LIMPOPO
B179: LIM472 Elias Motsoaledi | C179: LIM LIMPOPO
B180: LIM473 Makhuduthamaga | C180: LIM LIMPOPO
B181: LIM476 Tubatse Fetakgomo | C181: LIM LIMPOPO
B182: DC47 Sekhukhune | C182: LIM LIMPOPO
B183: MP301 Albert Luthuli | C183: MP MPUMALANGA
B184: MP302 Msukaligwa | C184: MP MPUMALANGA
B185: MP303 Mkhondo | C185: MP MPUMALANGA
B186: MP304 Pixley Ka Seme (MP) | C186: MP MPUMALANGA
B187: MP305 Lekwa | C187: MP MPUMALANGA
B188: MP306 Dipaleseng | C188: MP MPUMALANGA
B189: MP307 Govan Mbeki | C189: MP MPUMALANGA
B190: DC30 Gert Sibande | C190: MP MPUMALANGA
B191: MP311 Victor Khanye | C191: MP MPUMALANGA
B192: MP312 Emalahleni (Mp) | C192: MP MPUMALANGA
B193: MP313 Steve Tshwete | C193: MP MPUMALANGA
B194: MP314 Emakhazeni | C194: MP MPUMALANGA
B195: MP315 Thembisile Hani | C195: MP MPUMALANGA
B196: MP316 Dr J.S. Moroka | C196: MP MPUMALANGA
B197: DC31 Nkangala | C197: MP MPUMALANGA
B198: MP321 Thaba Chweu | C198: MP MPUMALANGA
B199: MP324 Nkomazi | C199: MP MPUMALANGA
B200: MP325 Bushbuckridge | C200: MP MPUMALANGA
B201: MP326 City of Mbombela | C201: MP MPUMALANGA
B202: DC32 Ehlanzeni | C202: MP MPUMALANGA
B203: NC451 Joe Morolong | C203: NC NORTHERN CAPE
B204: NC452 Ga-Segonyana | C204: NC NORTHERN CAPE
B205: NC453 Gamagara | C205: NC NORTHERN CAPE
B206: DC45 John Taolo Gaetsewe | C206: NC NORTHERN CAPE
B207: NC061 Richtersveld | C207: NC NORTHERN CAPE
B208: NC062 Nama Khoi | C208: NC NORTHERN CAPE
B209: NC064 Kamiesberg | C209: NC NORTHERN CAPE
B210: NC065 Hantam | C210: NC NORTHERN CAPE
B211: NC066 Karoo Hoogland | C211: NC NORTHERN CAPE
B212: NC067 Khai-Ma | C212: NC NORTHERN CAPE
B213: DC6 Namakwa | C213: NC NORTHERN CAPE
... 73 more rows

Sheet Org structure
A1: Organisational Structure Votes | C1: Organisational Structure Sub-Votes | E1: Display Sub-Votes
A2: =B2&" - "&C2 -> Vote 01 - Corporate Services | B2: Vote 01 | C2: Corporate Services
A3: =B11&" - "&C11 -> Vote 02 - Municipal Manager | B3: 01.1 | C3: Corporate Services Admin | D3: =CONCATENATE(B3, " - ", C3) -> 01.1 - Corporate Services Admin | E3: 01.1 - Corporate Services Admin
A4: =B17&" - "&C17 -> Vote 03 - Mayors Office | B4: 01.2 | C4: Human Resources | D4: 01.2 - Human Resources | E4: 01.2 - Human Resources
A5: =B23&" - "&C23 -> Vote 04 - Budget And Treasury | B5: 01.3 | C5: Information Technology Services | D5: 01.3 - Information Technology Services | E5: 01.3 - Information Technology Services
A6: =B31&" - "&C31 -> Vote 05 - Community Services | B6: 01.4 | C6: Council Support | D6: 01.4 - Council Support | E6: 01.4 - Council Support
A7: =B39&" - "&C39 -> Vote 06 - Technical Services | B7: 01.5 | C7: Local Economic Development | D7: 01.5 - Local Economic Development | E7: 01.5 - Local Economic Development
A8: =B48&" - "&C48 -> Vote 07 - | B8: 01.6 | C8: Municipal Planning Idp | D8: 01.6 - Municipal Planning Idp | E8: 01.6 - Municipal Planning Idp
A9: Vote 08 - | B9: 01.7 | C9: Town & Regional Planning | D9: 01.7 - Town & Regional Planning | E9: 01.7 - Town & Regional Planning
A10: Vote 09 - | B10: 01.8 | C10: Led Administration | D10: 01.8 - Led Administration | E10: 01.8 - Led Administration
A11: Vote 10 - | B11: Vote 02 | C11: Municipal Manager
A12: Vote 11 - | B12: 02.1 | C12: Municipal Manager Admin | D12: =CONCATENATE(B12, " - ", C12) -> 02.1 - Municipal Manager Admin | E12: 02.1 - Municipal Manager Admin
A13: Vote 12 - | B13: 02.2 | C13: Legal Services | D13: =CONCATENATE(B13, " - ", C13) -> 02.2 - Legal Services | E13: 02.2 - Legal Services
A14: Vote 13 - | B14: 02.3 | C14: Political Office Beares | D14: =CONCATENATE(B14, " - ", C14) -> 02.3 - Political Office Beares | E14: 02.3 - Political Office Beares
A15: Vote 14 - | B15: 02.4 | C15: Pms | D15: =CONCATENATE(B15, " - ", C15) -> 02.4 - Pms | E15: 02.4 - Pms
A16: Vote 15 - Other | B16: 02.5 | C16: Internal Audit | D16: =CONCATENATE(B16, " - ", C16) -> 02.5 - Internal Audit | E16: 02.5 - Internal Audit
B17: Vote 03 | C17: Mayors Office
B18: 03.1 | C18: Mayors Office Admin | D18: =CONCATENATE(B18, " - ", C18) -> 03.1 - Mayors Office Admin | E18: 03.1 - Mayors Office Admin
B19: 03.2 | C19: Office Of The Speaker | D19: =CONCATENATE(B19, " - ", C19) -> 03.2 - Office Of The Speaker | E19: 03.2 - Office Of The Speaker
B20: 03.3 | C20: Office Of The Chief Whip | D20: =CONCATENATE(B20, " - ", C20) -> 03.3 - Office Of The Chief Whip | E20: 03.3 - Office Of The Chief Whip
B21: 03.4 | C21: Exco Members | D21: =CONCATENATE(B21, " - ", C21) -> 03.4 - Exco Members | E21: 03.4 - Exco Members
B22: 03.5 | C22: Council General Administration | D22: =CONCATENATE(B22, " - ", C22) -> 03.5 - Council General Administration | E22: 03.5 - Council General Administration
B23: Vote 04 | C23: Budget And Treasury
B24: 04.1 | C24: Budget And Treasury Admin | D24: =CONCATENATE(B24, " - ", C24) -> 04.1 - Budget And Treasury Admin | E24: 04.1 - Budget And Treasury Admin
B25: 04.2 | C25: Chief Financial Officer Admin | D25: 04.2 - Chief Financial Officer Admin | E25: 04.2 - Chief Financial Officer Admin
B26: 04.3 | C26: Budget & Reporting | D26: 04.3 - Budget & Reporting | E26: 04.3 - Budget & Reporting
B27: 04.4 | C27: Budget & Reporting | D27: 04.4 - Budget & Reporting | E27: 04.4 - Budget & Reporting
B28: 04.5 | C28: Revenue Management | D28: 04.5 - Revenue Management | E28: 04.5 - Revenue Management
B29: 04.6 | C29: Supply Chain Management | D29: 04.6 - Supply Chain Management | E29: 04.6 - Supply Chain Management
B30: 04.7 | C30: Expenditure | D30: 04.7 - Expenditure | E30: 04.7 - Expenditure
B31: Vote 05 | C31: Community Services
B32: 05.1 | C32: Community Services Admin | D32: =CONCATENATE(B32, " - ", C32) -> 05.1 - Community Services Admin | E32: 05.1 - Community Services Admin
B33: 05.2 | C33: Libraries | D33: 05.2 - Libraries | E33: 05.2 - Libraries
B34: 05.3 | C34: Sports Recreation & Social Amenitie | D34: 05.3 - Sports Recreation & Social Amenitie | E34: 05.3 - Sports Recreation & Social Amenitie
B35: 05.4 | C35: Traffic Service | D35: 05.4 - Traffic Service | E35: 05.4 - Traffic Service
B36: 05.5 | C36: Traffic Service | D36: 05.5 - Traffic Service | E36: 05.5 - Traffic Service
B37: 05.6 | C37: Parks; Cemeteries | D37: 05.6 - Parks; Cemeteries | E37: 05.6 - Parks; Cemeteries
B38: 05.7 | C38: Refuse | D38: 05.7 - Refuse | E38: 05.7 - Refuse
B39: Vote 06 | C39: Technical Services
B40: 06.1 | C40: Mpac | D40: =CONCATENATE(B40, " - ", C40) -> 06.1 - Mpac | E40: 06.1 - Mpac
B41: 06.2 | C41: Technical Services Admin | D41: 06.2 - Technical Services Admin | E41: 06.2 - Technical Services Admin
B42: 06.3 | C42: Techn Serv-Roads: Admin | D42: 06.3 - Techn Serv-Roads: Admin | E42: 06.3 - Techn Serv-Roads: Admin
B43: 06.4 | C43: Techn Serv-Stormwater: Admin | D43: 06.4 - Techn Serv-Stormwater: Admin | E43: 06.4 - Techn Serv-Stormwater: Admin
B44: 06.5 | C44: Project Management Unit | D44: 06.5 - Project Management Unit | E44: 06.5 - Project Management Unit
B45: 06.6 | C45: Electrical & Machinery | D45: 06.6 - Electrical & Machinery | E45: 06.6 - Electrical & Machinery
B46: 06.7 | C46: Water | D46: 06.7 - Water | E46: 06.7 - Water
B47: 06.8 | C47: Sanitation | D47: 06.8 - Sanitation | E47: 06.8 - Sanitation
B48: Vote 07
B49: Vote 08
B50: Vote 09
B51: Vote 10
B52: Vote 11
B53: Vote 12
B54: Vote 13
B55: Vote 14
B56: Vote 15 | C56: Other

Sheet Contacts
A1: =muni&" - "&" Contact Information" -> LIM353 Molemole - Contact Information
A3: A. GENERAL INFORMATION
A4: Municipality | B4: =muni -> LIM353 Molemole | C4: Set name on 'Instructions' sheet
A6: Grade | C6: 1 Grade in terms of the Remuneration of Public Office Bearers Act.
A8: Province | B8: =IF(B4>" ",VLOOKUP(B4,'Lookup and lists'!B28:C311,2, FALSE)," ") -> LIM LIMPOPO
A10: Web Address
A12: e-mail Address
A14: B. CONTACT INFORMATION
A15: Postal address:
A16: P.O. Box
A17: City / Town
A18: Postal Code
A20: Street address
A21: Building
A22: Street No. & Name | B22: 303 Church Street
A23: City / Town | B23: Mogwadi
A24: Postal Code | B24: 0715
A26: General Contacts
A27: Telephone number | B27: 015 501 2300
A28: Fax number
A30: C. POLITICAL LEADERSHIP
A31: Speaker: | C31: Secretary/PA to the Speaker:
A32: ID Number | B32: 810311 0466 087 | C32: ID Number | D32: 820119 0609 087
A33: Title | B33: Mrs | C33: Title | D33: Ms
A34: Name | B34: MATLOU DIKELEDI | C34: Name | D34: MACHAKA SEBOLLA
A35: Telephone number | B35: 015 501 0243 | C35: Telephone number | D35: 015 501 0243
A36: Cell number | B36: 060 876 1553 | C36: Cell number | D36: 079 728 8360
A37: Fax number | B37: 015 501 0419 | C37: Fax number | D37: 015 501 0419
A38: E-mail address | B38: dikeledipakgadi@gmail.com | C38: E-mail address | D38: machakas@molemole.gov.za
A40: Mayor/Executive Mayor: | C40: Secretary/PA to the Mayor/Executive Mayor:
A41: ID Number | B41: 660312 5428 081 | C41: ID Number | D41: 850930 1072 080
A42: Title | B42: Mr | C42: Title | D42: Ms
A43: Name | B43: PAYA E | C43: Name | D43: RATHETE MAKETA
A44: Telephone number | B44: 015 501 0243 | C44: Telephone number | D44: 015 501 0243
A45: Cell number | B45: 082 474 2858 | C45: Cell number | D45: 072 958 1970
A46: Fax number | B46: 086 515 8809 | C46: Fax number | D46: 015 501 0419
A47: E-mail address | B47: payae@molemole.gov.za | C47: E-mail address | D47: rathetem@molemole.go.za
A49: Deputy Mayor/Executive Mayor: | C49: Secretary/PA to the Deputy Mayor/Executive Mayor:
A50: ID Number | C50: ID Number
A51: Title | C51: Title
A52: Name | C52: Name
A53: Telephone number | C53: Telephone number
A54: Cell number | C54: Cell number
A55: Fax number | C55: Fax number
A56: E-mail address | C56: E-mail address
A58: D. MANAGEMENT LEADERSHIP
A59: Municipal Manager: | C59: Secretary/PA to the Municipal Manager:
A60: ID Number | B60: 741022 5373 087 | C60: ID Number | D60: 720712 0880 087
A61: Title | B61: Mr | C61: Title | D61: Mrs
A62: Name | B62: MAKGATO KGABO EMMANUEL | C62: Name | D62: SEABELA SUSAN
A63: Telephone number | B63: 015 501 0243 | C63: Telephone number | D63: 015 501 0243
A64: Cell number | B64: 082 619 5734 | C64: Cell number | D64: 079 217 3250
A65: Fax number | B65: 015 501 0419 | C65: Fax number | D65: 015 501 0419
A66: E-mail address | B66: MakgatoKE@molemole.gov.za | C66: E-mail address | D66: lebepes@molemole.gov.za
A68: Chief Financial Officer | C68: Secretary/PA to the Chief Financial Officer
A69: ID Number | B69: 840119 5370 087 | C69: ID Number | D69: 900906 1348 084
A70: Title | B70: Mr | C70: Title | D70: Miss
A71: Name | B71: NKALANGA AS | C71: Name | D71: MAROPENG PHOSA
A72: Telephone number | B72: 015 501 0243 | C72: Telephone number | D72: 015 501 0243
A73: Cell number | B73: 072 343 3314 | C73: Cell number | D73: 073 916 3639
A74: Fax number | B74: 015 501 0419 | C74: Fax number | D74: 015 501 0419
A75: E-mail address | B75: nkalanga@molemole.gov.za | C75: E-mail address | D75: phosam@molemole.gov.za
A77: Official responsible for submitting financial information | C77: Official responsible for submitting financial information
A78: ID Number | B78: 820214 0303 086 | C78: ID Number
A79: Title | B79: Mrs | C79: Title
A80: Name | B80: WISO PORTIA | C80: Name
A81: Telephone number | B81: 015 501 0243 | C81: Telephone number
A82: Cell number | B82: 082 488 3823 | C82: Cell number
A83: Fax number | B83: 015 501 0419 | C83: Fax number
A84: E-mail address | B84: mamabolomp@molemole.gov.za | C84: E-mail address
A85: Official responsible for submitting financial information | C85: Official responsible for submitting financial information
A86: ID Number | C86: ID Number
A87: Title | C87: Title
A88: Name | C88: Name
A89: Telephone number | C89: Telephone number
A90: Cell number | C90: Cell number
A91: Fax number | C91: Fax number
A92: E-mail address | C92: E-mail address
A93: Official responsible for submitting financial information | C93: Official responsible for submitting financial information
A94: ID Number | C94: ID Number
A95: Title | C95: Title
A96: Name | C96: Name
A97: Telephone number | C97: Telephone number
A98: Cell number | C98: Cell number
A99: Fax number | C99: Fax number
A100: E-mail address | C100: E-mail address
A101: Official responsible for submitting financial information | C101: Official responsible for submitting financial information
A102: ID Number | C102: ID Number
A103: Title | C103: Title
A104: Name | C104: Name
A105: Telephone number | C105: Telephone number
A106: Cell number | C106: Cell number
A107: Fax number | C107: Fax number
A108: E-mail address | C108: E-mail address
A109: Official responsible for submitting financial information | C109: Official responsible for submitting financial information
A110: ID Number | C110: ID Number
A111: Title | C111: Title
A112: Name | C112: Name
A113: Telephone number | C113: Telephone number
A114: Cell number | C114: Cell number
A115: Fax number | C115: Fax number
A116: E-mail address | C116: E-mail address
A117: Official responsible for submitting financial information | C117: Official responsible for submitting financial information
A118: ID Number | C118: ID Number
A119: Title | C119: Title
A120: Name | C120: Name
A121: Telephone number | C121: Telephone number
A122: Cell number | C122: Cell number
A123: Fax number | C123: Fax number
A124: E-mail address | C124: E-mail address
A125: Official responsible for submitting financial information | C125: Official responsible for submitting financial information
A126: ID Number | C126: ID Number
A127: Title | C127: Title
A128: Name | C128: Name
A129: Telephone number | C129: Telephone number
A130: Cell number | C130: Cell number
A131: Fax number | C131: Fax number
A132: E-mail address | C132: E-mail address
A133: Official responsible for submitting financial information
A134: ID Number
A135: Title
A136: Name
A137: Telephone number
A138: Cell number
A139: Fax number
A140: E-mail address

Sheet C1-Sum
A1: =muni& " - "&s71sum& " - "&date -> LIM353 Molemole - Table C1 Monthly Budget Statement Summary - M02 August
A2: =desc -> Description | B2: =Head1 -> 2022/23 | C2: =Head2 -> Budget Year 2023/24
B3: =Head5 -> Audited Outcome | C3: =Head6 -> Original Budget | D3: =Head7 -> Adjusted Budget | E3: =Head38 -> Monthly actual | F3: =Head39 -> YearTD actual | G3: =Head40 -> YearTD budget | H3: =Head41 -> YTD variance | I3: =Head41 -> YTD variance | J3: =Head8 -> Full Year Forecast
A4: R thousands | I4: %
A5: Financial Performance
A6: Property rates | B6: =SUM('C4-FinPerf RE'!C22) -> 32723524.69 | C6: =SUM('C4-FinPerf RE'!D22) -> 46063444 | D6: =SUM('C4-FinPerf RE'!E22) -> 46063444 | E6: =SUM('C4-FinPerf RE'!F22) -> 0 | F6: =SUM('C4-FinPerf RE'!G22) -> 2362949.3 | G6: =SUM('C4-FinPerf RE'!H22) -> 7677232 | H6: =F6-G6 -> -5314282.7 | I6: =IF(H6=0,"",H6/G6) -> -0.6922133785 | J6: =SUM('C4-FinPerf RE'!K22) -> 46063444
A7: Service charges | B7: =SUM('C4-FinPerf RE'!C7:C10) -> 11493484.46 | C7: =SUM('C4-FinPerf RE'!D7:D10) -> 15880356 | D7: =SUM('C4-FinPerf RE'!E7:E10) -> 15880356 | E7: =SUM('C4-FinPerf RE'!F7:F10) -> 0 | F7: =SUM('C4-FinPerf RE'!G7:G10) -> 880327.86 | G7: =SUM('C4-FinPerf RE'!H7:H10) -> 2646722 | H7: =F7-G7 -> -1766394.14 | I7: =IF(H7=0,"",H7/G7) -> -0.6673893745 | J7: =SUM('C4-FinPerf RE'!K7:K10) -> 15880356
A8: Investment revenue | B8: ='C4-FinPerf RE'!C15 -> 8167645.51 | C8: ='C4-FinPerf RE'!D13 -> 0 | D8: ='C4-FinPerf RE'!E13 -> 0 | E8: ='C4-FinPerf RE'!F13 -> 0 | F8: ='C4-FinPerf RE'!G13 -> 0 | G8: ='C4-FinPerf RE'!H13 -> 0 | H8: =F8-G8 -> 0 | I8: =IF(H8=0,"",H8/G8) ->  | J8: ='C4-FinPerf RE'!K13 -> 0
A9: Transfers and subsidies - Operational | B9: ='C4-FinPerf RE'!C15 -> 8167645.51 | C9: ='C4-FinPerf RE'!D15 -> 9600000 | D9: ='C4-FinPerf RE'!E15 -> 9600000 | E9: ='C4-FinPerf RE'!F15 -> 0 | F9: ='C4-FinPerf RE'!G15 -> 0 | G9: ='C4-FinPerf RE'!H15 -> 1600000 | H9: =F9-G9 -> -1600000 | I9: =IF(H9=0,"",H9/G9) -> -1 | J9: ='C4-FinPerf RE'!K15 -> 9600000
A10: Other own revenue | B10: =+B11-SUM(B6:B9) -> 176313873.9 | C10: =+C11-SUM(C6:C9) -> 203233004 | D10: 203233004 | E10: 0 | F10: 74512488.21 | G10: 33872144 | H10: =F10-G10 -> 40640344.21 | I10: =IF(H10=0,"",H10/G10) -> 1.199816115 | J10: 0
A11: Total Revenue (excluding capital transfers and contributions) | B11: =+'C4-FinPerf RE'!C33 -> 236866174.1 | C11: =+'C4-FinPerf RE'!D33 -> 274776804 | D11: =+'C4-FinPerf RE'!E33 -> 274776804 | E11: =+'C4-FinPerf RE'!F33 -> 0 | F11: =+'C4-FinPerf RE'!G33 -> 77755765.37 | G11: =+'C4-FinPerf RE'!H33 -> 45796098 | H11: =F11-G11 -> 31959667.37 | I11: =IF(H11=0,"",H11/G11) -> 0.6978687872 | J11: =+'C4-FinPerf RE'!K33 -> 274776804
A12: Employee costs | B12: ='C4-FinPerf RE'!C35 -> 100664091.3 | C12: ='C4-FinPerf RE'!D35 -> 107286637 | D12: ='C4-FinPerf RE'!E35 -> 107259637 | E12: ='C4-FinPerf RE'!F35 -> 0 | F12: ='C4-FinPerf RE'!G35 -> 8906034.64 | G12: ='C4-FinPerf RE'!H35 -> 17876960 | H12: -8970925.36 | J12: ='C4-FinPerf RE'!K35 -> 107259637
A13: Remuneration of Councillors | B13: ='C4-FinPerf RE'!C36 -> 13208744.83 | C13: ='C4-FinPerf RE'!D36 -> 19640387 | D13: ='C4-FinPerf RE'!E36 -> 19640387 | E13: ='C4-FinPerf RE'!F36 -> 0 | F13: ='C4-FinPerf RE'!G36 -> 1109158.76 | G13: ='C4-FinPerf RE'!H36 -> 3273416 | H13: -2164257.24 | J13: ='C4-FinPerf RE'!K36 -> 19640387
A14: Depreciation and amortisation | B14: ='C4-FinPerf RE'!C40 -> 19847570.83 | C14: ='C4-FinPerf RE'!D40 -> 22082155 | D14: ='C4-FinPerf RE'!E40 -> 22082155 | E14: ='C4-FinPerf RE'!F40 -> 0 | F14: ='C4-FinPerf RE'!G40 -> 0 | G14: ='C4-FinPerf RE'!H40 -> 3680444 | H14: -3680444 | J14: ='C4-FinPerf RE'!K40 -> 22082155
A15: Interest | B15: ='C4-FinPerf RE'!C41 -> 26394.27 | C15: ='C4-FinPerf RE'!D41 -> 132765 | D15: ='C4-FinPerf RE'!E41 -> 132765 | E15: ='C4-FinPerf RE'!F41 -> 0 | F15: ='C4-FinPerf RE'!G41 -> 0 | G15: ='C4-FinPerf RE'!H41 -> 22128 | H15: -22128 | J15: ='C4-FinPerf RE'!K41 -> 132765
A16: Inventory consumed and bulk purchases | B16: =SUM('C4-FinPerf RE'!C37+'C4-FinPerf RE'!C38) -> 19076863.01 | C16: =SUM('C4-FinPerf RE'!D37+'C4-FinPerf RE'!D38) -> 22029095 | D16: =SUM('C4-FinPerf RE'!E37+'C4-FinPerf RE'!E38) -> 22029095 | E16: =SUM('C4-FinPerf RE'!F37+'C4-FinPerf RE'!F38) -> 0 | F16: =SUM('C4-FinPerf RE'!G37+'C4-FinPerf RE'!G38) -> 1311733.25 | G16: =SUM('C4-FinPerf RE'!H37+'C4-FinPerf RE'!H38) -> 3671524 | H16: -2359790.75 | J16: =SUM('C4-FinPerf RE'!K37+'C4-FinPerf RE'!K38) -> 22029095
A17: Transfers and subsidies | B17: ='C4-FinPerf RE'!C43 -> 0 | C17: ='C4-FinPerf RE'!D43 -> 0 | D17: ='C4-FinPerf RE'!E43 -> 0 | E17: ='C4-FinPerf RE'!F43 -> 0 | F17: ='C4-FinPerf RE'!G43 -> 0 | G17: ='C4-FinPerf RE'!H43 -> 0 | H17: 0 | J17: ='C4-FinPerf RE'!K43 -> 0
A18: Other expenditure | B18: ='C4-FinPerf RE'!C48-SUM('C1-Sum'!B12:B17) -> 85078024 | C18: ='C4-FinPerf RE'!D48-SUM('C1-Sum'!C12:C17) -> 89773772 | D18: ='C4-FinPerf RE'!E48-SUM('C1-Sum'!D12:D17) -> 89773772 | E18: ='C4-FinPerf RE'!F48-SUM('C1-Sum'!E12:E17) -> 0 | F18: ='C4-FinPerf RE'!G48-SUM('C1-Sum'!F12:F17) -> 3271550.4 | G18: ='C4-FinPerf RE'!H48-SUM('C1-Sum'!G12:G17) -> 14962446 | H18: -11690895.6 | I18: -0.7813492259 | J18: ='C4-FinPerf RE'!K48-SUM('C1-Sum'!J12:J17) -> 89773772
A19: Total Expenditure | B19: =SUM(B12:B18) -> 237901688.3 | C19: 260944811 | D19: 260917811 | E19: 0 | F19: 14598477.05 | G19: 43486918 | H19: -28888440.95 | I19: -0.66430187 | J19: =SUM(J12:J18) -> 260917811
A20: Surplus/(Deficit) | B20: =B11-B19 -> -1035514.18 | C20: 13831993 | D20: 13858993 | E20: 0 | F20: 63157288.32 | G20: 2309180 | H20: 60848108.32 | I20: 26.3505263 | J20: =J11-J19 -> 13858993
A21: Transfers and subsidies - capital (monetary allocations) | B21: ='C4-FinPerf RE'!C50 -> 40346674.32 | C21: ='C4-FinPerf RE'!D50 -> 58548350 | D21: ='C4-FinPerf RE'!E50 -> 58548350 | E21: ='C4-FinPerf RE'!F50 -> 0 | F21: ='C4-FinPerf RE'!G50 -> 0 | G21: ='C4-FinPerf RE'!H50 -> 9758056 | H21: -9758056 | I21: -1 | J21: ='C4-FinPerf RE'!K50 -> 58548350
A22: Transfers and subsidies - capital (in-kind) | B22: =SUM('C4-FinPerf RE'!C51:C51) -> 0 | C22: =SUM('C4-FinPerf RE'!D51:D51) -> 0 | D22: =SUM('C4-FinPerf RE'!E51:E51) -> 0 | E22: =SUM('C4-FinPerf RE'!F51:F51) -> 0 | F22: =SUM('C4-FinPerf RE'!G51:G51) -> 0 | G22: =SUM('C4-FinPerf RE'!H51:H51) -> 0 | H22: 0 | J22: =SUM('C4-FinPerf RE'!K51:K51) -> 0
A23: Surplus/(Deficit) after capital transfers & contributions | B23: =B20+B21+B22 -> 39311160.14 | C23: 72380343 | D23: 72407343 | E23: 0 | F23: 63157288.32 | G23: 12067236 | H23: 51090052.32 | I23: 4.233782477 | J23: =J20+J21+J22 -> 72407343
A24: Share of surplus/ (deficit) of associate | B24: ='C4-FinPerf RE'!C59 -> 0 | C24: ='C4-FinPerf RE'!D59 -> 0 | D24: ='C4-FinPerf RE'!E59 -> 0 | E24: ='C4-FinPerf RE'!F59 -> 0 | F24: ='C4-FinPerf RE'!G59 -> 0 | G24: ='C4-FinPerf RE'!H59 -> 0 | H24: 0 | J24: ='C4-FinPerf RE'!K59 -> 0
A25: Surplus/ (Deficit) for the year | B25: =B23+B24 -> 39311160.14 | C25: 72380343 | D25: 72407343 | E25: 0 | F25: 63157288.32 | G25: 12067236 | H25: 51090052.32 | I25: 4.233782477 | J25: =J23+J24 -> 72407343
A27: Capital expenditure & funds sources
A28: Capital expenditure | B28: ='C5-Capex'!C40 -> 50960912.06 | C28: ='C5-Capex'!D40 -> 72380350 | D28: ='C5-Capex'!E40 -> 72380350 | E28: ='C5-Capex'!F40 -> 0 | F28: ='C5-Capex'!G40 -> 1759374.9 | G28: ='C5-Capex'!H40 -> 12063412 | H28: =F28-G28 -> -10304037.1 | I28: =IF(H28=0,"",H28/G28) -> -0.8541561127 | J28: ='C5-Capex'!K40 -> 72380350
A29: Capital transfers recognised | B29: ='C5-Capex'!C70 -> 35522401.38 | C29: ='C5-Capex'!D70 -> 58548350 | D29: ='C5-Capex'!E70 -> 58548350 | E29: ='C5-Capex'!F70 -> 0 | F29: ='C5-Capex'!G70 -> 1374878.83 | G29: ='C5-Capex'!H70 -> 9758068 | H29: -8383189.17 | I29: -0.8591033768 | J29: ='C5-Capex'!K70 -> 58548350
A31: Borrowing | B31: ='C5-Capex'!C72 -> 0 | C31: ='C5-Capex'!D72 -> 0 | D31: ='C5-Capex'!E72 -> 0 | E31: ='C5-Capex'!F72 -> 0 | F31: ='C5-Capex'!G72 -> 0 | G31: ='C5-Capex'!H72 -> 0 | H31: 0 | J31: ='C5-Capex'!K72 -> 0
A32: Internally generated funds | B32: ='C5-Capex'!C73 -> 15438510.68 | C32: ='C5-Capex'!D73 -> 13832000 | D32: ='C5-Capex'!E73 -> 13832000 | E32: ='C5-Capex'!F73 -> 0 | F32: ='C5-Capex'!G73 -> 384496.07 | G32: ='C5-Capex'!H73 -> 2305344 | H32: -1920847.93 | I32: -0.8332153162 | J32: ='C5-Capex'!K73 -> 13832000
A33: Total sources of capital funds | B33: =+B29+B31+B32 -> 50960912.06 | C33: 72380350 | D33: 72380350 | E33: 0 | F33: 1759374.9 | G33: 12063412 | H33: -10304037.1 | I33: -0.8541561127 | J33: =+J29+J31+J32 -> 72380350
A35: Financial position
A36: Total current assets | B36: ='C6-FinPos'!C14 -> 176032801.8 | C36: ='C6-FinPos'!D14 -> 247514704 | D36: ='C6-FinPos'!E14 -> 247514704 | F36: ='C6-FinPos'!F14 -> 88667158.38 | J36: ='C6-FinPos'!G14 -> 247514704
A37: Total non current assets | B37: ='C6-FinPos'!C26 -> 360035144.6 | C37: ='C6-FinPos'!D26 -> 404669350 | D37: ='C6-FinPos'!E26 -> 404669350 | F37: ='C6-FinPos'!F26 -> 1759374.9 | J37: ='C6-FinPos'!G26 -> 404669350
A38: Total current liabilities | B38: ='C6-FinPos'!C38 -> 14167466.7 | C38: ='C6-FinPos'!D38 -> 51649801 | D38: ='C6-FinPos'!E38 -> 51649801 | F38: ='C6-FinPos'!F38 -> 27428415.33 | J38: ='C6-FinPos'!G38 -> 51649801
A39: Total non current liabilities | B39: ='C6-FinPos'!C44 -> 27271261.98 | C39: ='C6-FinPos'!D44 -> 29998391 | D39: ='C6-FinPos'!E44 -> 29998391 | F39: ='C6-FinPos'!F44 -> 0 | J39: ='C6-FinPos'!G44 -> 29998391
A40: Community wealth/Equity | B40: ='C6-FinPos'!C51 -> 496653690.7 | C40: ='C6-FinPos'!D51 -> 570535862 | D40: ='C6-FinPos'!E51 -> 570535862 | F40: ='C6-FinPos'!F51 -> 0 | J40: ='C6-FinPos'!G51 -> 570535862
A42: Cash flows
A43: Net cash from (used) operating | B43: ='C7-CFlow'!C18 -> 301934926.6 | C43: ='C7-CFlow'!D18 -> 88816778 | D43: ='C7-CFlow'!E18 -> 88816778 | E43: ='C7-CFlow'!F18 -> 0 | F43: ='C7-CFlow'!G18 -> 0 | G43: ='C7-CFlow'!H18 -> 14802796.3 | H43: =G43-F43 -> 14802796.3 | I43: =IF(H43=0,"",H43/G43) -> 1 | J43: ='C7-CFlow'!K18 -> 88816778
A44: Net cash from (used) investing | B44: ='C7-CFlow'!C28 -> -50614351.06 | C44: ='C7-CFlow'!D28 -> -72380350 | D44: ='C7-CFlow'!E28 -> -72380350 | E44: ='C7-CFlow'!F28 -> 0 | F44: ='C7-CFlow'!G28 -> 0 | G44: ='C7-CFlow'!H28 -> -12063391.62 | H44: =G44-F44 -> -12063391.62 | I44: =IF(H44=0,"",H44/G44) -> 1 | J44: ='C7-CFlow'!K28 -> -72380350
A45: Net cash from (used) financing | B45: ='C7-CFlow'!C37 -> 0 | C45: ='C7-CFlow'!D37 -> 0 | D45: ='C7-CFlow'!E37 -> 0 | E45: ='C7-CFlow'!F37 -> 0 | F45: ='C7-CFlow'!G37 -> 0 | G45: ='C7-CFlow'!H37 -> 0 | H45: =G45-F45 -> 0 | I45: =IF(H45=0,"",H45/G45) ->  | J45: ='C7-CFlow'!K37 -> 0
A46: Cash/cash equivalents at the month/year end | B46: ='C7-CFlow'!C41 -> 356588318.1 | C46: ='C7-CFlow'!D41 -> 135308430 | D46: ='C7-CFlow'!E41 -> 135308430 | E46: ='C7-CFlow'!F41 -> 0 | F46: ='C7-CFlow'!G41 -> 0 | G46: ='C7-CFlow'!H41 -> 121611406.7 | H46: =G46-F46 -> 121611406.7 | I46: =IF(H46=0,"",H46/G46) -> 1 | J46: ='C7-CFlow'!K41 -> 16436428
A48: Debtors & creditors analysis | B48: ='SC3'!C3 -> 0-30 Days | C48: ='SC3'!D3 -> 31-60 Days | D48: ='SC3'!E3 -> 61-90 Days | E48: ='SC3'!F3 -> 91-120 Days | F48: ='SC3'!G3 -> 121-150 Dys | G48: ='SC3'!H3 -> 151-180 Dys | H48: ='SC3'!I3 -> 181 Dys-1 Yr | I48: ='SC3'!J3 -> Over 1Yr | J48: Total
A49: =LEFT('SC3'!A4,20) -> Debtors Age Analysis
A50: ='SC3'!A14 -> Total By Income Source | B50: ='SC3'!C14 -> 2925672 | C50: ='SC3'!D14 -> 2626456 | D50: ='SC3'!E14 -> 2012616 | E50: ='SC3'!F14 -> 120767249 | F50: ='SC3'!G14 -> 0 | G50: ='SC3'!H14 -> 0 | H50: ='SC3'!I14 -> 0 | I50: ='SC3'!J14 -> 0 | J50: ='SC3'!K14 -> 128331993
A51: =LEFT('SC4'!A5,22) -> Creditors Age Analysis
A52: Total Creditors | B52: ='SC4'!C15 -> 0 | C52: ='SC4'!D15 -> 0 | D52: ='SC4'!E15 -> 0 | E52: ='SC4'!F15 -> 20908.65 | F52: ='SC4'!G15 -> 0 | G52: ='SC4'!H15 -> 0 | H52: ='SC4'!I15 -> 0 | I52: ='SC4'!J15 -> 0 | J52: ='SC4'!K15 -> 20908.65

Sheet C2-FinPerf SC
A1: =muni& " - "&S71A& " - "&date -> LIM353 Molemole - Table C2 Monthly Budget Statement - Financial Performance (functional classification) - M02 August
A2: =desc -> Description | B2: =head27 -> Ref | C2: =Head1 -> 2022/23 | D2: =Head2 -> Budget Year 2023/24
C3: =Head5 -> Audited Outcome | D3: =Head6 -> Original Budget | E3: =Head7 -> Adjusted Budget | F3: =Head38 -> Monthly actual | G3: =Head39 -> YearTD actual | H3: =Head40 -> YearTD budget | I3: =Head41 -> YTD variance | J3: =Head41 -> YTD variance | K3: =Head8 -> Full Year Forecast
A4: R thousands | B4: 1 | J4: %
A5: Revenue - Functional
A6: Governance and administration | C6: =SUM(C7:C9) -> 214246041 | D6: 238676209 | E6: 238676209 | F6: 0 | G6: 76611886.98 | H6: 39779354 | I6: =G6-H6 -> 36832532.98 | J6: =IF(I6=0,"",I6/H6) -> 0.9259208428 | K6: =SUM(K7:K9) -> 238676209
A7: Executive and council | C7: ='C2C'!C7 -> 14145 | D7: ='C2C'!D7 -> 0 | E7: ='C2C'!E7 -> 0 | F7: ='C2C'!F7 -> 0 | G7: ='C2C'!G7 -> 0 | H7: ='C2C'!H7 -> 0 | I7: 0 | J7: =IF(I7=0,"",I7/H7) ->  | K7: ='C2C'!K7 -> 0
A8: Finance and administration | C8: ='C2C'!C10 -> 214231896 | D8: ='C2C'!D10 -> 238676209 | E8: ='C2C'!E10 -> 238676209 | F8: ='C2C'!F10 -> 0 | G8: ='C2C'!G10 -> 76611886.98 | H8: ='C2C'!H10 -> 39779354 | I8: 36832532.98 | J8: 0.9259208428 | K8: ='C2C'!K10 -> 238676209
A9: Internal audit | C9: ='C2C'!C24 -> 0 | D9: ='C2C'!D24 -> 0 | E9: ='C2C'!E24 -> 0 | F9: ='C2C'!F24 -> 0 | G9: ='C2C'!G24 -> 0 | H9: ='C2C'!H24 -> 0 | I9: 0 | K9: ='C2C'!K24 -> 0
A10: Community and public safety | C10: =SUM(C11:C15) -> 6233033.48 | D10: 15207405 | E10: 15207405 | F10: 0 | G10: 43936.16 | H10: 2534560 | I10: -2490623.84 | J10: -0.9826651727 | K10: =SUM(K11:K15) -> 15207405
A11: Community and social services | C11: ='C2C'!C27 -> 1412252.08 | D11: ='C2C'!D27 -> 1245612 | E11: ='C2C'!E27 -> 1245612 | F11: ='C2C'!F27 -> 0 | G11: ='C2C'!G27 -> 1000 | H11: ='C2C'!H27 -> 207600 | I11: -206600 | J11: -0.9951830443 | K11: ='C2C'!K27 -> 1245612
A12: Sport and recreation | C12: ='C2C'!C49 -> 207308.93 | D12: ='C2C'!D49 -> 249544 | E12: ='C2C'!E49 -> 249544 | F12: ='C2C'!F49 -> 0 | G12: ='C2C'!G49 -> 3792.68 | H12: ='C2C'!H49 -> 41588 | I12: -37795.32 | J12: -0.908803501 | K12: ='C2C'!K49 -> 249544
A13: Public safety | C13: ='C2C'!C55 -> 4613472.47 | D13: ='C2C'!D55 -> 13712249 | E13: ='C2C'!E55 -> 13712249 | F13: ='C2C'!F55 -> 0 | G13: ='C2C'!G55 -> 39143.48 | H13: ='C2C'!H55 -> 2285372 | I13: -2246228.52 | J13: -0.9828721626 | K13: ='C2C'!K55 -> 13712249
A14: Housing | C14: ='C2C'!C64 -> 0 | D14: ='C2C'!D64 -> 0 | E14: ='C2C'!E64 -> 0 | F14: ='C2C'!F64 -> 0 | G14: ='C2C'!G64 -> 0 | H14: ='C2C'!H64 -> 0 | I14: 0 | K14: ='C2C'!K64 -> 0
A15: Health | C15: ='C2C'!C67 -> 0 | D15: ='C2C'!D67 -> 0 | E15: ='C2C'!E67 -> 0 | F15: ='C2C'!F67 -> 0 | G15: ='C2C'!G67 -> 0 | H15: ='C2C'!H67 -> 0 | I15: 0 | K15: ='C2C'!K67 -> 0
A16: Economic and environmental services | C16: =SUM(C17:C19) -> 39842641.79 | D16: 41607136 | E16: 41607136 | F16: 0 | G16: 4652.45 | H16: 6934514 | I16: -6929861.55 | J16: -0.9993290878 | K16: =SUM(K17:K19) -> 41607136
A17: Planning and development | C17: ='C2C'!C76 -> 39842641.79 | D17: ='C2C'!D76 -> 41607136 | E17: ='C2C'!E76 -> 41607136 | F17: ='C2C'!F76 -> 0 | G17: ='C2C'!G76 -> 4652.45 | H17: ='C2C'!H76 -> 6934514 | I17: -6929861.55 | J17: -0.9993290878 | K17: ='C2C'!K76 -> 41607136
A18: Road transport | C18: ='C2C'!C87 -> 0 | D18: ='C2C'!D87 -> 0 | E18: ='C2C'!E87 -> 0 | F18: ='C2C'!F87 -> 0 | G18: ='C2C'!G87 -> 0 | H18: ='C2C'!H87 -> 0 | I18: 0 | K18: ='C2C'!K87 -> 0
A19: Environmental protection | C19: ='C2C'!C92 -> 0 | D19: ='C2C'!D92 -> 0 | E19: ='C2C'!E92 -> 0 | F19: ='C2C'!F92 -> 0 | G19: ='C2C'!G92 -> 0 | H19: ='C2C'!H92 -> 0 | I19: 0 | K19: ='C2C'!K92 -> 0
A20: Trading services | C20: =SUM(C21:C24) -> 16891132.16 | D20: =SUM(D21:D24) -> 37834404 | E20: 37834404 | F20: 0 | G20: 1095289.78 | H20: 6305726 | I20: -5210436.22 | J20: -0.8263023512 | K20: =SUM(K21:K24) -> 37834404
A21: Energy sources | C21: ='C2C'!C100 -> 11711526.26 | D21: ='C2C'!D100 -> 32143638 | E21: ='C2C'!E100 -> 32143638 | F21: ='C2C'!F100 -> 0 | G21: ='C2C'!G100 -> 643126.64 | H21: ='C2C'!H100 -> 5357268 | I21: =G21-H21 -> -4714141.36 | J21: -0.8799524982 | K21: ='C2C'!K100 -> 32143638
A22: Water management | C22: ='C2C'!C104 -> 1177781.9 | D22: ='C2C'!D104 -> 68588 | E22: ='C2C'!E104 -> 68588 | F22: ='C2C'!F104 -> 0 | G22: ='C2C'!G104 -> 67119.07 | H22: ='C2C'!H104 -> 11430 | I22: =G22-H22 -> 55689.07 | J22: 4.872184602 | K22: ='C2C'!K104 -> 68588
A23: Waste water management | C23: ='C2C'!C108 -> 1147791.52 | D23: ='C2C'!D108 -> 1612360 | E23: ='C2C'!E108 -> 1612360 | F23: ='C2C'!F108 -> 0 | G23: ='C2C'!G108 -> 102664.9 | H23: ='C2C'!H108 -> 268726 | I23: =G23-H23 -> -166061.1 | J23: -0.6179569524 | K23: ='C2C'!K108 -> 1612360
A24: Waste management | C24: ='C2C'!C113 -> 2854032.48 | D24: ='C2C'!D113 -> 4009818 | E24: ='C2C'!E113 -> 4009818 | F24: ='C2C'!F113 -> 0 | G24: ='C2C'!G113 -> 282379.17 | H24: ='C2C'!H113 -> 668302 | I24: =G24-H24 -> -385922.83 | J24: -0.5774677167 | K24: ='C2C'!K113 -> 4009818
A25: Other | B25: 4 | C25: ='C2C'!C118 -> 0 | D25: ='C2C'!D118 -> 0 | E25: ='C2C'!E118 -> 0 | F25: ='C2C'!F118 -> 0 | G25: ='C2C'!G118 -> 0 | H25: ='C2C'!H118 -> 0 | I25: =G25-H25 -> 0 | K25: ='C2C'!K118 -> 0
A26: Total Revenue - Functional | B26: 2 | C26: =C6+C10+C16+C20+C25 -> 277212848.4 | D26: =D6+D10+D16+D20+D25 -> 333325154 | E26: 333325154 | F26: 0 | G26: 77755765.37 | H26: 55554154 | I26: 22201611.37 | J26: 0.3996390868 | K26: =K6+K10+K16+K20+K25 -> 333325154
A28: Expenditure - Functional
A29: Governance and administration | C29: =SUM(C30:C32) -> 117038962.7 | D29: 137329569 | E29: 137199569 | F29: 0 | G29: 7947540.73 | H29: 22866945.34 | I29: =G29-H29 -> -14919404.61 | J29: =IF(I29=0,"",I29/H29) -> -0.6524441454 | K29: =SUM(K30:K32) -> 137199569
A30: Executive and council | C30: ='C2C'!C129 -> 33187038.83 | D30: ='C2C'!D129 -> 41558753 | E30: ='C2C'!E129 -> 41658753 | F30: ='C2C'!F129 -> 0 | G30: ='C2C'!G129 -> 2325435.23 | H30: ='C2C'!H129 -> 6943244.66 | I30: -4617809.43 | J30: =IF(I30=0,"",I30/H30) -> -0.665079463 | K30: ='C2C'!K129 -> 41658753
A31: Finance and administration | C31: ='C2C'!C132 -> 74321834.71 | D31: ='C2C'!D132 -> 83370340 | E31: ='C2C'!E132 -> 83140340 | F31: ='C2C'!F132 -> 0 | G31: ='C2C'!G132 -> 5273574.32 | H31: ='C2C'!H132 -> 13856936.68 | I31: -8583362.36 | J31: -0.6194271186 | K31: ='C2C'!K132 -> 83140340
A32: Internal audit | C32: ='C2C'!C146 -> 9530089.13 | D32: ='C2C'!D146 -> 12400476 | E32: ='C2C'!E146 -> 12400476 | F32: ='C2C'!F146 -> 0 | G32: ='C2C'!G146 -> 348531.18 | H32: ='C2C'!H146 -> 2066764 | I32: -1718232.82 | J32: -0.8313638229 | K32: ='C2C'!K146 -> 12400476
A33: Community and public safety | C33: =SUM(C34:C38) -> 27273720.36 | D33: 27845709 | E33: 27815709 | F33: 0 | G33: 1818944.54 | H33: 4636056 | I33: -2817111.46 | J33: -0.6076525952 | K33: =SUM(K34:K38) -> 27815709
A34: Community and social services | C34: ='C2C'!C149 -> 7567084.3 | D34: ='C2C'!D149 -> 8902341 | E34: ='C2C'!E149 -> 8902341 | F34: ='C2C'!F149 -> 0 | G34: ='C2C'!G149 -> 372614.09 | H34: ='C2C'!H149 -> 1483778 | I34: -1111163.91 | J34: -0.748874771 | K34: ='C2C'!K149 -> 8902341
A35: Sport and recreation | C35: ='C2C'!C171 -> 2839554.6 | D35: ='C2C'!D171 -> 3723138 | E35: ='C2C'!E171 -> 3723138 | F35: ='C2C'!F171 -> 0 | G35: ='C2C'!G171 -> 111569.08 | H35: ='C2C'!H171 -> 620548 | I35: -508978.92 | J35: -0.8202087832 | K35: ='C2C'!K171 -> 3723138
A36: Public safety | C36: ='C2C'!C177 -> 16867081.46 | D36: ='C2C'!D177 -> 15220230 | E36: ='C2C'!E177 -> 15190230 | F36: ='C2C'!F177 -> 0 | G36: ='C2C'!G177 -> 1334761.37 | H36: ='C2C'!H177 -> 2531730 | I36: -1196968.63 | J36: -0.4727868414 | K36: ='C2C'!K177 -> 15190230
A37: Housing | C37: ='C2C'!C186 -> 0 | D37: ='C2C'!D186 -> 0 | E37: ='C2C'!E186 -> 0 | F37: ='C2C'!F186 -> 0 | G37: ='C2C'!G186 -> 0 | H37: ='C2C'!H186 -> 0 | I37: 0 | K37: ='C2C'!K186 -> 0
A38: Health | C38: ='C2C'!C189 -> 0 | D38: ='C2C'!D189 -> 0 | E38: ='C2C'!E189 -> 0 | F38: ='C2C'!F189 -> 0 | G38: ='C2C'!G189 -> 0 | H38: ='C2C'!H189 -> 0 | I38: 0 | K38: ='C2C'!K189 -> 0
A39: Economic and environmental services | C39: =SUM(C40:C42) -> 25244664.66 | D39: 29517703 | E39: 29427703 | F39: 0 | G39: 783902.53 | H39: 4904686 | I39: -4120783.47 | J39: -0.8401727389 | K39: =SUM(K40:K42) -> 29427703
A40: Planning and development | C40: ='C2C'!C198 -> 14493087.41 | D40: ='C2C'!D198 -> 17502876 | E40: ='C2C'!E198 -> 17412876 | F40: ='C2C'!F198 -> 0 | G40: ='C2C'!G198 -> 719318.77 | H40: ='C2C'!H198 -> 2902204 | I40: -2182885.23 | J40: -0.7521474128 | K40: ='C2C'!K198 -> 17412876
A41: Road transport | C41: ='C2C'!C209 -> 10751577.25 | D41: ='C2C'!D209 -> 12014827 | E41: ='C2C'!E209 -> 12014827 | F41: ='C2C'!F209 -> 0 | G41: ='C2C'!G209 -> 64583.76 | H41: ='C2C'!H209 -> 2002482 | I41: -1937898.24 | J41: -0.9677481446 | K41: ='C2C'!K209 -> 12014827
A42: Environmental protection | C42: ='C2C'!C214 -> 0 | D42: ='C2C'!D214 -> 0 | E42: ='C2C'!E214 -> 0 | F42: ='C2C'!F214 -> 0 | G42: ='C2C'!G214 -> 0 | H42: ='C2C'!H214 -> 0 | I42: 0 | K42: ='C2C'!K214 -> 0
A43: Trading services | C43: =SUM(C44:C47) -> 68344340.59 | D43: =SUM(D44:D47) -> 66251830 | E43: 66474830 | F43: 0 | G43: 4048089.25 | H43: 11079230.66 | I43: -7031141.41 | J43: -0.6346236147 | K43: =SUM(K44:K47) -> 66474830
A44: Energy sources | C44: ='C2C'!C222 -> 35544511.06 | D44: ='C2C'!D222 -> 31287310 | E44: ='C2C'!E222 -> 31404310 | F44: ='C2C'!F222 -> 0 | G44: ='C2C'!G222 -> 2208719.66 | H44: ='C2C'!H222 -> 5234078 | I44: -3025358.34 | J44: -0.5780117033 | K44: ='C2C'!K222 -> 31404310
A45: Water management | C45: ='C2C'!C226 -> 5561259.73 | D45: ='C2C'!D226 -> 5224628 | E45: ='C2C'!E226 -> 5324628 | F45: ='C2C'!F226 -> 0 | G45: ='C2C'!G226 -> 562714.32 | H45: ='C2C'!H226 -> 887458.66 | I45: -324744.34 | J45: -0.3659261604 | K45: ='C2C'!K226 -> 5324628
A46: Waste water management | C46: ='C2C'!C230 -> 17943015.92 | D46: ='C2C'!D230 -> 18974775 | E46: ='C2C'!E230 -> 18980775 | F46: ='C2C'!F230 -> 0 | G46: ='C2C'!G230 -> 537952.99 | H46: ='C2C'!H230 -> 3163494 | I46: -2625541.01 | J46: -0.829949736 | K46: ='C2C'!K230 -> 18980775
A47: Waste management | C47: ='C2C'!C235 -> 9295553.88 | D47: ='C2C'!D235 -> 10765117 | E47: ='C2C'!E235 -> 10765117 | F47: ='C2C'!F235 -> 0 | G47: ='C2C'!G235 -> 738702.28 | H47: ='C2C'!H235 -> 1794200 | I47: -1055497.72 | J47: -0.5882832014 | K47: ='C2C'!K235 -> 10765117
A48: Other | C48: ='C2C'!C240 -> 0 | D48: ='C2C'!D240 -> 0 | E48: ='C2C'!E240 -> 0 | F48: ='C2C'!F240 -> 0 | G48: ='C2C'!G240 -> 0 | H48: ='C2C'!H240 -> 0 | I48: 0 | K48: ='C2C'!K240 -> 0
A49: Total Expenditure - Functional | B49: 3 | C49: =C29+C33+C39+C43+C48 -> 237901688.3 | D49: =D29+D33+D39+D43+D48 -> 260944811 | E49: 260917811 | F49: 0 | G49: 14598477.05 | H49: 43486918 | I49: -28888440.95 | J49: -0.66430187 | K49: =K29+K33+K39+K43+K48 -> 260917811
A50: Surplus/ (Deficit) for the year | C50: =C26-C49 -> 39311160.14 | D50: 72380343 | E50: 72407343 | F50: 0 | G50: 63157288.32 | H50: 12067236 | I50: =I26-I49 -> 51090052.32 | J50: =IF(I50=0,"",I50/H50) -> 4.233782477 | K50: =K26-K49 -> 72407343
A51: =head27a -> References
A52: 1. Government Finance Statistics Functions and Sub-functions are standardised to assist the compilation of national and international accounts for comparison purposes
A53: 2. Total Revenue by functional classification must reconcile to Total Operating Revenue shown in the Financial Performance Statement
A54: 3. Total Expenditure by functional classification must reconcile to total operating expenditure shown in 'Financial Performance Statement'
A55: 4. All amounts must be classified under a functional classification (modified GFS). The GFS function 'Other' is only for Abbatoirs, Air Transport, Licensing and Regulation, Markets and Tourism - and if used must be supported by footnotes. Nothing else may be placed under 'Other'. Assign associate share to relevant classification

Sheet C2C
A1: =muni& " - "&S71A& " - "&date -> LIM353 Molemole - Table C2 Monthly Budget Statement - Financial Performance (functional classification) - M02 August
A2: =desc -> Description | B2: =head27 -> Ref | C2: =Head1 -> 2022/23 | D2: =Head2 -> Budget Year 2023/24
C3: =Head5 -> Audited Outcome | D3: =Head6 -> Original Budget | E3: =Head7 -> Adjusted Budget | F3: =Head38 -> Monthly actual | G3: =Head39 -> YearTD actual | H3: =Head40 -> YearTD budget | I3: =Head41 -> YTD variance | J3: =Head41 -> YTD variance | K3: =Head8 -> Full Year Forecast
A4: R thousands | B4: 1 | J4: %
A5: Revenue - Functional
A6: Municipal governance and administration | C6: =C7+C10+C24 -> 214246041 | D6: 238676209 | E6: 238676209 | F6: 0 | G6: 76611886.98 | H6: 39779354 | I6: =G6-H6 -> 36832532.98 | J6: =IF(I6=0,"",I6/H6) -> 0.9259208428 | K6: =K7+K10+K24 -> 238676209
A7: Executive and council | C7: =SUM(C8:C9) -> 14145 | D7: =SUM(D8:D9) -> 0 | E7: 0 | F7: 0 | G7: 0 | H7: 0 | I7: =G7-H7 -> 0 | J7: =IF(I7=0,"",I7/H7) ->  | K7: 0
A8: Mayor and Council | C8: 14145 | D8: 0 | E8: 0 | F8: 0 | G8: 0 | H8: 0 | I8: 0 | K8: 0
A9: Municipal Manager, Town Secretary and Chief Executive | C9: 0 | D9: 0 | E9: 0 | F9: 0 | G9: 0 | H9: 0 | I9: 0 | K9: 0
A10: Finance and administration | C10: =SUM(C11:C23) -> 214231896 | D10: 238676209 | E10: 238676209 | F10: 0 | G10: 76611886.98 | H10: 39779354 | I10: 36832532.98 | J10: 0.9259208428 | K10: =SUM(K11:K23) -> 238676209
A11: Administrative and Corporate Support | C11: 205550532.6 | D11: 227612006 | E11: 227612006 | F11: 0 | G11: 76608545.96 | H11: 37935322 | I11: 38673223.96 | J11: 1.01945158 | K11: 227612006
A12: Asset Management | I12: 0
A13: Finance | C13: 8202032.97 | D13: 10820090 | E13: 10820090 | F13: 0 | G13: 3341.02 | H13: 1803348 | I13: -1800006.98 | J13: -0.9981473238 | K13: 10820090
A14: Fleet Management | I14: 0
A15: Human Resources | C15: 479330.38 | D15: 244113 | E15: 244113 | F15: 0 | G15: 0 | H15: 40684 | I15: -40684 | J15: -1 | K15: 244113
A16: Information Technology | C16: 0 | D16: 0 | E16: 0 | F16: 0 | G16: 0 | H16: 0 | I16: 0 | K16: 0
A17: Legal Services | C17: 0 | D17: 0 | E17: 0 | F17: 0 | G17: 0 | H17: 0 | I17: 0 | K17: 0
A18: Marketing, Customer Relations, Publicity and Media Co-ordination | I18: 0
A19: Property Services | I19: 0
A20: Risk Management | C20: 0 | D20: 0 | E20: 0 | F20: 0 | G20: 0 | H20: 0 | I20: 0 | K20: 0
A21: Security Services | I21: 0
A22: Supply Chain Management | C22: 0 | D22: 0 | E22: 0 | F22: 0 | G22: 0 | H22: 0 | I22: 0 | K22: 0
A23: Valuation Service | I23: 0
A24: Internal audit | C24: =SUM(C25:C25) -> 0 | D24: 0 | E24: 0 | F24: 0 | G24: 0 | H24: 0 | I24: 0 | K24: =SUM(K25:K25) -> 0
A25: Governance Function | C25: 0 | D25: 0 | E25: 0 | F25: 0 | G25: 0 | H25: 0 | I25: 0 | K25: 0
A26: Community and public safety | C26: =C27+C49+C55+C64+C67 -> 6233033.48 | D26: =D27+D49+D55+D64+D67 -> 15207405 | E26: 15207405 | F26: 0 | G26: 43936.16 | H26: 2534560 | I26: -2490623.84 | J26: -0.9826651727 | K26: 15207405
A27: Community and social services | C27: =SUM(C28:C48) -> 1412252.08 | D27: 1245612 | E27: 1245612 | F27: 0 | G27: 1000 | H27: 207600 | I27: -206600 | J27: -0.9951830443 | K27: =SUM(K28:K48) -> 1245612
A28: Aged Care | I28: 0
A29: Agricultural | I29: 0
A30: Animal Care and Diseases | I30: 0
A31: Cemeteries, Funeral Parlours and Crematoriums | C31: 16596.08 | D31: 26612 | E31: 26612 | F31: 0 | G31: 1000 | H31: 4434 | I31: -3434 | J31: -0.7744700045 | K31: 26612
A32: Child Care Facilities | I32: 0
A33: Community Halls and Facilities | C33: 1395656 | D33: 1219000 | E33: 1219000 | F33: 0 | G33: 0 | H33: 203166 | I33: -203166 | J33: -1 | K33: 1219000
A34: Consumer Protection | I34: 0
A35: Cultural Matters | I35: 0
A36: Disaster Management | I36: 0
A37: Education | I37: 0
A38: Indigenous and Customary Law | I38: 0
A39: Industrial Promotion | I39: 0
A40: Language Policy | I40: 0
A41: Libraries and Archives | C41: 0 | D41: 0 | E41: 0 | F41: 0 | G41: 0 | H41: 0 | I41: 0 | K41: 0
A42: Literacy Programmes | I42: 0
A43: Media Services | I43: 0
A44: Museums and Art Galleries | I44: 0
A45: Population Development | I45: 0
A46: Provincial Cultural Matters | I46: 0
A47: Theatres | I47: 0
A48: Zoo's | I48: 0
A49: Sport and recreation | C49: =SUM(C50:C54) -> 207308.93 | D49: =SUM(D50:D54) -> 249544 | E49: 249544 | F49: 0 | G49: 3792.68 | H49: 41588 | I49: -37795.32 | J49: -0.908803501 | K49: 249544
A50: Beaches and Jetties | I50: 0
A51: Casinos, Racing, Gambling, Wagering | I51: 0
A52: Community Parks (including Nurseries) | I52: 0
A53: Recreational Facilities | C53: 207308.93 | D53: 249544 | E53: 249544 | F53: 0 | G53: 3792.68 | H53: 41588 | I53: -37795.32 | J53: -0.908803501 | K53: 249544
A54: Sports Grounds and Stadiums | I54: 0
A55: Public safety | C55: =SUM(C56:C63) -> 4613472.47 | D55: =SUM(D56:D63) -> 13712249 | E55: 13712249 | F55: 0 | G55: 39143.48 | H55: 2285372 | I55: -2246228.52 | J55: -0.9828721626 | K55: 13712249
A56: Civil Defence | I56: 0
A57: Cleansing | I57: 0
A58: Control of Public Nuisances | I58: =G58-H58 -> 0 | J58: =IF(I58=0,"",I58/H58) -> 
A59: Fencing and Fences | I59: 0
A60: Fire Fighting and Protection | I60: 0
A61: Licensing and Control of Animals | I61: =G61-H61 -> 0 | J61: =IF(I61=0,"",I61/H61) -> 
A62: Police Forces, Traffic and Street Parking Control | C62: 4613472.47 | D62: 13712249 | E62: 13712249 | F62: 0 | G62: 39143.48 | H62: 2285372 | I62: =G62-H62 -> -2246228.52 | J62: =IF(I62=0,"",I62/H62) -> -0.9828721626 | K62: 13712249
A63: Pounds | I63: 0
A64: Housing | C64: =SUM(C65:C66) -> 0 | D64: 0 | E64: 0 | F64: 0 | G64: 0 | H64: 0 | I64: =G64-H64 -> 0 | J64: =IF(I64=0,"",I64/H64) ->  | K64: =SUM(K65:K66) -> 0
A65: Housing | I65: =G65-H65 -> 0 | J65: =IF(I65=0,"",I65/H65) -> 
A66: Informal Settlements | I66: =G66-H66 -> 0 | J66: =IF(I66=0,"",I66/H66) -> 
A67: Health | C67: =SUM(C68:C74) -> 0 | D67: 0 | E67: 0 | F67: 0 | G67: 0 | H67: 0 | I67: 0 | K67: =SUM(K68:K74) -> 0
A68: Ambulance | I68: 0
A69: Health Services | I69: 0
A70: Laboratory Services | I70: =G70-H70 -> 0 | J70: =IF(I70=0,"",I70/H70) -> 
A71: Food Control | I71: =G71-H71 -> 0 | J71: =IF(I71=0,"",I71/H71) -> 
A72: Health Surveillance and Prevention of Communicable Diseases including immunizations | I72: 0
A73: Vector Control | I73: 0
A74: Chemical Safety | I74: 0
A75: Economic and environmental services | C75: =C76+C87+C92 -> 39842641.79 | D75: 41607136 | E75: 41607136 | F75: 0 | G75: 4652.45 | H75: 6934514 | I75: -6929861.55 | J75: -0.9993290878 | K75: =K76+K87+K92 -> 41607136
A76: Planning and development | C76: =SUM(C77:C86) -> 39842641.79 | D76: 41607136 | E76: 41607136 | F76: 0 | G76: 4652.45 | H76: 6934514 | I76: -6929861.55 | J76: -0.9993290878 | K76: =SUM(K77:K86) -> 41607136
A77: Billboards | I77: =G77-H77 -> 0 | J77: =IF(I77=0,"",I77/H77) -> 
A78: Corporate Wide Strategic Planning (IDPs, LEDs) | C78: 40312.32 | D78: 58696 | E78: 58696 | F78: 0 | G78: 3359.36 | H78: 9780 | I78: -6420.64 | J78: -0.6565071575 | K78: 58696
A79: Central City Improvement District | I79: 0
A80: Development Facilitation | I80: =G80-H80 -> 0 | J80: =IF(I80=0,"",I80/H80) -> 
A81: Economic Development/Planning | C81: 0 | D81: 0 | E81: 0 | F81: 0 | G81: 0 | H81: 0 | I81: =G81-H81 -> 0 | J81: =IF(I81=0,"",I81/H81) ->  | K81: 0
A82: Regional Planning and Development | I82: =G82-H82 -> 0 | J82: =IF(I82=0,"",I82/H82) -> 
A83: Town Planning, Building Regulations and Enforcement, and City Engineer | C83: 16181.73 | D83: 95440 | E83: 95440 | F83: 0 | G83: 1293.09 | H83: 15904 | I83: =G83-H83 -> -14610.91 | J83: =IF(I83=0,"",I83/H83) -> -0.9186940392 | K83: 95440
A84: Project Management Unit | C84: 39786147.74 | D84: 41453000 | E84: 41453000 | F84: 0 | G84: 0 | H84: 6908830 | I84: -6908830 | J84: -1 | K84: 41453000
A85: Provincial Planning | I85: 0
A86: Support to Local Municipalities | I86: 0
A87: Road transport | C87: =SUM(C88:C91) -> 0 | D87: 0 | E87: 0 | F87: 0 | G87: 0 | H87: 0 | I87: 0 | K87: =SUM(K88:K91) -> 0
A88: Public Transport | I88: 0
A89: Road and Traffic Regulation | I89: 0
A90: Roads | C90: 0 | D90: 0 | E90: 0 | F90: 0 | G90: 0 | H90: 0 | I90: 0 | K90: 0
A91: Taxi Ranks | I91: 0
A92: Environmental protection | C92: =SUM(C93:C98) -> 0 | D92: =SUM(D93:D98) -> 0 | E92: 0 | F92: 0 | G92: 0 | H92: 0 | I92: 0 | K92: 0
A93: Biodiversity and Landscape | I93: 0
A94: Coastal Protection | I94: 0
A95: Indigenous Forests | I95: =G95-H95 -> 0 | J95: =IF(I95=0,"",I95/H95) -> 
A96: Nature Conservation | I96: =G96-H96 -> 0 | J96: =IF(I96=0,"",I96/H96) -> 
A97: Pollution Control | I97: 0
A98: Soil Conservation | I98: 0
A99: Trading services | C99: =C100+C104+C108+C113 -> 16891132.16 | D99: =D100+D104+D108+D113 -> 37834404 | E99: 37834404 | F99: 0 | G99: 1095289.78 | H99: 6305726 | I99: -5210436.22 | J99: -0.8263023512 | K99: =K100+K104+K108+K113 -> 37834404
A100: Energy sources | C100: =SUM(C101:C103) -> 11711526.26 | D100: =SUM(D101:D103) -> 32143638 | E100: 32143638 | F100: 0 | G100: 643126.64 | H100: 5357268 | I100: -4714141.36 | J100: -0.8799524982 | K100: 32143638
A101: Electricity | C101: 11711526.26 | D101: 32143638 | E101: 32143638 | F101: 0 | G101: 643126.64 | H101: 5357268 | I101: -4714141.36 | J101: -0.8799524982 | K101: 32143638
A102: Street Lighting and Signal Systems | I102: =G102-H102 -> 0 | J102: =IF(I102=0,"",I102/H102) -> 
A103: Nonelectric Energy | I103: 0
A104: Water management | C104: =SUM(C105:C107) -> 1177781.9 | D104: =SUM(D105:D107) -> 68588 | E104: 68588 | F104: 0 | G104: 67119.07 | H104: 11430 | I104: 55689.07 | J104: 4.872184602 | K104: 68588
A105: Water Treatment | I105: 0
A106: Water Distribution | C106: 1177781.9 | D106: 68588 | E106: 68588 | F106: 0 | G106: 67119.07 | H106: 11430 | I106: =G106-H106 -> 55689.07 | J106: =IF(I106=0,"",I106/H106) -> 4.872184602 | K106: 68588
A107: Water Storage | I107: 0
A108: Waste water management | C108: =SUM(C109:C112) -> 1147791.52 | D108: =SUM(D109:D112) -> 1612360 | E108: 1612360 | F108: 0 | G108: 102664.9 | H108: 268726 | I108: -166061.1 | J108: -0.6179569524 | K108: 1612360
A109: Public Toilets | I109: 0
A110: Sewerage | C110: 1147791.52 | D110: 1612360 | E110: 1612360 | F110: 0 | G110: 102664.9 | H110: 268726 | I110: -166061.1 | J110: -0.6179569524 | K110: 1612360
A111: Storm Water Management | C111: 0 | D111: 0 | E111: 0 | F111: 0 | G111: 0 | H111: 0 | I111: =G111-H111 -> 0 | J111: =IF(I111=0,"",I111/H111) ->  | K111: 0
A112: Waste Water Treatment | I112: 0
A113: Waste management | C113: =SUM(C114:C117) -> 2854032.48 | D113: 4009818 | E113: 4009818 | F113: 0 | G113: 282379.17 | H113: 668302 | I113: -385922.83 | J113: -0.5774677167 | K113: =SUM(K114:K117) -> 4009818
A114: Recycling | I114: =G114-H114 -> 0 | J114: =IF(I114=0,"",I114/H114) -> 
A115: Solid Waste Disposal (Landfill Sites) | I115: =G115-H115 -> 0 | J115: =IF(I115=0,"",I115/H115) -> 
A116: Solid Waste Removal | C116: 2854032.48 | D116: 4009818 | E116: 4009818 | F116: 0 | G116: 282379.17 | H116: 668302 | I116: -385922.83 | J116: -0.5774677167 | K116: 4009818
A117: Street Cleaning | I117: =G117-H117 -> 0 | J117: =IF(I117=0,"",I117/H117) -> 
A118: Other | C118: =SUM(C119:C124) -> 0 | D118: =SUM(D119:D124) -> 0 | E118: 0 | F118: 0 | G118: 0 | H118: 0 | I118: 0 | K118: 0
A119: Abattoirs | I119: 0
A120: Air Transport | I120: 0
A121: Forestry | I121: =G121-H121 -> 0 | J121: =IF(I121=0,"",I121/H121) -> 
A122: Licensing and Regulation | I122: 0
A123: Markets | I123: 0
A124: Tourism | I124: =G124-H124 -> 0 | J124: =IF(I124=0,"",I124/H124) -> 
A125: ="Total "&A5 -> Total Revenue - Functional | B125: 2 | C125: =C6+C26+C75+C99+C118 -> 277212848.4 | D125: 333325154 | E125: 333325154 | F125: 0 | G125: 77755765.37 | H125: 55554154 | I125: =G125-H125 -> 22201611.37 | J125: =IF(I125=0,"",I125/H125) -> 0.3996390868 | K125: =K6+K26+K75+K99+K118 -> 333325154
A127: Expenditure - Functional
A128: =A6 -> Municipal governance and administration | C128: =C129+C132+C146 -> 117038962.7 | D128: 137329569 | E128: 137199569 | F128: 0 | G128: 7947540.73 | H128: 22866945.34 | I128: =G128-H128 -> -14919404.61 | J128: =IF(I128=0,"",I128/H128) -> -0.6524441454 | K128: =K129+K132+K146 -> 137199569
A129: Executive and council | C129: =SUM(C130:C131) -> 33187038.83 | D129: 41558753 | E129: 41658753 | F129: 0 | G129: 2325435.23 | H129: 6943244.66 | I129: -4617809.43 | J129: -0.665079463 | K129: 41658753
A130: Mayor and Council | C130: 23734558.66 | D130: 31052567 | E130: 31152567 | F130: 0 | G130: 1623830.82 | H130: 5192172.66 | I130: -3568341.84 | J130: -0.6872540791 | K130: 31152567
A131: Municipal Manager, Town Secretary and Chief Executive | C131: 9452480.17 | D131: 10506186 | E131: 10506186 | F131: 0 | G131: 701604.41 | H131: 1751072 | I131: -1049467.59 | J131: -0.5993286341 | K131: 10506186
A132: Finance and administration | C132: =SUM(C133:C145) -> 74321834.71 | D132: 83370340 | E132: 83140340 | F132: 0 | G132: 5273574.32 | H132: 13856936.68 | I132: -8583362.36 | J132: -0.6194271186 | K132: =SUM(K133:K145) -> 83140340
A133: Administrative and Corporate Support | C133: 32318158.13 | D133: 38007392 | E133: 37946392 | F133: 0 | G133: 1848426.13 | H133: 6324463.34 | I133: -4476037.21 | J133: -0.7077339166 | K133: 37946392
A134: Asset Management | I134: 0
A135: Finance | C135: 18499880.82 | D135: 19092094 | E135: 18932094 | F135: 0 | G135: 990584.07 | H135: 3155401.34 | I135: -2164817.27 | J135: -0.6860671708 | K135: 18932094
A136: Fleet Management | I136: 0
A137: Human Resources | C137: 8111117.32 | D137: 6935834 | E137: 6935834 | F137: 0 | G137: 1482095.88 | H137: 1155994 | I137: 326101.88 | J137: 0.2820965161 | K137: 6935834
A138: Information Technology | C138: 6798394.6 | D138: 8308547 | E138: 8299547 | F138: 0 | G138: 496309.3 | H138: 1383280 | I138: -886970.7 | J138: -0.6412083598 | K138: 8299547
A139: Legal Services | C139: 2439177.53 | D139: 2841480 | E139: 2841480 | F139: 0 | G139: 113621.38 | H139: 473596 | I139: -359974.62 | J139: -0.7600879653 | K139: 2841480
A140: Marketing, Customer Relations, Publicity and Media Co-ordination | I140: 0
A141: Property Services | I141: 0
A142: Risk Management | C142: 1702774.07 | D142: 1999670 | E142: 1999670 | F142: 0 | G142: 0 | H142: 333296 | I142: -333296 | J142: -1 | K142: 1999670
A143: Security Services | I143: 0
A144: Supply Chain Management | C144: 4452332.24 | D144: 6185323 | E144: 6185323 | F144: 0 | G144: 342537.56 | H144: 1030906 | I144: -688368.44 | J144: -0.6677315294 | K144: 6185323
A145: Valuation Service | I145: 0
A146: Internal audit | C146: =SUM(C147:C147) -> 9530089.13 | D146: 12400476 | E146: 12400476 | F146: 0 | G146: 348531.18 | H146: 2066764 | I146: -1718232.82 | J146: -0.8313638229 | K146: =SUM(K147:K147) -> 12400476
A147: Governance Function | C147: 9530089.13 | D147: 12400476 | E147: 12400476 | F147: 0 | G147: 348531.18 | H147: 2066764 | I147: -1718232.82 | J147: -0.8313638229 | K147: 12400476
A148: Community and public safety | C148: =C149+C171+C177+C186+C189 -> 27273720.36 | D148: 27845709 | E148: 27815709 | F148: 0 | G148: 1818944.54 | H148: 4636056 | I148: -2817111.46 | J148: -0.6076525952 | K148: =K149+K171+K177+K186+K189 -> 27815709
A149: Community and social services | C149: =SUM(C150:C170) -> 7567084.3 | D149: 8902341 | E149: 8902341 | F149: 0 | G149: 372614.09 | H149: 1483778 | I149: -1111163.91 | J149: -0.748874771 | K149: =SUM(K150:K170) -> 8902341
A150: Aged Care | I150: 0
A151: Agricultural | I151: 0
A152: Animal Care and Diseases | I152: 0
A153: Cemeteries, Funeral Parlours and Crematoriums | C153: 1321699.31 | D153: 1668593 | E153: 1668593 | F153: 0 | G153: 76162.79 | H153: 278112 | I153: -201949.21 | J153: -0.7261434602 | K153: 1668593
A154: Child Care Facilities | I154: 0
A155: Community Halls and Facilities | C155: 4768796.68 | D155: 5507227 | E155: 5507227 | F155: 0 | G155: 179763.65 | H155: 917900 | I155: -738136.35 | J155: -0.8041576969 | K155: 5507227
A156: Consumer Protection | I156: 0
A157: Cultural Matters | I157: =G157-H157 -> 0 | J157: =IF(I157=0,"",I157/H157) -> 
A158: Disaster Management | I158: =G158-H158 -> 0 | J158: =IF(I158=0,"",I158/H158) -> 
A159: Education | I159: =G159-H159 -> 0 | J159: =IF(I159=0,"",I159/H159) -> 
A160: Indigenous and Customary Law | I160: 0
A161: Industrial Promotion | I161: 0
A162: Language Policy | I162: 0
A163: Libraries and Archives | C163: 1476588.31 | D163: 1726521 | E163: 1726521 | F163: 0 | G163: 116687.65 | H163: 287766 | I163: -171078.35 | J163: -0.594505084 | K163: 1726521
A164: Literacy Programmes | I164: 0
A165: Media Services | I165: 0
A166: Museums and Art Galleries | I166: 0
A167: Population Development | I167: 0
A168: Provincial Cultural Matters | I168: 0
A169: Theatres | I169: 0
A170: Zoo's | I170: 0
A171: Sport and recreation | C171: =SUM(C172:C176) -> 2839554.6 | D171: 3723138 | E171: 3723138 | F171: 0 | G171: 111569.08 | H171: 620548 | I171: -508978.92 | J171: -0.8202087832 | K171: 3723138
A172: Beaches and Jetties | I172: 0
A173: Casinos, Racing, Gambling, Wagering | I173: 0
A174: Community Parks (including Nurseries) | I174: 0
A175: Recreational Facilities | C175: 2839554.6 | D175: 3723138 | E175: 3723138 | F175: 0 | G175: 111569.08 | H175: 620548 | I175: -508978.92 | J175: -0.8202087832 | K175: 3723138
A176: Sports Grounds and Stadiums | I176: 0
A177: Public safety | C177: =SUM(C178:C185) -> 16867081.46 | D177: 15220230 | E177: 15190230 | F177: 0 | G177: 1334761.37 | H177: 2531730 | I177: -1196968.63 | J177: -0.4727868414 | K177: 15190230
A178: Civil Defence | I178: 0
A179: Cleansing | I179: 0
A180: Control of Public Nuisances | I180: =G180-H180 -> 0 | J180: =IF(I180=0,"",I180/H180) -> 
A181: Fencing and Fences | I181: 0
A182: Fire Fighting and Protection | I182: 0
A183: Licensing and Control of Animals | I183: =G183-H183 -> 0 | J183: =IF(I183=0,"",I183/H183) -> 
A184: Police Forces, Traffic and Street Parking Control | C184: 16867081.46 | D184: 15220230 | E184: 15190230 | F184: 0 | G184: 1334761.37 | H184: 2531730 | I184: =G184-H184 -> -1196968.63 | J184: =IF(I184=0,"",I184/H184) -> -0.4727868414 | K184: 15190230
A185: Pounds | I185: 0
A186: Housing | C186: =SUM(C187:C188) -> 0 | D186: 0 | E186: 0 | F186: 0 | G186: 0 | H186: 0 | I186: =G186-H186 -> 0 | J186: =IF(I186=0,"",I186/H186) ->  | K186: =SUM(K187:K188) -> 0
A187: Housing | I187: =G187-H187 -> 0 | J187: =IF(I187=0,"",I187/H187) -> 
A188: Informal Settlements | I188: =G188-H188 -> 0 | J188: =IF(I188=0,"",I188/H188) -> 
A189: Health | C189: =SUM(C190:C196) -> 0 | D189: 0 | E189: 0 | F189: 0 | G189: 0 | H189: 0 | I189: 0 | K189: 0
A190: Ambulance | I190: 0
A191: Health Services | I191: 0
A192: =A70 -> Laboratory Services | I192: 0
A193: Food Control | I193: =G193-H193 -> 0 | J193: =IF(I193=0,"",I193/H193) -> 
A194: Health Surveillance and Prevention of Communicable Diseases including immunizations | I194: =G194-H194 -> 0 | J194: =IF(I194=0,"",I194/H194) -> 
A195: Vector Control | I195: 0
A196: Chemical Safety | I196: 0
A197: Economic and environmental services | C197: =C198+C209+C214 -> 25244664.66 | D197: 29517703 | E197: 29427703 | F197: 0 | G197: 783902.53 | H197: 4904686 | I197: -4120783.47 | J197: -0.8401727389 | K197: =K198+K209+K214 -> 29427703
A198: Planning and development | C198: =SUM(C199:C208) -> 14493087.41 | D198: 17502876 | E198: 17412876 | F198: 0 | G198: 719318.77 | H198: 2902204 | I198: -2182885.23 | J198: -0.7521474128 | K198: 17412876
A199: Billboards | I199: 0
A200: Corporate Wide Strategic Planning (IDPs, LEDs) | C200: 1707522.15 | D200: 5820965 | E200: 5820965 | F200: 0 | G200: 0 | H200: 970172 | I200: -970172 | J200: -1 | K200: 5820965
A201: Central City Improvement District | I201: 0
... 54 more rows

Sheet C3-FinPerf V
A1: =muni& " - "&S71C& " - "&date -> LIM353 Molemole - Table C3 Monthly Budget Statement - Financial Performance (revenue and expenditure by municipal vote) - M02 August
A2: =Vdesc -> Vote Description | B2: =head27 -> Ref | C2: =Head1 -> 2022/23 | D2: =Head2 -> Budget Year 2023/24
C3: =Head5 -> Audited Outcome | D3: =Head6 -> Original Budget | E3: =Head7 -> Adjusted Budget | F3: =Head38 -> Monthly actual | G3: =Head39 -> YearTD actual | H3: =Head40 -> YearTD budget | I3: =Head41 -> YTD variance | J3: =Head41 -> YTD variance | K3: =Head8 -> Full Year Forecast
A4: R thousands | J4: %
A5: Revenue by Vote | B5: 1
A6: ='Org structure'!A2 -> Vote 01 - Corporate Services | C6: ='C3C'!C6 -> 1517869.43 | D6: ='C3C'!D6 -> 398249 | E6: ='C3C'!E6 -> 398249 | F6: ='C3C'!F6 -> 0 | G6: ='C3C'!G6 -> 4652.45 | H6: ='C3C'!H6 -> 66368 | I6: =G6-H6 -> -61715.55 | J6: =IF(I6=0,"",I6/H6) -> -0.9298991984 | K6: ='C3C'!K6 -> 398249
A7: ='Org structure'!A3 -> Vote 02 - Municipal Manager | C7: ='C3C'!C15 -> 0 | D7: ='C3C'!D15 -> 0 | E7: ='C3C'!E15 -> 0 | F7: ='C3C'!F15 -> 0 | G7: ='C3C'!G15 -> 0 | H7: ='C3C'!H15 -> 0 | I7: 0 | K7: ='C3C'!K15 -> 0
A8: ='Org structure'!A4 -> Vote 03 - Mayors Office | C8: ='C3C'!C21 -> 0 | D8: ='C3C'!D21 -> 0 | E8: ='C3C'!E21 -> 0 | F8: ='C3C'!F21 -> 0 | G8: ='C3C'!G21 -> 0 | H8: ='C3C'!H21 -> 0 | I8: 0 | K8: ='C3C'!K21 -> 0
A9: ='Org structure'!A5 -> Vote 04 - Budget And Treasury | C9: ='C3C'!C27 -> 212784665.6 | D9: ='C3C'!D27 -> 238432096 | E9: ='C3C'!E27 -> 238432096 | F9: ='C3C'!F27 -> 0 | G9: ='C3C'!G27 -> 76611886.98 | H9: ='C3C'!H27 -> 39738670 | I9: 36873216.98 | J9: 0.9278925787 | K9: ='C3C'!K27 -> 238432096
A10: ='Org structure'!A6 -> Vote 05 - Community Services | C10: ='C3C'!C35 -> 9087065.96 | D10: ='C3C'!D35 -> 19217223 | E10: ='C3C'!E35 -> 19217223 | F10: ='C3C'!F35 -> 0 | G10: ='C3C'!G35 -> 326315.33 | H10: ='C3C'!H35 -> 3202862 | I10: -2876546.67 | J10: -0.8981175805 | K10: ='C3C'!K35 -> 19217223
A11: ='Org structure'!A7 -> Vote 06 - Technical Services | C11: ='C3C'!C43 -> 53823247.42 | D11: ='C3C'!D43 -> 75277586 | E11: ='C3C'!E43 -> 75277586 | F11: ='C3C'!F43 -> 0 | G11: ='C3C'!G43 -> 812910.61 | H11: ='C3C'!H43 -> 12546254 | I11: -11733343.39 | J11: -0.9352069064 | K11: ='C3C'!K43 -> 75277586
A12: ='Org structure'!A8 -> Vote 07 - | C12: ='C3C'!C52 -> 0 | D12: ='C3C'!D52 -> 0 | E12: ='C3C'!E52 -> 0 | F12: ='C3C'!F52 -> 0 | G12: ='C3C'!G52 -> 0 | H12: ='C3C'!H52 -> 0 | I12: =G12-H12 -> 0 | J12: =IF(I12=0,"",I12/H12) ->  | K12: ='C3C'!K52 -> 0
A13: ='Org structure'!A9 -> Vote 08 - | C13: ='C3C'!C53 -> 0 | D13: ='C3C'!D53 -> 0 | E13: ='C3C'!E53 -> 0 | F13: ='C3C'!F53 -> 0 | G13: ='C3C'!G53 -> 0 | H13: ='C3C'!H53 -> 0 | I13: 0 | K13: ='C3C'!K53 -> 0
A14: ='Org structure'!A10 -> Vote 09 - | C14: ='C3C'!C54 -> 0 | D14: ='C3C'!D54 -> 0 | E14: ='C3C'!E54 -> 0 | F14: ='C3C'!F54 -> 0 | G14: ='C3C'!G54 -> 0 | H14: ='C3C'!H54 -> 0 | I14: 0 | K14: ='C3C'!K54 -> 0
A15: ='Org structure'!A11 -> Vote 10 - | C15: ='C3C'!C55 -> 0 | D15: ='C3C'!D55 -> 0 | E15: ='C3C'!E55 -> 0 | F15: ='C3C'!F55 -> 0 | G15: ='C3C'!G55 -> 0 | H15: ='C3C'!H55 -> 0 | I15: 0 | K15: ='C3C'!K55 -> 0
A16: ='Org structure'!A12 -> Vote 11 - | C16: ='C3C'!C56 -> 0 | D16: ='C3C'!D56 -> 0 | E16: ='C3C'!E56 -> 0 | F16: ='C3C'!F56 -> 0 | G16: ='C3C'!G56 -> 0 | H16: ='C3C'!H56 -> 0 | I16: 0 | K16: ='C3C'!K56 -> 0
A17: ='Org structure'!A13 -> Vote 12 - | C17: ='C3C'!C57 -> 0 | D17: ='C3C'!D57 -> 0 | E17: ='C3C'!E57 -> 0 | F17: ='C3C'!F57 -> 0 | G17: ='C3C'!G57 -> 0 | H17: ='C3C'!H57 -> 0 | I17: 0 | K17: ='C3C'!K57 -> 0
A18: ='Org structure'!A14 -> Vote 13 - | C18: ='C3C'!C58 -> 0 | D18: ='C3C'!D58 -> 0 | E18: ='C3C'!E58 -> 0 | F18: ='C3C'!F58 -> 0 | G18: ='C3C'!G58 -> 0 | H18: ='C3C'!H58 -> 0 | I18: 0 | K18: ='C3C'!K58 -> 0
A19: ='Org structure'!A15 -> Vote 14 - | C19: ='C3C'!C59 -> 0 | D19: ='C3C'!D59 -> 0 | E19: ='C3C'!E59 -> 0 | F19: ='C3C'!F59 -> 0 | G19: ='C3C'!G59 -> 0 | H19: ='C3C'!H59 -> 0 | I19: 0 | K19: ='C3C'!K59 -> 0
A20: ='Org structure'!A16 -> Vote 15 - Other | C20: ='C3C'!C60 -> 0 | D20: ='C3C'!D60 -> 0 | E20: ='C3C'!E60 -> 0 | F20: ='C3C'!F60 -> 0 | G20: ='C3C'!G60 -> 0 | H20: ='C3C'!H60 -> 0 | I20: 0 | K20: ='C3C'!K60 -> 0
A21: Total Revenue by Vote | B21: 2 | C21: =SUM(C6:C20) -> 277212848.4 | D21: =SUM(D6:D20) -> 333325154 | E21: 333325154 | F21: 0 | G21: 77755765.37 | H21: 55554154 | I21: 22201611.37 | J21: 0.3996390868 | K21: =SUM(K6:K20) -> 333325154
A23: Expenditure by Vote | B23: 1
A24: ='Org structure'!A2 -> Vote 01 - Corporate Services | C24: ='C3C'!C64 -> 53058947.72 | D24: ='C3C'!D64 -> 60931854 | E24: ='C3C'!E64 -> 60861854 | F24: ='C3C'!F64 -> 0 | G24: ='C3C'!G64 -> 4453505.87 | H24: ='C3C'!H64 -> 10143795.34 | I24: =G24-H24 -> -5690289.47 | J24: =IF(I24=0,"",I24/H24) -> -0.5609625667 | K24: ='C3C'!K64 -> 60861854
A25: ='Org structure'!A3 -> Vote 02 - Municipal Manager | C25: ='C3C'!C73 -> 23124520.9 | D25: ='C3C'!D73 -> 27747812 | E25: ='C3C'!E73 -> 27747812 | F25: ='C3C'!F73 -> 0 | G25: ='C3C'!G73 -> 1163756.97 | H25: ='C3C'!H73 -> 4624728 | I25: -3460971.03 | J25: -0.7483620723 | K25: ='C3C'!K73 -> 27747812
A26: ='Org structure'!A4 -> Vote 03 - Mayors Office | C26: ='C3C'!C79 -> 15888784.07 | D26: ='C3C'!D79 -> 22398840 | E26: ='C3C'!E79 -> 22738840 | F26: ='C3C'!F79 -> 0 | G26: ='C3C'!G79 -> 1137806.24 | H26: ='C3C'!H79 -> 3789856.64 | I26: -2652050.4 | J26: -0.6997759155 | K26: ='C3C'!K79 -> 22738840
A27: ='Org structure'!A5 -> Vote 04 - Budget And Treasury | C27: ='C3C'!C85 -> 31238825.79 | D27: ='C3C'!D85 -> 36376878 | E27: ='C3C'!E85 -> 36216878 | F27: ='C3C'!F85 -> 0 | G27: ='C3C'!G85 -> 1653158.93 | H27: ='C3C'!H85 -> 6036241.34 | I27: -4383082.41 | J27: -0.7261277612 | K27: ='C3C'!K85 -> 36216878
A28: ='Org structure'!A6 -> Vote 05 - Community Services | C28: ='C3C'!C93 -> 36574700.04 | D28: ='C3C'!D93 -> 38610826 | E28: ='C3C'!E93 -> 38580826 | F28: ='C3C'!F93 -> 0 | G28: ='C3C'!G93 -> 2557646.82 | H28: ='C3C'!H93 -> 6430256 | I28: -3872609.18 | J28: -0.6022480567 | K28: ='C3C'!K93 -> 38580826
A29: ='Org structure'!A7 -> Vote 06 - Technical Services | C29: ='C3C'!C101 -> 78015909.76 | D29: ='C3C'!D101 -> 74878601 | E29: ='C3C'!E101 -> 74771601 | F29: ='C3C'!F101 -> 0 | G29: ='C3C'!G101 -> 3632602.22 | H29: ='C3C'!H101 -> 12462040.68 | I29: -8829438.46 | J29: -0.7085066312 | K29: ='C3C'!K101 -> 74771601
A30: ='Org structure'!A8 -> Vote 07 - | C30: ='C3C'!C110 -> 0 | D30: ='C3C'!D110 -> 0 | E30: ='C3C'!E110 -> 0 | F30: ='C3C'!F110 -> 0 | G30: ='C3C'!G110 -> 0 | H30: ='C3C'!H110 -> 0 | I30: =G30-H30 -> 0 | J30: =IF(I30=0,"",I30/H30) ->  | K30: ='C3C'!K110 -> 0
A31: ='Org structure'!A9 -> Vote 08 - | C31: ='C3C'!C111 -> 0 | D31: ='C3C'!D111 -> 0 | E31: ='C3C'!E111 -> 0 | F31: ='C3C'!F111 -> 0 | G31: ='C3C'!G111 -> 0 | H31: ='C3C'!H111 -> 0 | I31: 0 | K31: ='C3C'!K111 -> 0
A32: ='Org structure'!A10 -> Vote 09 - | C32: ='C3C'!C112 -> 0 | D32: ='C3C'!D112 -> 0 | E32: ='C3C'!E112 -> 0 | F32: ='C3C'!F112 -> 0 | G32: ='C3C'!G112 -> 0 | H32: ='C3C'!H112 -> 0 | I32: 0 | K32: ='C3C'!K112 -> 0
A33: ='Org structure'!A11 -> Vote 10 - | C33: ='C3C'!C113 -> 0 | D33: ='C3C'!D113 -> 0 | E33: ='C3C'!E113 -> 0 | F33: ='C3C'!F113 -> 0 | G33: ='C3C'!G113 -> 0 | H33: ='C3C'!H113 -> 0 | I33: 0 | J33: =IF(I33=0,"",I33/H33) ->  | K33: ='C3C'!K113 -> 0
A34: ='Org structure'!A12 -> Vote 11 - | C34: ='C3C'!C114 -> 0 | D34: ='C3C'!D114 -> 0 | E34: ='C3C'!E114 -> 0 | F34: ='C3C'!F114 -> 0 | G34: ='C3C'!G114 -> 0 | H34: ='C3C'!H114 -> 0 | I34: 0 | J34: =IF(I34=0,"",I34/H34) ->  | K34: ='C3C'!K114 -> 0
A35: ='Org structure'!A13 -> Vote 12 - | C35: ='C3C'!C115 -> 0 | D35: ='C3C'!D115 -> 0 | E35: ='C3C'!E115 -> 0 | F35: ='C3C'!F115 -> 0 | G35: ='C3C'!G115 -> 0 | H35: ='C3C'!H115 -> 0 | I35: 0 | J35: =IF(I35=0,"",I35/H35) ->  | K35: ='C3C'!K115 -> 0
A36: ='Org structure'!A14 -> Vote 13 - | C36: ='C3C'!C116 -> 0 | D36: ='C3C'!D116 -> 0 | E36: ='C3C'!E116 -> 0 | F36: ='C3C'!F116 -> 0 | G36: ='C3C'!G116 -> 0 | H36: ='C3C'!H116 -> 0 | I36: 0 | J36: =IF(I36=0,"",I36/H36) ->  | K36: ='C3C'!K116 -> 0
A37: ='Org structure'!A15 -> Vote 14 - | C37: ='C3C'!C117 -> 0 | D37: ='C3C'!D117 -> 0 | E37: ='C3C'!E117 -> 0 | F37: ='C3C'!F117 -> 0 | G37: ='C3C'!G117 -> 0 | H37: ='C3C'!H117 -> 0 | I37: 0 | J37: =IF(I37=0,"",I37/H37) ->  | K37: ='C3C'!K117 -> 0
A38: ='Org structure'!A16 -> Vote 15 - Other | C38: ='C3C'!C118 -> 0 | D38: ='C3C'!D118 -> 0 | E38: ='C3C'!E118 -> 0 | F38: ='C3C'!F118 -> 0 | G38: ='C3C'!G118 -> 0 | H38: ='C3C'!H118 -> 0 | I38: 0 | K38: ='C3C'!K118 -> 0
A39: Total Expenditure by Vote | B39: 2 | C39: =SUM(C24:C38) -> 237901688.3 | D39: =SUM(D24:D38) -> 260944811 | E39: 260917811 | F39: 0 | G39: 14598477.05 | H39: 43486918 | I39: -28888440.95 | J39: =IF(I39=0,"",I39/H39) -> -0.66430187 | K39: =SUM(K24:K38) -> 260917811
A40: =result -> Surplus/ (Deficit) for the year | B40: 2 | C40: =C21-C39 -> 39311160.14 | D40: 72380343 | E40: 72407343 | F40: 0 | G40: 63157288.32 | H40: 12067236 | I40: =I21-I39 -> 51090052.32 | J40: =IF(I40=0,"",I40/H40) -> 4.233782477 | K40: =K21-K39 -> 72407343
A41: =head27a -> References
A42: 1. Insert 'Vote'; e.g. Department, if different to standard classification structure
A43: 2. Must reconcile to Monthly Budget Statement - Financial Performance Statement (standard classification)

Sheet C3C
A1: =muni& " - "&S71C& " - "&"A"& " - "&date -> LIM353 Molemole - Table C3 Monthly Budget Statement - Financial Performance (revenue and expenditure by municipal vote) - A - M02 August
A2: =Vdesc -> Vote Description | B2: =head27 -> Ref | C2: =Head1 -> 2022/23 | D2: =Head2 -> Budget Year 2023/24 | L2: =Head4 -> 
A3: R thousand | C3: =Head5 -> Audited Outcome | D3: =Head6 -> Original Budget | E3: =Head7 -> Adjusted Budget | F3: =Head38 -> Monthly actual | G3: =Head39 -> YearTD actual | H3: =Head40 -> YearTD budget | I3: =Head41 -> YTD variance | J3: =Head41 -> YTD variance | K3: =Head8 -> Full Year Forecast | L3: =Head12 -> Forecast 2010/11 | M3: =Head13 -> Forecast 2011/12 | N3: =Head14 -> Forecast 2012/13 | O3: =Head15 -> Forecast 2013/14 | P3: =Head16 -> Forecast 2014/15 | Q3: =Head17 -> Forecast 2015/16 | R3: =Head18 -> Forecast 2016/17 | S3: =Head19 -> Forecast 2017/18 | T3: =Head20 -> Forecast 2018/19 | U3: =Head21 -> Forecast 2019/20 | V3: =Head22 -> Forecast 2020/21 | W3: =Head23 -> Forecast 2021/22
J4: %
A5: Revenue by Vote | B5: 1
A6: ='Org structure'!A2 -> Vote 01 - Corporate Services | C6: =SUM(C7:C14) -> 1517869.43 | D6: 398249 | E6: 398249 | F6: 0 | G6: 4652.45 | H6: 66368 | I6: =G6-H6 -> -61715.55 | J6: =IF(I6=0,"",I6/H6) -> -0.9298991984 | K6: =SUM(K7:K14) -> 398249
A7: ='Org structure'!E3 -> 01.1 - Corporate Services Admin | C7: 967900 | D7: 0 | E7: 0 | F7: 0 | G7: 0 | H7: 0 | I7: =G7-H7 -> 0 | J7: =IF(I7=0,"",I7/H7) ->  | K7: 0
A8: ='Org structure'!E4 -> 01.2 - Human Resources | C8: 479330.38 | D8: 244113 | E8: 244113 | F8: 0 | G8: 0 | H8: 40684 | I8: -40684 | J8: -1 | K8: 244113
A9: ='Org structure'!E5 -> 01.3 - Information Technology Services | C9: 0 | D9: 0 | E9: 0 | F9: 0 | G9: 0 | H9: 0 | I9: 0 | K9: 0
A10: ='Org structure'!E6 -> 01.4 - Council Support | C10: 14145 | D10: 0 | E10: 0 | F10: 0 | G10: 0 | H10: 0 | I10: 0 | K10: 0
A11: ='Org structure'!E7 -> 01.5 - Local Economic Development | C11: 0 | D11: 0 | E11: 0 | F11: 0 | G11: 0 | H11: 0 | I11: 0 | K11: 0
A12: ='Org structure'!E8 -> 01.6 - Municipal Planning Idp | C12: 40312.32 | D12: 58696 | E12: 58696 | F12: 0 | G12: 3359.36 | H12: 9780 | I12: -6420.64 | J12: -0.6565071575 | K12: 58696
A13: ='Org structure'!E9 -> 01.7 - Town & Regional Planning | C13: 16181.73 | D13: 95440 | E13: 95440 | F13: 0 | G13: 1293.09 | H13: 15904 | I13: -14610.91 | J13: -0.9186940392 | K13: 95440
A14: ='Org structure'!E10 -> 01.8 - Led Administration | C14: 0 | D14: 0 | E14: 0 | F14: 0 | G14: 0 | H14: 0 | I14: 0 | K14: 0
A15: ='Org structure'!A3 -> Vote 02 - Municipal Manager | C15: =SUM(C16:C20) -> 0 | D15: 0 | E15: 0 | F15: 0 | G15: 0 | H15: 0 | I15: 0 | K15: =SUM(K16:K20) -> 0
A16: ='Org structure'!E12 -> 02.1 - Municipal Manager Admin | C16: 0 | D16: 0 | E16: 0 | F16: 0 | G16: 0 | H16: 0 | I16: =G16-H16 -> 0 | J16: =IF(I16=0,"",I16/H16) ->  | K16: 0
A17: ='Org structure'!E13 -> 02.2 - Legal Services | C17: 0 | D17: 0 | E17: 0 | F17: 0 | G17: 0 | H17: 0 | I17: =G17-H17 -> 0 | J17: =IF(I17=0,"",I17/H17) ->  | K17: 0
A18: ='Org structure'!E14 -> 02.3 - Political Office Beares | C18: 0 | D18: 0 | E18: 0 | F18: 0 | G18: 0 | H18: 0 | I18: =G18-H18 -> 0 | J18: =IF(I18=0,"",I18/H18) ->  | K18: 0
A19: ='Org structure'!E15 -> 02.4 - Pms | C19: 0 | D19: 0 | E19: 0 | F19: 0 | G19: 0 | H19: 0 | I19: =G19-H19 -> 0 | J19: =IF(I19=0,"",I19/H19) ->  | K19: 0
A20: ='Org structure'!E16 -> 02.5 - Internal Audit | C20: 0 | D20: 0 | E20: 0 | F20: 0 | G20: 0 | H20: 0 | I20: =G20-H20 -> 0 | J20: =IF(I20=0,"",I20/H20) ->  | K20: 0
A21: ='Org structure'!A4 -> Vote 03 - Mayors Office | C21: =SUM(C22:C26) -> 0 | D21: 0 | E21: 0 | F21: 0 | G21: 0 | H21: 0 | I21: 0 | K21: =SUM(K22:K26) -> 0
A22: ='Org structure'!E18 -> 03.1 - Mayors Office Admin | C22: 0 | D22: 0 | E22: 0 | F22: 0 | G22: 0 | H22: 0 | I22: =G22-H22 -> 0 | J22: =IF(I22=0,"",I22/H22) ->  | K22: 0
A23: ='Org structure'!E19 -> 03.2 - Office Of The Speaker | C23: 0 | D23: 0 | E23: 0 | F23: 0 | G23: 0 | H23: 0 | I23: =G23-H23 -> 0 | J23: =IF(I23=0,"",I23/H23) ->  | K23: 0
A24: ='Org structure'!E20 -> 03.3 - Office Of The Chief Whip | C24: 0 | D24: 0 | E24: 0 | F24: 0 | G24: 0 | H24: 0 | I24: =G24-H24 -> 0 | J24: =IF(I24=0,"",I24/H24) ->  | K24: 0
A25: ='Org structure'!E21 -> 03.4 - Exco Members | C25: 0 | D25: 0 | E25: 0 | F25: 0 | G25: 0 | H25: 0 | I25: =G25-H25 -> 0 | J25: =IF(I25=0,"",I25/H25) ->  | K25: 0
A26: ='Org structure'!E22 -> 03.5 - Council General Administration | C26: 0 | D26: 0 | E26: 0 | F26: 0 | G26: 0 | H26: 0 | I26: =G26-H26 -> 0 | J26: =IF(I26=0,"",I26/H26) ->  | K26: 0
A27: ='Org structure'!A5 -> Vote 04 - Budget And Treasury | C27: =SUM(C28:C34) -> 212784665.6 | D27: 238432096 | E27: 238432096 | F27: 0 | G27: 76611886.98 | H27: 39738670 | I27: 36873216.98 | J27: 0.9278925787 | K27: =SUM(K28:K34) -> 238432096
A28: ='Org structure'!E24 -> 04.1 - Budget And Treasury Admin | C28: 204582632.6 | D28: 227612006 | E28: 227612006 | F28: 0 | G28: 76608545.96 | H28: 37935322 | I28: =G28-H28 -> 38673223.96 | J28: =IF(I28=0,"",I28/H28) -> 1.01945158 | K28: 227612006
A29: ='Org structure'!E25 -> 04.2 - Chief Financial Officer Admin | C29: 0 | D29: 0 | E29: 0 | F29: 0 | G29: 0 | H29: 0 | I29: 0 | K29: 0
A30: ='Org structure'!E26 -> 04.3 - Budget & Reporting | C30: 0 | D30: 0 | E30: 0 | F30: 0 | G30: 0 | H30: 0 | I30: 0 | K30: 0
A31: ='Org structure'!E27 -> 04.4 - Budget & Reporting | C31: 8167645.51 | D31: 9600000 | E31: 9600000 | F31: 0 | G31: 0 | H31: 1600000 | I31: -1600000 | J31: -1 | K31: 9600000
A32: ='Org structure'!E28 -> 04.5 - Revenue Management | C32: 34387.46 | D32: 1220090 | E32: 1220090 | F32: 0 | G32: 3341.02 | H32: 203348 | I32: -200006.98 | J32: -0.9835699392 | K32: 1220090
A33: ='Org structure'!E29 -> 04.6 - Supply Chain Management | C33: 0 | D33: 0 | E33: 0 | F33: 0 | G33: 0 | H33: 0 | I33: 0 | K33: 0
A34: ='Org structure'!E30 -> 04.7 - Expenditure | C34: 0 | D34: 0 | E34: 0 | F34: 0 | G34: 0 | H34: 0 | I34: 0 | K34: 0
A35: ='Org structure'!A6 -> Vote 05 - Community Services | C35: =SUM(C36:C42) -> 9087065.96 | D35: 19217223 | E35: 19217223 | F35: 0 | G35: 326315.33 | H35: 3202862 | I35: -2876546.67 | J35: -0.8981175805 | K35: =SUM(K36:K42) -> 19217223
A36: ='Org structure'!E32 -> 05.1 - Community Services Admin | C36: 1395656 | D36: 1219000 | E36: 1219000 | F36: 0 | G36: 0 | H36: 203166 | I36: =G36-H36 -> -203166 | J36: =IF(I36=0,"",I36/H36) -> -1 | K36: 1219000
A37: ='Org structure'!E33 -> 05.2 - Libraries | C37: 0 | D37: 0 | E37: 0 | F37: 0 | G37: 0 | H37: 0 | I37: 0 | K37: 0
A38: ='Org structure'!E34 -> 05.3 - Sports Recreation & Social Amenitie | C38: 207308.93 | D38: 249544 | E38: 249544 | F38: 0 | G38: 3792.68 | H38: 41588 | I38: -37795.32 | J38: -0.908803501 | K38: 249544
A39: ='Org structure'!E35 -> 05.4 - Traffic Service | C39: 0 | D39: 0 | E39: 0 | F39: 0 | G39: 0 | H39: 0 | I39: 0 | K39: 0
A40: ='Org structure'!E36 -> 05.5 - Traffic Service | C40: 4613472.47 | D40: 13712249 | E40: 13712249 | F40: 0 | G40: 39143.48 | H40: 2285372 | I40: -2246228.52 | J40: -0.9828721626 | K40: 13712249
A41: ='Org structure'!E37 -> 05.6 - Parks; Cemeteries | C41: 16596.08 | D41: 26612 | E41: 26612 | F41: 0 | G41: 1000 | H41: 4434 | I41: -3434 | J41: -0.7744700045 | K41: 26612
A42: ='Org structure'!E38 -> 05.7 - Refuse | C42: 2854032.48 | D42: 4009818 | E42: 4009818 | F42: 0 | G42: 282379.17 | H42: 668302 | I42: -385922.83 | J42: -0.5774677167 | K42: 4009818
A43: ='Org structure'!A7 -> Vote 06 - Technical Services | C43: =SUM(C44:C51) -> 53823247.42 | D43: 75277586 | E43: 75277586 | F43: 0 | G43: 812910.61 | H43: 12546254 | I43: -11733343.39 | J43: -0.9352069064 | K43: =SUM(K44:K51) -> 75277586
A44: ='Org structure'!E40 -> 06.1 - Mpac | C44: 0 | D44: 0 | E44: 0 | F44: 0 | G44: 0 | H44: 0 | I44: =G44-H44 -> 0 | J44: =IF(I44=0,"",I44/H44) ->  | K44: 0
A45: ='Org structure'!E41 -> 06.2 - Technical Services Admin | C45: 0 | D45: 0 | E45: 0 | F45: 0 | G45: 0 | H45: 0 | I45: 0 | K45: 0
A46: ='Org structure'!E42 -> 06.3 - Techn Serv-Roads: Admin | C46: 0 | D46: 0 | E46: 0 | F46: 0 | G46: 0 | H46: 0 | I46: 0 | K46: 0
A47: ='Org structure'!E43 -> 06.4 - Techn Serv-Stormwater: Admin | C47: 0 | D47: 0 | E47: 0 | F47: 0 | G47: 0 | H47: 0 | I47: 0 | K47: 0
A48: ='Org structure'!E44 -> 06.5 - Project Management Unit | C48: 39786147.74 | D48: 41453000 | E48: 41453000 | F48: 0 | G48: 0 | H48: 6908830 | I48: -6908830 | J48: -1 | K48: 41453000
A49: ='Org structure'!E45 -> 06.6 - Electrical & Machinery | C49: 11711526.26 | D49: 32143638 | E49: 32143638 | F49: 0 | G49: 643126.64 | H49: 5357268 | I49: -4714141.36 | J49: -0.8799524982 | K49: 32143638
A50: ='Org structure'!E46 -> 06.7 - Water | C50: 1177781.9 | D50: 68588 | E50: 68588 | F50: 0 | G50: 67119.07 | H50: 11430 | I50: 55689.07 | J50: 4.872184602 | K50: 68588
A51: ='Org structure'!E47 -> 06.8 - Sanitation | C51: 1147791.52 | D51: 1612360 | E51: 1612360 | F51: 0 | G51: 102664.9 | H51: 268726 | I51: -166061.1 | J51: -0.6179569524 | K51: 1612360
A52: ='Org structure'!A8 -> Vote 07 - | C52: 0 | D52: 0 | E52: 0 | F52: 0 | G52: 0 | H52: 0 | I52: =G52-H52 -> 0 | J52: =IF(I52=0,"",I52/H52) ->  | K52: 0
A53: ='Org structure'!A9 -> Vote 08 - | C53: 0 | D53: 0 | E53: 0 | F53: 0 | G53: 0 | H53: 0 | I53: 0 | K53: 0
A54: ='Org structure'!A10 -> Vote 09 - | C54: 0 | D54: 0 | E54: 0 | F54: 0 | G54: 0 | H54: 0 | I54: 0 | K54: 0
A55: ='Org structure'!A11 -> Vote 10 - | C55: 0 | D55: 0 | E55: 0 | F55: 0 | G55: 0 | H55: 0 | I55: 0 | K55: 0
A56: ='Org structure'!A12 -> Vote 11 - | C56: 0 | D56: 0 | E56: 0 | F56: 0 | G56: 0 | H56: 0 | I56: 0 | K56: 0
A57: ='Org structure'!A13 -> Vote 12 - | C57: 0 | D57: 0 | E57: 0 | F57: 0 | G57: 0 | H57: 0 | I57: 0 | K57: 0
A58: ='Org structure'!A14 -> Vote 13 - | C58: 0 | D58: 0 | E58: 0 | F58: 0 | G58: 0 | H58: 0 | I58: =G58-H58 -> 0 | J58: =IF(I58=0,"",I58/H58) ->  | K58: 0
A59: ='Org structure'!A15 -> Vote 14 - | C59: 0 | D59: 0 | E59: 0 | F59: 0 | G59: 0 | H59: 0 | I59: 0 | K59: 0
A60: ='Org structure'!A16 -> Vote 15 - Other | C60: 0 | D60: 0 | E60: 0 | F60: 0 | G60: 0 | H60: 0 | I60: 0 | K60: 0
A61: Total Revenue by Vote | B61: 2 | C61: =C6+C15+C21+C27+C35+C43+C52+C53+C54+C55+C56+C57+C58+C59+C60 -> 277212848.4 | D61: 333325154 | E61: 333325154 | F61: 0 | G61: 77755765.37 | H61: 55554154 | I61: 22201611.37 | J61: 0.3996390868 | K61: =K6+K15+K21+K27+K35+K43+K52+K53+K54+K55+K56+K57+K58+K59+K60 -> 333325154
I62: 0
A63: Expenditure by Vote | B63: 1 | I63: 0
A64: ='Org structure'!A2 -> Vote 01 - Corporate Services | C64: =SUM(C65:C72) -> 53058947.72 | D64: 60931854 | E64: 60861854 | F64: 0 | G64: 4453505.87 | H64: 10143795.34 | I64: -5690289.47 | J64: -0.5609625667 | K64: =SUM(K65:K72) -> 60861854
A65: ='Org structure'!E3 -> 01.1 - Corporate Services Admin | C65: 23883862.3 | D65: 26907931 | E65: 26846931 | F65: 0 | G65: 1528388.83 | H65: 4474529.34 | I65: =G65-H65 -> -2946140.51 | J65: =IF(I65=0,"",I65/H65) -> -0.6584246713 | K65: 26846931
A66: ='Org structure'!E4 -> 01.2 - Human Resources | C66: 8111117.32 | D66: 6935834 | E66: 6935834 | F66: 0 | G66: 1482095.88 | H66: 1155994 | I66: 326101.88 | J66: 0.2820965161 | K66: 6935834
A67: ='Org structure'!E5 -> 01.3 - Information Technology Services | C67: 6798394.6 | D67: 8308547 | E67: 8299547 | F67: 0 | G67: 496309.3 | H67: 1383280 | I67: -886970.7 | J67: -0.6412083598 | K67: 8299547
A68: ='Org structure'!E6 -> 01.4 - Council Support | C68: 6194640.72 | D68: 5758923 | E68: 5758923 | F68: 0 | G68: 393654.97 | H68: 959842 | I68: -566187.03 | J68: -0.5898752399 | K68: 5758923
A69: ='Org structure'!E7 -> 01.5 - Local Economic Development | C69: 3826301.1 | D69: 4426463 | E69: 4426463 | F69: 0 | G69: 343604.97 | H69: 737768 | I69: -394163.03 | J69: -0.5342641996 | K69: 4426463
A70: ='Org structure'!E8 -> 01.6 - Municipal Planning Idp | C70: 1692499.93 | D70: 5820965 | E70: 5820965 | F70: 0 | G70: 0 | H70: 970172 | I70: -970172 | J70: -1 | K70: 5820965
A71: ='Org structure'!E9 -> 01.7 - Town & Regional Planning | C71: 2537109.53 | D71: 2773191 | E71: 2773191 | F71: 0 | G71: 209451.92 | H71: 462210 | I71: -252758.08 | J71: -0.5468468445 | K71: 2773191
A72: ='Org structure'!E10 -> 01.8 - Led Administration | C72: 15022.22 | D72: 0 | E72: 0 | F72: 0 | G72: 0 | H72: 0 | I72: 0 | K72: 0
A73: ='Org structure'!A3 -> Vote 02 - Municipal Manager | C73: =SUM(C74:C78) -> 23124520.9 | D73: 27747812 | E73: 27747812 | F73: 0 | G73: 1163756.97 | H73: 4624728 | I73: -3460971.03 | J73: -0.7483620723 | K73: =SUM(K74:K78) -> 27747812
A74: ='Org structure'!E12 -> 02.1 - Municipal Manager Admin | C74: 6423660.78 | D74: 7263980 | E74: 7263980 | F74: 0 | G74: 513190.68 | H74: 1210690 | I74: =G74-H74 -> -697499.32 | J74: =IF(I74=0,"",I74/H74) -> -0.5761171894 | K74: 7263980
A75: ='Org structure'!E13 -> 02.2 - Legal Services | C75: 2439177.53 | D75: 2841480 | E75: 2841480 | F75: 0 | G75: 113621.38 | H75: 473596 | I75: =G75-H75 -> -359974.62 | J75: =IF(I75=0,"",I75/H75) -> -0.7600879653 | K75: 2841480
A76: ='Org structure'!E14 -> 02.3 - Political Office Beares | C76: 1702774.07 | D76: 1999670 | E76: 1999670 | F76: 0 | G76: 0 | H76: 333296 | I76: =G76-H76 -> -333296 | J76: =IF(I76=0,"",I76/H76) -> -1 | K76: 1999670
A77: ='Org structure'!E15 -> 02.4 - Pms | C77: 3028819.39 | D77: 3242206 | E77: 3242206 | F77: 0 | G77: 188413.73 | H77: 540382 | I77: =G77-H77 -> -351968.27 | J77: =IF(I77=0,"",I77/H77) -> -0.6513323353 | K77: 3242206
A78: ='Org structure'!E16 -> 02.5 - Internal Audit | C78: 9530089.13 | D78: 12400476 | E78: 12400476 | F78: 0 | G78: 348531.18 | H78: 2066764 | I78: =G78-H78 -> -1718232.82 | J78: =IF(I78=0,"",I78/H78) -> -0.8313638229 | K78: 12400476
A79: ='Org structure'!A4 -> Vote 03 - Mayors Office | C79: =SUM(C80:C84) -> 15888784.07 | D79: 22398840 | E79: 22738840 | F79: 0 | G79: 1137806.24 | H79: 3789856.64 | I79: -2652050.4 | J79: -0.6997759155 | K79: =SUM(K80:K84) -> 22738840
A80: ='Org structure'!E18 -> 03.1 - Mayors Office Admin | C80: 2746661 | D80: 4009101 | E80: 3879101 | F80: 0 | G80: 151644.23 | H80: 646535.32 | I80: =G80-H80 -> -494891.09 | J80: =IF(I80=0,"",I80/H80) -> -0.7654509734 | K80: 3879101
A81: ='Org structure'!E19 -> 03.2 - Office Of The Speaker | C81: 1309586.42 | D81: 1676754 | E81: 1636754 | F81: 0 | G81: 100782.69 | H81: 272805.34 | I81: =G81-H81 -> -172022.65 | J81: =IF(I81=0,"",I81/H81) -> -0.6305692183 | K81: 1636754
A82: ='Org structure'!E20 -> 03.3 - Office Of The Chief Whip | C82: 524164.09 | D82: 1062867 | E82: 1102867 | F82: 0 | G82: 34862.13 | H82: 183816.66 | I82: =G82-H82 -> -148954.53 | J82: =IF(I82=0,"",I82/H82) -> -0.8103429254 | K82: 1102867
A83: ='Org structure'!E21 -> 03.4 - Exco Members | C83: 3864694.14 | D83: 5209078 | E83: 5209078 | F83: 0 | G83: 304665.66 | H83: 868186 | I83: =G83-H83 -> -563520.34 | J83: =IF(I83=0,"",I83/H83) -> -0.6490778934 | K83: 5209078
A84: ='Org structure'!E22 -> 03.5 - Council General Administration | C84: 7443678.42 | D84: 10441040 | E84: 10911040 | F84: 0 | G84: 545851.53 | H84: 1818513.32 | I84: =G84-H84 -> -1272661.79 | J84: =IF(I84=0,"",I84/H84) -> -0.6998363861 | K84: 10911040
A85: ='Org structure'!A5 -> Vote 04 - Budget And Treasury | C85: =SUM(C86:C92) -> 31238825.79 | D85: 36376878 | E85: 36216878 | F85: 0 | G85: 1653158.93 | H85: 6036241.34 | I85: =G85-H85 -> -4383082.41 | J85: =IF(I85=0,"",I85/H85) -> -0.7261277612 | K85: =SUM(K86:K92) -> 36216878
A86: ='Org structure'!E24 -> 04.1 - Budget And Treasury Admin | C86: 8286612.73 | D86: 11099461 | E86: 11099461 | F86: 0 | G86: 320037.3 | H86: 1849934 | I86: =G86-H86 -> -1529896.7 | J86: =IF(I86=0,"",I86/H86) -> -0.827000693 | K86: 11099461
A87: ='Org structure'!E25 -> 04.2 - Chief Financial Officer Admin | C87: 10284.93 | D87: 0 | E87: 0 | F87: 0 | G87: 0 | H87: 0 | I87: 0 | K87: 0
A88: ='Org structure'!E26 -> 04.3 - Budget & Reporting | C88: 0 | D88: 0 | E88: 0 | F88: 0 | G88: 0 | H88: 0 | I88: 0 | K88: 0
A89: ='Org structure'!E27 -> 04.4 - Budget & Reporting | C89: 2990672.18 | D89: 4339425 | E89: 4339425 | F89: 0 | G89: 223750.67 | H89: 723254 | I89: -499503.33 | J89: -0.690633346 | K89: 4339425
A90: ='Org structure'!E28 -> 04.5 - Revenue Management | C90: 11283282.88 | D90: 9698256 | E90: 9638256 | F90: 0 | G90: 411748.55 | H90: 1606398 | I90: -1194649.45 | J90: -0.7436821074 | K90: 9638256
A91: ='Org structure'!E29 -> 04.6 - Supply Chain Management | C91: 4452332.24 | D91: 6185323 | E91: 6185323 | F91: 0 | G91: 342537.56 | H91: 1030906 | I91: -688368.44 | J91: -0.6677315294 | K91: 6185323
A92: ='Org structure'!E30 -> 04.7 - Expenditure | C92: 4215640.83 | D92: 5054413 | E92: 4954413 | F92: 0 | G92: 355084.85 | H92: 825749.34 | I92: -470664.49 | J92: -0.5699847002 | K92: 4954413
A93: ='Org structure'!A6 -> Vote 05 - Community Services | C93: =SUM(C94:C100) -> 36574700.04 | D93: 38610826 | E93: 38580826 | F93: 0 | G93: 2557646.82 | H93: 6430256 | I93: -3872609.18 | J93: -0.6022480567 | K93: =SUM(K94:K100) -> 38580826
A94: ='Org structure'!E32 -> 05.1 - Community Services Admin | C94: 4768796.68 | D94: 5507227 | E94: 5507227 | F94: 0 | G94: 179763.65 | H94: 917900 | I94: =G94-H94 -> -738136.35 | J94: =IF(I94=0,"",I94/H94) -> -0.8041576969 | K94: 5507227
A95: ='Org structure'!E33 -> 05.2 - Libraries | C95: 1476588.31 | D95: 1726521 | E95: 1726521 | F95: 0 | G95: 116687.65 | H95: 287766 | I95: -171078.35 | J95: -0.594505084 | K95: 1726521
A96: ='Org structure'!E34 -> 05.3 - Sports Recreation & Social Amenitie | C96: 2839554.6 | D96: 3723138 | E96: 3723138 | F96: 0 | G96: 111569.08 | H96: 620548 | I96: -508978.92 | J96: -0.8202087832 | K96: 3723138
A97: ='Org structure'!E35 -> 05.4 - Traffic Service | C97: 0 | D97: 0 | E97: 0 | F97: 0 | G97: 0 | H97: 0 | I97: 0 | K97: 0
A98: ='Org structure'!E36 -> 05.5 - Traffic Service | C98: 16867081.46 | D98: 15220230 | E98: 15190230 | F98: 0 | G98: 1334761.37 | H98: 2531730 | I98: -1196968.63 | J98: -0.4727868414 | K98: 15190230
A99: ='Org structure'!E37 -> 05.6 - Parks; Cemeteries | C99: 1321699.31 | D99: 1668593 | E99: 1668593 | F99: 0 | G99: 76162.79 | H99: 278112 | I99: -201949.21 | J99: -0.7261434602 | K99: 1668593
A100: ='Org structure'!E38 -> 05.7 - Refuse | C100: 9300979.68 | D100: 10765117 | E100: 10765117 | F100: 0 | G100: 738702.28 | H100: 1794200 | I100: -1055497.72 | J100: -0.5882832014 | K100: 10765117
A101: ='Org structure'!A7 -> Vote 06 - Technical Services | C101: =SUM(C102:C109) -> 78015909.76 | D101: 74878601 | E101: 74771601 | F101: 0 | G101: 3632602.22 | H101: 12462040.68 | I101: -8829438.46 | J101: -0.7085066312 | K101: =SUM(K102:K109) -> 74771601
A102: ='Org structure'!E40 -> 06.1 - Mpac | C102: 1651133.87 | D102: 2894804 | E102: 2654804 | F102: 0 | G102: 92369.61 | H102: 442474.02 | I102: =G102-H102 -> -350104.41 | J102: =IF(I102=0,"",I102/H102) -> -0.7912428621 | K102: 2654804
A103: ='Org structure'!E41 -> 06.2 - Technical Services Admin | C103: 135448.17 | D103: 0 | E103: 0 | F103: 0 | G103: 0 | H103: 0 | I103: 0 | K103: 0
A104: ='Org structure'!E42 -> 06.3 - Techn Serv-Roads: Admin | C104: 10751577.25 | D104: 12014827 | E104: 12014827 | F104: 0 | G104: 64583.76 | H104: 2002482 | I104: -1937898.24 | J104: -0.9677481446 | K104: 12014827
A105: ='Org structure'!E43 -> 06.4 - Techn Serv-Stormwater: Admin | C105: 17497476.1 | D105: 18314786 | E105: 18320786 | F105: 0 | G105: 520895.96 | H105: 3053488 | I105: -2532592.04 | J105: -0.8294095277 | K105: 18320786
A106: ='Org structure'!E44 -> 06.5 - Project Management Unit | C106: 6422154.63 | D106: 4482257 | E106: 4392257 | F106: 0 | G106: 166261.88 | H106: 732054 | I106: -565792.12 | J106: -0.7728830387 | K106: 4392257
A107: ='Org structure'!E45 -> 06.6 - Electrical & Machinery | C107: 35531392.99 | D107: 31287310 | E107: 31404310 | F107: 0 | G107: 2208719.66 | H107: 5234078 | I107: -3025358.34 | J107: -0.5780117033 | K107: 31404310
A108: ='Org structure'!E46 -> 06.7 - Water | C108: 5581186.93 | D108: 5224628 | E108: 5324628 | F108: 0 | G108: 562714.32 | H108: 887458.66 | I108: -324744.34 | J108: -0.3659261604 | K108: 5324628
A109: ='Org structure'!E47 -> 06.8 - Sanitation | C109: 445539.82 | D109: 659989 | E109: 659989 | F109: 0 | G109: 17057.03 | H109: 110006 | I109: -92948.97 | J109: -0.8449445485 | K109: 659989
A110: ='Org structure'!A8 -> Vote 07 - | C110: 0 | D110: 0 | E110: 0 | F110: 0 | G110: 0 | H110: 0 | I110: 0 | K110: 0
A111: ='Org structure'!A9 -> Vote 08 - | C111: 0 | D111: 0 | E111: 0 | F111: 0 | G111: 0 | H111: 0 | I111: 0 | K111: 0
A112: ='Org structure'!A10 -> Vote 09 - | C112: 0 | D112: 0 | E112: 0 | F112: 0 | G112: 0 | H112: 0 | I112: =G112-H112 -> 0 | J112: =IF(I112=0,"",I112/H112) ->  | K112: 0
A113: ='Org structure'!A11 -> Vote 10 - | C113: 0 | D113: 0 | E113: 0 | F113: 0 | G113: 0 | H113: 0 | I113: 0 | K113: 0
A114: ='Org structure'!A12 -> Vote 11 - | C114: 0 | D114: 0 | E114: 0 | F114: 0 | G114: 0 | H114: 0 | I114: 0 | K114: 0
A115: ='Org structure'!A13 -> Vote 12 - | C115: 0 | D115: 0 | E115: 0 | F115: 0 | G115: 0 | H115: 0 | I115: 0 | K115: 0
A116: ='Org structure'!A14 -> Vote 13 - | C116: 0 | D116: 0 | E116: 0 | F116: 0 | G116: 0 | H116: 0 | I116: 0 | K116: 0
A117: ='Org structure'!A15 -> Vote 14 - | C117: 0 | D117: 0 | E117: 0 | F117: 0 | G117: 0 | H117: 0 | I117: 0 | K117: 0
A118: ='Org structure'!A16 -> Vote 15 - Other | C118: 0 | D118: 0 | E118: 0 | F118: 0 | G118: 0 | H118: 0 | I118: =G118-H118 -> 0 | J118: =IF(I118=0,"",I118/H118) ->  | K118: 0
A119: Total Expenditure by Vote | B119: 2 | C119: =C64+C73+C79+C85+C93+C101+C110+C111+C112+C113+C114+C115+C116+C117+C118 -> 237901688.3 | D119: 260944811 | E119: 260917811 | F119: 0 | G119: 14598477.05 | H119: 43486918 | I119: -28888440.95 | J119: -0.66430187 | K119: =K64+K73+K79+K85+K93+K101+K110+K111+K112+K113+K114+K115+K116+K117+K118 -> 260917811
I120: 0 | L120: =#REF!-#REF! ->  | M120: =#REF!-#REF! ->  | N120: =#REF!-#REF! ->  | O120: =#REF!-#REF! ->  | P120: =#REF!-#REF! ->  | Q120: =#REF!-#REF! ->  | R120: =#REF!-#REF! ->  | S120: =#REF!-#REF! ->  | T120: =#REF!-#REF! ->  | U120: =#REF!-#REF! ->  | V120: =#REF!-#REF! ->  | W120: =#REF!-#REF! -> 
A121: =result -> Surplus/ (Deficit) for the year | B121: 2 | C121: =C61-C119 -> 39311160.14 | D121: 72380343 | E121: 72407343 | F121: 0 | G121: 63157288.32 | H121: 12067236 | I121: 51090052.32 | J121: 4.233782477 | K121: =K61-K119 -> 72407343
A122: =head27a -> References
A123: 1. Insert 'Vote'; e.g. Department, if different to standard structure
A124: 2. Must reconcile to Financial Performance ('Revenue and Expenditure by Standard Classification' and 'Revenue and Expenditure')
A125: 3. Assign share in 'associate' to relevant Vote
A127: check revenue
A128: check expenditure

Sheet C4-FinPerf RE
A1: =muni& " - "&S71B& " - "&date -> LIM353 Molemole - Table C4 Monthly Budget Statement - Financial Performance (revenue and expenditure) - M02 August
A2: =desc -> Description | B2: =head27 -> Ref | C2: =Head1 -> 2022/23 | D2: =Head2 -> Budget Year 2023/24
C3: =Head5 -> Audited Outcome | D3: =Head6 -> Original Budget | E3: =Head7 -> Adjusted Budget | F3: =Head38 -> Monthly actual | G3: =Head39 -> YearTD actual | H3: =Head40 -> YearTD budget | I3: =Head41 -> YTD variance | J3: =Head41 -> YTD variance | K3: =Head8 -> Full Year Forecast
A4: R thousands | J4: %
A5: Revenue
A6: Exchange Revenue
A7: Service charges - Electricity | C7: 8990482.06 | D7: 12335647 | E7: 12335647 | F7: 0 | G7: 628766.64 | H7: 2055938 | I7: =G7-H7 -> -1427171.36 | J7: =IF(I7=0,"",I7/H7) -> -0.6941704273 | K7: 12335647
A8: Service charges - Water | C8: -17833.2 | D8: 0 | E8: 0 | F8: 0 | G8: 0 | H8: 0 | I8: 0 | K8: 0
A9: Service charges - Waste Water Management | C9: -2094 | D9: 0 | E9: 0 | F9: 0 | G9: 0 | H9: 0 | I9: 0 | K9: 0
A10: Service charges - Waste management | C10: 2522929.6 | D10: 3544709 | E10: 3544709 | F10: 0 | G10: 251561.22 | H10: 590784 | I10: -339222.78 | J10: -0.5741908718 | K10: 3544709
A11: Sale of Goods and Rendering of Services | C11: 1000777.81 | D11: 1293100 | E11: 1293100 | F11: 0 | G11: 2443.09 | H11: 215510 | I11: =G11-H11 -> -213066.91 | J11: =IF(I11=0,"",I11/H11) -> -0.9886636815 | K11: 1293100
A12: Agency services | C12: 2345500.62 | D12: 1680948 | E12: 1680948 | F12: 0 | G12: 169783.97 | H12: 280156 | I12: -110372.03 | J12: -0.3939663259 | K12: 1680948
A13: Interest | I13: 0
A14: Interest earned from Receivables | C14: 524497.86 | D14: 1128873 | E14: 1128873 | F14: 0 | G14: 48518.97 | H14: 188144 | I14: -139625.03 | J14: -0.7421178991 | K14: 1128873
A15: Interest from Current and Non Current Assets | C15: 8167645.51 | D15: 9600000 | E15: 9600000 | F15: 0 | G15: 0 | H15: 1600000 | K15: 9600000
A16: Dividends | C16: 0 | D16: 0 | E16: 0 | F16: 0 | G16: 0 | H16: 0 | I16: 0 | K16: 0
A17: Rent on Land | C17: 40312.32 | D17: 56599 | E17: 56599 | F17: 0 | G17: 3359.36 | H17: 9432 | I17: -6072.64 | K17: 56599
A18: Rental from Fixed Assets | C18: 206610.67 | D18: 247951 | E18: 247951 | F18: 0 | G18: 3642.68 | H18: 41324 | I18: -37681.32 | J18: -0.9118507405 | K18: 247951
A19: Licence and permits | C19: 4318922.47 | D19: 13120041 | E19: 13120041 | F19: 0 | G19: 34443.48 | H19: 2186672 | I19: -2152228.52 | J19: -0.984248447 | K19: 13120041
A20: Operational Revenue | C20: 177353.01 | D20: 244485 | E20: 244485 | F20: 0 | G20: 0 | H20: 40746 | I20: -40746 | J20: -1 | K20: 244485
A21: Non-Exchange Revenue | I21: 0
A22: Property rates | C22: 32723524.69 | D22: 46063444 | E22: 46063444 | F22: 0 | G22: 2362949.3 | H22: 7677232 | I22: -5314282.7 | J22: =IF(I22=0,"",I22/H22) -> -0.6922133785 | K22: 46063444
A23: Surcharges and Taxes | I23: 0
A24: Fines, penalties and forfeits | C24: 308242.46 | D24: 620795 | E24: 620795 | F24: 0 | G24: 4700 | H24: 103464 | I24: -98764 | K24: 620795
A25: Licence and permits | I25: 0
A26: Transfers and subsidies - Operational | C26: 174739174.2 | D26: 183700650 | E26: 183700650 | F26: 0 | G26: 74212000 | H26: 30616770 | I26: 43595230 | K26: 183700650
A27: Interest | C27: 805983.04 | D27: 1139562 | E27: 1139562 | F27: 0 | G27: 33596.66 | H27: 189926 | I27: -156329.34 | K27: 1139562
A28: Fuel Levy | I28: 0
A29: Operational Revenue | I29: 0
A30: Gains on disposal of Assets | C30: 14145 | D30: 0 | E30: 0 | F30: 0 | G30: 0 | H30: 0 | I30: 0 | K30: 0
A31: Other Gains | C31: 0 | D31: 0 | E31: 0 | F31: 0 | G31: 0 | H31: 0 | I31: 0 | K31: 0
A32: Discontinued Operations | I32: 0
A33: Total Revenue (excluding capital transfers and contributions) | C33: =SUM(C7:C20)+SUM(C22:C32) -> 236866174.1 | D33: =SUM(D7:D20)+SUM(D22:D32) -> 274776804 | E33: 274776804 | F33: 0 | G33: 77755765.37 | H33: 45796098 | I33: 31959667.37 | J33: 0.6978687872 | K33: =SUM(K7:K20)+SUM(K22:K32) -> 274776804
A34: Expenditure By Type
A35: Employee related costs | C35: 100664091.3 | D35: 107286637 | E35: 107259637 | F35: 0 | G35: 8906034.64 | H35: 17876960 | I35: -8970925.36 | J35: =IF(I35=0,"",I35/H35) -> -0.501814926 | K35: 107259637
A36: Remuneration of councillors | C36: 13208744.83 | D36: 19640387 | E36: 19640387 | F36: 0 | G36: 1109158.76 | H36: 3273416 | I36: -2164257.24 | J36: -0.6611616855 | K36: 19640387
A37: Bulk purchases - electricity | C37: 12338029.27 | D37: 13783253 | E37: 13783253 | F37: 0 | G37: 1311733.25 | H37: 2297210 | I37: -985476.75 | K37: 13783253
A38: Inventory consumed | C38: 6738833.74 | D38: 8245842 | E38: 8245842 | F38: 0 | G38: 0 | H38: 1374314 | I38: -1374314 | K38: 8245842
A39: Debt impairment | C39: 0 | D39: 3487768 | E39: 3487768 | F39: 0 | G39: 0 | H39: 581298 | I39: -581298 | J39: -1 | K39: 3487768
A40: Depreciation and amortisation | C40: 19847570.83 | D40: 22082155 | E40: 22082155 | F40: 0 | G40: 0 | H40: 3680444 | I40: -3680444 | J40: -1 | K40: 22082155
A41: Interest | C41: 26394.27 | D41: 132765 | E41: 132765 | F41: 0 | G41: 0 | H41: 22128 | I41: -22128 | J41: -1 | K41: 132765
A42: Contracted services | C42: 37674721.93 | D42: 45768528 | E42: 45768528 | F42: 0 | G42: 1172807.56 | H42: 7628126 | I42: -6455318.44 | J42: -0.846252204 | K42: 45768528
A43: Transfers and subsidies | C43: 0 | D43: 0 | E43: 0 | F43: 0 | G43: 0 | H43: 0 | I43: 0 | K43: 0
A44: Irrecoverable debts written off | C44: 499020.13 | D44: 500000 | E44: 500000 | F44: 0 | G44: 0 | H44: 83334 | I44: -83334 | K44: 500000
A45: Operational costs | C45: 38269934.12 | D45: 40017476 | E45: 40017476 | F45: 0 | G45: 2098742.84 | H45: 6669688 | I45: -4570945.16 | J45: -0.6853311819 | K45: 40017476
A46: Losses on Disposal of Assets | C46: 8634347.82 | D46: 0 | E46: 0 | F46: 0 | G46: 0 | H46: 0 | I46: 0 | K46: 0
A47: Other Losses | C47: 0 | D47: 0 | E47: 0 | F47: 0 | G47: 0 | H47: 0 | I47: 0 | K47: 0
A48: Total Expenditure | C48: =SUM(C35:C47) -> 237901688.3 | D48: =SUM(D35:D47) -> 260944811 | E48: 260917811 | F48: 0 | G48: 14598477.05 | H48: 43486918 | I48: =G48-H48 -> -28888440.95 | J48: -0.66430187 | K48: =SUM(K35:K47) -> 260917811
A49: Surplus/(Deficit) | C49: =C33-C48 -> -1035514.18 | D49: 13831993 | E49: 13858993 | F49: 0 | G49: 63157288.32 | H49: 2309180 | I49: 60848108.32 | J49: 26.3505263 | K49: =K33-K48 -> 13858993
A50: Transfers and subsidies - capital (monetary allocations) | C50: 40346674.32 | D50: 58548350 | E50: 58548350 | F50: 0 | G50: 0 | H50: 9758056 | I50: =G50-H50 -> -9758056 | J50: -1 | K50: 58548350
A51: Transfers and subsidies - capital (in-kind) | C51: 0 | D51: 0 | E51: 0 | F51: 0 | G51: 0 | H51: 0 | I51: =G51-H51 -> 0 | K51: 0
A52: Surplus/(Deficit) after capital transfers & contributions | C52: =C49+SUM(C50:C51) -> 39311160.14 | D52: 72380343 | E52: 72407343 | F52: 0 | G52: 63157288.32 | H52: 12067236 | K52: =K49+SUM(K50:K51) -> 72407343
A53: Income Tax | J53: =IF(I53=0,"",I53/H53) -> 
A54: Surplus/(Deficit) after income tax | C54: =C52-C53 -> 39311160.14 | D54: 72380343 | E54: 72407343 | F54: 0 | G54: 63157288.32 | H54: 12067236 | K54: =K52-K53 -> 72407343
A55: Share of Surplus/Deficit attributable to Joint Venture
A56: Share of Surplus/Deficit attributable to Minorities
A57: Surplus/(Deficit) attributable to municipality | C57: =SUM(C54:C55) -> 39311160.14 | D57: 72380343 | E57: 72407343 | F57: 0 | G57: 63157288.32 | H57: 12067236 | K57: =SUM(K54:K55) -> 72407343
A58: Share of Surplus/Deficit attributable to Associate
A59: Intercompany/Parent subsidiary transactions
A60: Surplus/ (Deficit) for the year | C60: =C57+C59 -> 39311160.14 | D60: 72380343 | E60: 72407343 | F60: 0 | G60: 63157288.32 | H60: 12067236 | K60: =K57+K59 -> 72407343
A61: =head27a -> References
A62: 1. Material variances to be explained on Table SC1
A65: =A33&" including capital transfers/contributions etc" -> Total Revenue (excluding capital transfers and contributions) including capital transfers/contributions etc | C65: =C33+SUM(C50:C51) -> 277212848.4 | D65: 333325154 | E65: 333325154 | F65: 0 | G65: 77755765.37 | H65: 55554154 | K65: =K33+SUM(K50:K51) -> 333325154

Sheet C5-Capex
A1: =muni& " - "&S71D& " - "&date -> LIM353 Molemole - Table C5 Monthly Budget Statement - Capital Expenditure (municipal vote, functional classification and funding) - M02 August
A2: =Vdesc -> Vote Description | B2: =head27 -> Ref | C2: =Head1 -> 2022/23 | D2: =Head2 -> Budget Year 2023/24
C3: =Head5 -> Audited Outcome | D3: =Head6 -> Original Budget | E3: =Head7 -> Adjusted Budget | F3: =Head38 -> Monthly actual | G3: =Head39 -> YearTD actual | H3: =Head40 -> YearTD budget | I3: =Head41 -> YTD variance | J3: =Head41 -> YTD variance | K3: =Head8 -> Full Year Forecast
A4: R thousands | B4: 1 | J4: %
A5: Multi-Year expenditure appropriation | B5: 2
A6: ='Org structure'!A2 -> Vote 01 - Corporate Services | C6: ='C5C'!C7 -> 1975205.13 | D6: ='C5C'!D7 -> 4032000 | E6: ='C5C'!E7 -> 4032000 | F6: ='C5C'!F7 -> 0 | G6: ='C5C'!G7 -> 0 | H6: ='C5C'!H7 -> 672006 | I6: =G6-H6 -> -672006 | J6: =IF(I6=0,"",I6/H6) -> -1 | K6: ='C5C'!K7 -> 4032000
A7: ='Org structure'!A3 -> Vote 02 - Municipal Manager | C7: ='C5C'!C16 -> 0 | D7: ='C5C'!D16 -> 100000 | E7: ='C5C'!E16 -> 100000 | F7: ='C5C'!F16 -> 0 | G7: ='C5C'!G16 -> 0 | H7: ='C5C'!H16 -> 16668 | I7: -16668 | J7: -1 | K7: ='C5C'!K16 -> 100000
A8: ='Org structure'!A4 -> Vote 03 - Mayors Office | C8: ='C5C'!C22 -> 0 | D8: ='C5C'!D22 -> 0 | E8: ='C5C'!E22 -> 0 | F8: ='C5C'!F22 -> 0 | G8: ='C5C'!G22 -> 0 | H8: ='C5C'!H22 -> 0 | I8: 0 | K8: ='C5C'!K22 -> 0
A9: ='Org structure'!A5 -> Vote 04 - Budget And Treasury | C9: ='C5C'!C28 -> 0 | D9: ='C5C'!D28 -> 2100000 | E9: ='C5C'!E28 -> 2100000 | F9: ='C5C'!F28 -> 0 | G9: ='C5C'!G28 -> 0 | H9: ='C5C'!H28 -> 350000 | I9: -350000 | J9: -1 | K9: ='C5C'!K28 -> 2100000
A10: ='Org structure'!A6 -> Vote 05 - Community Services | C10: ='C5C'!C36 -> 2170000 | D10: ='C5C'!D36 -> 400000 | E10: ='C5C'!E36 -> 400000 | F10: ='C5C'!F36 -> 0 | G10: ='C5C'!G36 -> 0 | H10: ='C5C'!H36 -> 66668 | I10: -66668 | J10: -1 | K10: ='C5C'!K36 -> 400000
A11: ='Org structure'!A7 -> Vote 06 - Technical Services | C11: ='C5C'!C44 -> 46815706.93 | D11: ='C5C'!D44 -> 65748350 | E11: ='C5C'!E44 -> 65748350 | F11: ='C5C'!F44 -> 0 | G11: ='C5C'!G44 -> 1759374.9 | H11: ='C5C'!H44 -> 10958070 | I11: -9198695.1 | J11: -0.8394448201 | K11: ='C5C'!K44 -> 65748350
A12: ='Org structure'!A8 -> Vote 07 - | C12: ='C5C'!C53 -> 0 | D12: ='C5C'!D53 -> 0 | E12: ='C5C'!E53 -> 0 | F12: ='C5C'!F53 -> 0 | G12: ='C5C'!G53 -> 0 | H12: ='C5C'!H53 -> 0 | I12: =G12-H12 -> 0 | J12: =IF(I12=0,"",I12/H12) ->  | K12: ='C5C'!K53 -> 0
A13: ='Org structure'!A9 -> Vote 08 - | C13: ='C5C'!C54 -> 0 | D13: ='C5C'!D54 -> 0 | E13: ='C5C'!E54 -> 0 | F13: ='C5C'!F54 -> 0 | G13: ='C5C'!G54 -> 0 | H13: ='C5C'!H54 -> 0 | I13: 0 | K13: ='C5C'!K54 -> 0
A14: ='Org structure'!A10 -> Vote 09 - | C14: ='C5C'!C55 -> 0 | D14: ='C5C'!D55 -> 0 | E14: ='C5C'!E55 -> 0 | F14: ='C5C'!F55 -> 0 | G14: ='C5C'!G55 -> 0 | H14: ='C5C'!H55 -> 0 | I14: 0 | K14: ='C5C'!K55 -> 0
A15: ='Org structure'!A11 -> Vote 10 - | C15: ='C5C'!C56 -> 0 | D15: ='C5C'!D56 -> 0 | E15: ='C5C'!E56 -> 0 | F15: ='C5C'!F56 -> 0 | G15: ='C5C'!G56 -> 0 | H15: ='C5C'!H56 -> 0 | I15: 0 | K15: ='C5C'!K56 -> 0
A16: ='Org structure'!A12 -> Vote 11 - | C16: ='C5C'!C57 -> 0 | D16: ='C5C'!D57 -> 0 | E16: ='C5C'!E57 -> 0 | F16: ='C5C'!F57 -> 0 | G16: ='C5C'!G57 -> 0 | H16: ='C5C'!H57 -> 0 | I16: 0 | K16: ='C5C'!K57 -> 0
A17: ='Org structure'!A13 -> Vote 12 - | C17: ='C5C'!C58 -> 0 | D17: ='C5C'!D58 -> 0 | E17: ='C5C'!E58 -> 0 | F17: ='C5C'!F58 -> 0 | G17: ='C5C'!G58 -> 0 | H17: ='C5C'!H58 -> 0 | I17: 0 | K17: ='C5C'!K58 -> 0
A18: ='Org structure'!A14 -> Vote 13 - | C18: ='C5C'!C59 -> 0 | D18: ='C5C'!D59 -> 0 | E18: ='C5C'!E59 -> 0 | F18: ='C5C'!F59 -> 0 | G18: ='C5C'!G59 -> 0 | H18: ='C5C'!H59 -> 0 | I18: =G18-H18 -> 0 | J18: =IF(I18=0,"",I18/H18) ->  | K18: ='C5C'!K59 -> 0
A19: ='Org structure'!A15 -> Vote 14 - | C19: ='C5C'!C60 -> 0 | D19: ='C5C'!D60 -> 0 | E19: ='C5C'!E60 -> 0 | F19: ='C5C'!F60 -> 0 | G19: ='C5C'!G60 -> 0 | H19: ='C5C'!H60 -> 0 | I19: =G19-H19 -> 0 | J19: =IF(I19=0,"",I19/H19) ->  | K19: ='C5C'!K60 -> 0
A20: ='Org structure'!A16 -> Vote 15 - Other | C20: ='C5C'!C61 -> 0 | D20: ='C5C'!D61 -> 0 | E20: ='C5C'!E61 -> 0 | F20: ='C5C'!F61 -> 0 | G20: ='C5C'!G61 -> 0 | H20: ='C5C'!H61 -> 0 | I20: =G20-H20 -> 0 | J20: =IF(I20=0,"",I20/H20) ->  | K20: ='C5C'!K61 -> 0
A21: Total Capital Multi-year expenditure | B21: 4,7 | C21: =SUM(C6:C20) -> 50960912.06 | D21: =SUM(D6:D20) -> 72380350 | E21: 72380350 | F21: 0 | G21: 1759374.9 | H21: 12063412 | I21: -10304037.1 | J21: =IF(I21=0,"",I21/H21) -> -0.8541561127 | K21: =SUM(K6:K20) -> 72380350
A23: Single Year expenditure appropriation | B23: 2
A24: ='C5C'!A66 -> Vote 01 - Corporate Services | C24: ='C5C'!C66 -> 0 | D24: ='C5C'!D66 -> 0 | E24: ='C5C'!E66 -> 0 | F24: ='C5C'!F66 -> 0 | G24: ='C5C'!G66 -> 0 | H24: ='C5C'!H66 -> 0 | I24: =G24-H24 -> 0 | J24: =IF(I24=0,"",I24/H24) ->  | K24: ='C5C'!K66 -> 0
A25: ='C5C'!A75 -> Vote 02 - Municipal Manager | C25: ='C5C'!C75 -> 0 | D25: ='C5C'!D75 -> 0 | E25: ='C5C'!E75 -> 0 | F25: ='C5C'!F75 -> 0 | G25: ='C5C'!G75 -> 0 | H25: ='C5C'!H75 -> 0 | I25: 0 | K25: ='C5C'!K75 -> 0
A26: ='C5C'!A81 -> Vote 03 - Mayors Office | C26: ='C5C'!C81 -> 0 | D26: ='C5C'!D81 -> 0 | E26: ='C5C'!E81 -> 0 | F26: ='C5C'!F81 -> 0 | G26: ='C5C'!G81 -> 0 | H26: ='C5C'!H81 -> 0 | I26: 0 | K26: ='C5C'!K81 -> 0
A27: ='C5C'!A87 -> Vote 04 - Budget And Treasury | C27: ='C5C'!C87 -> 0 | D27: ='C5C'!D87 -> 0 | E27: ='C5C'!E87 -> 0 | F27: ='C5C'!F87 -> 0 | G27: ='C5C'!G87 -> 0 | H27: ='C5C'!H87 -> 0 | I27: 0 | K27: ='C5C'!K87 -> 0
A28: ='C5C'!A95 -> Vote 05 - Community Services | C28: ='C5C'!C95 -> 0 | D28: ='C5C'!D95 -> 0 | E28: ='C5C'!E95 -> 0 | F28: ='C5C'!F95 -> 0 | G28: ='C5C'!G95 -> 0 | H28: ='C5C'!H95 -> 0 | I28: 0 | K28: ='C5C'!K95 -> 0
A29: ='C5C'!A103 -> Vote 06 - Technical Services | C29: ='C5C'!C103 -> 0 | D29: ='C5C'!D103 -> 0 | E29: ='C5C'!E103 -> 0 | F29: ='C5C'!F103 -> 0 | G29: ='C5C'!G103 -> 0 | H29: ='C5C'!H103 -> 0 | I29: 0 | K29: ='C5C'!K103 -> 0
A30: ='Org structure'!A8 -> Vote 07 - | C30: ='C5C'!C112 -> 0 | D30: ='C5C'!D112 -> 0 | E30: ='C5C'!E112 -> 0 | F30: ='C5C'!F112 -> 0 | G30: ='C5C'!G112 -> 0 | H30: ='C5C'!H112 -> 0 | I30: ='C5C'!I112 -> 0 | J30: =IF(I30=0,"",I30/H30) ->  | K30: ='C5C'!K112 -> 0
A31: ='Org structure'!A9 -> Vote 08 - | C31: ='C5C'!C113 -> 0 | D31: ='C5C'!D113 -> 0 | E31: ='C5C'!E113 -> 0 | F31: ='C5C'!F113 -> 0 | G31: ='C5C'!G113 -> 0 | H31: ='C5C'!H113 -> 0 | I31: ='C5C'!I113 -> 0 | K31: ='C5C'!K113 -> 0
A32: ='Org structure'!A10 -> Vote 09 - | C32: ='C5C'!C114 -> 0 | D32: ='C5C'!D114 -> 0 | E32: ='C5C'!E114 -> 0 | F32: ='C5C'!F114 -> 0 | G32: ='C5C'!G114 -> 0 | H32: ='C5C'!H114 -> 0 | I32: ='C5C'!I114 -> 0 | K32: ='C5C'!K114 -> 0
A33: ='Org structure'!A11 -> Vote 10 - | C33: ='C5C'!C115 -> 0 | D33: ='C5C'!D115 -> 0 | E33: ='C5C'!E115 -> 0 | F33: ='C5C'!F115 -> 0 | G33: ='C5C'!G115 -> 0 | H33: ='C5C'!H115 -> 0 | I33: ='C5C'!I115 -> 0 | K33: ='C5C'!K115 -> 0
A34: ='Org structure'!A12 -> Vote 11 - | C34: ='C5C'!C116 -> 0 | D34: ='C5C'!D116 -> 0 | E34: ='C5C'!E116 -> 0 | F34: ='C5C'!F116 -> 0 | G34: ='C5C'!G116 -> 0 | H34: ='C5C'!H116 -> 0 | I34: ='C5C'!I116 -> 0 | K34: ='C5C'!K116 -> 0
A35: ='Org structure'!A13 -> Vote 12 - | C35: ='C5C'!C117 -> 0 | D35: ='C5C'!D117 -> 0 | E35: ='C5C'!E117 -> 0 | F35: ='C5C'!F117 -> 0 | G35: ='C5C'!G117 -> 0 | H35: ='C5C'!H117 -> 0 | I35: ='C5C'!I117 -> 0 | K35: ='C5C'!K117 -> 0
A36: ='Org structure'!A14 -> Vote 13 - | C36: ='C5C'!C118 -> 0 | D36: ='C5C'!D118 -> 0 | E36: ='C5C'!E118 -> 0 | F36: ='C5C'!F118 -> 0 | G36: ='C5C'!G118 -> 0 | H36: ='C5C'!H118 -> 0 | I36: ='C5C'!I118 -> 0 | K36: ='C5C'!K118 -> 0
A37: ='Org structure'!A15 -> Vote 14 - | C37: ='C5C'!C119 -> 0 | D37: ='C5C'!D119 -> 0 | E37: ='C5C'!E119 -> 0 | F37: ='C5C'!F119 -> 0 | G37: ='C5C'!G119 -> 0 | H37: ='C5C'!H119 -> 0 | I37: ='C5C'!I119 -> 0 | K37: ='C5C'!K119 -> 0
A38: ='Org structure'!A16 -> Vote 15 - Other | C38: ='C5C'!C120 -> 0 | D38: ='C5C'!D120 -> 0 | E38: ='C5C'!E120 -> 0 | F38: ='C5C'!F120 -> 0 | G38: ='C5C'!G120 -> 0 | H38: ='C5C'!H120 -> 0 | I38: ='C5C'!I120 -> 0 | K38: ='C5C'!K120 -> 0
A39: Total Capital single-year expenditure | B39: 4 | C39: =SUM(C24:C38) -> 0 | D39: 0 | E39: 0 | F39: 0 | G39: 0 | H39: 0 | I39: 0 | K39: =SUM(K24:K38) -> 0
A40: Total Capital Expenditure | C40: =C39+C21 -> 50960912.06 | D40: 72380350 | E40: 72380350 | F40: 0 | G40: 1759374.9 | H40: 12063412 | I40: -10304037.1 | J40: =IF(I40=0,"",I40/H40) -> -0.8541561127 | K40: =K39+K21 -> 72380350
A42: Capital Expenditure - Functional Classification
A43: Governance and administration | C43: =SUM(C44:C46) -> 1975205.13 | D43: 6232000 | E43: 6232000 | F43: 0 | G43: 0 | H43: 1038674 | I43: =G43-H43 -> -1038674 | J43: =IF(I43=0,"",I43/H43) -> -1 | K43: =SUM(K44:K46) -> 6232000
A44: Executive and council | C44: 0 | D44: 0 | E44: 0 | F44: 0 | G44: 0 | H44: 0 | I44: 0 | J44: =IF(I44=0,"",I44/H44) ->  | K44: 0
A45: Finance and administration | C45: 1975205.13 | D45: 6232000 | E45: 6232000 | F45: 0 | G45: 0 | H45: 1038674 | I45: -1038674 | J45: -1 | K45: 6232000
A46: Internal audit | C46: 0 | D46: 0 | E46: 0 | F46: 0 | G46: 0 | H46: 0 | I46: 0 | K46: 0
A47: Community and public safety | C47: =SUM(C48:C52) -> 2170000 | D47: 400000 | E47: 400000 | F47: 0 | G47: 0 | H47: 66668 | I47: -66668 | J47: -1 | K47: =SUM(K48:K52) -> 400000
A48: Community and social services | C48: 0 | D48: 400000 | E48: 400000 | F48: 0 | G48: 0 | H48: 66668 | I48: -66668 | J48: -1 | K48: 400000
A49: Sport and recreation | C49: 2170000 | D49: 0 | E49: 0 | F49: 0 | G49: 0 | H49: 0 | I49: 0 | K49: 0
A50: Public safety | C50: 0 | D50: 0 | E50: 0 | F50: 0 | G50: 0 | H50: 0 | I50: 0 | K50: 0
A51: Housing | I51: 0
A52: Health | I52: 0
A53: Economic and environmental services | C53: =SUM(C54:C56) -> 39378420.6 | D53: 44080350 | E53: 44080350 | F53: 0 | G53: 1759374.9 | H53: 7346730 | I53: -5587355.1 | J53: -0.7605227224 | K53: =SUM(K54:K56) -> 44080350
A54: Planning and development | C54: 0 | D54: 0 | E54: 0 | F54: 0 | G54: 0 | H54: 0 | I54: 0 | K54: 0
A55: Road transport | C55: 39378420.6 | D55: 44080350 | E55: 44080350 | F55: 0 | G55: 1759374.9 | H55: 7346730 | I55: -5587355.1 | J55: -0.7605227224 | K55: 44080350
A56: Environmental protection | I56: 0
A57: Trading services | C57: =SUM(C58:C61) -> 7437286.33 | D57: 21668000 | E57: 21668000 | F57: 0 | G57: 0 | H57: 3611340 | I57: -3611340 | J57: -1 | K57: =SUM(K58:K61) -> 21668000
A58: Energy sources | C58: 7437286.33 | D58: 19368000 | E58: 19368000 | F58: 0 | G58: 0 | H58: 3228006 | I58: -3228006 | J58: -1 | K58: 19368000
A59: Water management | I59: 0
A60: Waste water management | C60: 0 | D60: 2300000 | E60: 2300000 | F60: 0 | G60: 0 | H60: 383334 | I60: -383334 | J60: -1 | K60: 2300000
A61: Waste management | I61: 0
A62: Other | I62: 0
A63: Total Capital Expenditure - Functional Classification | B63: 3 | C63: =C43+C47+C53+C57+C62 -> 50960912.06 | D63: =D43+D47+D53+D57+D62 -> 72380350 | E63: 72380350 | F63: 0 | G63: 1759374.9 | H63: 12063412 | I63: -10304037.1 | J63: -0.8541561127 | K63: =K43+K47+K53+K57+K62 -> 72380350
A65: Funded by:
A66: National Government | C66: 35522401.38 | D66: 58548350 | E66: 58548350 | F66: 0 | G66: 1374878.83 | H66: 9758068 | I66: =G66-H66 -> -8383189.17 | J66: =IF(I66=0,"",I66/H66) -> -0.8591033768 | K66: 58548350
A67: Provincial Government | C67: 0 | D67: 0 | E67: 0 | F67: 0 | G67: 0 | H67: 0 | I67: 0 | K67: 0
A68: District Municipality | C68: 0 | D68: 0 | E68: 0 | F68: 0 | G68: 0 | H68: 0 | I68: 0 | K68: 0
A69: Transfers and subsidies - capital (monetary allocations) (Nat / Prov Departm Agencies, Households, Non-profit Institutions, Private Enterprises, Public Corporatons, Higher Educ Institutions) | C69: 0 | D69: 0 | E69: 0 | F69: 0 | G69: 0 | H69: 0 | I69: 0 | K69: 0
A70: Transfers recognised - capital | C70: =SUM(C66:C69) -> 35522401.38 | D70: 58548350 | E70: 58548350 | F70: 0 | G70: 1374878.83 | H70: 9758068 | I70: -8383189.17 | J70: -0.8591033768 | K70: =SUM(K66:K69) -> 58548350
A72: Borrowing | B72: 6 | I72: 0
A73: Internally generated funds | C73: 15438510.68 | D73: 13832000 | E73: 13832000 | F73: 0 | G73: 384496.07 | H73: 2305344 | I73: -1920847.93 | J73: -0.8332153162 | K73: 13832000
A74: Total Capital Funding | C74: =+C70+C72+C73 -> 50960912.06 | D74: 72380350 | E74: 72380350 | F74: 0 | G74: 1759374.9 | H74: 12063412 | I74: -10304037.1 | J74: -0.8541561127 | K74: =+K70+K72+K73 -> 72380350
A75: =head27a -> References
A76: 1. Municipalities may choose to appropriate for capital expenditure for three years or for one year (if one year appropriation projected expenditure required for yr2 and yr3).
A77: 2. Include capital component of PPP unitary payment
A78: 3. Capital expenditure by functional classification must reconcile to the total of multi-year and single year appropriations
A79: 4. Include expenditure on investment property, intangible and biological assets
A81: 6. Include finance leases and PPP capital funding component of unitary payment - total borrowing/repayments to reconcile to changes in Table SA17
A82: 7. Total Capital Funding must balance with Total Capital Expenditure
A86: check balance | C86: =C40-C74 -> 0 | D86: =D40-D74 -> 0 | E86: 0 | F86: 0 | G86: 0 | H86: 0 | K86: 0

Sheet C5C
A1: =muni& " - "&S71D& " - "&"A"& " - "&date -> LIM353 Molemole - Table C5 Monthly Budget Statement - Capital Expenditure (municipal vote, functional classification and funding) - A - M02 August
A2: =Vdesc -> Vote Description | B2: =head27 -> Ref | C2: =Head1 -> 2022/23 | D2: =Head2 -> Budget Year 2023/24 | L2: =Head4 -> 
A3: R thousand | C3: =Head5 -> Audited Outcome | D3: =Head6 -> Original Budget | E3: =Head7 -> Adjusted Budget | F3: =Head38 -> Monthly actual | G3: =Head39 -> YearTD actual | H3: =Head40 -> YearTD budget | I3: =Head41 -> YTD variance | J3: =Head41 -> YTD variance | K3: =Head8 -> Full Year Forecast | L3: =Head12 -> Forecast 2010/11 | M3: =Head13 -> Forecast 2011/12 | N3: =Head14 -> Forecast 2012/13 | O3: =Head15 -> Forecast 2013/14 | P3: =Head16 -> Forecast 2014/15 | Q3: =Head17 -> Forecast 2015/16 | R3: =Head18 -> Forecast 2016/17 | S3: =Head19 -> Forecast 2017/18 | T3: =Head20 -> Forecast 2018/19 | U3: =Head21 -> Forecast 2019/20 | V3: =Head22 -> Forecast 2020/21 | W3: =Head23 -> Forecast 2021/22
J4: %
A5: Capital expenditure - Municipal Vote
A6: Expenditure of multi-year capital appropriation | B6: 1
A7: ='Org structure'!A2 -> Vote 01 - Corporate Services | C7: =SUM(C8:C15) -> 1975205.13 | D7: 4032000 | E7: 4032000 | F7: 0 | G7: 0 | H7: 672006 | I7: =G7-H7 -> -672006 | J7: =IF(I7=0,"",I7/H7) -> -1 | K7: =SUM(K8:K15) -> 4032000
A8: ='Org structure'!E3 -> 01.1 - Corporate Services Admin | C8: 187200 | D8: 1400000 | E8: 1400000 | F8: 0 | G8: 0 | H8: 233336 | I8: =G8-H8 -> -233336 | J8: =IF(I8=0,"",I8/H8) -> -1 | K8: 1400000
A9: ='Org structure'!E4 -> 01.2 - Human Resources | C9: 0 | D9: 100000 | E9: 100000 | F9: 0 | G9: 0 | H9: 16668 | I9: -16668 | J9: -1 | K9: 100000
A10: ='Org structure'!E5 -> 01.3 - Information Technology Services | C10: 1788005.13 | D10: 2532000 | E10: 2532000 | F10: 0 | G10: 0 | H10: 422002 | I10: -422002 | J10: -1 | K10: 2532000
A11: ='Org structure'!E6 -> 01.4 - Council Support | I11: 0 | K11: 0
A12: ='Org structure'!E7 -> 01.5 - Local Economic Development | I12: 0 | K12: 0
A13: ='Org structure'!E8 -> 01.6 - Municipal Planning Idp | I13: 0 | K13: 0
A14: ='Org structure'!E9 -> 01.7 - Town & Regional Planning | I14: 0 | K14: 0
A15: ='Org structure'!E10 -> 01.8 - Led Administration | I15: 0 | K15: 0
A16: ='Org structure'!A3 -> Vote 02 - Municipal Manager | C16: =SUM(C17:C21) -> 0 | D16: 100000 | E16: 100000 | F16: 0 | G16: 0 | H16: 16668 | I16: -16668 | J16: -1 | K16: =SUM(K17:K21) -> 100000
A17: ='Org structure'!E12 -> 02.1 - Municipal Manager Admin | I17: =G17-H17 -> 0 | J17: =IF(I17=0,"",I17/H17) ->  | K17: 0
A18: ='Org structure'!E13 -> 02.2 - Legal Services | I18: =G18-H18 -> 0 | J18: =IF(I18=0,"",I18/H18) ->  | K18: 0
A19: ='Org structure'!E14 -> 02.3 - Political Office Beares | C19: 0 | D19: 100000 | E19: 100000 | F19: 0 | G19: 0 | H19: 16668 | I19: =G19-H19 -> -16668 | J19: =IF(I19=0,"",I19/H19) -> -1 | K19: 100000
A20: ='Org structure'!E15 -> 02.4 - Pms | C20: 0 | D20: 0 | E20: 0 | F20: 0 | G20: 0 | H20: 0 | I20: =G20-H20 -> 0 | J20: =IF(I20=0,"",I20/H20) ->  | K20: 0
A21: ='Org structure'!E16 -> 02.5 - Internal Audit | C21: 0 | D21: 0 | E21: 0 | F21: 0 | G21: 0 | H21: 0 | I21: =G21-H21 -> 0 | J21: =IF(I21=0,"",I21/H21) ->  | K21: 0
A22: ='Org structure'!A4 -> Vote 03 - Mayors Office | C22: =SUM(C23:C27) -> 0 | D22: 0 | E22: 0 | F22: 0 | G22: 0 | H22: 0 | I22: 0 | K22: =SUM(K23:K27) -> 0
A23: ='Org structure'!E18 -> 03.1 - Mayors Office Admin | I23: =G23-H23 -> 0 | J23: =IF(I23=0,"",I23/H23) ->  | K23: 0
A24: ='Org structure'!E19 -> 03.2 - Office Of The Speaker | I24: =G24-H24 -> 0 | J24: =IF(I24=0,"",I24/H24) ->  | K24: 0
A25: ='Org structure'!E20 -> 03.3 - Office Of The Chief Whip | I25: =G25-H25 -> 0 | J25: =IF(I25=0,"",I25/H25) ->  | K25: 0
A26: ='Org structure'!E21 -> 03.4 - Exco Members | I26: =G26-H26 -> 0 | J26: =IF(I26=0,"",I26/H26) ->  | K26: 0
A27: ='Org structure'!E22 -> 03.5 - Council General Administration | I27: =G27-H27 -> 0 | J27: =IF(I27=0,"",I27/H27) ->  | K27: 0
A28: ='Org structure'!A5 -> Vote 04 - Budget And Treasury | C28: =SUM(C29:C35) -> 0 | D28: 2100000 | E28: 2100000 | F28: 0 | G28: 0 | H28: 350000 | I28: -350000 | J28: -1 | K28: =SUM(K29:K35) -> 2100000
A29: ='Org structure'!E24 -> 04.1 - Budget And Treasury Admin | C29: 0 | D29: 1500000 | E29: 1500000 | F29: 0 | G29: 0 | H29: 250000 | I29: =G29-H29 -> -250000 | J29: =IF(I29=0,"",I29/H29) -> -1 | K29: 1500000
A30: ='Org structure'!E25 -> 04.2 - Chief Financial Officer Admin | I30: 0 | K30: 0
A31: ='Org structure'!E26 -> 04.3 - Budget & Reporting | I31: 0 | K31: 0
A32: ='Org structure'!E27 -> 04.4 - Budget & Reporting | C32: 0 | D32: 0 | E32: 0 | F32: 0 | G32: 0 | H32: 0 | I32: 0 | K32: 0
A33: ='Org structure'!E28 -> 04.5 - Revenue Management | C33: 0 | D33: 600000 | E33: 600000 | F33: 0 | G33: 0 | H33: 100000 | I33: -100000 | J33: -1 | K33: 600000
A34: ='Org structure'!E29 -> 04.6 - Supply Chain Management | C34: 0 | D34: 0 | E34: 0 | F34: 0 | G34: 0 | H34: 0 | I34: 0 | K34: 0
A35: ='Org structure'!E30 -> 04.7 - Expenditure | I35: 0 | K35: 0
A36: ='Org structure'!A6 -> Vote 05 - Community Services | C36: =SUM(C37:C43) -> 2170000 | D36: 400000 | E36: 400000 | F36: 0 | G36: 0 | H36: 66668 | I36: -66668 | J36: -1 | K36: =SUM(K37:K43) -> 400000
A37: ='Org structure'!E32 -> 05.1 - Community Services Admin | C37: 0 | D37: 400000 | E37: 400000 | F37: 0 | G37: 0 | H37: 66668 | I37: =G37-H37 -> -66668 | J37: =IF(I37=0,"",I37/H37) -> -1 | K37: 400000
A38: ='Org structure'!E33 -> 05.2 - Libraries | I38: 0 | K38: 0
A39: ='Org structure'!E34 -> 05.3 - Sports Recreation & Social Amenitie | C39: 2170000 | D39: 0 | E39: 0 | F39: 0 | G39: 0 | H39: 0 | I39: 0 | K39: 0
A40: ='Org structure'!E35 -> 05.4 - Traffic Service | I40: 0 | K40: 0
A41: ='Org structure'!E36 -> 05.5 - Traffic Service | C41: 0 | D41: 0 | E41: 0 | F41: 0 | G41: 0 | H41: 0 | I41: 0 | K41: 0
A42: ='Org structure'!E37 -> 05.6 - Parks; Cemeteries | C42: 0 | D42: 0 | E42: 0 | F42: 0 | G42: 0 | H42: 0 | I42: 0 | K42: 0
A43: ='Org structure'!E38 -> 05.7 - Refuse | I43: 0 | K43: 0
A44: ='Org structure'!A7 -> Vote 06 - Technical Services | C44: =SUM(C45:C52) -> 46815706.93 | D44: 65748350 | E44: 65748350 | F44: 0 | G44: 1759374.9 | H44: 10958070 | I44: -9198695.1 | J44: -0.8394448201 | K44: =SUM(K45:K52) -> 65748350
A45: ='Org structure'!E40 -> 06.1 - Mpac | I45: =G45-H45 -> 0 | J45: =IF(I45=0,"",I45/H45) ->  | K45: 0
A46: ='Org structure'!E41 -> 06.2 - Technical Services Admin | I46: 0 | K46: 0
A47: ='Org structure'!E42 -> 06.3 - Techn Serv-Roads: Admin | C47: 39378420.6 | D47: 44080350 | E47: 44080350 | F47: 0 | G47: 1759374.9 | H47: 7346730 | I47: -5587355.1 | J47: -0.7605227224 | K47: 44080350
A48: ='Org structure'!E43 -> 06.4 - Techn Serv-Stormwater: Admin | C48: 0 | D48: 2300000 | E48: 2300000 | F48: 0 | G48: 0 | H48: 383334 | I48: -383334 | J48: -1 | K48: 2300000
A49: ='Org structure'!E44 -> 06.5 - Project Management Unit | C49: 0 | D49: 0 | E49: 0 | F49: 0 | G49: 0 | H49: 0 | I49: 0 | K49: 0
A50: ='Org structure'!E45 -> 06.6 - Electrical & Machinery | C50: 7437286.33 | D50: 19368000 | E50: 19368000 | F50: 0 | G50: 0 | H50: 3228006 | I50: -3228006 | J50: -1 | K50: 19368000
A51: ='Org structure'!E46 -> 06.7 - Water | I51: 0 | K51: 0
A52: ='Org structure'!E47 -> 06.8 - Sanitation | I52: 0 | K52: 0
A53: ='Org structure'!A8 -> Vote 07 - | C53: 0 | D53: 0 | E53: 0 | F53: 0 | G53: 0 | H53: 0 | I53: =G53-H53 -> 0 | J53: =IF(I53=0,"",I53/H53) ->  | K53: 0
A54: ='Org structure'!A9 -> Vote 08 - | C54: 0 | D54: 0 | E54: 0 | F54: 0 | G54: 0 | H54: 0 | I54: 0 | K54: 0
A55: ='Org structure'!A10 -> Vote 09 - | C55: 0 | D55: 0 | E55: 0 | F55: 0 | G55: 0 | H55: 0 | I55: 0 | K55: 0
A56: ='Org structure'!A11 -> Vote 10 - | C56: 0 | D56: 0 | E56: 0 | F56: 0 | G56: 0 | H56: 0 | I56: 0 | K56: 0
A57: ='Org structure'!A12 -> Vote 11 - | C57: 0 | D57: 0 | E57: 0 | F57: 0 | G57: 0 | H57: 0 | I57: 0 | K57: 0
A58: ='Org structure'!A13 -> Vote 12 - | C58: 0 | D58: 0 | E58: 0 | F58: 0 | G58: 0 | H58: 0 | I58: 0 | K58: 0
A59: ='Org structure'!A14 -> Vote 13 - | C59: 0 | D59: 0 | E59: 0 | F59: 0 | G59: 0 | H59: 0 | I59: =G59-H59 -> 0 | J59: =IF(I59=0,"",I59/H59) ->  | K59: 0
A60: ='Org structure'!A15 -> Vote 14 - | C60: 0 | D60: 0 | E60: 0 | F60: 0 | G60: 0 | H60: 0 | I60: 0 | K60: 0
A61: ='Org structure'!A16 -> Vote 15 - Other | C61: 0 | D61: 0 | E61: 0 | F61: 0 | G61: 0 | H61: 0 | I61: 0 | K61: 0
A62: Total multi-year capital expenditure | C62: =C7+C16+C22+C28+C36+C44+C53+C54+C55+C56+C57+C58+C59+C60+C61 -> 50960912.06 | D62: 72380350 | E62: 72380350 | F62: 0 | G62: 1759374.9 | H62: 12063412 | I62: -10304037.1 | J62: -0.8541561127 | K62: =K7+K16+K22+K28+K36+K44+K53+K54+K55+K56+K57+K58+K59+K60+K61 -> 72380350
I63: 0
A64: Capital expenditure - Municipal Vote
A65: Expenditue of single-year capital appropriation | B65: 1 | I65: 0
A66: ='Org structure'!A2 -> Vote 01 - Corporate Services | C66: =SUM(C67:C74) -> 0 | D66: 0 | E66: 0 | F66: 0 | G66: 0 | H66: 0 | I66: 0 | K66: =SUM(K67:K74) -> 0
A67: ='Org structure'!E3 -> 01.1 - Corporate Services Admin | C67: 0 | D67: 0 | E67: 0 | F67: 0 | G67: 0 | H67: 0 | I67: 0 | K67: 0
A68: ='Org structure'!E4 -> 01.2 - Human Resources | C68: 0 | D68: 0 | E68: 0 | F68: 0 | G68: 0 | H68: 0 | I68: 0 | K68: 0
A69: ='Org structure'!E5 -> 01.3 - Information Technology Services | C69: 0 | D69: 0 | E69: 0 | F69: 0 | G69: 0 | H69: 0 | I69: 0 | K69: 0
A70: ='Org structure'!E6 -> 01.4 - Council Support | C70: 0 | D70: 0 | E70: 0 | F70: 0 | G70: 0 | H70: 0 | I70: 0 | K70: 0
A71: ='Org structure'!E7 -> 01.5 - Local Economic Development | C71: 0 | D71: 0 | E71: 0 | F71: 0 | G71: 0 | H71: 0 | I71: 0 | K71: 0
A72: ='Org structure'!E8 -> 01.6 - Municipal Planning Idp | C72: 0 | D72: 0 | E72: 0 | F72: 0 | G72: 0 | H72: 0 | I72: 0 | K72: 0
A73: ='Org structure'!E9 -> 01.7 - Town & Regional Planning | C73: 0 | D73: 0 | E73: 0 | F73: 0 | G73: 0 | H73: 0 | I73: 0 | K73: 0
A74: ='Org structure'!E10 -> 01.8 - Led Administration | C74: 0 | D74: 0 | E74: 0 | F74: 0 | G74: 0 | H74: 0 | I74: 0 | K74: 0
A75: ='Org structure'!A3 -> Vote 02 - Municipal Manager | C75: =SUM(C76:C80) -> 0 | D75: 0 | E75: 0 | F75: 0 | G75: 0 | H75: 0 | I75: 0 | K75: =SUM(K76:K80) -> 0
A76: ='Org structure'!E12 -> 02.1 - Municipal Manager Admin | C76: 0 | D76: 0 | E76: 0 | F76: 0 | G76: 0 | H76: 0 | I76: 0 | K76: 0
A77: ='Org structure'!E13 -> 02.2 - Legal Services | C77: 0 | D77: 0 | E77: 0 | F77: 0 | G77: 0 | H77: 0 | I77: 0 | K77: 0
A78: ='Org structure'!E14 -> 02.3 - Political Office Beares | C78: 0 | D78: 0 | E78: 0 | F78: 0 | G78: 0 | H78: 0 | I78: 0 | K78: 0
A79: ='Org structure'!E15 -> 02.4 - Pms | C79: 0 | D79: 0 | E79: 0 | F79: 0 | G79: 0 | H79: 0 | I79: 0 | K79: 0
A80: ='Org structure'!E16 -> 02.5 - Internal Audit | C80: 0 | D80: 0 | E80: 0 | F80: 0 | G80: 0 | H80: 0 | I80: 0 | K80: 0
A81: ='Org structure'!A4 -> Vote 03 - Mayors Office | C81: =SUM(C82:C86) -> 0 | D81: 0 | E81: 0 | F81: 0 | G81: 0 | H81: 0 | I81: 0 | K81: =SUM(K82:K86) -> 0
A82: ='Org structure'!E18 -> 03.1 - Mayors Office Admin | C82: 0 | D82: 0 | E82: 0 | F82: 0 | G82: 0 | H82: 0 | I82: 0 | K82: 0
A83: ='Org structure'!E19 -> 03.2 - Office Of The Speaker | C83: 0 | D83: 0 | E83: 0 | F83: 0 | G83: 0 | H83: 0 | I83: =G83-H83 -> 0 | J83: =IF(I83=0,"",I83/H83) ->  | K83: 0
A84: ='Org structure'!E20 -> 03.3 - Office Of The Chief Whip | C84: 0 | D84: 0 | E84: 0 | F84: 0 | G84: 0 | H84: 0 | I84: 0 | K84: 0
A85: ='Org structure'!E21 -> 03.4 - Exco Members | C85: 0 | D85: 0 | E85: 0 | F85: 0 | G85: 0 | H85: 0 | I85: 0 | K85: 0
A86: ='Org structure'!E22 -> 03.5 - Council General Administration | C86: 0 | D86: 0 | E86: 0 | F86: 0 | G86: 0 | H86: 0 | I86: 0 | K86: 0
A87: ='Org structure'!A5 -> Vote 04 - Budget And Treasury | C87: =SUM(C88:C94) -> 0 | D87: 0 | E87: 0 | F87: 0 | G87: 0 | H87: 0 | I87: 0 | K87: =SUM(K88:K94) -> 0
A88: ='Org structure'!E24 -> 04.1 - Budget And Treasury Admin | C88: 0 | D88: 0 | E88: 0 | F88: 0 | G88: 0 | H88: 0 | I88: 0 | K88: 0
A89: ='Org structure'!E25 -> 04.2 - Chief Financial Officer Admin | C89: 0 | D89: 0 | E89: 0 | F89: 0 | G89: 0 | H89: 0 | I89: 0 | K89: 0
A90: ='Org structure'!E26 -> 04.3 - Budget & Reporting | C90: 0 | D90: 0 | E90: 0 | F90: 0 | G90: 0 | H90: 0 | I90: 0 | K90: 0
A91: ='Org structure'!E27 -> 04.4 - Budget & Reporting | C91: 0 | D91: 0 | E91: 0 | F91: 0 | G91: 0 | H91: 0 | I91: 0 | K91: 0
A92: ='Org structure'!E28 -> 04.5 - Revenue Management | C92: 0 | D92: 0 | E92: 0 | F92: 0 | G92: 0 | H92: 0 | I92: 0 | K92: 0
A93: ='Org structure'!E29 -> 04.6 - Supply Chain Management | C93: 0 | D93: 0 | E93: 0 | F93: 0 | G93: 0 | H93: 0 | I93: 0 | K93: 0
A94: ='Org structure'!E30 -> 04.7 - Expenditure | C94: 0 | D94: 0 | E94: 0 | F94: 0 | G94: 0 | H94: 0 | I94: 0 | K94: 0
A95: ='Org structure'!A6 -> Vote 05 - Community Services | C95: =SUM(C96:C102) -> 0 | D95: 0 | E95: 0 | F95: 0 | G95: 0 | H95: 0 | I95: 0 | K95: =SUM(K96:K102) -> 0
A96: ='Org structure'!E32 -> 05.1 - Community Services Admin | C96: 0 | D96: 0 | E96: 0 | F96: 0 | G96: 0 | H96: 0 | I96: 0 | K96: 0
A97: ='Org structure'!E33 -> 05.2 - Libraries | C97: 0 | D97: 0 | E97: 0 | F97: 0 | G97: 0 | H97: 0 | I97: 0 | K97: 0
A98: ='Org structure'!E34 -> 05.3 - Sports Recreation & Social Amenitie | C98: 0 | D98: 0 | E98: 0 | F98: 0 | G98: 0 | H98: 0 | I98: 0 | K98: 0
A99: ='Org structure'!E35 -> 05.4 - Traffic Service | C99: 0 | D99: 0 | E99: 0 | F99: 0 | G99: 0 | H99: 0 | I99: 0 | K99: 0
A100: ='Org structure'!E36 -> 05.5 - Traffic Service | C100: 0 | D100: 0 | E100: 0 | F100: 0 | G100: 0 | H100: 0 | I100: 0 | K100: 0
A101: ='Org structure'!E37 -> 05.6 - Parks; Cemeteries | C101: 0 | D101: 0 | E101: 0 | F101: 0 | G101: 0 | H101: 0 | I101: 0 | K101: 0
A102: ='Org structure'!E38 -> 05.7 - Refuse | C102: 0 | D102: 0 | E102: 0 | F102: 0 | G102: 0 | H102: 0 | I102: 0 | K102: 0
A103: ='Org structure'!A7 -> Vote 06 - Technical Services | C103: =SUM(C104:C111) -> 0 | D103: 0 | E103: 0 | F103: 0 | G103: 0 | H103: 0 | I103: 0 | K103: =SUM(K104:K111) -> 0
A104: ='Org structure'!E40 -> 06.1 - Mpac | C104: 0 | D104: 0 | E104: 0 | F104: 0 | G104: 0 | H104: 0 | I104: 0 | K104: 0
A105: ='Org structure'!E41 -> 06.2 - Technical Services Admin | C105: 0 | D105: 0 | E105: 0 | F105: 0 | G105: 0 | H105: 0 | I105: 0 | K105: 0
A106: ='Org structure'!E42 -> 06.3 - Techn Serv-Roads: Admin | C106: 0 | D106: 0 | E106: 0 | F106: 0 | G106: 0 | H106: 0 | I106: 0 | K106: 0
A107: ='Org structure'!E43 -> 06.4 - Techn Serv-Stormwater: Admin | C107: 0 | D107: 0 | E107: 0 | F107: 0 | G107: 0 | H107: 0 | I107: 0 | K107: 0
A108: ='Org structure'!E44 -> 06.5 - Project Management Unit | C108: 0 | D108: 0 | E108: 0 | F108: 0 | G108: 0 | H108: 0 | I108: 0 | K108: 0
A109: ='Org structure'!E45 -> 06.6 - Electrical & Machinery | C109: 0 | D109: 0 | E109: 0 | F109: 0 | G109: 0 | H109: 0 | I109: 0 | K109: 0
A110: ='Org structure'!E46 -> 06.7 - Water | C110: 0 | D110: 0 | E110: 0 | F110: 0 | G110: 0 | H110: 0 | I110: 0 | K110: 0
A111: ='Org structure'!E47 -> 06.8 - Sanitation | C111: 0 | D111: 0 | E111: 0 | F111: 0 | G111: 0 | H111: 0 | I111: 0 | K111: 0
A112: ='Org structure'!A8 -> Vote 07 - | C112: 0 | D112: 0 | E112: 0 | F112: 0 | G112: 0 | H112: 0 | I112: 0 | K112: 0
A113: ='Org structure'!A9 -> Vote 08 - | C113: 0 | D113: 0 | E113: 0 | F113: 0 | G113: 0 | H113: 0 | I113: 0 | K113: 0
A114: ='Org structure'!A10 -> Vote 09 - | C114: 0 | D114: 0 | E114: 0 | F114: 0 | G114: 0 | H114: 0 | I114: =G114-H114 -> 0 | J114: =IF(I114=0,"",I114/H114) ->  | K114: 0
A115: ='Org structure'!A11 -> Vote 10 - | C115: 0 | D115: 0 | E115: 0 | F115: 0 | G115: 0 | H115: 0 | I115: 0 | K115: 0
A116: ='Org structure'!A12 -> Vote 11 - | C116: 0 | D116: 0 | E116: 0 | F116: 0 | G116: 0 | H116: 0 | I116: 0 | K116: 0
A117: ='Org structure'!A13 -> Vote 12 - | C117: 0 | D117: 0 | E117: 0 | F117: 0 | G117: 0 | H117: 0 | I117: 0 | K117: 0
A118: ='Org structure'!A14 -> Vote 13 - | C118: 0 | D118: 0 | E118: 0 | F118: 0 | G118: 0 | H118: 0 | I118: 0 | K118: 0
A119: ='Org structure'!A15 -> Vote 14 - | C119: 0 | D119: 0 | E119: 0 | F119: 0 | G119: 0 | H119: 0 | I119: 0 | K119: 0
A120: ='Org structure'!A16 -> Vote 15 - Other | C120: 0 | D120: 0 | E120: 0 | F120: 0 | G120: 0 | H120: 0 | I120: =G120-H120 -> 0 | J120: =IF(I120=0,"",I120/H120) ->  | K120: 0
A121: Total single-year capital expenditure | C121: =C66+C75+C81+C87+C95+C103+C112+C113+C114+C115+C116+C117+C118+C119+C120 -> 0 | D121: 0 | E121: 0 | F121: 0 | G121: 0 | H121: 0 | I121: 0 | K121: =K66+K75+K81+K87+K95+K103+K112+K113+K114+K115+K116+K117+K118+K119+K120 -> 0
A122: Total Capital Expenditure | C122: =C62+C121 -> 50960912.06 | D122: 72380350 | E122: 72380350 | F122: 0 | G122: 1759374.9 | H122: 12063412 | I122: -10304037.1 | J122: -0.8541561127 | K122: =K62+K121 -> 72380350
A123: =head27a -> References
A124: 1. Insert 'Vote'; e.g. Department, if different to standard structure

Sheet C6-FinPos
A1: =muni& " - "&S71E& " - "&date -> LIM353 Molemole - Table C6 Monthly Budget Statement - Financial Position - M02 August
A2: =desc -> Description | B2: =head27 -> Ref | C2: =Head1 -> 2022/23 | D2: =Head2 -> Budget Year 2023/24
C3: =Head5 -> Audited Outcome | D3: =Head6 -> Original Budget | E3: =Head7 -> Adjusted Budget | F3: =Head39 -> YearTD actual | G3: =Head8 -> Full Year Forecast
A4: R thousands | B4: 1
A5: ASSETS
A6: Current assets
A7: Cash and cash equivalents | C7: 111991839.5 | D7: 135175666 | E7: 135175666 | F7: 85573144.82 | G7: 135175666
A8: Trade and other receivables from exchange transactions | C8: 7772904.23 | D8: 12889568 | E8: 12889568 | F8: 404078.84 | G8: 12889568
A9: Receivables from non-exchange transactions | C9: 64940754.04 | D9: 87148749 | E9: 87148749 | F9: 1988471.45 | G9: 87148749
A10: Current portion of non-current receivables | C10: 0 | D10: 0 | E10: 0 | F10: 0 | G10: 0
A11: Inventory | C11: 160494.9 | D11: 546908 | E11: 546908 | F11: 0 | G11: 546908
A12: VAT | C12: -9682847.46 | D12: 9461421 | E12: 9461421 | F12: 701463.27 | G12: 9461421
A13: Other current assets | C13: 849656.59 | D13: 2292392 | E13: 2292392 | F13: 0 | G13: 2292392
A14: Total current assets | C14: =SUM(C7:C13) -> 176032801.8 | D14: =SUM(D7:D13) -> 247514704 | E14: =SUM(E7:E13) -> 247514704 | F14: =SUM(F7:F13) -> 88667158.38 | G14: =SUM(G7:G13) -> 247514704
A15: Non current assets
A16: Investments | C16: 0 | D16: 0 | E16: 0 | F16: 0 | G16: 0
A17: Investment property | C17: 1502667.51 | D17: 1843748 | E17: 1843748 | F17: 0 | G17: 1843748
A18: Property, plant and equipment | C18: 357629815.4 | D18: 399631421 | E18: 399631421 | F18: 1759374.9 | G18: 399631421
A19: Biological assets
A20: Living and non-living resources
A21: Heritage assets | C21: 406995 | D21: 428558 | E21: 428558 | F21: 0 | G21: 428558
A22: Intangible assets | C22: 495666.6 | D22: 2765623 | E22: 2765623 | F22: 0 | G22: 2765623
A23: Trade and other receivables from exchange transactions
A24: Non-current receivables from non-exchange transactions
A25: Other non-current assets
A26: Total non current assets | C26: =SUM(C16:C25) -> 360035144.6 | D26: =SUM(D16:D25) -> 404669350 | E26: =SUM(E16:E25) -> 404669350 | F26: =SUM(F16:F25) -> 1759374.9 | G26: =SUM(G16:G25) -> 404669350
A27: TOTAL ASSETS | C27: =C14+C26 -> 536067946.4 | D27: =D14+D26 -> 652184054 | E27: =E14+E26 -> 652184054 | F27: =F14+F26 -> 90426533.28 | G27: =G14+G26 -> 652184054
A28: LIABILITIES
A29: Current liabilities
A30: Bank overdraft | C30: 0 | D30: 0 | E30: 0 | F30: 0 | G30: 0
A31: Financial liabilities | C31: 0 | D31: 0 | E31: 0 | F31: 0 | G31: 0
A32: Consumer deposits | C32: 509126.48 | D32: 557179 | E32: 557179 | F32: 0 | G32: 557179
A33: Trade and other payables from exchange transactions | C33: 31527440.25 | D33: 46186364 | E33: 46186364 | F33: 8465938.68 | G33: 46186364
A34: Trade and other payables from non-exchange transactions | C34: 4952511.08 | D34: 774232 | E34: 774232 | F34: 18905000 | G34: 774232
A35: Provision | C35: 813975.43 | D35: 509668 | E35: 509668 | F35: 0 | G35: 509668
A36: VAT | C36: -23652888.92 | D36: 2709927 | E36: 2709927 | F36: 57476.65 | G36: 2709927
A37: Other current liabilities | C37: 17302.38 | D37: 912431 | E37: 912431 | F37: 0 | G37: 912431
A38: Total current liabilities | C38: =SUM(C30:C37) -> 14167466.7 | D38: =SUM(D30:D37) -> 51649801 | E38: =SUM(E30:E37) -> 51649801 | F38: =SUM(F30:F37) -> 27428415.33 | G38: =SUM(G30:G37) -> 51649801
A39: Non current liabilities
A40: Financial liabilities | C40: 0 | D40: 0 | E40: 0 | F40: 0 | G40: 0
A41: Provision | C41: 27271261.98 | D41: 29998391 | E41: 29998391 | F41: 0 | G41: 29998391
A42: Long term portion of trade payables | C42: 0 | D42: 0 | E42: 0 | F42: 0 | G42: 0
A43: Other non-current liabilities | C43: 0 | D43: 0 | E43: 0 | F43: 0 | G43: 0
A44: Total non current liabilities | C44: =SUM(C40:C43) -> 27271261.98 | D44: =SUM(D40:D43) -> 29998391 | E44: =SUM(E40:E43) -> 29998391 | F44: =SUM(F40:F43) -> 0 | G44: =SUM(G40:G43) -> 29998391
A45: TOTAL LIABILITIES | C45: =C38+C44 -> 41438728.68 | D45: =D38+D44 -> 81648192 | E45: =E38+E44 -> 81648192 | F45: =F38+F44 -> 27428415.33 | G45: =G38+G44 -> 81648192
A46: NET ASSETS | B46: 2 | C46: =C27-C45 -> 494629217.7 | D46: =D27-D45 -> 570535862 | E46: =E27-E45 -> 570535862 | F46: =F27-F45 -> 62998117.95 | G46: =G27-G45 -> 570535862
A47: COMMUNITY WEALTH/EQUITY
A48: Accumulated surplus/(deficit) | C48: 450459619.6 | D48: 521027366 | E48: 521027366 | F48: 0 | G48: 521027366
A49: Reserves and funds | C49: 46194071.1 | D49: 49508496 | E49: 49508496 | F49: 0 | G49: 49508496
A50: Other | C50: 0 | D50: 0 | E50: 0 | F50: 0 | G50: 0
A51: TOTAL COMMUNITY WEALTH/EQUITY | B51: 2 | C51: =SUM(C48:C50) -> 496653690.7 | D51: =SUM(D48:D50) -> 570535862 | E51: =SUM(E48:E50) -> 570535862 | F51: =SUM(F48:F50) -> 0 | G51: =SUM(G48:G50) -> 570535862
A52: =head27a -> References
A53: 1. Material variances to be explained in Table SC1
A54: 2. Net assets must balance with Total Community Wealth/Equity
A57: check balance | C57: =C46-C51 -> -2024473.03 | D57: =D46-D51 -> 0 | E57: =E46-E51 -> 0 | F57: =F46-F51 -> 62998117.95 | G57: =G46-G51 -> 0

Sheet C7-CFlow
A1: =muni& " - "&S71F& " - "&date -> LIM353 Molemole - Table C7 Monthly Budget Statement - Cash Flow - M02 August
A2: =desc -> Description | B2: =head27 -> Ref | C2: =Head1 -> 2022/23 | D2: =Head2 -> Budget Year 2023/24
C3: =Head5 -> Audited Outcome | D3: =Head6 -> Original Budget | E3: =Head7 -> Adjusted Budget | F3: =Head38 -> Monthly actual | G3: =Head39 -> YearTD actual | H3: =Head40 -> YearTD budget | I3: =Head41 -> YTD variance | J3: =Head41 -> YTD variance | K3: =Head8 -> Full Year Forecast
A4: R thousands | B4: 1 | J4: %
A5: CASH FLOW FROM OPERATING ACTIVITIES
A6: Receipts
A7: Property rates | C7: 22518494.98 | D7: 39153931 | E7: 39153931 | F7: 0 | G7: 0 | H7: 6525655.16 | I7: =G7-H7 -> -6525655.16 | J7: =IF(I7=0,"",I7/H7) -> -1 | K7: 39153931
A8: Service charges | C8: 1873120 | D8: 19547041 | E8: 19547041 | F8: 0 | G8: 0 | H8: 3257840.16 | I8: -3257840.16 | J8: =IF(I8=0,"",I8/H8) -> -1 | K8: 19547041
A9: Other revenue | C9: 357635024.9 | D9: 13008926 | E9: 13008926 | F9: 0 | G9: 0 | H9: 2168154.32 | I9: -2168154.32 | J9: =IF(I9=0,"",I9/H9) -> -1 | K9: 13008926
A10: Transfers and Subsidies - Operational | C10: 125477423.3 | D10: 183700650 | E10: 183700650 | F10: 0 | G10: 0 | H10: 30616775 | I10: -30616775 | J10: =IF(I10=0,"",I10/H10) -> -1 | K10: 183700650
A11: Transfers and Subsidies - Capital | C11: 39792000 | D11: 58548350 | E11: 58548350 | F11: 0 | G11: 0 | H11: 9758058.32 | I11: -9758058.32 | J11: =IF(I11=0,"",I11/H11) -> -1 | K11: 58548350
A12: Interest | C12: 0 | D12: 9600000 | E12: 9600000 | F12: 0 | G12: 0 | H12: 1600000 | I12: -1600000 | J12: -1 | K12: 9600000
A13: Dividends | I13: 0
A14: Payments
A15: Suppliers and employees | C15: -245361136.6 | D15: -234742120 | E15: -234742120 | F15: 0 | G15: 0 | H15: -39123686.66 | I15: =H15-G15 -> -39123686.66 | J15: 1 | K15: -234742120
A16: Interest | I16: =H16-G16 -> 0
A17: Transfers and Subsidies | I17: =H17-G17 -> 0
A18: NET CASH FROM/(USED) OPERATING ACTIVITIES | C18: =SUM(C7:C13)+SUM(C15:C17) -> 301934926.6 | D18: 88816778 | E18: 88816778 | F18: 0 | G18: 0 | H18: 14802796.3 | I18: =H18-G18 -> 14802796.3 | J18: 1 | K18: =SUM(K7:K13)+SUM(K15:K17) -> 88816778
A20: CASH FLOWS FROM INVESTING ACTIVITIES
A21: Receipts
A22: Proceeds on disposal of PPE | I22: =G22-H22 -> 0 | J22: =IF(I22=0,"",I22/H22) -> 
A24: Decrease (increase) in non-current receivables | I24: =G24-H24 -> 0
A25: Decrease (increase) in non-current investments | C25: 0 | D25: 0 | E25: 0 | F25: 0 | G25: 0 | H25: 0 | I25: =G25-H25 -> 0 | K25: 0
A26: Payments
A27: Capital assets | C27: -50614351.06 | D27: -72380350 | E27: -72380350 | F27: 0 | G27: 0 | H27: -12063391.62 | I27: =H27-G27 -> -12063391.62 | J27: 1 | K27: -72380350
A28: NET CASH FROM/(USED) INVESTING ACTIVITIES | C28: =SUM(C22:C25)+C27 -> -50614351.06 | D28: =SUM(D22:D25)+D27 -> -72380350 | E28: -72380350 | F28: 0 | G28: 0 | H28: -12063391.62 | I28: =H28-G28 -> -12063391.62 | J28: 1 | K28: =SUM(K22:K25)+K27 -> -72380350
A30: CASH FLOWS FROM FINANCING ACTIVITIES
A31: Receipts
A32: Short term loans | I32: =G32-H32 -> 0 | J32: =IF(I32=0,"",I32/H32) -> 
A33: Borrowing long term/refinancing | I33: =G33-H33 -> 0
A34: Increase (decrease) in consumer deposits | I34: =G34-H34 -> 0
A35: Payments
A36: Repayment of borrowing | C36: 0 | D36: 0 | E36: 0 | F36: 0 | G36: 0 | H36: 0 | I36: =H36-G36 -> 0 | K36: 0
A37: NET CASH FROM/(USED) FINANCING ACTIVITIES | C37: =SUM(C32:C34)+C36 -> 0 | D37: 0 | E37: 0 | F37: 0 | G37: 0 | H37: 0 | I37: =H37-G37 -> 0 | K37: =SUM(K32:K34)+K36 -> 0
A39: NET INCREASE/ (DECREASE) IN CASH HELD | C39: =C18+C28+C37 -> 251320575.5 | D39: 16436428 | E39: 16436428 | F39: 0 | G39: 0 | H39: 2739404.68 | K39: =K18+K28+K37 -> 16436428
A40: Cash/cash equivalents at beginning: | C40: 105267742.5 | D40: 118872002 | E40: 118872002 | F40: 0 | G40: 0 | H40: =IF(E40=0, D40, E40) -> 118872002 | K40: =G40 -> 0
A41: Cash/cash equivalents at month/year end: | C41: =C39+C40 -> 356588318.1 | D41: =D39+D40 -> 135308430 | E41: =E39+E40 -> 135308430 | G41: =G39+G40 -> 0 | H41: =H39+H40 -> 121611406.7 | K41: =K39+K40 -> 16436428
A42: References
A43: 1. Material variances to be explained in Table SC1

Sheet SC1
A1: =muni& " - "&S71G& " - "&date -> LIM353 Molemole - Supporting Table SC1 Material variance explanations - M02 August
A2: =head27 -> Ref | B2: =desc -> Description
C3: Variance | D3: Reasons for material deviations | E3: Remedial or corrective steps/remarks
B4: R thousands
A5: 1 | B5: ='C4-FinPerf RE'!A5 -> Revenue
B7: SOURCE
B8: Property Rates | C8: 69221.337 | D8: The linking of the vote is done in the following month after the current | E8: The integration of the systems will be done accordingly
B9: Interest (Non-Exchange) | C9: 82310.657 | D9: None | E9: None
B10: Fines, Penalties And Forfeits | C10: 95457.357 | D10: The linking of the vote is done in the following month after the current | E10: The integration of The E-natis and Solar systems
B11: Agency Services | C11: 39396.632 | D11: Loadshedding is the reason for customers buy less electricity | E11: None
B12: Transfers And Subsidies | C12: -142390.036 | D12: None | E12: None
B13: Operational Revenue (Exchange) | C13: 100000 | D13: None | E13: None
B14: Transfers And Subsidies - Capital (Monetary Allocations) (National / Provincial And District) | C14: 100000 | D14: None | E14: None
B15: Service Charges - Electricity Revenue | C15: 69417.042 | D15: Loadshedding is the reason for customers buy less electricity | E15: None
B16: Service Charges - Refuse Revenue | C16: 57419.087 | D16: Backlog of refuse collection due to trucks being on maintenance | E16: take on more work than normal
B17: Rental From Fixed Assets | C17: 91185.074 | D17: Payment to be received in the second quarter | E17: None
B18: Sale Of Goods | C18: 98866.368 | D18: None | E18: None
B19: Interest Earned From Receivables | C19: 74211.789 | D19: None | E19: None
B20: Interst Earned From Assets | C20: 100000 | D20: None | E20: None
B21: Rent On Land | C21: 64383.375 | D21: None | E21: None
B22: Licences And Permits (Exchange) | C22: 98424.844 | D22: The linking of the vote is done in the following month after the current | E22: The integration of The E-natis and Solar systems
B23: VOTE
B24: Corporate Services | C24: 92989.919
B25: Budget And Treasury | C25: -92789.257
B26: Community Services | C26: 89811.758
B27: Technical Services | C27: 93520.69
B28: STANDARD CLASSIFICATION
B29: Community And Social Services | C29: 99518.304
B30: Sport And Recreation | C30: 90880.35
B31: Public Safety | C31: 98287.216
B32: Finance And Administration | C32: -92592.084
B33: Planning And Development | C33: 99932.908
B34: Energy Sources | C34: 87995.249
B35: Waste Water Management | C35: 61795.695
B36: Waste Management | C36: 57746.771
A40: 2 | B40: ='C4-FinPerf RE'!A34 -> Expenditure By Type
B42: SOURCE
B43: Employee Related Costs | C43: 50181.492 | D43: Noe | E43: None
B44: Operational Costs | C44: 68533.118 | D44: Most activities to resume after the audit process | E44: None
B45: Depreciation & Armortisation | C45: 100000 | D45: Technical issues with the asset system | E45: Issues to be resolved in the month of September
B46: Contracted Services | C46: 84625.22 | D46: None | E46: None
B47: VOTE
B48: Corporate Services | C48: 56096.256
B49: Municipal Manager | C49: 74836.207
B50: Mayors Office | C50: 69977.591
B51: Budget And Treasury | C51: 72612.776
B52: Community Services | C52: 60224.805
B53: Technical Services | C53: 70850.663
B54: STANDARD CLASSIFICATION
B55: Executive And Council | C55: 66507.946
B56: Finance And Administration | C56: 61942.711
B57: Energy Sources | C57: 57801.17
B58: Waste Water Management | C58: 82994.973
A62: 3 | B62: =RIGHT('C5-Capex'!A40,19) -> Capital Expenditure
B64: VOTE
B65: Technical Services | C65: 83944.482 | D65: Projects still in the SCM processes | E65: None
B66: STANDARD CLASSIFICATION
B67: Road Transport | C67: 76052.272
B68: Energy Sources | C68: 100000
A72: 4 | B72: Financial Position
B74: Issues - Materials And Supplies | C74: 100000
B75: Issues - Consumables Zero Rated | C75: 100000
B76: Issues - Consumables Standard Rated | C76: 100000
B77: Surplus/(Deficit) | C77: 100000
B78: Other | C78: 100000
B79: Retirement Benefits | C79: 100000
B80: Refuse Landfill Site Rehabilitation | C80: 100000
B81: Provisions | C81: 100000
B82: Vat | C82: 87273.96
B83: Unspent Conditional Transfers | C83: -14552994.15
B84: Consumer Deposits | C84: 100000
B85: Revaluation | C85: 100000
B86: Accumulated Surplus/(Deficit) - Opening Balance | C86: 100000
B87: Ppe At Cost/Valuation (Excl. Finance Leases) | C87: 97773.093
B88: Less: Accumulated Depreciation | C88: 100000
B89: Leases Recognised As Ppe | C89: 100000
B90: Contributions To The Provision | C90: 100000
B91: Consumer Debtors | C91: 90414.487
B92: Balance At The Beginning Of The Year | C92: 100000
B93: Other Current Investments | C93: 100000
B94: Cash | C94: -296090.651
A98: 5 | B98: Cash Flow
B100: CASH PAYMENTS
B101: Contracted Services | C101: 100000
B102: Employee Related Costs | C102: 100000
B103: Other Expenditure | C103: 100000
B104: Remuneration Of Councillors | C104: 100000
B105: CASH RECEIPTS
B106: Transfers Recognised - Operational | C106: 100000
B107: Other Revenue | C107: 100000
B108: Property Rates | C108: 100000
B109: Service Charges - Electricity Revenue | C109: 100000
B110: CASH PAYMENTS
B111: Capital Assets | C111: 100000
B112: CASH RECEIPTS
B113: Transfer Receipts - Capital | C113: 100000
B114: CASH NET INCREASE/ (DECREASE) IN CASH HELD
B115: Cash/Cash Equivalents At The Month/Year Begin | C115: 100000
A119: 6 | B119: Measureable performance
A124: 7 | B124: Municipal Entities
A130: =head27a -> References
A131: 1. Revenue for each source, vote and standard classification
A132: 2. Expenditure for each type, vote and standard classification
A133: 3. Capital expenditure for each vote and standard classification
A134: 4. Explain any material variances between the annual budget and the expected financial position based on current trends
A135: 5. Cash receipts by source and cash payments by type where not explained under revenue and expenditure
A136: 6. For Sept, Dec, Mar and Jun statements explain any material variances in achievement of measurable performance objectives

Sheet SC2
A1: =muni& " - "&S71H& " - "&Head57 -> LIM353 Molemole - Supporting Table SC2 Monthly Budget Statement - performance indicators - M02 August
A2: Description of financial indicator | B2: Basis of calculation | C2: =head27 -> Ref | D2: =Head1 -> 2022/23 | E2: =Head2 -> Budget Year 2023/24
D3: =Head5 -> Audited Outcome | E3: =Head6 -> Original Budget | F3: =Head7 -> Adjusted Budget | G3: =Head39 -> YearTD actual | H3: =Head8 -> Full Year Forecast
A5: Borrowing Management
A7: Capital Charges to Operating Expenditure | B7: Interest & principal paid/Operating Expenditure | D7: =IF(ISERROR((D42-D43)/D45),0,((D42-D43)/D45)) -> 0.0001109461231 | E7: =IF(ISERROR((E42+E44)/E45),0,((E42+E44)/E45)) -> 0.08513263749 | F7: =IF(ISERROR((F42+F44)/F45),0,((F42+F44)/F45)) -> 0.08514144709 | G7: =IF(ISERROR((G42+G44)/G45),0,((G42+G44)/G45)) -> 0 | H7: =IF(ISERROR((H42+H44)/H45),0,((H42+H44)/H45)) -> 0.07578306718
A8: Borrowed funding of 'own' capital expenditure | B8: Borrowings/Capital expenditure excl. transfers and grants | D8: =IF(ISERROR(D47/D46),0,(D47/D46)) -> 0 | E8: =IF(ISERROR(E47/E46),0,(E47/E46)) -> 0 | F8: =IF(ISERROR(F47/F46),0,(F47/F46)) -> 0 | G8: =IF(ISERROR(G47/G46),0,(G47/G46)) -> 0 | H8: =IF(ISERROR(H47/H46),0,(H47/H46)) -> 0
A9: Safety of Capital
A10: Debt to Equity | B10: Loans, Accounts Payable, Overdraft & Tax Provision/ Funds & Reserves | D10: =IF(ISERROR(D48/D49),0,(D48/D49)) -> 0.07345148543 | E10: =IF(ISERROR(E48/E49),0,(E48/E49)) -> 0.08230963052 | F10: =IF(ISERROR(F48/F49),0,(F48/F49)) -> 0.08230963052 | G10: =IF(ISERROR(G48/G49),0,(G48/G49)) -> 0 | H10: =IF(ISERROR(H48/H49),0,(H48/H49)) -> 0.08230963052
A11: Gearing | B11: Long Term Borrowing/ Funds & Reserves | D11: =IF(ISERROR(D51/D50),0,(D51/D50)) -> 0 | E11: =IF(ISERROR(E51/E50),0,(E51/E50)) -> 0 | F11: =IF(ISERROR(F51/F50),0,(F51/F50)) -> 0 | G11: =IF(ISERROR(G51/G50),0,(G51/G50)) -> 0 | H11: =IF(ISERROR(H51/H50),0,(H51/H50)) -> 0
A12: Liquidity
A13: Current Ratio | B13: Current assets/current liabilities | C13: 1 | D13: =IF(ISERROR(D52/D53),0,(D52/D53)) -> 12.42514315 | E13: =IF(ISERROR(E52/E53),0,(E52/E53)) -> 4.792171494 | F13: =IF(ISERROR(F52/F53),0,(F52/F53)) -> 4.792171494 | G13: =IF(ISERROR(G52/G53),0,(G52/G53)) -> 3.232675213 | H13: =IF(ISERROR(H52/H53),0,(H52/H53)) -> 4.792171494
A14: Liquidity Ratio | B14: Monetary Assets/Current Liabilities | D14: =IF(ISERROR(D54/D53),0,(D54/D53)) -> 7.90485991 | E14: =IF(ISERROR(E54/E53),0,(E54/E53)) -> 2.617157538 | F14: =IF(ISERROR(F54/F53),0,(F54/F53)) -> 2.617157538 | G14: =IF(ISERROR(G54/G53),0,(G54/G53)) -> 3.119871994 | H14: =IF(ISERROR(H54/H53),0,(H54/H53)) -> 2.617157538
A15: Revenue Management
A16: Annual Debtors Collection Rate (Payment Level %) | B16: Last 12 Mths Receipts/ Last 12 Mths Billing
A17: Outstanding Debtors to Revenue | B17: Total Outstanding Debtors to Annual Revenue | D17: =IF(ISERROR(D59/D55),0,(D59/D55)) -> 0.3105691015 | E17: =IF(ISERROR(E59/E55),0,(E59/E55)) -> 0 | F17: =IF(ISERROR(F59/F55),0,(F59/F55)) -> 0 | G17: =IF(ISERROR(G59/G55),0,(G59/G55)) -> 0 | H17: =IF(ISERROR(H59/H55),0,(H59/H55)) -> 0
A18: Longstanding Debtors Recovered | B18: Debtors > 12 Mths Recovered/Total Debtors > 12 Months Old | D18: =IF(ISERROR(D64/D63),0,(D64/D63)) -> 0 | E18: =IF(ISERROR(E64/E63),0,(E64/E63)) -> 0 | F18: =IF(ISERROR(F64/F63),0,(F64/F63)) -> 0 | G18: =IF(ISERROR(G64/G63),0,(G64/G63)) -> 0 | H18: =IF(ISERROR(H64/H63),0,(H64/H63)) -> 0
A19: Creditors Management
A20: Creditors System Efficiency | B20: % of Creditors Paid Within Terms (within MFMA s 65(e))
A21: Funding of Provisions
A22: Percentage Of Provisions Not Funded | B22: Unfunded Provisions/Total Provisions
A23: Other Indicators
A24: Electricity Distribution Losses | B24: % Volume (units purchased and generated less units sold)/units purchased and generated | C24: 2 | D24: 0 | E24: 0.115 | F24: 0.115 | G24: 0 | H24: 0.115
A25: Water Distribution Losses | B25: % Volume (units purchased and own source less units sold)/Total units purchased and own source | C25: 2
A26: Employee costs | B26: Employee costs/Total Revenue - capital revenue | D26: =IF(ISERROR(D40/D55),0,(D40/D55)) -> 0.424982975 | E26: =IF(ISERROR(E40/E55),0,(E40/E55)) -> 0.3904501233 | F26: =IF(ISERROR(F40/F55),0,(F40/F55)) -> 0.3903518617 | G26: =IF(ISERROR(G40/G55),0,(G40/G55)) -> 0.114538576 | H26: =IF(ISERROR(H40/H55),0,(H40/H55)) -> 0.3903518617
A27: Repairs & Maintenance | B27: R&M/Total Revenue - capital revenue | D27: =IF(ISERROR(D41/D55),0,(D41/D55)) -> 0.1200281369 | E27: =IF(ISERROR(E41/E55),0,(E41/E55)) -> 0.1137650615 | F27: =IF(ISERROR(F41/F55),0,(F41/F55)) -> 0.1137650615 | G27: =IF(ISERROR(G41/G55),0,(G41/G55)) -> 0.00945060365 | H27: =IF(ISERROR(H41/H55),0,(H41/H55)) -> 0.1137650615
A28: Interest & Depreciation | B28: I&D/Total Revenue - capital revenue | D28: =IF(ISERROR((D42+D44)/D55),0,((D42+D44)/D55)) -> 0.08390377045 | E28: =IF(ISERROR((E42+E44)/E55),0,((E42+E44)/E55)) -> 0.08084714458 | F28: =IF(ISERROR((F42+F44)/F55),0,((F42+F44)/F55)) -> 0.08084714458 | G28: =IF(ISERROR((G42+G44)/G55),0,((G42+G44)/G55)) -> 0 | H28: =IF(ISERROR((H42+H44)/H55),0,((H42+H44)/H55)) -> 0.07196077584
A29: IDP regulation financial viability indicators
A30: i. Debt coverage | B30: (Total Operating Revenue - Operating Grants)/Debt service payments due within financial year)
A31: ii. O/S Service Debtors to Revenue | B31: Total outstanding service debtors/annual revenue received for services
A32: iii. Cost coverage | B32: (Available cash + Investments)/monthly fixed operational expenditure
A33: References
A34: 1. Consumer debtors > 12 months old are excluded from current assets.
A35: 2. Material variances to be explained.
A37: Calculations
A38: ='C6-FinPos'!A40 -> Financial liabilities | D38: ='C6-FinPos'!C40 -> 0 | E38: ='C6-FinPos'!D40 -> 0 | F38: ='C6-FinPos'!E40 -> 0 | G38: ='C6-FinPos'!F40 -> 0 | H38: 0
A39: Total Assets | D39: ='C6-FinPos'!C27 -> 536067946.4 | E39: ='C6-FinPos'!D27 -> 652184054 | F39: ='C6-FinPos'!E27 -> 652184054 | G39: ='C6-FinPos'!F27 -> 90426533.28 | H39: ='C6-FinPos'!G27 -> 652184054
A40: ='C4-FinPerf RE'!A35 -> Employee related costs | D40: ='C4-FinPerf RE'!C35 -> 100664091.3 | E40: ='C4-FinPerf RE'!D35 -> 107286637 | F40: ='C4-FinPerf RE'!E35 -> 107259637 | G40: ='C4-FinPerf RE'!G35 -> 8906034.64 | H40: ='C4-FinPerf RE'!K35 -> 107259637
A41: =A27 -> Repairs & Maintenance | D41: 28430605.58 | E41: 31260000 | F41: 31260000 | G41: 734838.92 | H41: 31260000
A42: Interest (finance charges) | D42: ='C4-FinPerf RE'!C41 -> 26394.27 | E42: ='C4-FinPerf RE'!D41 -> 132765 | F42: ='C4-FinPerf RE'!E41 -> 132765 | G42: ='C4-FinPerf RE'!G41 -> 0 | H42: ='C4-FinPerf RE'!K41 -> 132765
A43: Principal paid | D43: =-'C7-CFlow'!C36 -> 0 | E43: =-'C7-CFlow'!D36 -> 0 | F43: =-'C7-CFlow'!E36 -> 0 | G43: =-'C7-CFlow'!G36 -> 0 | H43: =-'C7-CFlow'!K36 -> 0
A44: Depreciation | D44: ='C4-FinPerf RE'!C40 -> 19847570.83 | E44: ='C4-FinPerf RE'!D40 -> 22082155 | F44: ='C4-FinPerf RE'!E40 -> 22082155 | H44: ='C4-FinPerf RE'!K36 -> 19640387
A45: Operating expenditure | D45: ='C4-FinPerf RE'!C48 -> 237901688.3 | E45: ='C4-FinPerf RE'!D48 -> 260944811 | F45: ='C4-FinPerf RE'!E48 -> 260917811 | G45: ='C4-FinPerf RE'!G48 -> 14598477.05 | H45: ='C4-FinPerf RE'!K48 -> 260917811
A46: ='C5-Capex'!A40 -> Total Capital Expenditure | D46: ='C5-Capex'!C63 -> 50960912.06 | E46: ='C5-Capex'!D63 -> 72380350 | F46: ='C5-Capex'!E63 -> 72380350 | G46: ='C5-Capex'!F63 -> 0 | H46: ='C5-Capex'!G63 -> 1759374.9
A47: Borrowed funding for capital | D47: ='C5-Capex'!C72 -> 0 | E47: ='C5-Capex'!D72 -> 0 | F47: ='C5-Capex'!E72 -> 0 | G47: ='C5-Capex'!G72 -> 0 | H47: ='C5-Capex'!K72 -> 0
A48: Debt | D48: ='C6-FinPos'!C30+'C6-FinPos'!C31+'C6-FinPos'!C33+'C6-FinPos'!C34+'C6-FinPos'!C40+'C6-FinPos'!C43 -> 36479951.33 | E48: ='C6-FinPos'!D30+'C6-FinPos'!D31+'C6-FinPos'!D33+'C6-FinPos'!D34+'C6-FinPos'!D40+'C6-FinPos'!D43 -> 46960596 | F48: ='C6-FinPos'!E30+'C6-FinPos'!E31+'C6-FinPos'!E33+'C6-FinPos'!E34+'C6-FinPos'!E40+'C6-FinPos'!E43 -> 46960596 | G48: ='C6-FinPos'!F30+'C6-FinPos'!F31+'C6-FinPos'!F33+'C6-FinPos'!F34+'C6-FinPos'!F40+'C6-FinPos'!F43 -> 27370938.68 | H48: ='C6-FinPos'!G30+'C6-FinPos'!G31+'C6-FinPos'!G33+'C6-FinPos'!G34+'C6-FinPos'!G40+'C6-FinPos'!G43 -> 46960596
A49: Equity | D49: ='C6-FinPos'!C51 -> 496653690.7 | E49: ='C6-FinPos'!D51 -> 570535862 | F49: ='C6-FinPos'!E51 -> 570535862 | G49: ='C6-FinPos'!F51 -> 0 | H49: ='C6-FinPos'!G51 -> 570535862
A50: ='C6-FinPos'!A49 -> Reserves and funds | D50: ='C6-FinPos'!C50 -> 0 | E50: ='C6-FinPos'!D50 -> 0 | F50: ='C6-FinPos'!E50 -> 0 | G50: ='C6-FinPos'!F50 -> 0 | H50: ='C6-FinPos'!G50 -> 0
A51: Borrowing | D51: ='C6-FinPos'!C40 -> 0 | E51: ='C6-FinPos'!D40 -> 0 | F51: ='C6-FinPos'!E40 -> 0 | G51: ='C6-FinPos'!F40 -> 0 | H51: ='C6-FinPos'!G40 -> 0
A52: ='C6-FinPos'!A6 -> Current assets | D52: ='C6-FinPos'!C14 -> 176032801.8 | E52: ='C6-FinPos'!D14 -> 247514704 | F52: ='C6-FinPos'!E14 -> 247514704 | G52: ='C6-FinPos'!F14 -> 88667158.38 | H52: ='C6-FinPos'!G14 -> 247514704
A53: ='C6-FinPos'!A29 -> Current liabilities | D53: ='C6-FinPos'!C38 -> 14167466.7 | E53: ='C6-FinPos'!D38 -> 51649801 | F53: ='C6-FinPos'!E38 -> 51649801 | G53: ='C6-FinPos'!F38 -> 27428415.33 | H53: ='C6-FinPos'!G38 -> 51649801
A54: Monetary assets | D54: ='C6-FinPos'!C7 -> 111991839.5 | E54: ='C6-FinPos'!D7 -> 135175666 | F54: ='C6-FinPos'!E7 -> 135175666 | G54: ='C6-FinPos'!F7 -> 85573144.82 | H54: ='C6-FinPos'!G7 -> 135175666
A55: ='C4-FinPerf RE'!A33 -> Total Revenue (excluding capital transfers and contributions) | D55: ='C4-FinPerf RE'!C33 -> 236866174.1 | E55: ='C4-FinPerf RE'!D33 -> 274776804 | F55: ='C4-FinPerf RE'!E33 -> 274776804 | G55: ='C4-FinPerf RE'!G33 -> 77755765.37 | H55: ='C4-FinPerf RE'!K33 -> 274776804
A56: ='C4-FinPerf RE'!A26 -> Transfers and subsidies - Operational | D56: ='C4-FinPerf RE'!C26 -> 174739174.2 | E56: ='C4-FinPerf RE'!D28 -> 0 | F56: ='C4-FinPerf RE'!E28 -> 0 | G56: ='C4-FinPerf RE'!G28 -> 0 | H56: ='C4-FinPerf RE'!K28 -> 0
A57: ='C4-FinPerf RE'!A50 -> Transfers and subsidies - capital (monetary allocations) | D57: ='C4-FinPerf RE'!C50 -> 40346674.32 | E57: ='C4-FinPerf RE'!D50 -> 58548350 | F57: ='C4-FinPerf RE'!E50 -> 58548350 | G57: ='C4-FinPerf RE'!G50 -> 0 | H57: ='C4-FinPerf RE'!K50 -> 58548350
A58: Debt service payments | D58: ='C7-CFlow'!C12+'C7-CFlow'!C36 -> 0 | E58: ='C7-CFlow'!D12+'C7-CFlow'!D36 -> 9600000 | F58: ='C7-CFlow'!E12+'C7-CFlow'!E36 -> 9600000 | G58: ='C7-CFlow'!G16+'C7-CFlow'!G36 -> 0 | H58: ='C7-CFlow'!K16+'C7-CFlow'!K36 -> 0
A59: Outstanding debtors (receivables) | D59: ='C6-FinPos'!C8+'C6-FinPos'!C9+'C6-FinPos'!C10+'C6-FinPos'!C13+'C6-FinPos'!C23+'C6-FinPos'!C24 -> 73563314.86 | E59: 0 | F59: 0 | G59: 0 | H59: 0
A60: Annual services revenue | D60: ='C4-FinPerf RE'!C7+'C4-FinPerf RE'!C8+'C4-FinPerf RE'!C9+'C4-FinPerf RE'!C10+'C4-FinPerf RE'!C22 -> 44217009.15 | E60: ='C4-FinPerf RE'!D7+'C4-FinPerf RE'!D8+'C4-FinPerf RE'!D9+'C4-FinPerf RE'!D10+'C4-FinPerf RE'!D22 -> 61943800 | F60: ='C4-FinPerf RE'!E7+'C4-FinPerf RE'!E8+'C4-FinPerf RE'!E9+'C4-FinPerf RE'!E10+'C4-FinPerf RE'!E22 -> 61943800 | G60: ='C4-FinPerf RE'!F7+'C4-FinPerf RE'!F8+'C4-FinPerf RE'!F9+'C4-FinPerf RE'!F10+'C4-FinPerf RE'!F22 -> 0 | H60: ='C4-FinPerf RE'!G7+'C4-FinPerf RE'!G8+'C4-FinPerf RE'!G9+'C4-FinPerf RE'!G10+'C4-FinPerf RE'!G22 -> 3243277.16
A61: Cash + investments | B61: Including LT investments | D61: ='C6-FinPos'!C7+'C6-FinPos'!C16-'C6-FinPos'!C30 -> 111991839.5 | E61: ='C6-FinPos'!D7+'C6-FinPos'!D16-'C6-FinPos'!D30 -> 135175666 | F61: ='C6-FinPos'!E7+'C6-FinPos'!E16-'C6-FinPos'!E30 -> 135175666 | G61: ='C6-FinPos'!F7+'C6-FinPos'!F16-'C6-FinPos'!F30 -> 85573144.82 | H61: ='C6-FinPos'!G7+'C6-FinPos'!G16-'C6-FinPos'!G30 -> 135175666
A62: Fixed operational expend. (monthly)
A63: Longstanding debtors outstanding | D63: ='C6-FinPos'!C23+'C6-FinPos'!C24 -> 0 | E63: ='C6-FinPos'!D23+'C6-FinPos'!D24 -> 0 | F63: ='C6-FinPos'!E23+'C6-FinPos'!E24 -> 0 | G63: ='C6-FinPos'!F23+'C6-FinPos'!F24 -> 0 | H63: ='C6-FinPos'!G23+'C6-FinPos'!G24 -> 0
A64: Longstanding debtors recovered
A65: Attorney collections

Sheet SC3
A1: =muni& " - "&S71I& " - "&Head57 -> LIM353 Molemole - Supporting Table SC3 Monthly Budget Statement - aged debtors - M02 August
A2: =desc -> Description | C2: =Head2 -> Budget Year 2023/24
A3: R thousands | B3: NT Code | C3: 0-30 Days | D3: 31-60 Days | E3: 61-90 Days | F3: 91-120 Days | G3: 121-150 Dys | H3: 151-180 Dys | I3: 181 Dys-1 Yr | J3: Over 1Yr | K3: Total | L3: Total over 90 days | M3: Actual Bad Debts Written Off against Debtors | N3: Impairment - Bad Debts i.t.o Council Policy
A4: Debtors Age Analysis By Income Source
A5: Trade and Other Receivables from Exchange Transactions - Water | B5: 1200 | C5: 172190 | D5: 51875 | E5: 55918 | F5: 5379458 | G5: 0 | H5: 0 | I5: 0 | J5: 0 | K5: =SUM(C5:J5) -> 5659441 | L5: =SUM(F5:J5) -> 5379458 | M5: 0 | N5: 0
A6: Trade and Other Receivables from Exchange Transactions - Electricity | B6: 1300 | C6: 33976 | D6: 0 | E6: 0 | F6: 1645538 | G6: 0 | H6: 0 | I6: 0 | J6: 0 | K6: =SUM(C6:J6) -> 1679514 | L6: =SUM(F6:J6) -> 1645538 | M6: 0 | N6: 0
A7: Receivables from Non-exchange Transactions - Property Rates | B7: 1400 | C7: 31467 | D7: 30770 | E7: 30025 | F7: 1195390 | G7: 0 | H7: 0 | I7: 0 | J7: 0 | K7: =SUM(C7:J7) -> 1287652 | L7: 1195390 | M7: 0 | N7: 0
A8: Receivables from Exchange Transactions - Waste Water Management | B8: 1500 | C8: 76332 | D8: 71659 | E8: 68040 | F8: 3096563 | G8: 0 | H8: 0 | I8: 0 | J8: 0 | K8: 3312594 | L8: 3096563 | M8: 0 | N8: 0
A9: Receivables from Exchange Transactions - Waste Management | B9: 1600 | C9: 242743 | D9: 235564 | E9: 194411 | F9: 15032682 | G9: 0 | H9: 0 | I9: 0 | J9: 0 | K9: 15705400 | L9: =SUM(F9:J9) -> 15032682 | M9: 0 | N9: 0
A10: Receivables from Exchange Transactions - Property Rental Debtors | B10: 1700 | K10: 0 | L10: =SUM(F10:J10) -> 0
A11: Interest on Arrear Debtor Accounts | B11: 1810 | K11: 0 | L11: 0
A12: Recoverable unauthorised, irregular, fruitless and wasteful expenditure | B12: 1820 | K12: 0 | L12: 0
A13: Other | B13: 1900 | C13: 2368964 | D13: 2236588 | E13: 1664222 | F13: 94417618 | G13: 0 | H13: 0 | I13: 0 | J13: 0 | K13: 100687392 | L13: =SUM(F13:J13) -> 94417618 | M13: 0 | N13: 0
A14: Total By Income Source | B14: 2000 | C14: =SUM(C5:C13) -> 2925672 | D14: 2626456 | E14: 2012616 | F14: 120767249 | G14: 0 | H14: 0 | I14: 0 | J14: 0 | K14: 128331993 | L14: =SUM(L5:L13) -> 120767249 | M14: 0 | N14: 0
A15: =Head1&" - totals only" -> 2022/23 - totals only | C15: 3029145 | D15: 2891996 | E15: 2749255 | F15: 111087929 | G15: 0 | H15: 0 | I15: 0 | J15: 0 | K15: =SUM(C15:J15) -> 119758325 | L15: =SUM(F15:J15) -> 111087929 | M15: 0 | N15: 0
A16: Debtors Age Analysis By Customer Group
A17: Organs of State | B17: 2200 | C17: 11 | D17: 428874 | E17: 434623 | F17: 17530710 | G17: 0 | H17: 0 | I17: 0 | J17: 0 | K17: =SUM(C17:J17) -> 18394218 | L17: =SUM(F17:J17) -> 17530710 | M17: 0 | N17: 0
A18: Commercial | B18: 2300 | C18: 205149 | D18: 167454 | E18: 170870 | F18: 10768502 | G18: 0 | H18: 0 | I18: 0 | J18: 0 | K18: =SUM(C18:J18) -> 11311975 | L18: =SUM(F18:J18) -> 10768502 | M18: 0 | N18: 0
A19: Households | B19: 2400 | C19: 884233 | D19: 670776 | E19: 670211 | F19: 40497044 | G19: 0 | H19: 0 | I19: 0 | J19: 0 | K19: =SUM(C19:J19) -> 42722264 | L19: =SUM(F19:J19) -> 40497044 | M19: 0 | N19: 0
A20: Other | B20: 2500 | C20: 1836279 | D20: 1359352 | E20: 736912 | F20: 51971020 | G20: 0 | H20: 0 | I20: 0 | J20: 0 | K20: =SUM(C20:J20) -> 55903563 | L20: =SUM(F20:J20) -> 51971020 | M20: 0 | N20: 0
A21: Total By Customer Group | B21: 2600 | C21: =SUM(C17:C20) -> 2925672 | D21: 2626456 | E21: 2012616 | F21: 120767276 | G21: 0 | H21: 0 | I21: 0 | J21: =SUM(J17:J20) -> 0 | K21: =SUM(K17:K20) -> 128332020 | L21: =SUM(L17:L20) -> 120767276 | M21: =SUM(M17:M20) -> 0 | N21: =SUM(N17:N20) -> 0
A22: Notes
A23: Material increases in value of debtors' categories compared to previous month to be explained
A24: Bad debts = amounts actually written off in the month
A25: Total by Income Source must reconcile with Total by Customer Group
C26: =C14-C21 -> 0 | D26: =D14-D21 -> 0 | E26: =E14-E21 -> 0 | F26: -27 | G26: 0 | H26: 0 | I26: 0 | J26: =J14-J21 -> 0 | K26: -27
C27: =IF(C26=0,"","MUST AGREE") ->  | D27: =IF(D26=0,"","MUST AGREE") ->  | F27: MUST AGREE | K27: MUST AGREE

Sheet SC4
A1: =muni& " - "&S71J& " - "&Head57 -> LIM353 Molemole - Supporting Table SC4 Monthly Budget Statement - aged creditors - M02 August
A2: =desc -> Description | B2: NT Code | C2: =Head2 -> Budget Year 2023/24 | L2: Prior year totals for chart (same period)
C3: 0 - 30 Days | D3: 31 - 60 Days | E3: 61 - 90 Days | F3: 91 - 120 Days | G3: 121 - 150 Days | H3: 151 - 180 Days | I3: 181 Days - 1 Year | J3: Over 1 Year | K3: Total
A4: R thousands
A5: Creditors Age Analysis By Customer Type
A6: Bulk Electricity | B6: 0100 | C6: 0 | D6: 0 | E6: 0 | F6: 20908.65 | G6: 0 | H6: 0 | I6: 0 | J6: 0 | K6: =SUM(C6:J6) -> 20908.65
A7: Bulk Water | B7: 0200 | K7: =SUM(C7:J7) -> 0
A8: PAYE deductions | B8: 0300 | K8: 0
A9: VAT (output less input) | B9: 0400 | K9: 0
A10: Pensions / Retirement deductions | B10: 0500 | K10: 0
A11: Loan repayments | B11: 0600 | K11: 0
A12: Trade Creditors | B12: 0700 | K12: 0
A13: Auditor General | B13: 0800 | K13: 0
A14: Other | B14: 0900 | K14: =SUM(C14:J14) -> 0 | L14: 3653904.43
A15: Total By Customer Type | B15: 1000 | C15: =SUM(C6:C14) -> 0 | D15: =SUM(D6:D14) -> 0 | E15: 0 | F15: 20908.65 | G15: 0 | H15: 0 | I15: 0 | J15: 0 | K15: =SUM(K6:K14) -> 20908.65 | L15: =SUM(L6:L14) -> 3653904.43
A16: Notes
A17: Material increases in value of creditors' categories compared to previous month to be explained

Sheet SC5
A1: =muni& " - "&S71K& " - "&Head57 -> LIM353 Molemole - Supporting Table SC5 Monthly Budget Statement - investment portfolio - M02 August
A2: Investments by maturity Name of institution & investment ID | B2: Ref | C2: Period of Investment | D2: Type of Investment | E2: Capital Guarantee (Yes/ No) | F2: Variable or Fixed interest rate | G2: Interest Rate ᶟ | H2: Commission Paid (Rands) | I2: Commission Recipient | J2: Expiry date of investment | K2: Opening balance | L2: Interest to be realised | M2: Partial / Premature Withdrawal (4) | N2: Investment Top Up | O2: Closing Balance
A3: R thousands | C3: Yrs/Months
A4: Municipality
O5: =SUM(K5:N5) -> 0
A6: Municipality sub-total | K6: =SUM(K5:K5) -> 0 | M6: =SUM(M5:M5) -> 0 | N6: =SUM(N5:N5) -> 0 | O6: =SUM(O5:O5) -> 0
A8: Entities
O9: =SUM(K9:N9) -> 0
O10: 0
O11: 0
O12: 0
O13: 0
O14: 0
O15: 0
A16: Entities sub-total | K16: =SUM(K9:K15) -> 0 | M16: =SUM(M9:M15) -> 0 | N16: =SUM(N9:N15) -> 0 | O16: =SUM(O9:O15) -> 0
A18: TOTAL INVESTMENTS AND INTEREST | B18: 2 | K18: =K6+K16 -> 0 | M18: =M6+M16 -> 0 | N18: =N6+N16 -> 0 | O18: =O6+O16 -> 0
A19: =head27a -> References
A20: 2. List investments in expiry date order
A21: 3. If 'variable' is selected in column F, input interest rate range
A22: 4. Withdrawals to be entered as negative

Sheet SC6
A1: =muni& " - "&S71L& " - "&Head57 -> LIM353 Molemole - Supporting Table SC6 Monthly Budget Statement - transfers and grant receipts - M02 August
A2: =desc -> Description | B2: =head27 -> Ref | C2: =Head1 -> 2022/23 | D2: =Head2 -> Budget Year 2023/24
C3: =Head5 -> Audited Outcome | D3: =Head6 -> Original Budget | E3: =Head7 -> Adjusted Budget | F3: =Head38 -> Monthly actual | G3: =Head39 -> YearTD actual | H3: =Head40 -> YearTD budget | I3: =Head41 -> YTD variance | J3: =Head41 -> YTD variance | K3: =Head8 -> Full Year Forecast
A4: R thousands | J4: %
A5: RECEIPTS: | B5: 1,2
A7: Operating Transfers and Grants
A8: National Government: | C8: =SUM(C9:C14) -> 174437196.8 | D8: 183700650 | E8: 183700650 | F8: 0 | G8: 74212000 | H8: 30616770 | I8: =G8-H8 -> 43595230 | J8: =IF(H8=0,"",I8/H8) -> 1.423900366 | K8: =SUM(K9:K14) -> 183700650
A9: Equitable Share | C9: 168760890.2 | D9: 178109000 | E9: 178109000 | F9: 0 | G9: 74212000 | H9: 29684832 | I9: 44527168 | J9: 1.499997305 | K9: 178109000
A10: Expanded Public Works Programme Integrated Grant | C10: 1395656 | D10: 1219000 | E10: 1219000 | F10: 0 | G10: 0 | H10: 203166 | I10: -203166 | J10: -1 | K10: 1219000
A11: Local Government Financial Management Grant | C11: 2292234.76 | D11: 2300000 | E11: 2300000 | F11: 0 | G11: 0 | H11: 383332 | I11: -383332 | J11: -1 | K11: 2300000
A12: Municipal Demarcation Transition Grant | C12: 0 | D12: 0 | E12: 0 | F12: 0 | G12: 0 | H12: 0 | I12: 0 | K12: 0
A13: Municipal Disaster Relief Grant | C13: 0 | D13: 0 | E13: 0 | F13: 0 | G13: 0 | H13: 0 | I13: 0 | K13: 0
A14: Municipal Infrastructure Grant | B14: 3 | C14: 1988415.9 | D14: 2072650 | E14: 2072650 | F14: 0 | G14: 0 | H14: 345440 | I14: -345440 | J14: -1 | K14: 2072650
A15: Other transfers and grants [insert description] | I15: =G15-H15 -> 0 | J15: =IF(I15=0,"",I15/H15) -> 
A16: Provincial Government: | C16: =SUM(C17:C18) -> 0 | D16: 0 | E16: 0 | F16: 0 | G16: 0 | H16: 0 | I16: 0 | K16: =SUM(K17:K18) -> 0
I17: =G17-H17 -> 0
A18: Other transfers and grants [insert description] | I18: 0
A19: District Municipality: | C19: =SUM(C20:C20) -> 0 | D19: 0 | E19: 0 | F19: 0 | G19: 0 | H19: 0 | I19: 0 | K19: =SUM(K20:K20) -> 0
A20: [insert description] | I20: 0
A21: Other grant providers: | C21: =SUM(C22:C23) -> 301977.37 | D21: 0 | E21: 0 | F21: 0 | G21: 0 | H21: 0 | I21: =G21-H21 -> 0 | J21: =IF(H21=0,"",I21/H21) ->  | K21: =SUM(K22:K23) -> 0
A22: Education Training and Development Practices SETA | C22: 301977.37 | D22: 0 | E22: 0 | F22: 0 | G22: 0 | H22: 0 | I22: =G22-H22 -> 0 | J22: =IF(H22=0,"",I22/H22) ->  | K22: 0
A23: Non-statutory Forces | C23: 0 | D23: 0 | E23: 0 | F23: 0 | G23: 0 | H23: 0 | I23: =G23-H23 -> 0 | J23: =IF(H23=0,"",I23/H23) ->  | K23: 0
A24: Total Operating Transfers and Grants | B24: 5 | C24: =C8+C16+C19+C21 -> 174739174.2 | D24: 183700650 | E24: 183700650 | F24: 0 | G24: 74212000 | H24: 30616770 | I24: 43595230 | J24: 1.423900366 | K24: =K8+K16+K19+K21 -> 183700650
A26: Capital Transfers and Grants
A27: =A8 -> National Government: | C27: =SUM(C28:C31) -> 40346674.32 | D27: 58548350 | E27: 58548350 | F27: 0 | G27: 0 | H27: 9758056 | I27: =G27-H27 -> -9758056 | J27: =IF(H27=0,"",I27/H27) -> -1 | K27: =SUM(K28:K31) -> 58548350
A28: Energy Efficiency and Demand Side Management Grant | C28: 0 | D28: 0 | E28: 0 | F28: 0 | G28: 0 | H28: 0 | I28: 0 | K28: 0
A29: Integrated National Electrification Programme Grant | C29: 2548942.48 | D29: 19168000 | E29: 19168000 | F29: 0 | G29: 0 | H29: 3194666 | I29: -3194666 | J29: -1 | K29: 19168000
A30: Municipal Disaster Relief Grant | C30: 0 | D30: 0 | E30: 0 | F30: 0 | G30: 0 | H30: 0 | I30: 0 | K30: 0
A31: Municipal Infrastructure Grant | C31: 37797731.84 | D31: 39380350 | E31: 39380350 | F31: 0 | G31: 0 | H31: 6563390 | I31: -6563390 | J31: -1 | K31: 39380350
A32: =A16 -> Provincial Government: | C32: =SUM(C33:C33) -> 0 | D32: 0 | E32: 0 | F32: 0 | G32: 0 | H32: 0 | I32: 0 | K32: =SUM(K33:K33) -> 0
A33: Infrastructure Grant | C33: 0 | D33: 0 | E33: 0 | F33: 0 | G33: 0 | H33: 0 | I33: 0 | K33: 0
A34: =A19 -> District Municipality: | C34: =SUM(C35:C35) -> 0 | D34: 0 | E34: 0 | F34: 0 | G34: 0 | H34: 0 | I34: 0 | K34: =SUM(K35:K35) -> 0
A35: Specify (Add grant description) | C35: 0 | D35: 0 | E35: 0 | F35: 0 | G35: 0 | H35: 0 | I35: 0 | K35: 0
A36: =A21 -> Other grant providers: | C36: =SUM(C37:C37) -> 0 | D36: 0 | E36: 0 | F36: 0 | G36: 0 | H36: 0 | I36: =G36-H36 -> 0 | J36: =IF(I36=0,"",I36/H36) ->  | K36: =SUM(K37:K37) -> 0
A37: [insert description] | I37: 0 | J37: =IF(I37=0,"",I37/H37) -> 
A38: Total Capital Transfers and Grants | B38: 5 | C38: =C27+C32+C34+C36 -> 40346674.32 | D38: 58548350 | E38: 58548350 | F38: 0 | G38: 0 | H38: 9758056 | I38: -9758056 | J38: -1 | K38: =K27+K32+K34+K36 -> 58548350
A40: TOTAL RECEIPTS OF TRANSFERS & GRANTS | B40: 5 | C40: =C24+C38 -> 215085848.5 | D40: 242249000 | E40: 242249000 | F40: 0 | G40: 74212000 | H40: 40374826 | I40: 33837174 | J40: 0.8380760328 | K40: =K24+K38 -> 242249000
A41: =head27a -> References
A42: 1. Each grant is listed by name as gazetted together with the name of the transferring department or municipality, donor or other organisation
A43: 2. Grant expenditure must be separately listed for each grant received
A44: 3. Replacement of RSC levies
A45: 4. Housing subsidies for housing where ownership transferred
A46: 5. Total recurrent/capital grants and subsidies must reconcile to the 'Financial Performance' Statement

Sheet SC7(1)
A1: =muni& " - "&S71M& " - "&Head57 -> LIM353 Molemole - Supporting Table SC7(1) Monthly Budget Statement - transfers and grant expenditure - M02 August
A2: =desc -> Description | B2: =head27 -> Ref | C2: =Head1 -> 2022/23 | D2: =Head2 -> Budget Year 2023/24
C3: =Head5 -> Audited Outcome | D3: =Head6 -> Original Budget | E3: =Head7 -> Adjusted Budget | F3: =Head38 -> Monthly actual | G3: =Head39 -> YearTD actual | H3: =Head40 -> YearTD budget | I3: =Head41 -> YTD variance | J3: =Head41 -> YTD variance | K3: =Head8 -> Full Year Forecast
A4: R thousands | J4: %
A5: EXPENDITURE
A7: Operating expenditure of Transfers and Grants
A8: ='SC6'!A8 -> National Government: | C8: =SUM(C9:C15) -> 133949562.1 | D8: 146896567 | E8: 146243732 | F8: 0 | G8: 11371306.57 | H8: 24374328.14 | I8: -13003021.57 | J8: =IF(I8=0,"",I8/H8) -> -0.5334719995 | K8: =SUM(K9:K15) -> 146243732
I9: =G9-H9 -> 0
A10: Equitable Share | C10: 127425634.4 | D10: 141304917 | E10: 140652082 | F10: 0 | G10: 11162276.36 | H10: 23442376.14 | I10: =G10-H10 -> -12280099.78 | J10: =IF(H10=0,"",I10/H10) -> -0.5238419393 | K10: 140652082
A11: Expanded Public Works Programme Integrated Grant | C11: 1393439.65 | D11: 1219000 | E11: 1219000 | F11: 0 | G11: 77970 | H11: 203168 | I11: -125198 | J11: -0.6162289337 | K11: 1219000
A12: Local Government Financial Management Grant | C12: 2358641.79 | D12: 2300000 | E12: 2300000 | F12: 0 | G12: 131060.21 | H12: 383342 | I12: -252281.79 | J12: -0.6581115297 | K12: 2300000
A13: Municipal Demarcation Transition Grant | C13: 0 | D13: 0 | E13: 0 | F13: 0 | G13: 0 | H13: 0 | I13: 0 | K13: 0
A14: Municipal Disaster Relief Grant | C14: 0 | D14: 0 | E14: 0 | F14: 0 | G14: 0 | H14: 0 | I14: 0 | K14: 0
A15: Municipal Infrastructure Grant | C15: 2771846.22 | D15: 2072650 | E15: 2072650 | F15: 0 | G15: 0 | H15: 345442 | I15: -345442 | J15: -1 | K15: 2072650
A16: ='SC6'!A16 -> Provincial Government: | C16: =SUM(C17:C17) -> 0 | D16: 0 | E16: 0 | F16: 0 | G16: 0 | H16: 0 | I16: 0 | K16: =SUM(K17:K17) -> 0
I17: =G17-H17 -> 0
A18: ='SC6'!A19 -> District Municipality: | C18: =SUM(C19:C19) -> 0 | D18: 0 | E18: 0 | F18: 0 | G18: 0 | H18: 0 | I18: 0 | K18: =SUM(K19:K19) -> 0
I19: 0
A20: ='SC6'!A21 -> Other grant providers: | C20: =SUM(C21:C22) -> 358537.37 | D20: 0 | E20: 0 | F20: 0 | G20: 0 | H20: 0 | I20: 0 | K20: =SUM(K21:K22) -> 0
A21: Education Training and Development Practices SETA | C21: 301977.37 | D21: 0 | E21: 0 | F21: 0 | G21: 0 | H21: 0 | I21: =G21-H21 -> 0 | J21: =IF(H21=0,"",I21/H21) ->  | K21: 0
A22: Municipal Demarcation Board | C22: 56560 | D22: 0 | E22: 0 | F22: 0 | G22: 0 | H22: 0 | I22: =G22-H22 -> 0 | J22: =IF(H22=0,"",I22/H22) ->  | K22: 0
A23: Total operating expenditure of Transfers and Grants: | C23: =C8+C16+C18+C20 -> 134308099.4 | D23: 146896567 | E23: 146243732 | F23: 0 | G23: 11371306.57 | H23: 24374328.14 | I23: -13003021.57 | J23: -0.5334719995 | K23: =K8+K16+K18+K20 -> 146243732
A25: Capital expenditure of Transfers and Grants
A26: ='SC6'!A27 -> National Government: | C26: =SUM(C27:C30) -> 35522401.38 | D26: 58548350 | E26: 58548350 | F26: 0 | G26: 1374878.83 | H26: 9758068 | I26: -8383189.17 | J26: =IF(I26=0,"",I26/H26) -> -0.8591033768 | K26: =SUM(K27:K30) -> 58548350
A27: Energy Efficiency and Demand Side Management Grant | C27: 0 | D27: 0 | E27: 0 | F27: 0 | G27: 0 | H27: 0 | I27: =G27-H27 -> 0 | J27: =IF(H27=0,"",I27/H27) ->  | K27: 0
A28: Integrated National Electrification Programme Grant | C28: 2213863.03 | D28: 19168000 | E28: 19168000 | F28: 0 | G28: 0 | H28: 3194672 | I28: =G28-H28 -> -3194672 | J28: =IF(H28=0,"",I28/H28) -> -1 | K28: 19168000
A29: Municipal Disaster Relief Grant | C29: 0 | D29: 0 | E29: 0 | F29: 0 | G29: 0 | H29: 0 | I29: =G29-H29 -> 0 | J29: =IF(H29=0,"",I29/H29) ->  | K29: 0
A30: Municipal Infrastructure Grant | C30: 33308538.35 | D30: 39380350 | E30: 39380350 | F30: 0 | G30: 1374878.83 | H30: 6563396 | I30: =G30-H30 -> -5188517.17 | J30: =IF(H30=0,"",I30/H30) -> -0.790523255 | K30: 39380350
A31: ='SC6'!A32 -> Provincial Government: | C31: =SUM(C32:C32) -> 0 | D31: 0 | E31: 0 | F31: 0 | G31: 0 | H31: 0 | I31: =G31-H31 -> 0 | K31: =SUM(K32:K32) -> 0
A32: Infrastructure Grant | C32: 0 | D32: 0 | E32: 0 | F32: 0 | G32: 0 | H32: 0 | I32: =G32-H32 -> 0 | J32: =IF(H32=0,"",I32/H32) ->  | K32: 0
A33: ='SC6'!A34 -> District Municipality: | C33: =SUM(C34:C34) -> 0 | D33: 0 | E33: 0 | F33: 0 | G33: 0 | H33: 0 | I33: 0 | K33: =SUM(K34:K34) -> 0
A34: Specify (Add grant description) | C34: 0 | D34: 0 | E34: 0 | F34: 0 | G34: 0 | H34: 0 | I34: =G34-H34 -> 0 | J34: =IF(H34=0,"",I34/H34) ->  | K34: 0
A35: ='SC6'!A36 -> Other grant providers: | C35: =SUM(C36:C37) -> 0 | D35: 0 | E35: 0 | F35: 0 | G35: 0 | H35: 0 | I35: 0 | K35: =SUM(K36:K37) -> 0
A36: Municipal Demarcation Board | C36: 0 | D36: 0 | E36: 0 | F36: 0 | G36: 0 | H36: 0 | I36: =G36-H36 -> 0 | J36: =IF(H36=0,"",I36/H36) ->  | K36: 0
A37: Municipal Infrastructure Investment Unit | C37: 0 | D37: 0 | E37: 0 | F37: 0 | G37: 0 | H37: 0 | I37: =G37-H37 -> 0 | J37: =IF(H37=0,"",I37/H37) ->  | K37: 0
A38: Total capital expenditure of Transfers and Grants | C38: =C26+C31+C33+C35 -> 35522401.38 | D38: 58548350 | E38: 58548350 | F38: 0 | G38: 1374878.83 | H38: 9758068 | I38: -8383189.17 | J38: =IF(I38=0,"",I38/H38) -> -0.8591033768 | K38: =K26+K31+K33+K35 -> 58548350
A40: TOTAL EXPENDITURE OF TRANSFERS AND GRANTS | C40: =C23+C38 -> 169830500.8 | D40: 205444917 | E40: 204792082 | F40: 0 | G40: 12746185.4 | H40: 34132396.14 | I40: -21386210.74 | J40: =IF(I40=0,"",I40/H40) -> -0.6265663463 | K40: =K23+K38 -> 204792082
A41: =head27a -> References

Sheet SC7(2)
A1: =muni& " - "&S71T& " - "&Head57 -> LIM353 Molemole - Supporting Table SC7(2) Monthly Budget Statement - Expenditure against approved rollovers - M02 August
A2: =desc -> Description | B2: =head27 -> Ref | C2: =Head2 -> Budget Year 2023/24
C3: ="Approved Rollover " &Head1 -> Approved Rollover 2022/23 | D3: =Head38 -> Monthly actual | E3: =Head39 -> YearTD actual | F3: =Head41 -> YTD variance | G3: =Head41 -> YTD variance
A4: R thousands | G4: %
A5: EXPENDITURE
A7: Operating expenditure of Approved Roll-overs
A8: ='SC6'!A8 -> National Government: | C8: =SUM(C9:C9) -> 0 | D8: =SUM(D9:D9) -> 0 | E8: =SUM(E9:E9) -> 0 | F8: =C8-E8 -> 0 | G8: =IF(F8=0,"",F8/C8) -> 
A9: Local Government Equitable Share | C9: 0 | D9: 0 | E9: 0 | F9: =E9-C9 -> 0 | G9: =IF(C9=0,"",F9/C9) -> 
A10: ='SC6'!A16 -> Provincial Government: | C10: =SUM(C11:C11) -> 0 | D10: =SUM(D11:D11) -> 0 | E10: =SUM(E11:E11) -> 0 | F10: =C10-E10 -> 0 | G10: =IF(F10=0,"",F10/C10) -> 
F11: 0
A12: ='SC6'!A19 -> District Municipality: | C12: =SUM(C13:C13) -> 0 | D12: =SUM(D13:D13) -> 0 | E12: =SUM(E13:E13) -> 0 | F12: 0
F13: 0
A14: ='SC6'!A21 -> Other grant providers: | C14: =SUM(C15:C15) -> 0 | D14: =SUM(D15:D15) -> 0 | E14: =SUM(E15:E15) -> 0 | F14: 0
F15: 0
A16: Total operating expenditure of Approved Roll-overs | C16: =C8+C10+C12+C14 -> 0 | D16: =D8+D10+D12+D14 -> 0 | E16: =E8+E10+E12+E14 -> 0 | F16: =F8+F10+F12+F14 -> 0
A18: Capital expenditure of Approved Roll-overs
A19: ='SC6'!A27 -> National Government: | C19: =SUM(C20:C20) -> 0 | D19: =SUM(D20:D20) -> 0 | E19: =SUM(E20:E20) -> 0 | F19: =SUM(F20:F20) -> 0
F20: =C20-E20 -> 0
A21: ='SC6'!A32 -> Provincial Government: | C21: =SUM(C22:C22) -> 0 | D21: =SUM(D22:D22) -> 0 | E21: =SUM(E22:E22) -> 0 | F21: 0
F22: =C22-E22 -> 0
A23: ='SC6'!A34 -> District Municipality: | C23: =SUM(C24:C24) -> 0 | D23: =SUM(D24:D24) -> 0 | E23: =SUM(E24:E24) -> 0 | F23: 0
F24: 0
A25: ='SC6'!A36 -> Other grant providers: | C25: =SUM(C26:C26) -> 0 | D25: =SUM(D26:D26) -> 0 | E25: =SUM(E26:E26) -> 0 | F25: 0
F26: 0
A27: Total capital expenditure of Approved Roll-overs | C27: =C19+C21+C23+C25 -> 0 | D27: =D19+D21+D23+D25 -> 0 | E27: =E19+E21+E23+E25 -> 0 | F27: =F19+F21+F23+F25 -> 0
A29: TOTAL EXPENDITURE OF APPROVED ROLL-OVERS | C29: =C16+C27 -> 0 | D29: =D16+D27 -> 0 | E29: =E16+E27 -> 0 | F29: =F16+F27 -> 0
A30: =head27a -> References

Sheet SC8
A1: =muni& " - "&S71N& " - "&Head57 -> LIM353 Molemole - Supporting Table SC8 Monthly Budget Statement - councillor and staff benefits - M02 August
A2: Summary of Employee and Councillor remuneration | B2: =head27 -> Ref | C2: =Head1 -> 2022/23 | D2: =Head2 -> Budget Year 2023/24
C3: =Head5 -> Audited Outcome | D3: =Head6 -> Original Budget | E3: =Head7 -> Adjusted Budget | F3: =Head38 -> Monthly actual | G3: =Head39 -> YearTD actual | H3: =Head40 -> YearTD budget | I3: =Head41 -> YTD variance | J3: =Head41 -> YTD variance | K3: =Head8 -> Full Year Forecast
A4: R thousands | J4: %
B5: 1 | C5: A | D5: B | E5: C | K5: D
A6: Councillors (Political Office Bearers plus Other)
A7: Basic Salaries and Wages | C7: 8868347.43 | D7: 10977996 | E7: 10977996 | F7: 0 | G7: 748914.91 | H7: 1829670 | I7: =G7-H7 -> -1080755.09 | J7: =IF(I7=0,"",I7/H7) -> -0.5906830685 | K7: 10977996
A8: Pension and UIF Contributions | C8: 0 | D8: 3073841 | E8: 3073841 | F8: 0 | G8: 0 | H8: 512312 | I8: -512312 | J8: -1 | K8: 3073841
A9: Medical Aid Contributions | C9: 0 | D9: 40000 | E9: 40000 | F9: 0 | G9: 0 | H9: 6672 | I9: -6672 | J9: -1 | K9: 40000
A10: Motor Vehicle Allowance | I10: =G10-H10 -> 0 | J10: =IF(I10=0,"",I10/H10) -> 
A11: Cellphone Allowance | C11: 1514004.72 | D11: 1889135 | E11: 1889135 | F11: 0 | G11: 118400 | H11: 314856 | I11: =G11-H11 -> -196456 | J11: =IF(I11=0,"",I11/H11) -> -0.6239550779 | K11: 1889135
A12: Housing Allowances | I12: =G12-H12 -> 0 | J12: =IF(I12=0,"",I12/H12) -> 
A13: Other benefits and allowances | C13: 2826392.68 | D13: 3659415 | E13: 3659415 | F13: 0 | G13: 241843.85 | H13: 609906 | I13: -368062.15 | J13: -0.6034735681 | K13: 3659415
A14: Sub Total - Councillors | C14: =SUM(C7:C13) -> 13208744.83 | D14: 19640387 | E14: 19640387 | F14: 0 | G14: 1109158.76 | H14: 3273416 | I14: -2164257.24 | J14: -0.6611616855 | K14: 19640387
A15: % increase | B15: 4 | D15: =IF(D14=0,"",(D14/C14)-1) -> 0.4869230387 | E15: =IF(E14=0,"",(E14/C14)-1) -> 0.4869230387 | K15: =IF(K14=0,"",(K14/C14)-1) -> 0.4869230387
A17: Senior Managers of the Municipality | B17: 3
A18: Basic Salaries and Wages | C18: 3472071.05 | D18: 4649256 | E18: 4649256 | F18: 0 | G18: 309640.84 | H18: 774876 | I18: =G18-H18 -> -465235.16 | J18: =IF(I18=0,"",I18/H18) -> -0.6003994962 | K18: 4649256
A19: Pension and UIF Contributions | C19: 0 | D19: 0 | E19: 0 | F19: 0 | G19: 0 | H19: 0 | I19: 0 | K19: 0
A20: Medical Aid Contributions | C20: 0 | D20: 0 | E20: 0 | F20: 0 | G20: 0 | H20: 0 | I20: 0 | K20: 0
A21: Overtime | C21: 0 | D21: 0 | E21: 0 | F21: 0 | G21: 0 | H21: 0 | I21: 0 | K21: 0
A22: Performance Bonus | C22: 179607.42 | D22: 417624 | E22: 417624 | F22: 0 | G22: 25057.18 | H22: 69612 | I22: =G22-H22 -> -44554.82 | J22: =IF(I22=0,"",I22/H22) -> -0.6400451072 | K22: 417624
A23: Motor Vehicle Allowance | C23: 1167188.92 | D23: 1566192 | E23: 1566192 | F23: 0 | G23: 143313.21 | H23: 261032 | I23: =G23-H23 -> -117718.79 | J23: =IF(I23=0,"",I23/H23) -> -0.4509745548 | K23: 1566192
A24: Cellphone Allowance | C24: 189999.81 | D24: 240000 | E24: 240000 | F24: 0 | G24: 13333.32 | H24: 40008 | I24: =G24-H24 -> -26674.68 | J24: =IF(I24=0,"",I24/H24) -> -0.6667336533 | K24: 240000
A25: Housing Allowances | C25: 0 | D25: 0 | E25: 0 | F25: 0 | G25: 0 | H25: 0 | I25: =G25-H25 -> 0 | J25: =IF(I25=0,"",I25/H25) ->  | K25: 0
A26: Other benefits and allowances | C26: 240179.93 | D26: 637845 | E26: 637845 | F26: 0 | G26: 26006.6 | H26: 106318 | I26: -80311.4 | J26: -0.7553885513 | K26: 637845
A27: Payments in lieu of leave | C27: 0 | D27: 0 | E27: 0 | F27: 0 | G27: 0 | H27: 0 | I27: 0 | K27: 0
A28: Long service awards | C28: 0 | D28: 0 | E28: 0 | F28: 0 | G28: 0 | H28: 0 | I28: 0 | K28: 0
A29: Post-retirement benefit obligations | B29: 2 | C29: 0 | D29: 0 | E29: 0 | F29: 0 | G29: 0 | H29: 0 | I29: 0 | K29: 0
A30: Entertainment | C30: 0 | D30: 0 | E30: 0 | F30: 0 | G30: 0 | H30: 0 | K30: 0
A31: Scarcity
A32: Acting and post related allowance | C32: 72603.27 | D32: 100000 | E32: 100000 | F32: 0 | G32: 0 | H32: 16670 | K32: 100000
A33: In kind benefits
A34: Sub Total - Senior Managers of Municipality | C34: =SUM(C18:C33) -> 5321650.4 | D34: =SUM(D18:D33) -> 7610917 | E34: 7610917 | F34: 0 | G34: 517351.15 | H34: 1268516 | I34: -751164.85 | J34: =IF(I34=0,"",I34/H34) -> -0.5921603275 | K34: =SUM(K18:K33) -> 7610917
A35: % increase | B35: 4 | D35: =IF(D34=0,"",(D34/C34)-1) -> 0.4301798179 | E35: =IF(E34=0,"",(E34/C34)-1) -> 0.4301798179 | K35: =IF(K34=0,"",(K34/C34)-1) -> 0.4301798179
A37: Other Municipal Staff
A38: Basic Salaries and Wages | C38: 60828930.93 | D38: 58943140 | E38: 60238975 | F38: 0 | G38: 5498670.74 | H38: 10039860.5 | I38: =G38-H38 -> -4541189.76 | J38: =IF(I38=0,"",I38/H38) -> -0.4523160217 | K38: 60238975
A39: Pension and UIF Contributions | C39: 12351604.52 | D39: 11777285 | E39: 11777285 | F39: 0 | G39: 1098230.66 | H39: 1962928 | I39: -864697.34 | J39: -0.4405140382 | K39: 11777285
A40: Medical Aid Contributions | C40: 5327967.56 | D40: 5681807 | E40: 5681807 | F40: 0 | G40: 467796.97 | H40: 946988 | I40: -479191.03 | J40: -0.5060159474 | K40: 5681807
A41: Overtime | C41: 553612.52 | D41: 825000 | E41: 825000 | F41: 0 | G41: 15506.68 | H41: 137510 | I41: -122003.32 | J41: -0.8872323467 | K41: 825000
A42: Performance Bonus | C42: 6074524.58 | D42: 7577173 | E42: 6281338 | F42: 0 | G42: 249288.33 | H42: 1046941.5 | I42: -797653.17 | J42: -0.7618889594 | K42: 6281338
A43: Motor Vehicle Allowance | C43: 6756851.19 | D43: 7342422 | E43: 7342422 | F43: 0 | G43: 606878.26 | H43: 1223760 | I43: =G43-H43 -> -616881.74 | J43: =IF(I43=0,"",I43/H43) -> -0.5040871903 | K43: 7342422
A44: Cellphone Allowance | C44: 1077351.43 | D44: 1385901 | E44: 1385901 | F44: 0 | G44: 94312.82 | H44: 230984 | I44: =G44-H44 -> -136671.18 | J44: =IF(I44=0,"",I44/H44) -> -0.5916911128 | K44: 1385901
A45: Housing Allowances | C45: 218542.32 | D45: 322205 | E45: 322205 | F45: 0 | G45: 20261.79 | H45: 53704 | I45: =G45-H45 -> -33442.21 | J45: =IF(I45=0,"",I45/H45) -> -0.6227135781 | K45: 322205
A46: Other benefits and allowances | C46: 853325.67 | D46: 1006331 | E46: 1006331 | F46: 0 | G46: 101863.58 | H46: 167760 | I46: -65896.42 | J46: -0.3928017406 | K46: 1006331
A47: Payments in lieu of leave | C47: 425489.95 | D47: 275000 | E47: 275000 | F47: 0 | G47: 0 | H47: 45842 | I47: -45842 | J47: -1 | K47: 275000
A48: Long service awards | C48: 714106.37 | D48: 1552336 | E48: 1525336 | F48: 0 | G48: 228373.66 | H48: 254256 | I48: -25882.34 | J48: -0.1017963785 | K48: 1525336
A49: Post-retirement benefit obligations | B49: 2 | C49: 0 | D49: 2447120 | E49: 2447120 | F49: 0 | G49: 0 | H49: 407910 | I49: -407910 | J49: -1 | K49: 2447120
A50: Entertainment | I50: 0
A51: Scarcity | I51: 0
A52: Acting and post related allowance | C52: 160133.9 | D52: 540000 | E52: 540000 | F52: 0 | G52: 7500 | H52: 90000 | I52: -82500 | J52: -0.9166666667 | K52: 540000
A53: In kind benefits | I53: 0
A54: Sub Total - Other Municipal Staff | C54: =SUM(C38:C53) -> 95342440.94 | D54: 99675720 | E54: 99648720 | F54: 0 | G54: 8388683.49 | H54: 16608444 | I54: -8219760.51 | J54: =IF(I54=0,"",I54/H54) -> -0.4949145453 | K54: =SUM(K38:K53) -> 99648720
A55: % increase | B55: 4 | D55: =IF(D54=0,"",(D54/C54)-1) -> 0.04544963415 | E55: =IF(E54=0,"",(E54/C54)-1) -> 0.04516644442 | K55: =IF(K54=0,"",(K54/C54)-1) -> 0.04516644442
A56: Total Parent Municipality | C56: =C14+C34+C54 -> 113872836.2 | D56: 126927024 | E56: 126900024 | F56: 0 | G56: 10015193.4 | H56: 21150376 | I56: =G56-H56 -> -11135182.6 | J56: =IF(I56=0,"",I56/H56) -> -0.5264768154 | K56: =K14+K34+K54 -> 126900024
D57: =IF(D56=0,"",(D56/C56)-1) -> 0.1146382954 | E57: =IF(E56=0,"",(E56/C56)-1) -> 0.1144011888 | K57: =IF(K56=0,"",(K56/C56)-1) -> 0.1144011888
A58: Unpaid salary, allowances & benefits in arrears:
A60: Board Members of Entities
A61: Basic Salaries and Wages | I61: =G61-H61 -> 0 | J61: =IF(I61=0,"",I61/H61) -> 
A62: Pension and UIF Contributions | I62: 0
A63: Medical Aid Contributions | I63: 0
A64: Overtime | I64: 0 | J64: =IF(I64=0,"",I64/H64) -> 
A65: Performance Bonus | I65: 0 | J65: =IF(I65=0,"",I65/H65) -> 
A66: Motor Vehicle Allowance | I66: 0 | J66: =IF(I66=0,"",I66/H66) -> 
A67: Cellphone Allowance | I67: 0 | J67: =IF(I67=0,"",I67/H67) -> 
A68: Housing Allowances | I68: 0 | J68: =IF(I68=0,"",I68/H68) -> 
A69: Other benefits and allowances | I69: 0
A70: Board Fees | B70: 5 | I70: 0 | J70: =IF(I70=0,"",I70/H70) -> 
A71: Payments in lieu of leave | I71: 0
A72: Long service awards | I72: 0
A73: Post-retirement benefit obligations | I73: 0
A74: Entertainment
A75: Scarcity
A76: Acting and post related allowance
A77: In kind benefits
A78: Sub Total - Executive members Board | B78: 2 | C78: =SUM(C61:C77) -> 0 | D78: 0 | E78: 0 | F78: 0 | G78: 0 | H78: 0 | I78: =G78-H78 -> 0 | J78: =IF(I78=0,"",I78/H78) ->  | K78: =SUM(K61:K77) -> 0
A79: % increase | B79: 4 | D79: =IF(D78=0,"",(D78/C78)-1) ->  | E79: =IF(E78=0,"",(E78/C78)-1) ->  | K79: =IF(K78=0,"",(K78/C78)-1) -> 
A81: Senior Managers of Entities
A82: Basic Salaries and Wages | I82: =G82-H82 -> 0 | J82: =IF(I82=0,"",I82/H82) -> 
A83: Pension and UIF Contributions | I83: 0
A84: Medical Aid Contributions | I84: 0
A85: Overtime | I85: 0
A86: Performance Bonus | I86: =G86-H86 -> 0 | J86: =IF(I86=0,"",I86/H86) -> 
A87: Motor Vehicle Allowance | I87: =G87-H87 -> 0 | J87: =IF(I87=0,"",I87/H87) -> 
A88: Cellphone Allowance | I88: =G88-H88 -> 0 | J88: =IF(I88=0,"",I88/H88) -> 
A89: Housing Allowances | I89: =G89-H89 -> 0 | J89: =IF(I89=0,"",I89/H89) -> 
A90: Other benefits and allowances | I90: 0
A91: Payments in lieu of leave | I91: 0
A92: Long service awards | I92: 0
A93: Post-retirement benefit obligations | B93: 2 | I93: 0
A94: Entertainment
A95: Scarcity
A96: Acting and post related allowance
A97: In kind benefits
A98: Sub Total - Senior Managers of Entities | C98: =SUM(C82:C97) -> 0 | D98: 0 | E98: 0 | F98: 0 | G98: 0 | H98: 0 | I98: 0 | J98: =IF(I98=0,"",I98/H98) ->  | K98: =SUM(K82:K97) -> 0
A99: % increase | B99: 4 | D99: =IF(D98=0,"",(D98/C98)-1) ->  | E99: =IF(E98=0,"",(E98/C98)-1) ->  | K99: =IF(K98=0,"",(K98/C98)-1) -> 
A101: Other Staff of Entities
A102: Basic Salaries and Wages | I102: =G102-H102 -> 0 | J102: =IF(I102=0,"",I102/H102) -> 
A103: Pension and UIF Contributions | I103: 0
A104: Medical Aid Contributions | I104: =G104-H104 -> 0 | J104: =IF(I104=0,"",I104/H104) -> 
A105: Overtime | I105: =G105-H105 -> 0 | J105: =IF(I105=0,"",I105/H105) -> 
A106: Performance Bonus | I106: =G106-H106 -> 0 | J106: =IF(I106=0,"",I106/H106) -> 
A107: Motor Vehicle Allowance | I107: =G107-H107 -> 0 | J107: =IF(I107=0,"",I107/H107) -> 
A108: Cellphone Allowance | I108: 0
A109: Housing Allowances | I109: 0
A110: Other benefits and allowances | I110: 0
A111: Payments in lieu of leave | I111: 0
A112: Long service awards | I112: 0
A113: Post-retirement benefit obligations | I113: 0
A114: Entertainment
A115: Scarcity
A116: Acting and post related allowance
A117: In kind benefits
A118: Sub Total - Other Staff of Entities | C118: =SUM(C102:C117) -> 0 | D118: 0 | E118: 0 | F118: 0 | G118: 0 | H118: 0 | I118: 0 | J118: =IF(I118=0,"",I118/H118) ->  | K118: =SUM(K102:K117) -> 0
A119: % increase | B119: 4 | D119: =IF(D118=0,"",(D118/C118)-1) ->  | E119: =IF(E118=0,"",(E118/C118)-1) ->  | K119: =IF(K118=0,"",(K118/C118)-1) -> 
A120: Total Municipal Entities | C120: =C78+C98+C118 -> 0 | D120: 0 | E120: 0 | F120: 0 | G120: 0 | H120: 0 | I120: =G120-H120 -> 0 | J120: =IF(I120=0,"",I120/H120) ->  | K120: =K78+K98+K118 -> 0
A121: TOTAL SALARY, ALLOWANCES & BENEFITS | C121: =C56+C120 -> 113872836.2 | D121: 126927024 | E121: 126900024 | F121: 0 | G121: 10015193.4 | H121: 21150376 | I121: =G121-H121 -> -11135182.6 | J121: =IF(I121=0,"",I121/H121) -> -0.5264768154 | K121: =K56+K120 -> 126900024
A122: % increase | B122: 4 | D122: =IF(D121=0,"",(D121/C121)-1) -> 0.1146382954 | E122: =IF(E121=0,"",(E121/C121)-1) -> 0.1144011888 | K122: =IF(K121=0,"",(K121/C121)-1) -> 0.1144011888
A123: TOTAL MANAGERS AND STAFF | C123: =C34+C54+C98+C118 -> 100664091.3 | D123: 107286637 | E123: 107259637 | F123: 0 | G123: 8906034.64 | H123: 17876960 | I123: -8970925.36 | J123: =IF(I123=0,"",I123/H123) -> -0.501814926 | K123: =K34+K54+K98+K118 -> 107259637
A124: =head27a -> References
A125: 1. Include 'Loans and advances' where applicable if any reportable amounts until phased compliance with s164 of MFMA achieved
A126: 2. If benefits in kind are provided (e.g. provision of living quarters) the full market value must be shown as the cost to the municipality
A127: 3. s57 of the Systems Act
A128: 4. B/A, C/A, D/A
A129: 5. Included in Contracted services
A130: Column Definitions:
A131: A. Audited actual 2022/23 (audited financial statements). If audited amounts unavailable, unaudited amounts must be provided with a note stating these are unaudited
A132: B. The original budget approved by council for the 2023/24 budget year.
A133: C. The budget for 2023/24 budget year as adjusted by council resolution in terms of section 28 of the MFMA.
A134: D. An estimate of final actual amounts (pre audit - 2006/07 budget year) at the time of preparing the budget for the 2007/08 budget year. This may differ from C.

Sheet SC9
A1: =muni& " - "&S71O& " - "&Head57 -> LIM353 Molemole - Supporting Table SC9 Monthly Budget Statement - actuals and revised targets for cash receipts - M02 August
A2: =desc -> Description | B2: =head27 -> Ref | C2: =Head2 -> Budget Year 2023/24 | O2: ='Template names'!B5 -> 2023/24 Medium Term Revenue & Expenditure Framework
C3: July | D3: August | E3: Sept | F3: October | G3: Nov | H3: Dec | I3: January | J3: Feb | K3: March | L3: April | M3: May | N3: June | O3: =Head9 -> Budget Year 2023/24 | P3: =Head10 -> Budget Year +1 2024/25 | Q3: =Head11 -> Budget Year +2 2025/26
A4: R thousands | B4: 1 | C4: Outcome | D4: Outcome | E4: Budget | F4: Budget | G4: Budget | H4: Budget | I4: Budget | J4: Budget | K4: Budget | L4: Budget | M4: Budget | N4: Budget
A5: Cash Receipts By Source
A6: Property rates | C6: 0 | D6: 0 | E6: 3262827.58 | F6: 3262827.58 | G6: 3262827.58 | H6: 3262827.58 | I6: 3262827.58 | J6: 3262827.58 | K6: 3262827.58 | L6: 3262827.58 | M6: 3262827.58 | N6: =O6-SUM(C6:M6) -> 9788482.78 | O6: 39153931 | P6: 41111628 | Q6: 43167210
A7: Service charges - Electricity revenue | C7: 0 | D7: 0 | E7: 1377836.5 | F7: 1377836.5 | G7: 1377836.5 | H7: 1377836.5 | I7: 1377836.5 | J7: 1377836.5 | K7: 1377836.5 | L7: 1377836.5 | M7: 1377836.5 | N7: 4133509.5 | O7: 16534038 | P7: 17360740 | Q7: 18228778
A8: Service charges - Water revenue | C8: 0 | D8: 0 | E8: 0 | F8: 0 | G8: 0 | H8: 0 | I8: 0 | J8: 0 | K8: 0 | L8: 0 | M8: 0 | N8: 0 | O8: 0 | P8: 0 | Q8: 0
A9: Service charges - Waste Water Management | C9: 0 | D9: 0 | E9: 0 | F9: 0 | G9: 0 | H9: 0 | I9: 0 | J9: 0 | K9: 0 | L9: 0 | M9: 0 | N9: 0 | O9: 0 | P9: 0 | Q9: 0
A10: Service charges - Waste Mangement | C10: 0 | D10: 0 | E10: 251083.58 | F10: 251083.58 | G10: 251083.58 | H10: 251083.58 | I10: 251083.58 | J10: 251083.58 | K10: 251083.58 | L10: 251083.58 | M10: 251083.58 | N10: 753250.78 | O10: 3013003 | P10: 3160640 | Q10: 3321836
N11: 0
A12: Rental of facilities and equipment | C12: 0 | D12: 0 | E12: 20662.58 | F12: 20662.58 | G12: 20662.58 | H12: 20662.58 | I12: 20662.58 | J12: 20662.58 | K12: 20662.58 | L12: 20662.58 | M12: 20662.58 | N12: 61987.78 | O12: 247951 | P12: 260349 | Q12: 273366
A13: Interest earned - external investments | C13: 0 | D13: 0 | E13: 800000 | F13: 800000 | G13: 800000 | H13: 800000 | I13: 800000 | J13: 800000 | K13: 800000 | L13: 800000 | M13: 800000 | N13: 2400000 | O13: 9600000 | P13: 7571218 | Q13: 7927065
A14: Interest earned - outstanding debtors | N14: 0
A15: Dividends received | N15: 0
A16: Fines, penalties and forfeits | C16: 0 | D16: 0 | E16: 51732.92 | F16: 51732.92 | G16: 51732.92 | H16: 51732.92 | I16: 51732.92 | J16: 51732.92 | K16: 51732.92 | L16: 51732.92 | M16: 51732.92 | N16: 155198.72 | O16: 620795 | P16: 651243 | Q16: 681941
A17: Licences and permits | C17: 0 | D17: 0 | E17: 1093336.75 | F17: 1093336.75 | G17: 1093336.75 | H17: 1093336.75 | I17: 1093336.75 | J17: 1093336.75 | K17: 1093336.75 | L17: 1093336.75 | M17: 1093336.75 | N17: 3280010.25 | O17: 13120041 | P17: 13776044 | Q17: 14464846
A18: Agency services | C18: 0 | D18: 0 | E18: 140079 | F18: 140079 | G18: 140079 | H18: 140079 | I18: 140079 | J18: 140079 | K18: 140079 | L18: 140079 | M18: 140079 | N18: 420237 | O18: 1680948 | P18: 1764996 | Q18: 1853246
A19: Transfers and Subsidies - Operational | C19: 0 | D19: 0 | E19: 15308387.5 | F19: 15308387.5 | G19: 15308387.5 | H19: 15308387.5 | I19: 15308387.5 | J19: 15308387.5 | K19: 15308387.5 | L19: 15308387.5 | M19: 15308387.5 | N19: 45925162.5 | O19: 183700650 | P19: 192509050 | Q19: 185454150
A20: Other revenue | C20: 0 | D20: 0 | E20: -221734.09 | F20: -221734.09 | G20: -221734.09 | H20: -221734.09 | I20: -221734.09 | J20: -221734.09 | K20: -221734.09 | L20: -221734.09 | M20: -221734.09 | N20: -665202.19 | O20: -2660809 | P20: -2790248 | Q20: -2931061
A21: Cash Receipts by Source | C21: =SUM(C6:C10)+SUM(C15:C20) -> 0 | D21: 0 | E21: 21263549.74 | F21: 21263549.74 | G21: 21263549.74 | H21: 21263549.74 | I21: 21263549.74 | J21: 21263549.74 | K21: 21263549.74 | L21: 21263549.74 | M21: 21263549.74 | N21: 63790649.34 | O21: 255162597 | P21: 267544093 | Q21: 264240946
A22: Other Cash Flows by Source | N22: =O22-SUM(C22:M22) -> 0
A23: Transfers and subsidies - capital (monetary allocations) (National / Provincial and District) | C23: 0 | D23: 0 | E23: 4879029.16 | F23: 4879029.16 | G23: 4879029.16 | H23: 4879029.16 | I23: 4879029.16 | J23: 4879029.16 | K23: 4879029.16 | L23: 4879029.16 | M23: 4879029.16 | N23: 14637087.56 | O23: 58548350 | P23: 51508950 | Q23: 53726850
A24: Transfers and subsidies - capital (monetary allocations) (Nat / Prov Departm Agencies, Households, Non-profit Institutions, Private Enterprises, Public Corporatons, Higher Educ Institutions) | N24: 0
A25: Proceeds on Disposal of Fixed and Intangible Assets | N25: 0
A26: Short term loans | N26: 0
A27: Borrowing long term/refinancing | N27: 0
A28: Increase (decrease) in consumer deposits | N28: 0
A30: Decrease (increase) in non-current receivables | N30: 0
A31: Decrease (increase) in non-current investments | C31: 0 | D31: 0 | E31: 0 | F31: 0 | G31: 0 | H31: 0 | I31: 0 | J31: 0 | K31: 0 | L31: 0 | M31: 0 | N31: 0 | O31: 0 | P31: 0 | Q31: 0
A32: Total Cash Receipts by Source | C32: =SUM(C21:C28)+SUM(C30:C31) -> 0 | D32: 0 | E32: 26142578.9 | F32: 26142578.9 | G32: 26142578.9 | H32: 26142578.9 | I32: 26142578.9 | J32: 26142578.9 | K32: 26142578.9 | L32: 26142578.9 | M32: 26142578.9 | N32: 78427736.9 | O32: 313710947 | P32: 319053043 | Q32: 317967796
A33: Cash Payments by Type | N33: =O33-SUM(C33:M33) -> 0
A34: Employee related costs | C34: 0 | D34: 0 | E34: 8940553 | F34: 8940553 | G34: 8940553 | H34: 8940553 | I34: 8940553 | J34: 8940553 | K34: 8940553 | L34: 8940553 | M34: 8940553 | N34: 26821659 | O34: 107286636 | P34: 117566802 | Q34: 123422141
A35: Remuneration of councillors | C35: 0 | D35: 0 | E35: 1636698.75 | F35: 1636698.75 | G35: 1636698.75 | H35: 1636698.75 | I35: 1636698.75 | J35: 1636698.75 | K35: 1636698.75 | L35: 1636698.75 | M35: 1636698.75 | N35: 4910096.25 | O35: 19640385 | P35: 20620405 | Q35: 21649425
A36: Interest | N36: 0
A37: Bulk purchases - Electricity | C37: 0 | D37: 0 | E37: 1148604.42 | F37: 1148604.42 | G37: 1148604.42 | H37: 1148604.42 | I37: 1148604.42 | J37: 1148604.42 | K37: 1148604.42 | L37: 1148604.42 | M37: 1148604.42 | N37: 3445813.22 | O37: 13783253 | P37: 14472415 | Q37: 15196036
A38: Acquisitions - water & other inventory | C38: 0 | D38: 0 | E38: 687153.5 | F38: 687153.5 | G38: 687153.5 | H38: 687153.5 | I38: 687153.5 | J38: 687153.5 | K38: 687153.5 | L38: 687153.5 | M38: 687153.5 | N38: 2061460.5 | O38: 8245842 | P38: 8263500 | Q38: 8676675
A40: Contracted services | C40: 0 | D40: 0 | E40: 3814043.99 | F40: 3814043.99 | G40: 3814043.99 | H40: 3814043.99 | I40: 3814043.99 | J40: 3814043.99 | K40: 3814043.99 | L40: 3814043.99 | M40: 3814043.99 | N40: 11442132.09 | O40: 45768528 | P40: 42959700 | Q40: 45072686
A41: Transfers and subsidies - other municipalities | N41: 0
A42: Transfers and subsidies - other | N42: 0
A43: Other expenditure | C43: 0 | D43: 0 | E43: 3334789.67 | F43: 3334789.67 | G43: 3334789.67 | H43: 3334789.67 | I43: 3334789.67 | J43: 3334789.67 | K43: 3334789.67 | L43: 3334789.67 | M43: 3334789.67 | N43: 10004368.97 | O43: 40017476 | P43: 40172450 | Q43: 40745470
A44: Cash Payments by Type | B44: =SUM(B34:B43) -> 0 | C44: =SUM(C34:C43) -> 0 | D44: =SUM(D34:D43) -> 0 | E44: 19561843.33 | F44: 19561843.33 | G44: 19561843.33 | H44: 19561843.33 | I44: 19561843.33 | J44: 19561843.33 | K44: 19561843.33 | L44: 19561843.33 | M44: 19561843.33 | N44: 58685530.03 | O44: 234742120 | P44: 244055272 | Q44: 254762433
A45: Other Cash Flows/Payments by Type
A46: Capital assets | C46: 0 | D46: 0 | E46: 6031695.81 | F46: 6031695.81 | G46: 6031695.81 | H46: 6031695.81 | I46: 6031695.81 | J46: 6031695.81 | K46: 6031695.81 | L46: 6031695.81 | M46: 6031695.81 | N46: =O46-SUM(C46:M46) -> 18095087.71 | O46: 72380350 | P46: 0 | Q46: 53279850
A47: Repayment of borrowing | C47: 0 | D47: 0 | E47: 0 | F47: 0 | G47: 0 | H47: 0 | I47: 0 | J47: 0 | K47: 0 | L47: 0 | M47: 0 | N47: =O47-SUM(C47:M47) -> 0 | O47: 0 | P47: 0 | Q47: 0
A48: Other Cash Flows/Payments | C48: 0 | D48: 0 | E48: 0 | F48: 0 | G48: 0 | H48: 0 | I48: 0 | J48: 0 | K48: 0 | L48: 0 | M48: 0 | N48: =O48-SUM(C48:M48) -> 0 | O48: 0 | P48: 0 | Q48: 0
A49: Total Cash Payments by Type | B49: =SUM(B44:B48) -> 0 | C49: 0 | D49: 0 | E49: 25593539.14 | F49: 25593539.14 | G49: 25593539.14 | H49: 25593539.14 | I49: 25593539.14 | J49: 25593539.14 | K49: 25593539.14 | L49: 25593539.14 | M49: 25593539.14 | N49: 76780617.74 | O49: 307122470 | P49: 244055272 | Q49: 308042283
A50: NET INCREASE/(DECREASE) IN CASH HELD | B50: =B32-B49 -> 0 | C50: 0 | D50: 0 | E50: 549039.76 | F50: 549039.76 | G50: 549039.76 | H50: 549039.76 | I50: 549039.76 | J50: 549039.76 | K50: 549039.76 | L50: 549039.76 | M50: 549039.76 | N50: 1647119.16 | O50: 6588477 | P50: 74997771 | Q50: 9925513
A51: Cash/cash equivalents at the month/year beginning: | C51: 0 | D51: =C52 -> 0 | E51: =D52 -> 0 | F51: 549039.76 | G51: 1098079.52 | H51: 1647119.28 | I51: 2196159.04 | J51: 2745198.8 | K51: 3294238.56 | L51: 3843278.32 | M51: 4392318.08 | N51: 4941357.84 | O51: =C51 -> 0 | P51: =O52 -> 6588477 | Q51: =P52 -> 81586248
A52: Cash/cash equivalents at the month/year end: | C52: =C50+C51 -> 0 | D52: =D50+D51 -> 0 | E52: =E50+E51 -> 549039.76 | F52: 1098079.52 | G52: 1647119.28 | H52: 2196159.04 | I52: 2745198.8 | J52: 3294238.56 | K52: 3843278.32 | L52: 4392318.08 | M52: 4941357.84 | N52: 6588477 | O52: =O50+O51 -> 6588477 | P52: =P50+P51 -> 81586248 | Q52: =Q50+Q51 -> 91511761
A53: =head27a -> References
A54: 1. Replace 'budget' heading with adjusted budget, or 'outcome' only for month/s complete
A55: 2. Total of monthly amounts must always agree to the approved or adjusted budget
A56: 3. Amend 'cash-at-beginning' when prior year actual known (as part of the adjustments budget)
E61: =E44+E60 -> 19561843.33 | F61: 19561843.33 | G61: 19561843.33 | H61: 19561843.33 | I61: 19561843.33 | J61: 19561843.33 | K61: 19561843.33 | L61: 19561843.33 | N61: =N44+N60 -> 58685530.03 | O61: =O44+O60 -> 234742120 | P61: =P44+P60 -> 244055272
E62: =E50-E60 -> 549039.76 | F62: 549039.76 | G62: 549039.76 | H62: 549039.76 | I62: 549039.76 | J62: 549039.76 | K62: 549039.76 | L62: 549039.76 | M62: =M50-M60 -> 549039.76 | N62: =N50-N60 -> 1647119.16 | O62: 6588477 | P62: 74997771

Sheet SC10
A1: =muni& " - "&S71P& " - "&Head57 -> LIM353 Molemole - NOT REQUIRED - municipality does not have entities or this is the parent municipality's budget - M02 August
A2: =desc -> Description | B2: =head27 -> Ref | C2: =Head1 -> 2022/23 | D2: =Head2 -> Budget Year 2023/24
C3: =Head5 -> Audited Outcome | D3: =Head6 -> Original Budget | E3: =Head7 -> Adjusted Budget | F3: =Head38 -> Monthly actual | G3: =Head39 -> YearTD actual | H3: =Head40 -> YearTD budget | I3: =Head41 -> YTD variance | J3: =Head41 -> YTD variance | K3: =Head8 -> Full Year Forecast
A4: R thousands | B4: 1 | J4: %
A5: ='C4-FinPerf RE'!A5 -> Revenue
A6: Exchange Revenue
A7: Service charges - Electricity | I7: =G7-H7 -> 0 | J7: =IF(I7=0,"",I7/H7) -> 
A8: Service charges - Water | I8: 0
A9: Service charges - Waste Water Management | I9: 0
A10: Service charges - Waste management | I10: 0
A11: Sale of Goods and Rendering of Services | I11: =G11-H11 -> 0 | J11: =IF(I11=0,"",I11/H11) -> 
A12: Agency services | I12: 0
A13: Interest | I13: 0
A14: Interest earned from Receivables | I14: 0
A15: Interest earned from Current and Non Current Assets
A16: Dividends | I16: 0
A17: Rent on Land | I17: 0
A18: Rental from Fixed Assets | I18: 0
A19: Licence and permits | I19: 0
A20: Operational Revenue | I20: 0
A21: Non-Exchange Revenue | I21: 0
A22: Property rates
A23: Surcharges and Taxes
A24: Fines, penalties and forfeits | I24: 0
A25: Licences or permits
A26: Transfer and subsidies - Operational
A27: Interest
A28: Fuel Levy
A29: Operational Revenue
A30: Gains on disposal of Assets
A31: Other Gains
A32: Discontinued Operations
A33: Total Revenue (excluding capital transfers and contributions) | C33: =SUM(C7:C20)+SUM(C22:C32) -> 0 | D33: =SUM(D7:D20)+SUM(D22:D32) -> 0 | E33: 0 | F33: =SUM(F7:F20)+SUM(F22:F32) -> 0 | G33: =SUM(G7:G20)+SUM(G22:G32) -> 0 | H33: =SUM(H7:H20)+SUM(H22:H32) -> 0 | I33: =G33-H33 -> 0 | K33: =SUM(K7:K20)+SUM(K22:K32) -> 0
A34: Expenditure By Type
A35: Employee related costs | I35: =G35-H35 -> 0 | J35: =IF(I35=0,"",I35/H35) -> 
A36: Remuneration of councillors | I36: 0
A37: Bulk purchases - electricity | I37: 0
A38: Inventory consumed | I38: 0
A39: Debt impairment | I39: 0
A40: Depreciation and amortisation | I40: 0
A41: Interest | I41: 0
A42: Contracted services | I42: 0
A43: Transfers and subsidies | I43: 0
A44: Irrecoverable debts written off | I44: 0
A45: Operational costs | I45: 0
A46: Losses on disposal of Assets
A47: Other Losses
A48: Total Expenditure | C48: =SUM(C35:C47) -> 0 | D48: =SUM(D35:D47) -> 0 | E48: 0 | F48: 0 | G48: 0 | H48: 0 | I48: 0 | K48: =SUM(K35:K47) -> 0
A49: ='C4-FinPerf RE'!A49 -> Surplus/(Deficit) | C49: =C33-C48 -> 0 | D49: 0 | E49: 0 | F49: 0 | G49: 0 | H49: 0 | I49: 0 | K49: =K33-K48 -> 0
A50: ='C4-FinPerf RE'!A50 -> Transfers and subsidies - capital (monetary allocations) | I50: 0
A51: ='C4-FinPerf RE'!A51 -> Transfers and subsidies - capital (in-kind) | I51: 0
A52: ='C4-FinPerf RE'!A52 -> Surplus/(Deficit) after capital transfers & contributions | C52: =C49+SUM(C50:C51) -> 0 | D52: 0 | E52: 0 | F52: 0 | G52: 0 | H52: 0 | I52: 0 | K52: =K49+SUM(K50:K51) -> 0
A53: ='C4-FinPerf RE'!A53 -> Income Tax | I53: 0
A54: ='C4-FinPerf RE'!A54 -> Surplus/(Deficit) after income tax | C54: =C52-C53 -> 0 | D54: 0 | E54: 0 | F54: 0 | G54: 0 | H54: 0 | I54: 0 | K54: =K52-K53 -> 0
A55: =head27a -> References
A56: 1. Votes (consolidated) are revenue sources and expenditure type

Sheet SC11
A1: =muni& " - "&S71Q& " - "&Head57 -> LIM353 Molemole - NOT REQUIRED - municipality does not have entities or this is the parent municipality's budget - M02 August
A2: =desc -> Description | B2: =head27 -> Ref | C2: =Head1 -> 2022/23 | D2: =Head2 -> Budget Year 2023/24
C3: =Head5 -> Audited Outcome | D3: =Head6 -> Original Budget | E3: =Head7 -> Adjusted Budget | F3: =Head38 -> Monthly actual | G3: =Head39 -> YearTD actual | H3: =Head40 -> YearTD budget | I3: =Head41 -> YTD variance | J3: =Head41 -> YTD variance | K3: =Head8 -> Full Year Forecast
A4: R thousands | J4: %
A5: Revenue By Municipal Entity
A6: Insert name of municipal entity | I6: =G6-H6 -> 0 | J6: =IF(I6=0,"",I6/H6) -> 
I7: 0 | J7: =IF(I7=0,"",I7/H7) -> 
I8: 0
I9: 0
I10: 0
I11: 0
I12: 0
I13: 0
I14: 0
I15: 0
A16: Total Operating Revenue | B16: 1 | C16: =SUM(C6:C15) -> 0 | D16: 0 | E16: 0 | F16: 0 | G16: 0 | H16: 0 | I16: 0 | K16: =SUM(K6:K15) -> 0
A18: Expenditure By Municipal Entity
A19: =A6 -> Insert name of municipal entity | I19: 0 | J19: =IF(I19=0,"",I19/H19) -> 
A20: =IF(A7="","",A7) ->  | I20: 0
A21: =IF(A8="","",A8) ->  | I21: 0
I22: 0
I23: 0
I24: 0
I25: 0
I26: 0
I27: 0
I28: 0
A29: Total Operating Expenditure | B29: 2 | C29: =SUM(C19:C28) -> 0 | D29: 0 | E29: 0 | F29: 0 | G29: 0 | H29: 0 | I29: 0 | K29: =SUM(K19:K28) -> 0
A31: =Head42 -> Surplus/ (Deficit) for the yr/period | C31: =C16-C29 -> 0 | D31: =D16-D29 -> 0 | E31: 0 | F31: 0 | G31: 0 | H31: 0 | I31: =I16+I29 -> 0 | K31: 0
A32: Capital Expenditure By Municipal Entity
A33: =$A$6 -> Insert name of municipal entity | I33: 0
A34: =IF(A7="","",A7) ->  | I34: 0
A35: =IF(A8="","",A8) ->  | I35: 0
I36: 0
I37: 0
I38: 0
I39: 0
I40: 0
I41: 0
A43: Total Capital Expenditure | B43: 3 | C43: =SUM(C32:C42) -> 0 | D43: =SUM(D32:D42) -> 0 | E43: 0 | F43: 0 | G43: 0 | H43: =SUM(H32:H42) -> 0 | I43: =G43-H43 -> 0 | K43: 0
A44: =head27a -> References
A45: 1. Must reconcile to the sum of all municipal entity monthly revenue reports
A46: 2. Must reconcile to the sum of all municipal entity monthly expenditure reports
A47: 3. YTD = Year to date; FAV - favourable variance or unfavourable variance
A48: 4. Material variances to be explained
A49: 5. Insert additional 'Adjustment' Budget column for each Adjustment made by an entity

Sheet SC12
A1: =muni& " - "&S71R& " - "&Head57 -> LIM353 Molemole - Supporting Table SC12 Monthly Budget Statement - capital expenditure trend - M02 August
A2: Month | B2: =Head1 -> 2022/23 | C2: =Head2 -> Budget Year 2023/24
B3: =Head5 -> Audited Outcome | C3: =Head6 -> Original Budget | D3: =Head7 -> Adjusted Budget | E3: =Head38 -> Monthly actual | F3: =Head39 -> YearTD actual | G3: =Head40 -> YearTD budget | H3: =Head41 -> YTD variance | I3: =Head41 -> YTD variance | J3: % spend of Original Budget
A4: R thousands | I4: %
A5: Monthly expenditure performance trend
A6: July | B6: 4246742.68 | C6: 6031695.82 | D6: 6031706 | E6: 1759374.9 | F6: =IF(E6>0,E6,0) -> 1759374.9 | G6: =IF(D6>0,D6,C6) -> 6031706 | H6: =IF(F6="",0,G6-F6) -> 4272331.1 | I6: =IF(F6="","",IF(H6=0,"",H6/G6)) -> 0.7083122254 | J6: =IF(F6="","",F6/$C$18) -> 0.02430735552
A7: August | B7: 4246742.68 | C7: 6031695.82 | D7: 6031706 | E7: 0 | F7: 0 | G7: =IF(D7>0,D7+D6,C7+C6) -> 12063412 | H7: 12063412 | I7: 1 | J7: 0
A8: September | B8: 4246742.68 | C8: 6031695.82 | D8: 6031706 | E8: 0 | F8: 0 | G8: =IF(D8>0,D8+G7,C8+G7) -> 18095118 | H8: 18095118 | I8: 1 | J8: 0
A9: October | B9: 4246742.68 | C9: 6031695.82 | D9: 6031706 | E9: 0 | F9: 0 | G9: =IF(D9>0,D9+G8,C9+G8) -> 24126824 | H9: 24126824 | I9: 1 | J9: 0
A10: November | B10: 4246742.68 | C10: 6031695.82 | D10: 6031706 | E10: 0 | F10: 0 | G10: 30158530 | H10: 30158530 | I10: 1 | J10: 0
A11: December | B11: 4246742.68 | C11: 6031695.82 | D11: 6031706 | E11: 0 | F11: 0 | G11: 36190236 | H11: 36190236 | I11: 1 | J11: 0
A12: January | B12: 4246742.68 | C12: 6031695.82 | D12: 6031706 | E12: 0 | F12: 0 | G12: 42221942 | H12: 42221942 | I12: 1 | J12: 0
A13: February | B13: 4246742.68 | C13: 6031695.82 | D13: 6031706 | E13: 0 | F13: 0 | G13: 48253648 | H13: 48253648 | I13: 1 | J13: 0
A14: March | B14: 4246742.68 | C14: 6031695.82 | D14: 6031706 | E14: 0 | F14: 0 | G14: 54285354 | H14: 54285354 | I14: 1 | J14: 0
A15: April | B15: 4246742.68 | C15: 6031695.82 | D15: 6031706 | E15: 0 | F15: 0 | G15: 60317060 | H15: 60317060 | I15: 1 | J15: 0
A16: May | B16: 4246742.68 | C16: 6031695.82 | D16: 6031706 | E16: 0 | F16: =IF(E15>0,E15,0) -> 0 | G16: 66348766 | H16: 66348766 | I16: 1 | J16: 0
A17: June | B17: 4246742.58 | C17: 6031695.98 | D17: 6031584 | E17: 0 | F17: =IF(E17>0,E17,0) -> 0 | G17: 72380350 | H17: =IF(F17="",0,G17-F17) -> 72380350 | I17: =IF(F17="","",IF(H17=0,"",H17/G17)) -> 1 | J17: =IF(F17="","",F17/$C$18) -> 0
A18: Total Capital expenditure | B18: =SUM(B6:B17) -> 50960912.06 | C18: =SUM(C6:C17) -> 72380350 | D18: =SUM(D6:D17) -> 72380350 | E18: =SUM(E6:E17) -> 1759374.9

Sheet SC13a
A1: =muni& " - "&S71Sa& " - "&Head57 -> LIM353 Molemole - Supporting Table SC13a Monthly Budget Statement - capital expenditure on new assets by asset class - M02 August
A2: =desc -> Description | B2: =head27 -> Ref | C2: =Head1 -> 2022/23 | D2: =Head2 -> Budget Year 2023/24
C3: =Head5 -> Audited Outcome | D3: =Head6 -> Original Budget | E3: =Head7 -> Adjusted Budget | F3: =Head38 -> Monthly actual | G3: =Head39 -> YearTD actual | H3: =Head40 -> YearTD budget | I3: =Head41 -> YTD variance | J3: =Head41 -> YTD variance | K3: =Head8 -> Full Year Forecast
A4: R thousands | B4: 1 | J4: %
A5: Capital expenditure on new assets by Asset Class/Sub-class
A7: Infrastructure | C7: =C8+C13+C17+C27+C38+C45+C53+C63+C69 -> 35393614.48 | D7: 50262731 | E7: 50262731 | F7: 0 | G7: 1759374.9 | H7: 8377130 | I7: =H7-G7 -> 6617755.1 | J7: =IF(I7=0,"",I7/H7) -> 0.7899787994 | K7: =K8+K13+K17+K27+K38+K45+K53+K63+K69 -> 50262731
A8: Roads Infrastructure | C8: =SUM(C9:C12) -> 28494042.65 | D8: 31094731 | E8: 31094731 | F8: 0 | G8: 1759374.9 | H8: 5182458 | I8: 3423083.1 | J8: 0.6605134282 | K8: =SUM(K9:K12) -> 31094731
A9: Roads | C9: 28494042.65 | D9: 31094731 | E9: 31094731 | F9: 0 | G9: 1759374.9 | H9: 5182458 | I9: 3423083.1 | J9: 0.6605134282 | K9: 31094731
A10: Road Structures | I10: 0
A11: Road Furniture | I11: 0
A12: Capital Spares | I12: 0
A13: Storm water Infrastructure | C13: =SUM(C14:C16) -> 0 | D13: 0 | E13: 0 | F13: 0 | G13: 0 | H13: 0 | I13: 0 | K13: =SUM(K14:K16) -> 0
A14: Drainage Collection | I14: 0
A15: Storm water Conveyance | C15: 0 | D15: 0 | E15: 0 | F15: 0 | G15: 0 | H15: 0 | I15: 0 | K15: 0
A16: Attenuation | I16: 0
A17: Electrical Infrastructure | C17: =SUM(C18:C26) -> 6899571.83 | D17: 19168000 | E17: 19168000 | F17: 0 | G17: 0 | H17: 3194672 | I17: 3194672 | J17: 1 | K17: =SUM(K18:K26) -> 19168000
A18: Power Plants | I18: 0
A19: HV Substations | I19: 0
A20: HV Switching Station | I20: 0
A21: HV Transmission Conductors | I21: 0
A22: MV Substations | C22: 2314400 | D22: 0 | E22: 0 | F22: 0 | G22: 0 | H22: 0 | I22: 0 | K22: 0
A23: MV Switching Stations | I23: 0
A24: MV Networks | I24: 0
A25: LV Networks | C25: 4585171.83 | D25: 19168000 | E25: 19168000 | F25: 0 | G25: 0 | H25: 3194672 | I25: 3194672 | J25: 1 | K25: 19168000
A26: Capital Spares | I26: 0
A27: Water Supply Infrastructure | C27: =SUM(C28:C37) -> 0 | D27: 0 | E27: 0 | F27: 0 | G27: 0 | H27: 0 | I27: 0 | K27: =SUM(K28:K37) -> 0
A28: Dams and Weirs | I28: 0
A29: Boreholes | I29: 0
A30: Reservoirs | I30: 0
A31: Pump Stations | I31: 0
A32: Water Treatment Works | I32: 0
A33: Bulk Mains | I33: 0
A34: Distribution | I34: 0
A35: Distribution Points | I35: 0
A36: PRV Stations | I36: 0
A37: Capital Spares | I37: 0
A38: Sanitation Infrastructure | C38: =SUM(C39:C44) -> 0 | D38: 0 | E38: 0 | F38: 0 | G38: 0 | H38: 0 | I38: 0 | K38: =SUM(K39:K44) -> 0
A39: Pump Station | I39: 0
A40: Reticulation | I40: =H40-G40 -> 0 | J40: =IF(I40=0,"",I40/H40) -> 
A41: Waste Water Treatment Works | I41: =H41-G41 -> 0 | J41: =IF(I41=0,"",I41/H41) -> 
A42: Outfall Sewers | I42: =H42-G42 -> 0 | J42: =IF(I42=0,"",I42/H42) -> 
A43: Toilet Facilities | I43: 0
A44: Capital Spares | I44: 0
A45: Solid Waste Infrastructure | C45: =SUM(C46:C52) -> 0 | D45: 0 | E45: 0 | F45: 0 | G45: 0 | H45: 0 | I45: 0 | K45: =SUM(K46:K52) -> 0
A46: Landfill Sites | C46: 0 | D46: 0 | E46: 0 | F46: 0 | G46: 0 | H46: 0 | I46: 0 | K46: 0
A47: Waste Transfer Stations | I47: 0
A48: Waste Processing Facilities | I48: =H48-G48 -> 0 | J48: =IF(I48=0,"",I48/H48) -> 
A49: Waste Drop-off Points | I49: 0
A50: Waste Separation Facilities | I50: 0
A51: Electricity Generation Facilities | I51: 0
A52: Capital Spares | I52: 0
A53: Rail Infrastructure | C53: =SUM(C54:C62) -> 0 | D53: 0 | E53: 0 | F53: 0 | G53: 0 | H53: 0 | I53: 0 | K53: =SUM(K54:K62) -> 0
A54: Rail Lines | I54: 0
A55: Rail Structures | I55: 0
A56: Rail Furniture | I56: 0
A57: Drainage Collection | I57: 0
A58: Storm water Conveyance | I58: 0
A59: Attenuation | I59: 0
A60: MV Substations | I60: 0
A61: LV Networks | I61: 0
A62: Capital Spares | I62: 0
A63: Coastal Infrastructure | C63: =SUM(C64:C68) -> 0 | D63: 0 | E63: 0 | F63: 0 | G63: 0 | H63: 0 | I63: 0 | K63: =SUM(K64:K68) -> 0
A64: Sand Pumps | I64: 0
A65: Piers | I65: 0
A66: Revetments | I66: 0
A67: Promenades | I67: 0
A68: Capital Spares | I68: 0
A69: Information and Communication Infrastructure | C69: =SUM(C70:C73) -> 0 | D69: 0 | E69: 0 | F69: 0 | G69: 0 | H69: 0 | I69: =H69-G69 -> 0 | K69: =SUM(K70:K73) -> 0
A70: Data Centres | I70: =H70-G70 -> 0
A71: Core Layers | I71: =H71-G71 -> 0 | J71: =IF(I71=0,"",I71/H71) -> 
A72: Distribution Layers | I72: =H72-G72 -> 0
A73: Capital Spares | I73: =H73-G73 -> 0
A75: Community Assets | C75: =+C76+C99 -> 0 | D75: 0 | E75: 0 | F75: 0 | G75: 0 | H75: 0 | I75: =H75-G75 -> 0 | K75: =+K76+K99 -> 0
A76: Community Facilities | C76: =SUM(C77:C98) -> 0 | D76: 0 | E76: 0 | F76: 0 | G76: 0 | H76: 0 | I76: =H76-G76 -> 0 | K76: =SUM(K77:K98) -> 0
A77: Halls | I77: 0
A78: Centres | I78: 0
A79: Crèches | I79: 0
A80: Clinics/Care Centres | I80: 0
A81: Fire/Ambulance Stations | I81: 0
A82: Testing Stations | C82: 0 | D82: 0 | E82: 0 | F82: 0 | G82: 0 | H82: 0 | I82: 0 | K82: 0
A83: Museums | I83: 0
A84: Galleries | I84: 0
A85: Theatres | I85: 0
A86: Libraries | I86: 0
A87: Cemeteries/Crematoria | I87: 0
A88: Police | I88: 0
A89: Purls | I89: 0
A90: Public Open Space | C90: 0 | D90: 0 | E90: 0 | F90: 0 | G90: 0 | H90: 0 | I90: 0 | K90: 0
A91: Nature Reserves | I91: 0
A92: Public Ablution Facilities | I92: 0
A93: Markets | I93: 0
A94: Stalls | I94: 0
A95: Abattoirs | I95: 0
A96: Airports | I96: 0
A97: Taxi Ranks/Bus Terminals | I97: 0
A98: Capital Spares | I98: 0
A99: Sport and Recreation Facilities | C99: =SUM(C100:C102) -> 0 | D99: 0 | E99: 0 | F99: 0 | G99: 0 | H99: 0 | I99: 0 | K99: =SUM(K100:K102) -> 0
A100: Indoor Facilities | I100: 0
A101: Outdoor Facilities | I101: 0
A102: Capital Spares | I102: 0
A103: Heritage assets | C103: =SUM(C104:C108) -> 0 | D103: 0 | E103: 0 | F103: 0 | G103: 0 | H103: 0 | I103: 0 | K103: =SUM(K104:K108) -> 0
A104: Monuments | I104: 0
A105: Historic Buildings | I105: 0
A106: Works of Art | I106: 0
A107: Conservation Areas | I107: 0
A108: Other Heritage | I108: 0
I109: 0
A110: Investment properties | C110: =+C111+C114 -> 0 | D110: 0 | E110: 0 | F110: 0 | G110: 0 | H110: 0 | I110: 0 | K110: =+K111+K114 -> 0
A111: Revenue Generating | C111: =SUM(C112:C113) -> 0 | D111: 0 | E111: 0 | F111: 0 | G111: 0 | H111: 0 | I111: 0 | K111: =SUM(K112:K113) -> 0
A112: Improved Property | I112: 0
A113: Unimproved Property | I113: 0
A114: Non-revenue Generating | C114: =SUM(C115:C116) -> 0 | D114: 0 | E114: 0 | F114: 0 | G114: 0 | H114: 0 | I114: 0 | K114: =SUM(K115:K116) -> 0
A115: Improved Property | I115: 0
A116: Unimproved Property | I116: 0
A117: Other assets | C117: =+C118+C130 -> 0 | D117: 200000 | E117: 200000 | F117: 0 | G117: 0 | H117: 33334 | I117: 33334 | J117: 1 | K117: =+K118+K130 -> 200000
A118: Operational Buildings | C118: =SUM(C119:C129) -> 0 | D118: 200000 | E118: 200000 | F118: 0 | G118: 0 | H118: 33334 | I118: 33334 | J118: 1 | K118: =SUM(K119:K129) -> 200000
A119: Municipal Offices | C119: 0 | D119: 200000 | E119: 200000 | F119: 0 | G119: 0 | H119: 33334 | I119: 33334 | J119: 1 | K119: 200000
A120: Pay/Enquiry Points | I120: 0
A121: Building Plan Offices | I121: 0
A122: Workshops | C122: 0 | D122: 0 | E122: 0 | F122: 0 | G122: 0 | H122: 0 | I122: 0 | K122: 0
A123: Yards | I123: 0
A124: Stores | I124: 0
A125: Laboratories | I125: 0
A126: Training Centres | I126: 0
A127: Manufacturing Plant | I127: 0
A128: Depots | I128: 0
A129: Capital Spares | I129: 0
A130: Housing | C130: =SUM(C131:C133) -> 0 | D130: 0 | E130: 0 | F130: 0 | G130: 0 | H130: 0 | I130: 0 | K130: =SUM(K131:K133) -> 0
A131: Staff Housing | I131: 0
A132: Social Housing | I132: 0
A133: Capital Spares | I133: 0
A135: Biological or Cultivated Assets | C135: =SUM(C136:C136) -> 0 | D135: 0 | E135: 0 | F135: 0 | G135: 0 | H135: 0 | I135: =H135-G135 -> 0 | J135: =IF(I135=0,"",I135/H135) ->  | K135: =SUM(K136) -> 0
A136: Biological or Cultivated Assets | I136: =H136-G136 -> 0
A138: Intangible Assets | C138: =SUM(C139:C140) -> 0 | D138: 1500000 | E138: 1500000 | F138: 0 | G138: 0 | H138: 250000 | I138: =H138-G138 -> 250000 | J138: 1 | K138: =SUM(K139:K140) -> 1500000
A139: Servitudes | I139: 0
A140: Licences and Rights | C140: =SUM(C141:C146) -> 0 | D140: 1500000 | E140: 1500000 | F140: 0 | G140: 0 | H140: 250000 | I140: 250000 | J140: 1 | K140: =SUM(K141:K146) -> 1500000
A141: Water Rights | I141: 0
A142: Effluent Licenses | I142: 0
A143: Solid Waste Licenses | I143: 0
A144: Computer Software and Applications | C144: 0 | D144: 1500000 | E144: 1500000 | F144: 0 | G144: 0 | H144: 250000 | I144: 250000 | J144: 1 | K144: 1500000
A145: Load Settlement Software Applications | I145: 0
A146: Unspecified | I146: 0
A148: Computer Equipment | C148: =SUM(C149:C149) -> 2228951.09 | D148: 2000000 | E148: 2000000 | F148: 0 | G148: 0 | H148: 333334 | I148: =H148-G148 -> 333334 | J148: =IF(I148=0,"",I148/H148) -> 1 | K148: =SUM(K149) -> 2000000
A149: Computer Equipment | C149: 2228951.09 | D149: 2000000 | E149: 2000000 | F149: 0 | G149: 0 | H149: 333334 | I149: =H149-G149 -> 333334 | J149: =IF(I149=0,"",I149/H149) -> 1 | K149: 2000000
A151: Furniture and Office Equipment | C151: =SUM(C152:C152) -> 157300 | D151: 300000 | E151: 300000 | F151: 0 | G151: 0 | H151: 50002 | I151: =H151-G151 -> 50002 | J151: =IF(I151=0,"",I151/H151) -> 1 | K151: =SUM(K152) -> 300000
A152: Furniture and Office Equipment | C152: 157300 | D152: 300000 | E152: 300000 | F152: 0 | G152: 0 | H152: 50002 | I152: =H152-G152 -> 50002 | J152: =IF(I152=0,"",I152/H152) -> 1 | K152: 300000
J153: =IF(I153=0,"",I153/H153) -> 
A154: Machinery and Equipment | C154: =SUM(C155:C155) -> 201053.5 | D154: 1432000 | E154: 1432000 | F154: 0 | G154: 0 | H154: 238672 | I154: =H154-G154 -> 238672 | J154: =IF(I154=0,"",I154/H154) -> 1 | K154: =SUM(K155) -> 1432000
A155: Machinery and Equipment | C155: 201053.5 | D155: 1432000 | E155: 1432000 | F155: 0 | G155: 0 | H155: 238672 | I155: =H155-G155 -> 238672 | J155: =IF(I155=0,"",I155/H155) -> 1 | K155: 1432000
A157: Transport Assets | C157: =SUM(C158:C158) -> 2170000 | D157: 1000000 | E157: 1000000 | F157: 0 | G157: 0 | H157: 166668 | I157: =H157-G157 -> 166668 | J157: =IF(I157=0,"",I157/H157) -> 1 | K157: =SUM(K158) -> 1000000
A158: Transport Assets | C158: 2170000 | D158: 1000000 | E158: 1000000 | F158: 0 | G158: 0 | H158: 166668 | I158: =H158-G158 -> 166668 | J158: =IF(I158=0,"",I158/H158) -> 1 | K158: 1000000
A160: Land | C160: =SUM(C161:C161) -> 0 | D160: 0 | E160: 0 | F160: 0 | G160: 0 | H160: 0 | I160: =H160-G160 -> 0 | J160: =IF(I160=0,"",I160/H160) ->  | K160: =SUM(K161) -> 0
A161: Land | I161: =H161-G161 -> 0 | J161: =IF(I161=0,"",I161/H161) -> 
A163: Zoo's, Marine and Non-biological Animals | C163: =SUM(C164:C164) -> 0 | D163: 0 | E163: 0 | F163: 0 | G163: 0 | H163: 0 | I163: =H163-G163 -> 0 | J163: =IF(I163=0,"",I163/H163) ->  | K163: =SUM(K164) -> 0
A164: Zoo's, Marine and Non-biological Animals | I164: =H164-G164 -> 0 | J164: =IF(I164=0,"",I164/H164) -> 
A166: Living resources | C166: =+C167+C170 -> 0 | D166: 0 | E166: 0 | F166: 0 | G166: 0 | H166: 0 | I166: =H166-G166 -> 0 | J166: =IF(I166=0,"",I166/H166) ->  | K166: 0
A167: Mature | C167: =+C168+C169 -> 0 | D167: 0 | E167: 0 | F167: 0 | G167: 0 | H167: 0 | I167: 0 | K167: 0
A168: Policing and Protection | I168: 0
A169: Zoological plants and animals | I169: 0
A170: Immature | C170: =+C171+C172 -> 0 | D170: =+D171+D172 -> 0 | E170: 0 | F170: 0 | G170: 0 | H170: 0 | I170: 0 | K170: =+K171+K172 -> 0
A171: Policing and Protection | I171: 0
A172: Zoological plants and animals | I172: 0
A173: Total Capital Expenditure on new assets | B173: 1 | C173: =C7+C75+C103+C110+C117+C135+C138+C148+C151+C154+C157+C160+C163+C166 -> 40150919.07 | D173: 56694731 | E173: 56694731 | F173: 0 | G173: 1759374.9 | H173: 9449140 | I173: =H173-G173 -> 7689765.1 | J173: =IF(I173=0,"",I173/H173) -> 0.8138058172 | K173: =K7+K75+K103+K110+K117+K135+K138+K148+K151+K154+K157+K160+K163+K166 -> 56694731
A175: =head27a -> References
A176: 1. Total Capital Expenditure on new assets (SC13a) plus Total Capital Expenditure on renewal of existing assets (SC13b) plus Total Capital Expenditure on upgrading of existing assets (SC13e) must reconcile to total capital expenditure in Table C5
A178: check balance | C178: =C173+SC13b!C173+SC13e!C173-'C5-Capex'!C40 -> 0 | D178: =D173+SC13b!D173+SC13e!D173-'C5-Capex'!D40 -> 0 | E178: =E173+SC13b!E173+SC13e!E173-'C5-Capex'!E40 -> 0 | F178: =F173+SC13b!F173+SC13e!F173-'C5-Capex'!F40 -> 0 | G178: =G173+SC13b!G173+SC13e!G173-'C5-Capex'!G40 -> 0 | H178: =H173+SC13b!H173+SC13e!H173-'C5-Capex'!H40 -> 0 | K178: =K173+SC13b!K173+SC13e!K173-'C5-Capex'!K40 -> 0

Sheet SC13b
A1: =muni& " - "&S71Sb& " - "&Head57 -> LIM353 Molemole - Supporting Table SC13b Monthly Budget Statement - capital expenditure on renewal of existing assets by asset class - M02 August
A2: =desc -> Description | B2: =head27 -> Ref | C2: =Head1 -> 2022/23 | D2: =Head2 -> Budget Year 2023/24
C3: =Head5 -> Audited Outcome | D3: =Head6 -> Original Budget | E3: =Head7 -> Adjusted Budget | F3: =Head38 -> Monthly actual | G3: =Head39 -> YearTD actual | H3: =Head40 -> YearTD budget | I3: =Head41 -> YTD variance | J3: =Head41 -> YTD variance | K3: =Head8 -> Full Year Forecast
A4: R thousands | B4: 1 | J4: %
A5: Capital expenditure on renewal of existing assets by Asset Class/Sub-class
A7: Infrastructure | C7: =C8+C13+C17+C27+C38+C45+C53+C63+C69 -> 10809992.99 | D7: 12785619 | E7: 12785619 | F7: 0 | G7: 0 | H7: 2130938 | I7: =H7-G7 -> 2130938 | J7: =IF(I7=0,"",I7/H7) -> 1 | K7: =K8+K13+K17+K27+K38+K45+K53+K63+K69 -> 12785619
A8: Roads Infrastructure | C8: =SUM(C9:C12) -> 10443431.99 | D8: 12785619 | E8: 12785619 | F8: 0 | G8: 0 | H8: 2130938 | I8: 2130938 | J8: 1 | K8: =SUM(K9:K12) -> 12785619
A9: Roads | C9: 10443431.99 | D9: 12785619 | E9: 12785619 | F9: 0 | G9: 0 | H9: 2130938 | I9: 2130938 | J9: 1 | K9: 12785619
A10: Road Structures | I10: 0
A11: Road Furniture | I11: 0
A12: Capital Spares | I12: 0
A13: Storm water Infrastructure | C13: =SUM(C14:C16) -> 0 | D13: 0 | E13: 0 | F13: 0 | G13: 0 | H13: 0 | I13: 0 | K13: =SUM(K14:K16) -> 0
A14: Drainage Collection | I14: 0
A15: Storm water Conveyance | I15: 0
A16: Attenuation | I16: 0
A17: Electrical Infrastructure | C17: =SUM(C18:C26) -> 366561 | D17: 0 | E17: 0 | F17: 0 | G17: 0 | H17: 0 | I17: 0 | K17: =SUM(K18:K26) -> 0
A18: Power Plants | I18: 0
A19: HV Substations | I19: 0
A20: HV Switching Station | I20: 0
A21: HV Transmission Conductors | I21: 0
A22: MV Substations | I22: 0
A23: MV Switching Stations | I23: 0
A24: MV Networks | I24: 0
A25: LV Networks | C25: 366561 | D25: 0 | E25: 0 | F25: 0 | G25: 0 | H25: 0 | I25: 0 | K25: 0
A26: Capital Spares | I26: 0
A27: Water Supply Infrastructure | C27: =SUM(C28:C37) -> 0 | D27: 0 | E27: 0 | F27: 0 | G27: 0 | H27: 0 | I27: 0 | K27: =SUM(K28:K37) -> 0
A28: Dams and Weirs | I28: 0
A29: Boreholes | I29: 0
A30: Reservoirs | I30: 0
A31: Pump Stations | I31: 0
A32: Water Treatment Works | I32: 0
A33: Bulk Mains | I33: 0
A34: Distribution | I34: 0
A35: Distribution Points | I35: 0
A36: PRV Stations | I36: 0
A37: Capital Spares | I37: 0
A38: Sanitation Infrastructure | C38: =SUM(C39:C44) -> 0 | D38: 0 | E38: 0 | F38: 0 | G38: 0 | H38: 0 | I38: 0 | K38: =SUM(K39:K44) -> 0
A39: Pump Station | I39: 0
A40: Reticulation | I40: 0
A41: Waste Water Treatment Works | I41: 0
A42: Outfall Sewers | I42: 0
A43: Toilet Facilities | I43: 0
A44: Capital Spares | I44: 0
A45: Solid Waste Infrastructure | C45: =SUM(C46:C52) -> 0 | D45: 0 | E45: 0 | F45: 0 | G45: 0 | H45: 0 | I45: 0 | K45: =SUM(K46:K52) -> 0
A46: Landfill Sites | I46: 0
A47: Waste Transfer Stations | I47: 0
A48: Waste Processing Facilities | I48: 0
A49: Waste Drop-off Points | I49: 0
A50: Waste Separation Facilities | I50: 0
A51: Electricity Generation Facilities | I51: 0
A52: Capital Spares | I52: 0
A53: Rail Infrastructure | C53: =SUM(C54:C62) -> 0 | D53: 0 | E53: 0 | F53: 0 | G53: 0 | H53: 0 | I53: 0 | K53: =SUM(K54:K62) -> 0
A54: Rail Lines | I54: 0
A55: Rail Structures | I55: 0
A56: Rail Furniture | I56: 0
A57: Drainage Collection | I57: 0
A58: Storm water Conveyance | I58: 0
A59: Attenuation | I59: 0
A60: MV Substations | I60: 0
A61: LV Networks | I61: 0
A62: Capital Spares | I62: 0
A63: Coastal Infrastructure | C63: =SUM(C64:C68) -> 0 | D63: 0 | E63: 0 | F63: 0 | G63: 0 | H63: 0 | I63: 0 | K63: =SUM(K64:K68) -> 0
A64: Sand Pumps | I64: 0
A65: Piers | I65: 0
A66: Revetments | I66: 0
A67: Promenades | I67: 0
A68: Capital Spares | I68: 0
A69: Information and Communication Infrastructure | C69: =SUM(C70:C73) -> 0 | D69: 0 | E69: 0 | F69: 0 | G69: 0 | H69: 0 | I69: 0 | K69: =SUM(K70:K73) -> 0
A70: Data Centres | I70: 0
A71: Core Layers | I71: 0
A72: Distribution Layers | I72: 0
A73: Capital Spares | I73: 0
A75: Community Assets | C75: =+C76+C99 -> 0 | D75: 2300000 | E75: 2300000 | F75: 0 | G75: 0 | H75: 383334 | I75: 383334 | J75: 1 | K75: =+K76+K99 -> 2300000
A76: Community Facilities | C76: =SUM(C77:C98) -> 0 | D76: 0 | E76: 0 | F76: 0 | G76: 0 | H76: 0 | I76: 0 | K76: =SUM(K77:K98) -> 0
A77: Halls | I77: 0
A78: Centres | I78: 0
A79: Crèches | I79: 0
A80: Clinics/Care Centres | I80: 0
A81: Fire/Ambulance Stations | I81: 0
A82: Testing Stations | I82: 0
A83: Museums | I83: 0
A84: Galleries | I84: 0
A85: Theatres | I85: 0
A86: Libraries | I86: 0
A87: Cemeteries/Crematoria | I87: 0
A88: Police | I88: 0
A89: Purls | I89: 0
A90: Public Open Space | I90: 0
A91: Nature Reserves | I91: 0
A92: Public Ablution Facilities | I92: 0
A93: Markets | I93: 0
A94: Stalls | I94: 0
A95: Abattoirs | I95: 0
A96: Airports | I96: 0
A97: Taxi Ranks/Bus Terminals | I97: 0
A98: Capital Spares | I98: 0
A99: Sport and Recreation Facilities | C99: =SUM(C100:C102) -> 0 | D99: 2300000 | E99: 2300000 | F99: 0 | G99: 0 | H99: 383334 | I99: 383334 | J99: 1 | K99: =SUM(K100:K102) -> 2300000
A100: Indoor Facilities | C100: 0 | D100: 0 | E100: 0 | F100: 0 | G100: 0 | H100: 0 | I100: 0 | K100: 0
A101: Outdoor Facilities | C101: 0 | D101: 2300000 | E101: 2300000 | F101: 0 | G101: 0 | H101: 383334 | I101: =H101-G101 -> 383334 | J101: =IF(I101=0,"",I101/H101) -> 1 | K101: 2300000
A102: Capital Spares | I102: 0
A103: Heritage assets | C103: =SUM(C104:C108) -> 0 | D103: 0 | E103: 0 | F103: 0 | G103: 0 | H103: 0 | I103: 0 | K103: =SUM(K104:K108) -> 0
A104: Monuments | I104: 0
A105: Historic Buildings | I105: 0
A106: Works of Art | I106: 0
A107: Conservation Areas | I107: 0
A108: Other Heritage | I108: 0
I109: 0
A110: Investment properties | C110: =+C111+C114 -> 0 | D110: 0 | E110: 0 | F110: 0 | G110: 0 | H110: 0 | I110: 0 | K110: =+K111+K114 -> 0
A111: Revenue Generating | C111: =SUM(C112:C113) -> 0 | D111: 0 | E111: 0 | F111: 0 | G111: 0 | H111: 0 | I111: 0 | K111: =SUM(K112:K113) -> 0
A112: Improved Property | I112: 0
A113: Unimproved Property | I113: 0
A114: Non-revenue Generating | C114: =SUM(C115:C116) -> 0 | D114: 0 | E114: 0 | F114: 0 | G114: 0 | H114: 0 | I114: 0 | K114: =SUM(K115:K116) -> 0
A115: Improved Property | I115: 0
A116: Unimproved Property | I116: =H116-G116 -> 0 | J116: =IF(I116=0,"",I116/H116) -> 
A117: Other assets | C117: =+C118+C130 -> 0 | D117: 0 | E117: 0 | F117: 0 | G117: 0 | H117: 0 | I117: 0 | K117: =+K118+K130 -> 0
A118: Operational Buildings | C118: =SUM(C119:C129) -> 0 | D118: 0 | E118: 0 | F118: 0 | G118: 0 | H118: 0 | I118: 0 | K118: =SUM(K119:K129) -> 0
A119: Municipal Offices | C119: 0 | D119: 0 | E119: 0 | F119: 0 | G119: 0 | H119: 0 | I119: 0 | K119: 0
A120: Pay/Enquiry Points | I120: 0
A121: Building Plan Offices | I121: 0
A122: Workshops | I122: 0
A123: Yards | I123: 0
A124: Stores | I124: 0
A125: Laboratories | I125: 0
A126: Training Centres | I126: 0
A127: Manufacturing Plant | I127: 0
A128: Depots | I128: 0
A129: Capital Spares | I129: 0
A130: Housing | C130: =SUM(C131:C133) -> 0 | D130: 0 | E130: 0 | F130: 0 | G130: 0 | H130: 0 | I130: 0 | K130: =SUM(K131:K133) -> 0
A131: Staff Housing | I131: 0
A132: Social Housing | I132: 0
A133: Capital Spares | I133: 0
A135: Biological or Cultivated Assets | C135: =SUM(C136:C136) -> 0 | D135: 0 | E135: 0 | F135: 0 | G135: 0 | H135: 0 | I135: =H135-G135 -> 0 | K135: =SUM(K136) -> 0
A136: Biological or Cultivated Assets | I136: =H136-G136 -> 0
J137: =IF(I137=0,"",I137/H137) -> 
A138: Intangible Assets | C138: =SUM(C139:C140) -> 0 | D138: 0 | E138: 0 | F138: 0 | G138: 0 | H138: 0 | I138: =H138-G138 -> 0 | K138: =SUM(K139:K140) -> 0
A139: Servitudes | I139: 0
A140: Licences and Rights | C140: =SUM(C141:C146) -> 0 | D140: 0 | E140: 0 | F140: 0 | G140: 0 | H140: 0 | I140: 0 | K140: =SUM(K141:K146) -> 0
A141: Water Rights | I141: 0
A142: Effluent Licenses | I142: 0
A143: Solid Waste Licenses | I143: 0
A144: Computer Software and Applications | C144: 0 | D144: 0 | E144: 0 | F144: 0 | G144: 0 | H144: 0 | I144: 0 | K144: 0
A145: Load Settlement Software Applications | I145: 0
A146: Unspecified | I146: 0
A148: Computer Equipment | C148: =SUM(C149:C149) -> 0 | D148: 0 | E148: 0 | F148: 0 | G148: 0 | H148: 0 | I148: =H148-G148 -> 0 | J148: =IF(I148=0,"",I148/H148) ->  | K148: =SUM(K149) -> 0
A149: Computer Equipment | C149: 0 | D149: 0 | E149: 0 | F149: 0 | G149: 0 | H149: 0 | I149: =H149-G149 -> 0 | J149: =IF(I149=0,"",I149/H149) ->  | K149: 0
A151: Furniture and Office Equipment | C151: =SUM(C152:C152) -> 0 | D151: 600000 | E151: 600000 | F151: 0 | G151: 0 | H151: 100000 | I151: =H151-G151 -> 100000 | J151: =IF(I151=0,"",I151/H151) -> 1 | K151: =SUM(K152) -> 600000
A152: Furniture and Office Equipment | C152: 0 | D152: 600000 | E152: 600000 | F152: 0 | G152: 0 | H152: 100000 | I152: =H152-G152 -> 100000 | J152: =IF(I152=0,"",I152/H152) -> 1 | K152: 600000
J153: =IF(I153=0,"",I153/H153) -> 
A154: Machinery and Equipment | C154: =SUM(C155:C155) -> 0 | D154: 0 | E154: 0 | F154: 0 | G154: 0 | H154: 0 | I154: =H154-G154 -> 0 | J154: =IF(I154=0,"",I154/H154) ->  | K154: =SUM(K155) -> 0
A155: Machinery and Equipment | I155: =H155-G155 -> 0 | J155: =IF(I155=0,"",I155/H155) -> 
A157: Transport Assets | C157: =SUM(C158:C158) -> 0 | D157: 0 | E157: 0 | F157: 0 | G157: 0 | H157: 0 | I157: =H157-G157 -> 0 | J157: =IF(I157=0,"",I157/H157) ->  | K157: =SUM(K158) -> 0
A158: Transport Assets | I158: =H158-G158 -> 0 | J158: =IF(I158=0,"",I158/H158) -> 
A160: Land | C160: =SUM(C161:C161) -> 0 | D160: 0 | E160: 0 | F160: 0 | G160: 0 | H160: 0 | I160: =H160-G160 -> 0 | J160: =IF(I160=0,"",I160/H160) ->  | K160: =SUM(K161) -> 0
A161: Land | I161: =H161-G161 -> 0 | J161: =IF(I161=0,"",I161/H161) -> 
J162: .
A163: Zoo's, Marine and Non-biological Animals | C163: =SUM(C164:C164) -> 0 | D163: 0 | E163: 0 | F163: 0 | G163: 0 | H163: 0 | I163: =H163-G163 -> 0 | J163: =IF(I163=0,"",I163/H163) ->  | K163: =SUM(K164) -> 0
A164: Zoo's, Marine and Non-biological Animals | I164: =H164-G164 -> 0 | J164: =IF(I164=0,"",I164/H164) -> 
A166: Living resources | C166: =+C167+C170 -> 0 | D166: 0 | E166: 0 | F166: 0 | G166: 0 | H166: 0 | I166: =H166-G166 -> 0 | J166: =IF(I166=0,"",I166/H166) ->  | K166: =+K167+K170 -> 0
A167: Mature | C167: =+C168+C169 -> 0 | D167: 0 | E167: 0 | F167: 0 | G167: 0 | H167: 0 | I167: 0 | K167: =+K168+K169 -> 0
A168: Policing and Protection | I168: 0
A169: Zoological plants and animals | I169: 0
A170: Immature | C170: =+C171+C172 -> 0 | D170: 0 | E170: 0 | F170: 0 | G170: 0 | H170: 0 | I170: 0 | K170: =+K171+K172 -> 0
A171: Policing and Protection | I171: 0
A172: Zoological plants and animals | I172: 0
A173: Total Capital Expenditure on renewal of existing assets | B173: 1 | C173: =C7+C75+C103+C110+C117+C135+C138+C148+C151+C154+C157+C160+C163+C166 -> 10809992.99 | D173: 15685619 | E173: 15685619 | F173: 0 | G173: 0 | H173: 2614272 | I173: =H173-G173 -> 2614272 | J173: =IF(I173=0,"",I173/H173) -> 1 | K173: =K7+K75+K103+K110+K117+K135+K138+K148+K151+K154+K157+K160+K163+K166 -> 15685619
A175: =head27a -> References
A176: 1. Total Capital Expenditure on new assets (SC13a) plus Total Capital Expenditure on renewal of existing assets (SC13b) plus Total Capital Expenditure on upgrading of existing assets (SC13e) must reconcile to total capital expenditure in Table C5
A178: check balance | C178: =C173+SC13a!C173+SC13e!C173-'C5-Capex'!C40 -> 0 | D178: =D173+SC13a!D173+SC13e!D173-'C5-Capex'!D40 -> 0 | E178: =E173+SC13a!E173+SC13e!E173-'C5-Capex'!E40 -> 0 | F178: =F173+SC13a!F173+SC13e!F173-'C5-Capex'!F40 -> 0 | G178: =G173+SC13a!G173+SC13e!G173-'C5-Capex'!G40 -> 0 | H178: =H173+SC13a!H173+SC13e!H173-'C5-Capex'!H40 -> 0 | K178: =K173+SC13a!K173+SC13e!K173-'C5-Capex'!K40 -> 0

Sheet SC13c
A1: =muni& " - "&S71Sc& " - "&Head57 -> LIM353 Molemole - Supporting Table SC13c Monthly Budget Statement - expenditure on repairs and maintenance by asset class - M02 August
A2: =desc -> Description | B2: =head27 -> Ref | C2: =Head1 -> 2022/23 | D2: =Head2 -> Budget Year 2023/24
C3: =Head5 -> Audited Outcome | D3: =Head6 -> Original Budget | E3: =Head7 -> Adjusted Budget | F3: =Head38 -> Monthly actual | G3: =Head39 -> YearTD actual | H3: =Head40 -> YearTD budget | I3: =Head41 -> YTD variance | J3: =Head41 -> YTD variance | K3: =Head8 -> Full Year Forecast
A4: R thousands | B4: 1 | J4: %
A5: Repairs and maintenance expenditure by Asset Class/Sub-class
A7: Infrastructure | C7: =C8+C13+C17+C27+C38+C45+C53+C63+C69 -> 5958204.07 | D7: 6380000 | E7: 6380000 | F7: 0 | G7: 42500 | H7: 1063336 | I7: =H7-G7 -> 1020836 | J7: =IF(I7=0,"",I7/H7) -> 0.9600314482 | K7: =K8+K13+K17+K27+K38+K45+K53+K63+K69 -> 6380000
A8: Roads Infrastructure | C8: =SUM(C9:C12) -> 5958204.07 | D8: 6380000 | E8: 6380000 | F8: 0 | G8: 42500 | H8: 1063336 | I8: 1020836 | J8: 0.9600314482 | K8: =SUM(K9:K12) -> 6380000
A9: Roads | C9: 173.91 | D9: 200000 | E9: 200000 | F9: 0 | G9: 0 | H9: 33334 | I9: 33334 | J9: 1 | K9: 200000
A10: Road Structures | C10: 5958030.16 | D10: 6180000 | E10: 6180000 | F10: 0 | G10: 42500 | H10: 1030002 | I10: 987502 | J10: 0.9587379442 | K10: 6180000
A11: Road Furniture | I11: 0
A12: Capital Spares | I12: 0
A13: Storm water Infrastructure | C13: =SUM(C14:C16) -> 0 | D13: 0 | E13: 0 | F13: 0 | G13: 0 | H13: 0 | I13: 0 | K13: =SUM(K14:K16) -> 0
A14: Drainage Collection | I14: 0
A15: Storm water Conveyance | I15: 0
A16: Attenuation | I16: 0
A17: Electrical Infrastructure | C17: =SUM(C18:C26) -> 0 | D17: 0 | E17: 0 | F17: 0 | G17: 0 | H17: 0 | I17: 0 | K17: =SUM(K18:K26) -> 0
A18: Power Plants | I18: 0
A19: HV Substations | I19: 0
A20: HV Switching Station | I20: 0
A21: HV Transmission Conductors | I21: 0
A22: MV Substations | I22: 0
A23: MV Switching Stations | I23: 0
A24: MV Networks | C24: 0 | D24: 0 | E24: 0 | F24: 0 | G24: 0 | H24: 0 | I24: 0 | K24: 0
A25: LV Networks | I25: 0
A26: Capital Spares | I26: 0
A27: Water Supply Infrastructure | C27: =SUM(C28:C37) -> 0 | D27: 0 | E27: 0 | F27: 0 | G27: 0 | H27: 0 | I27: 0 | K27: =SUM(K28:K37) -> 0
A28: Dams and Weirs | I28: 0
A29: Boreholes | I29: 0
A30: Reservoirs | I30: 0
A31: Pump Stations | I31: 0
A32: Water Treatment Works | I32: 0
A33: Bulk Mains | I33: 0
A34: Distribution | I34: 0
A35: Distribution Points | I35: 0
A36: PRV Stations | I36: 0
A37: Capital Spares | I37: 0
A38: Sanitation Infrastructure | C38: =SUM(C39:C44) -> 0 | D38: 0 | E38: 0 | F38: 0 | G38: 0 | H38: 0 | I38: 0 | K38: =SUM(K39:K44) -> 0
A39: Pump Station | I39: 0
A40: Reticulation | I40: 0
A41: Waste Water Treatment Works | I41: 0
A42: Outfall Sewers | I42: 0
A43: Toilet Facilities | I43: 0
A44: Capital Spares | I44: 0
A45: Solid Waste Infrastructure | C45: =SUM(C46:C52) -> 0 | D45: 0 | E45: 0 | F45: 0 | G45: 0 | H45: 0 | I45: 0 | K45: =SUM(K46:K52) -> 0
A46: Landfill Sites | I46: 0
A47: Waste Transfer Stations | I47: 0
A48: Waste Processing Facilities | I48: 0
A49: Waste Drop-off Points | I49: 0
A50: Waste Separation Facilities | I50: 0
A51: Electricity Generation Facilities | I51: 0
A52: Capital Spares | I52: 0
A53: Rail Infrastructure | C53: =SUM(C54:C62) -> 0 | D53: 0 | E53: 0 | F53: 0 | G53: 0 | H53: 0 | I53: 0 | K53: =SUM(K54:K62) -> 0
A54: Rail Lines | I54: 0
A55: Rail Structures | I55: 0
A56: Rail Furniture | I56: 0
A57: Drainage Collection | I57: 0
A58: Storm water Conveyance | I58: 0
A59: Attenuation | I59: 0
A60: MV Substations | I60: 0
A61: LV Networks | I61: 0
A62: Capital Spares | I62: 0
A63: Coastal Infrastructure | C63: =SUM(C64:C68) -> 0 | D63: 0 | E63: 0 | F63: 0 | G63: 0 | H63: 0 | I63: 0 | K63: =SUM(K64:K68) -> 0
A64: Sand Pumps | I64: 0
A65: Piers | I65: 0
A66: Revetments | I66: 0
A67: Promenades | I67: 0
A68: Capital Spares | I68: 0
A69: Information and Communication Infrastructure | C69: =SUM(C70:C73) -> 0 | D69: 0 | E69: 0 | F69: 0 | G69: 0 | H69: 0 | I69: 0 | K69: =SUM(K70:K73) -> 0
A70: Data Centres | I70: 0
A71: Core Layers | I71: 0
A72: Distribution Layers | I72: 0
A73: Capital Spares | I73: 0
A75: Community Assets | C75: =+C76+C99 -> 110300 | D75: 900000 | E75: 900000 | F75: 0 | G75: 0 | H75: 150002 | I75: 150002 | J75: 1 | K75: =+K76+K99 -> 900000
A76: Community Facilities | C76: =SUM(C77:C98) -> 110300 | D76: 700000 | E76: 700000 | F76: 0 | G76: 0 | H76: 116668 | I76: 116668 | J76: 1 | K76: =SUM(K77:K98) -> 700000
A77: Halls | C77: 0 | D77: 0 | E77: 0 | F77: 0 | G77: 0 | H77: 0 | I77: 0 | K77: 0
A78: Centres | I78: 0
A79: Crèches | I79: 0
A80: Clinics/Care Centres | I80: 0
A81: Fire/Ambulance Stations | I81: 0
A82: Testing Stations | I82: 0
A83: Museums | I83: 0
A84: Galleries | I84: 0
A85: Theatres | I85: 0
A86: Libraries | I86: 0
A87: Cemeteries/Crematoria | C87: 110300 | D87: 700000 | E87: 700000 | F87: 0 | G87: 0 | H87: 116668 | I87: 116668 | J87: 1 | K87: 700000
A88: Police | I88: 0
A89: Purls | I89: 0
A90: Public Open Space | I90: 0
A91: Nature Reserves | I91: 0
A92: Public Ablution Facilities | I92: 0
A93: Markets | I93: 0
A94: Stalls | I94: 0
A95: Abattoirs | I95: 0
A96: Airports | I96: 0
A97: Taxi Ranks/Bus Terminals | I97: 0
A98: Capital Spares | I98: 0
A99: Sport and Recreation Facilities | C99: =SUM(C100:C102) -> 0 | D99: 200000 | E99: 200000 | F99: 0 | G99: 0 | H99: 33334 | I99: 33334 | J99: 1 | K99: =SUM(K100:K102) -> 200000
A100: Indoor Facilities | C100: 0 | D100: 0 | E100: 0 | F100: 0 | G100: 0 | H100: 0 | I100: 0 | K100: 0
A101: Outdoor Facilities | C101: 0 | D101: 200000 | E101: 200000 | F101: 0 | G101: 0 | H101: 33334 | I101: =H101-G101 -> 33334 | J101: =IF(I101=0,"",I101/H101) -> 1 | K101: 200000
A102: Capital Spares | I102: 0
A103: Heritage assets | C103: =SUM(C104:C108) -> 0 | D103: 0 | E103: 0 | F103: 0 | G103: 0 | H103: 0 | I103: 0 | K103: =SUM(K104:K108) -> 0
A104: Monuments | I104: 0
A105: Historic Buildings | I105: 0
A106: Works of Art | I106: 0
A107: Conservation Areas | I107: 0
A108: Other Heritage | I108: 0
I109: 0
A110: Investment properties | C110: =+C111+C114 -> 0 | D110: 0 | E110: 0 | F110: 0 | G110: 0 | H110: 0 | I110: 0 | K110: =+K111+K114 -> 0
A111: Revenue Generating | C111: =SUM(C112:C113) -> 0 | D111: 0 | E111: 0 | F111: 0 | G111: 0 | H111: 0 | I111: 0 | K111: =SUM(K112:K113) -> 0
A112: Improved Property | I112: 0
A113: Unimproved Property | I113: 0
A114: Non-revenue Generating | C114: =SUM(C115:C116) -> 0 | D114: 0 | E114: 0 | F114: 0 | G114: 0 | H114: 0 | I114: 0 | K114: =SUM(K115:K116) -> 0
A115: Improved Property | I115: 0
A116: Unimproved Property | I116: =H116-G116 -> 0 | J116: =IF(I116=0,"",I116/H116) -> 
A117: Other assets | C117: =+C118+C130 -> 983890.22 | D117: 1100000 | E117: 1100000 | F117: 0 | G117: 0 | H117: 183338 | I117: 183338 | J117: 1 | K117: =+K118+K130 -> 1100000
A118: Operational Buildings | C118: =SUM(C119:C129) -> 983890.22 | D118: 1100000 | E118: 1100000 | F118: 0 | G118: 0 | H118: 183338 | I118: 183338 | J118: 1 | K118: =SUM(K119:K129) -> 1100000
A119: Municipal Offices | C119: 983890.22 | D119: 1100000 | E119: 1100000 | F119: 0 | G119: 0 | H119: 183338 | I119: 183338 | J119: 1 | K119: 1100000
A120: Pay/Enquiry Points | I120: 0
A121: Building Plan Offices | I121: 0
A122: Workshops | I122: 0
A123: Yards | I123: 0
A124: Stores | I124: 0
A125: Laboratories | I125: 0
A126: Training Centres | I126: 0
A127: Manufacturing Plant | I127: 0
A128: Depots | I128: 0
A129: Capital Spares | I129: 0
A130: Housing | C130: =SUM(C131:C133) -> 0 | D130: 0 | E130: 0 | F130: 0 | G130: 0 | H130: 0 | I130: 0 | K130: =SUM(K131:K133) -> 0
A131: Staff Housing | I131: 0
A132: Social Housing | I132: 0
A133: Capital Spares | I133: 0
A135: Biological or Cultivated Assets | C135: =SUM(C136:C136) -> 0 | D135: 0 | E135: 0 | F135: 0 | G135: 0 | H135: 0 | I135: =H135-G135 -> 0 | K135: =SUM(K136) -> 0
A136: Biological or Cultivated Assets | I136: =H136-G136 -> 0
A138: Intangible Assets | C138: =SUM(C139:C140) -> 0 | D138: 0 | E138: 0 | F138: 0 | G138: 0 | H138: 0 | I138: =H138-G138 -> 0 | K138: =SUM(K139:K140) -> 0
A139: Servitudes | I139: 0
A140: Licences and Rights | C140: =SUM(C141:C146) -> 0 | D140: 0 | E140: 0 | F140: 0 | G140: 0 | H140: 0 | I140: 0 | K140: =SUM(K141:K146) -> 0
A141: Water Rights | I141: 0
A142: Effluent Licenses | I142: 0
A143: Solid Waste Licenses | I143: 0
A144: Computer Software and Applications | I144: 0
A145: Load Settlement Software Applications | I145: 0
A146: Unspecified | I146: 0
A148: Computer Equipment | C148: =SUM(C149:C149) -> 2137884.24 | D148: 1850000 | E148: 1850000 | F148: 0 | G148: 182087.12 | H148: 308336 | I148: =H148-G148 -> 126248.88 | J148: =IF(I148=0,"",I148/H148) -> 0.4094522858 | K148: =SUM(K149) -> 1850000
A149: Computer Equipment | C149: 2137884.24 | D149: 1850000 | E149: 1850000 | F149: 0 | G149: 182087.12 | H149: 308336 | I149: =H149-G149 -> 126248.88 | J149: =IF(I149=0,"",I149/H149) -> 0.4094522858 | K149: 1850000
A151: Furniture and Office Equipment | C151: =SUM(C152:C152) -> 209048.94 | D151: 300000 | E151: 300000 | F151: 0 | G151: 0 | H151: 50000 | I151: =H151-G151 -> 50000 | J151: =IF(I151=0,"",I151/H151) -> 1 | K151: =SUM(K152) -> 300000
A152: Furniture and Office Equipment | C152: 209048.94 | D152: 300000 | E152: 300000 | F152: 0 | G152: 0 | H152: 50000 | I152: =H152-G152 -> 50000 | J152: =IF(I152=0,"",I152/H152) -> 1 | K152: 300000
J153: =IF(I153=0,"",I153/H153) -> 
A154: Machinery and Equipment | C154: =SUM(C155:C155) -> 3279563.08 | D154: 4100000 | E154: 4100000 | F154: 0 | G154: 127735.02 | H154: 683336 | I154: =H154-G154 -> 555600.98 | J154: =IF(I154=0,"",I154/H154) -> 0.8130714319 | K154: =SUM(K155) -> 4100000
A155: Machinery and Equipment | C155: 3279563.08 | D155: 4100000 | E155: 4100000 | F155: 0 | G155: 127735.02 | H155: 683336 | I155: =H155-G155 -> 555600.98 | J155: =IF(I155=0,"",I155/H155) -> 0.8130714319 | K155: 4100000
A157: Transport Assets | C157: =SUM(C158:C158) -> 1536412.24 | D157: 1000000 | E157: 1000000 | F157: 0 | G157: 15097.32 | H157: 166668 | I157: =H157-G157 -> 151570.68 | J157: =IF(I157=0,"",I157/H157) -> 0.9094168047 | K157: =SUM(K158) -> 1000000
A158: Transport Assets | C158: 1536412.24 | D158: 1000000 | E158: 1000000 | F158: 0 | G158: 15097.32 | H158: 166668 | I158: =H158-G158 -> 151570.68 | J158: =IF(I158=0,"",I158/H158) -> 0.9094168047 | K158: 1000000
A160: Land | C160: =SUM(C161:C161) -> 0 | D160: 0 | E160: 0 | F160: 0 | G160: 0 | H160: 0 | I160: =H160-G160 -> 0 | J160: =IF(I160=0,"",I160/H160) ->  | K160: =SUM(K161) -> 0
A161: Land | I161: =H161-G161 -> 0 | J161: =IF(I161=0,"",I161/H161) -> 
A163: Zoo's, Marine and Non-biological Animals | C163: =SUM(C164:C164) -> 0 | D163: 0 | E163: 0 | F163: 0 | G163: 0 | H163: 0 | I163: =H163-G163 -> 0 | J163: =IF(I163=0,"",I163/H163) ->  | K163: =SUM(K164) -> 0
A164: Zoo's, Marine and Non-biological Animals | I164: =H164-G164 -> 0 | J164: =IF(I164=0,"",I164/H164) -> 
A166: Living resources | C166: =+C167+C170 -> 0 | D166: 0 | E166: 0 | F166: 0 | G166: 0 | H166: 0 | I166: =H166-G166 -> 0 | J166: =IF(I166=0,"",I166/H166) ->  | K166: =+K167+K170 -> 0
A167: Mature | C167: =+C168+C169 -> 0 | D167: 0 | E167: 0 | F167: 0 | G167: 0 | H167: 0 | I167: 0 | K167: =+K168+K169 -> 0
A168: Policing and Protection | I168: 0
A169: Zoological plants and animals | I169: 0
A170: Immature | C170: =+C171+C172 -> 0 | D170: 0 | E170: 0 | F170: 0 | G170: 0 | H170: 0 | I170: 0 | K170: =+K171+K172 -> 0
A171: Policing and Protection | I171: 0
A172: Zoological plants and animals | I172: 0
A173: Total Repairs and Maintenance Expenditure | B173: 1 | C173: =C7+C75+C103+C110+C117+C135+C138+C148+C151+C154+C157+C160+C163+C166 -> 14215302.79 | D173: 15630000 | E173: 15630000 | F173: 0 | G173: 367419.46 | H173: 2605016 | I173: =H173-G173 -> 2237596.54 | J173: =IF(I173=0,"",I173/H173) -> 0.8589569277 | K173: =K7+K75+K103+K110+K117+K135+K138+K148+K151+K154+K157+K160+K163+K166 -> 15630000

Sheet SC13d
A1: =muni& " - "&S71Sd& " - "&Head57 -> LIM353 Molemole - Supporting Table SC13d Monthly Budget Statement - depreciation by asset class - M02 August
A2: =desc -> Description | B2: =head27 -> Ref | C2: =Head1 -> 2022/23 | D2: =Head2 -> Budget Year 2023/24
C3: =Head5 -> Audited Outcome | D3: =Head6 -> Original Budget | E3: =Head7 -> Adjusted Budget | F3: =Head38 -> Monthly actual | G3: =Head39 -> YearTD actual | H3: =Head40 -> YearTD budget | I3: =Head41 -> YTD variance | J3: =Head41 -> YTD variance | K3: =Head8 -> Full Year Forecast
A4: R thousands | B4: 1 | J4: %
A5: Depreciation by Asset Class/Sub-class
A7: Infrastructure | C7: =C8+C13+C17+C27+C38+C45+C53+C63+C69 -> 9980173.55 | D7: 10549372 | E7: 10549372 | F7: 0 | G7: 0 | H7: 1758236 | I7: =H7-G7 -> 1758236 | J7: =IF(I7=0,"",I7/H7) -> 1 | K7: =K8+K13+K17+K27+K38+K45+K53+K63+K69 -> 10549372
A8: Roads Infrastructure | C8: =SUM(C9:C12) -> 8987199.25 | D8: 9636179 | E8: 9636179 | F8: 0 | G8: 0 | H8: 1606034 | I8: 1606034 | J8: 1 | K8: =SUM(K9:K12) -> 9636179
A9: Roads | C9: 8798618.94 | D9: 9459641 | E9: 9459641 | F9: 0 | G9: 0 | H9: 1576608 | I9: 1576608 | J9: 1 | K9: 9459641
A10: Road Structures | C10: 0 | D10: 0 | E10: 0 | F10: 0 | G10: 0 | H10: 0 | I10: 0 | K10: 0
A11: Road Furniture | C11: 188580.31 | D11: 176538 | E11: 176538 | F11: 0 | G11: 0 | H11: 29426 | I11: 29426 | J11: 1 | K11: 176538
A12: Capital Spares | C12: 0 | D12: 0 | E12: 0 | F12: 0 | G12: 0 | H12: 0 | I12: 0 | K12: 0
A13: Storm water Infrastructure | C13: =SUM(C14:C16) -> 0 | D13: 0 | E13: 0 | F13: 0 | G13: 0 | H13: 0 | I13: 0 | K13: =SUM(K14:K16) -> 0
A14: Drainage Collection | C14: 0 | D14: 0 | E14: 0 | F14: 0 | G14: 0 | H14: 0 | I14: 0 | K14: 0
A15: Storm water Conveyance | C15: 0 | D15: 0 | E15: 0 | F15: 0 | G15: 0 | H15: 0 | I15: 0 | K15: 0
A16: Attenuation | C16: 0 | D16: 0 | E16: 0 | F16: 0 | G16: 0 | H16: 0 | I16: 0 | K16: 0
A17: Electrical Infrastructure | C17: =SUM(C18:C26) -> 992974.3 | D17: 913193 | E17: 913193 | F17: 0 | G17: 0 | H17: 152202 | I17: 152202 | J17: 1 | K17: =SUM(K18:K26) -> 913193
A18: Power Plants | C18: 0 | D18: 0 | E18: 0 | F18: 0 | G18: 0 | H18: 0 | I18: 0 | K18: 0
A19: HV Substations | C19: 0 | D19: 0 | E19: 0 | F19: 0 | G19: 0 | H19: 0 | I19: 0 | K19: 0
A20: HV Switching Station | C20: 0 | D20: 0 | E20: 0 | F20: 0 | G20: 0 | H20: 0 | I20: 0 | K20: 0
A21: HV Transmission Conductors | C21: 0 | D21: 0 | E21: 0 | F21: 0 | G21: 0 | H21: 0 | I21: 0 | K21: 0
A22: MV Substations | C22: 0 | D22: 0 | E22: 0 | F22: 0 | G22: 0 | H22: 0 | I22: 0 | K22: 0
A23: MV Switching Stations | C23: 0 | D23: 0 | E23: 0 | F23: 0 | G23: 0 | H23: 0 | I23: 0 | K23: 0
A24: MV Networks | C24: 300249.42 | D24: 146852 | E24: 146852 | F24: 0 | G24: 0 | H24: 24476 | I24: 24476 | J24: 1 | K24: 146852
A25: LV Networks | C25: 692724.88 | D25: 766341 | E25: 766341 | F25: 0 | G25: 0 | H25: 127726 | I25: 127726 | J25: 1 | K25: 766341
A26: Capital Spares | C26: 0 | D26: 0 | E26: 0 | F26: 0 | G26: 0 | H26: 0 | I26: 0 | K26: 0
A27: Water Supply Infrastructure | C27: =SUM(C28:C37) -> 0 | D27: 0 | E27: 0 | F27: 0 | G27: 0 | H27: 0 | I27: 0 | K27: =SUM(K28:K37) -> 0
A28: Dams and Weirs | C28: 0 | D28: 0 | E28: 0 | F28: 0 | G28: 0 | H28: 0 | I28: 0 | K28: 0
A29: Boreholes | C29: 0 | D29: 0 | E29: 0 | F29: 0 | G29: 0 | H29: 0 | I29: 0 | K29: 0
A30: Reservoirs | C30: 0 | D30: 0 | E30: 0 | F30: 0 | G30: 0 | H30: 0 | I30: 0 | K30: 0
A31: Pump Stations | C31: 0 | D31: 0 | E31: 0 | F31: 0 | G31: 0 | H31: 0 | I31: 0 | K31: 0
A32: Water Treatment Works | C32: 0 | D32: 0 | E32: 0 | F32: 0 | G32: 0 | H32: 0 | I32: 0 | K32: 0
A33: Bulk Mains | C33: 0 | D33: 0 | E33: 0 | F33: 0 | G33: 0 | H33: 0 | I33: 0 | K33: 0
A34: Distribution | C34: 0 | D34: 0 | E34: 0 | F34: 0 | G34: 0 | H34: 0 | I34: 0 | K34: 0
A35: Distribution Points | C35: 0 | D35: 0 | E35: 0 | F35: 0 | G35: 0 | H35: 0 | I35: 0 | K35: 0
A36: PRV Stations | C36: 0 | D36: 0 | E36: 0 | F36: 0 | G36: 0 | H36: 0 | I36: 0 | K36: 0
A37: Capital Spares | C37: 0 | D37: 0 | E37: 0 | F37: 0 | G37: 0 | H37: 0 | I37: 0 | K37: 0
A38: Sanitation Infrastructure | C38: =SUM(C39:C44) -> 0 | D38: 0 | E38: 0 | F38: 0 | G38: 0 | H38: 0 | I38: 0 | K38: =SUM(K39:K44) -> 0
A39: Pump Station | C39: 0 | D39: 0 | E39: 0 | F39: 0 | G39: 0 | H39: 0 | I39: 0 | K39: 0
A40: Reticulation | C40: 0 | D40: 0 | E40: 0 | F40: 0 | G40: 0 | H40: 0 | I40: 0 | K40: 0
A41: Waste Water Treatment Works | C41: 0 | D41: 0 | E41: 0 | F41: 0 | G41: 0 | H41: 0 | I41: 0 | K41: 0
A42: Outfall Sewers | C42: 0 | D42: 0 | E42: 0 | F42: 0 | G42: 0 | H42: 0 | I42: 0 | K42: 0
A43: Toilet Facilities | C43: 0 | D43: 0 | E43: 0 | F43: 0 | G43: 0 | H43: 0 | I43: 0 | K43: 0
A44: Capital Spares | C44: 0 | D44: 0 | E44: 0 | F44: 0 | G44: 0 | H44: 0 | I44: 0 | K44: 0
A45: Solid Waste Infrastructure | C45: =SUM(C46:C52) -> 0 | D45: 0 | E45: 0 | F45: 0 | G45: 0 | H45: 0 | I45: 0 | K45: =SUM(K46:K52) -> 0
A46: Landfill Sites | C46: 0 | D46: 0 | E46: 0 | F46: 0 | G46: 0 | H46: 0 | I46: 0 | K46: 0
A47: Waste Transfer Stations | C47: 0 | D47: 0 | E47: 0 | F47: 0 | G47: 0 | H47: 0 | I47: 0 | K47: 0
A48: Waste Processing Facilities | C48: 0 | D48: 0 | E48: 0 | F48: 0 | G48: 0 | H48: 0 | I48: 0 | K48: 0
A49: Waste Drop-off Points | C49: 0 | D49: 0 | E49: 0 | F49: 0 | G49: 0 | H49: 0 | I49: 0 | K49: 0
A50: Waste Separation Facilities | C50: 0 | D50: 0 | E50: 0 | F50: 0 | G50: 0 | H50: 0 | I50: 0 | K50: 0
A51: Electricity Generation Facilities | C51: 0 | D51: 0 | E51: 0 | F51: 0 | G51: 0 | H51: 0 | I51: 0 | K51: 0
A52: Capital Spares | C52: 0 | D52: 0 | E52: 0 | F52: 0 | G52: 0 | H52: 0 | I52: 0 | K52: 0
A53: Rail Infrastructure | C53: =SUM(C54:C62) -> 0 | D53: 0 | E53: 0 | F53: 0 | G53: 0 | H53: 0 | I53: 0 | K53: =SUM(K54:K62) -> 0
A54: Rail Lines | C54: 0 | D54: 0 | E54: 0 | F54: 0 | G54: 0 | H54: 0 | I54: 0 | K54: 0
A55: Rail Structures | C55: 0 | D55: 0 | E55: 0 | F55: 0 | G55: 0 | H55: 0 | I55: 0 | K55: 0
A56: Rail Furniture | C56: 0 | D56: 0 | E56: 0 | F56: 0 | G56: 0 | H56: 0 | I56: 0 | K56: 0
A57: Drainage Collection | C57: 0 | D57: 0 | E57: 0 | F57: 0 | G57: 0 | H57: 0 | I57: 0 | K57: 0
A58: Storm water Conveyance | C58: 0 | D58: 0 | E58: 0 | F58: 0 | G58: 0 | H58: 0 | I58: 0 | K58: 0
A59: Attenuation | C59: 0 | D59: 0 | E59: 0 | F59: 0 | G59: 0 | H59: 0 | I59: 0 | K59: 0
A60: MV Substations | C60: 0 | D60: 0 | E60: 0 | F60: 0 | G60: 0 | H60: 0 | I60: 0 | K60: 0
A61: LV Networks | C61: 0 | D61: 0 | E61: 0 | F61: 0 | G61: 0 | H61: 0 | I61: 0 | K61: 0
A62: Capital Spares | C62: 0 | D62: 0 | E62: 0 | F62: 0 | G62: 0 | H62: 0 | I62: 0 | K62: 0
A63: Coastal Infrastructure | C63: =SUM(C64:C68) -> 0 | D63: 0 | E63: 0 | F63: 0 | G63: 0 | H63: 0 | I63: 0 | K63: =SUM(K64:K68) -> 0
A64: Sand Pumps | C64: 0 | D64: 0 | E64: 0 | F64: 0 | G64: 0 | H64: 0 | I64: 0 | K64: 0
A65: Piers | C65: 0 | D65: 0 | E65: 0 | F65: 0 | G65: 0 | H65: 0 | I65: 0 | K65: 0
A66: Revetments | C66: 0 | D66: 0 | E66: 0 | F66: 0 | G66: 0 | H66: 0 | I66: 0 | K66: 0
A67: Promenades | C67: 0 | D67: 0 | E67: 0 | F67: 0 | G67: 0 | H67: 0 | I67: 0 | K67: 0
A68: Capital Spares | C68: 0 | D68: 0 | E68: 0 | F68: 0 | G68: 0 | H68: 0 | I68: 0 | K68: 0
A69: Information and Communication Infrastructure | C69: =SUM(C70:C73) -> 0 | D69: 0 | E69: 0 | F69: 0 | G69: 0 | H69: 0 | I69: 0 | K69: =SUM(K70:K73) -> 0
A70: Data Centres | I70: 0
A71: Core Layers | I71: 0
A72: Distribution Layers | I72: 0
A73: Capital Spares | I73: 0
A75: Community Assets | C75: =+C76+C99 -> 2836225.8 | D75: 2819282 | E75: 2819282 | F75: 0 | G75: 0 | H75: 469896 | I75: 469896 | J75: 1 | K75: =+K76+K99 -> 2819282
A76: Community Facilities | C76: =SUM(C77:C98) -> 1279014.12 | D76: 1233999 | E76: 1233999 | F76: 0 | G76: 0 | H76: 205682 | I76: 205682 | J76: 1 | K76: =SUM(K77:K98) -> 1233999
A77: Halls | C77: 167302.62 | D77: 181929 | E77: 181929 | F77: 0 | G77: 0 | H77: 30324 | I77: 30324 | J77: 1 | K77: 181929
A78: Centres | C78: 743328.07 | D78: 669488 | E78: 669488 | F78: 0 | G78: 0 | H78: 111588 | I78: 111588 | J78: 1 | K78: 669488
A79: Crèches | C79: 0 | D79: 0 | E79: 0 | F79: 0 | G79: 0 | H79: 0 | I79: 0 | K79: 0
A80: Clinics/Care Centres | C80: 0 | D80: 0 | E80: 0 | F80: 0 | G80: 0 | H80: 0 | I80: 0 | K80: 0
A81: Fire/Ambulance Stations | C81: 0 | D81: 0 | E81: 0 | F81: 0 | G81: 0 | H81: 0 | I81: 0 | K81: 0
A82: Testing Stations | C82: 0 | D82: 0 | E82: 0 | F82: 0 | G82: 0 | H82: 0 | I82: 0 | K82: 0
A83: Museums | C83: 0 | D83: 0 | E83: 0 | F83: 0 | G83: 0 | H83: 0 | I83: 0 | K83: 0
A84: Galleries | C84: 0 | D84: 0 | E84: 0 | F84: 0 | G84: 0 | H84: 0 | I84: 0 | K84: 0
A85: Theatres | C85: 0 | D85: 0 | E85: 0 | F85: 0 | G85: 0 | H85: 0 | I85: 0 | K85: 0
A86: Libraries | C86: 0 | D86: 0 | E86: 0 | F86: 0 | G86: 0 | H86: 0 | I86: 0 | K86: 0
A87: Cemeteries/Crematoria | C87: 0 | D87: 0 | E87: 0 | F87: 0 | G87: 0 | H87: 0 | I87: 0 | K87: 0
A88: Police | C88: 0 | D88: 0 | E88: 0 | F88: 0 | G88: 0 | H88: 0 | I88: 0 | K88: 0
A89: Purls | C89: 0 | D89: 0 | E89: 0 | F89: 0 | G89: 0 | H89: 0 | I89: 0 | K89: 0
A90: Public Open Space | C90: 0 | D90: 0 | E90: 0 | F90: 0 | G90: 0 | H90: 0 | I90: 0 | K90: 0
A91: Nature Reserves | C91: 0 | D91: 0 | E91: 0 | F91: 0 | G91: 0 | H91: 0 | I91: 0 | K91: 0
A92: Public Ablution Facilities | C92: 32400.28 | D92: 31874 | E92: 31874 | F92: 0 | G92: 0 | H92: 5316 | I92: 5316 | J92: 1 | K92: 31874
A93: Markets | C93: 36133.48 | D93: 38718 | E93: 38718 | F93: 0 | G93: 0 | H93: 6454 | I93: 6454 | J93: 1 | K93: 38718
A94: Stalls | C94: 0 | D94: 0 | E94: 0 | F94: 0 | G94: 0 | H94: 0 | I94: 0 | K94: 0
A95: Abattoirs | C95: 0 | D95: 0 | E95: 0 | F95: 0 | G95: 0 | H95: 0 | I95: 0 | K95: 0
A96: Airports | C96: 0 | D96: 0 | E96: 0 | F96: 0 | G96: 0 | H96: 0 | I96: 0 | K96: 0
A97: Taxi Ranks/Bus Terminals | C97: 299849.67 | D97: 311990 | E97: 311990 | F97: 0 | G97: 0 | H97: 52000 | I97: 52000 | J97: 1 | K97: 311990
A98: Capital Spares | C98: 0 | D98: 0 | E98: 0 | F98: 0 | G98: 0 | H98: 0 | I98: 0 | K98: 0
A99: Sport and Recreation Facilities | C99: =SUM(C100:C102) -> 1557211.68 | D99: 1585283 | E99: 1585283 | F99: 0 | G99: 0 | H99: 264214 | I99: 264214 | J99: 1 | K99: =SUM(K100:K102) -> 1585283
A100: Indoor Facilities | I100: 0
A101: Outdoor Facilities | C101: 1557211.68 | D101: 1585283 | E101: 1585283 | F101: 0 | G101: 0 | H101: 264214 | I101: =H101-G101 -> 264214 | J101: =IF(I101=0,"",I101/H101) -> 1 | K101: 1585283
A102: Capital Spares | I102: 0
A103: Heritage assets | C103: =SUM(C104:C108) -> 0 | D103: 0 | E103: 0 | F103: 0 | G103: 0 | H103: 0 | I103: 0 | K103: =SUM(K104:K108) -> 0
A104: Monuments | I104: 0
A105: Historic Buildings | I105: 0
A106: Works of Art | I106: 0
A107: Conservation Areas | I107: 0
A108: Other Heritage | C108: 0 | D108: 0 | E108: 0 | F108: 0 | G108: 0 | H108: 0 | I108: 0 | K108: 0
I109: 0
A110: Investment properties | C110: =+C111+C114 -> 43333.39 | D110: 54500 | E110: 54500 | F110: 0 | G110: 0 | H110: 9084 | I110: 9084 | J110: 1 | K110: =+K111+K114 -> 54500
A111: Revenue Generating | C111: =SUM(C112:C113) -> 43333.39 | D111: 54500 | E111: 54500 | F111: 0 | G111: 0 | H111: 9084 | I111: 9084 | J111: 1 | K111: =SUM(K112:K113) -> 54500
A112: Improved Property | C112: 43333.39 | D112: 54500 | E112: 54500 | F112: 0 | G112: 0 | H112: 9084 | I112: 9084 | J112: 1 | K112: 54500
A113: Unimproved Property | C113: 0 | D113: 0 | E113: 0 | F113: 0 | G113: 0 | H113: 0 | I113: 0 | K113: 0
A114: Non-revenue Generating | C114: =SUM(C115:C116) -> 0 | D114: 0 | E114: 0 | F114: 0 | G114: 0 | H114: 0 | I114: 0 | K114: =SUM(K115:K116) -> 0
A115: Improved Property | I115: 0
A116: Unimproved Property | C116: 0 | D116: 0 | E116: 0 | F116: 0 | G116: 0 | H116: 0 | I116: =H116-G116 -> 0 | J116: =IF(I116=0,"",I116/H116) ->  | K116: 0
A117: Other assets | C117: =+C118+C130 -> 1579381.7 | D117: 1343802 | E117: 1343802 | F117: 0 | G117: 0 | H117: 223972 | I117: 223972 | J117: 1 | K117: =+K118+K130 -> 1343802
A118: Operational Buildings | C118: =SUM(C119:C129) -> 1579381.7 | D118: 1343802 | E118: 1343802 | F118: 0 | G118: 0 | H118: 223972 | I118: 223972 | J118: 1 | K118: =SUM(K119:K129) -> 1343802
A119: Municipal Offices | C119: 1579381.7 | D119: 1343802 | E119: 1343802 | F119: 0 | G119: 0 | H119: 223972 | I119: 223972 | J119: 1 | K119: 1343802
A120: Pay/Enquiry Points | C120: 0 | D120: 0 | E120: 0 | F120: 0 | G120: 0 | H120: 0 | I120: 0 | K120: 0
A121: Building Plan Offices | C121: 0 | D121: 0 | E121: 0 | F121: 0 | G121: 0 | H121: 0 | I121: 0 | K121: 0
A122: Workshops | C122: 0 | D122: 0 | E122: 0 | F122: 0 | G122: 0 | H122: 0 | I122: 0 | K122: 0
A123: Yards | C123: 0 | D123: 0 | E123: 0 | F123: 0 | G123: 0 | H123: 0 | I123: 0 | K123: 0
A124: Stores | C124: 0 | D124: 0 | E124: 0 | F124: 0 | G124: 0 | H124: 0 | I124: 0 | K124: 0
A125: Laboratories | C125: 0 | D125: 0 | E125: 0 | F125: 0 | G125: 0 | H125: 0 | I125: 0 | K125: 0
A126: Training Centres | C126: 0 | D126: 0 | E126: 0 | F126: 0 | G126: 0 | H126: 0 | I126: 0 | K126: 0
A127: Manufacturing Plant | C127: 0 | D127: 0 | E127: 0 | F127: 0 | G127: 0 | H127: 0 | I127: 0 | K127: 0
A128: Depots | C128: 0 | D128: 0 | E128: 0 | F128: 0 | G128: 0 | H128: 0 | I128: 0 | K128: 0
A129: Capital Spares | C129: 0 | D129: 0 | E129: 0 | F129: 0 | G129: 0 | H129: 0 | I129: 0 | K129: 0
A130: Housing | C130: =SUM(C131:C133) -> 0 | D130: 0 | E130: 0 | F130: 0 | G130: 0 | H130: 0 | I130: 0 | K130: =SUM(K131:K133) -> 0
A131: Staff Housing | C131: 0 | D131: 0 | E131: 0 | F131: 0 | G131: 0 | H131: 0 | I131: 0 | K131: 0
A132: Social Housing | C132: 0 | D132: 0 | E132: 0 | F132: 0 | G132: 0 | H132: 0 | I132: 0 | K132: 0
A133: Capital Spares | C133: 0 | D133: 0 | E133: 0 | F133: 0 | G133: 0 | H133: 0 | I133: 0 | K133: 0
A135: Biological or Cultivated Assets | C135: =SUM(C136:C136) -> 0 | D135: 0 | E135: 0 | F135: 0 | G135: 0 | H135: 0 | I135: =H135-G135 -> 0 | K135: =SUM(K136) -> 0
A136: Biological or Cultivated Assets | I136: =H136-G136 -> 0
A138: Intangible Assets | C138: =SUM(C139:C140) -> 654904.82 | D138: 762568 | E138: 762568 | F138: 0 | G138: 0 | H138: 127100 | I138: =H138-G138 -> 127100 | J138: 1 | K138: =SUM(K139:K140) -> 762568
A139: Servitudes | C139: 0 | D139: 0 | E139: 0 | F139: 0 | G139: 0 | H139: 0 | I139: 0 | K139: 0
A140: Licences and Rights | C140: =SUM(C141:C146) -> 654904.82 | D140: 762568 | E140: 762568 | F140: 0 | G140: 0 | H140: 127100 | I140: 127100 | J140: 1 | K140: =SUM(K141:K146) -> 762568
A141: Water Rights | I141: 0
A142: Effluent Licenses | I142: 0
A143: Solid Waste Licenses | I143: 0
A144: Computer Software and Applications | C144: 654904.82 | D144: 762568 | E144: 762568 | F144: 0 | G144: 0 | H144: 127100 | I144: 127100 | J144: 1 | K144: 762568
A145: Load Settlement Software Applications | I145: 0
A146: Unspecified | C146: 0 | D146: 0 | E146: 0 | F146: 0 | G146: 0 | H146: 0 | I146: 0 | K146: 0
A148: Computer Equipment | C148: =SUM(C149:C149) -> 708065.63 | D148: 896963 | E148: 896963 | F148: 0 | G148: 0 | H148: 149510 | I148: =H148-G148 -> 149510 | J148: =IF(I148=0,"",I148/H148) -> 1 | K148: =SUM(K149) -> 896963
A149: Computer Equipment | C149: 708065.63 | D149: 896963 | E149: 896963 | F149: 0 | G149: 0 | H149: 149510 | I149: =H149-G149 -> 149510 | J149: =IF(I149=0,"",I149/H149) -> 1 | K149: 896963
A151: Furniture and Office Equipment | C151: =SUM(C152:C152) -> 848585.28 | D151: 2061102 | E151: 2061102 | F151: 0 | G151: 0 | H151: 343536 | I151: =H151-G151 -> 343536 | J151: =IF(I151=0,"",I151/H151) -> 1 | K151: =SUM(K152) -> 2061102
A152: Furniture and Office Equipment | C152: 848585.28 | D152: 2061102 | E152: 2061102 | F152: 0 | G152: 0 | H152: 343536 | I152: =H152-G152 -> 343536 | J152: =IF(I152=0,"",I152/H152) -> 1 | K152: 2061102
J153: =IF(I153=0,"",I153/H153) -> 
A154: Machinery and Equipment | C154: =SUM(C155:C155) -> 1051367.42 | D154: 1586521 | E154: 1586521 | F154: 0 | G154: 0 | H154: 264430 | I154: =H154-G154 -> 264430 | J154: =IF(I154=0,"",I154/H154) -> 1 | K154: =SUM(K155) -> 1586521
A155: Machinery and Equipment | C155: 1051367.42 | D155: 1586521 | E155: 1586521 | F155: 0 | G155: 0 | H155: 264430 | I155: =H155-G155 -> 264430 | J155: =IF(I155=0,"",I155/H155) -> 1 | K155: 1586521
A157: Transport Assets | C157: =SUM(C158:C158) -> 2145533.24 | D157: 2008045 | E157: 2008045 | F157: 0 | G157: 0 | H157: 334680 | I157: =H157-G157 -> 334680 | J157: =IF(I157=0,"",I157/H157) -> 1 | K157: =SUM(K158) -> 2008045
A158: Transport Assets | C158: 2145533.24 | D158: 2008045 | E158: 2008045 | F158: 0 | G158: 0 | H158: 334680 | I158: =H158-G158 -> 334680 | J158: =IF(I158=0,"",I158/H158) -> 1 | K158: 2008045
A160: Land | C160: =SUM(C161:C161) -> 0 | D160: 0 | E160: 0 | F160: 0 | G160: 0 | H160: 0 | I160: =H160-G160 -> 0 | J160: =IF(I160=0,"",I160/H160) ->  | K160: =SUM(K161) -> 0
A161: Land | C161: 0 | D161: 0 | E161: 0 | F161: 0 | G161: 0 | H161: 0 | I161: =H161-G161 -> 0 | J161: =IF(I161=0,"",I161/H161) ->  | K161: 0
A163: Zoo's, Marine and Non-biological Animals | C163: =SUM(C164:C164) -> 0 | D163: 0 | E163: 0 | F163: 0 | G163: 0 | H163: 0 | I163: =H163-G163 -> 0 | J163: =IF(I163=0,"",I163/H163) ->  | K163: =SUM(K164) -> 0
A164: Zoo's, Marine and Non-biological Animals | C164: 0 | D164: 0 | E164: 0 | F164: 0 | G164: 0 | H164: 0 | I164: =H164-G164 -> 0 | J164: =IF(I164=0,"",I164/H164) ->  | K164: 0
J165: =IF(I165=0,"",I165/H165) -> 
A166: Living resources | C166: =+C167+C170 -> 0 | D166: 0 | E166: 0 | F166: 0 | G166: 0 | H166: 0 | I166: =H166-G166 -> 0 | K166: =+K167+K170 -> 0
A167: Mature | C167: =+C168+C169 -> 0 | D167: 0 | E167: 0 | F167: 0 | G167: 0 | H167: 0 | I167: 0 | K167: =+K168+K169 -> 0
A168: Policing and Protection | I168: 0
A169: Zoological plants and animals | I169: 0
A170: Immature | C170: =+C171+C172 -> 0 | D170: 0 | E170: 0 | F170: 0 | G170: 0 | H170: 0 | I170: 0 | K170: =+K171+K172 -> 0
A171: Policing and Protection | I171: 0
A172: Zoological plants and animals | I172: 0
A173: Total Depreciation | B173: 1 | C173: =C7+C75+C103+C110+C117+C135+C138+C148+C151+C154+C157+C160+C163+C166 -> 19847570.83 | D173: 22082155 | E173: 22082155 | F173: 0 | G173: 0 | H173: 3680444 | I173: =H173-G173 -> 3680444 | J173: =IF(I173=0,"",I173/H173) -> 1 | K173: =K7+K75+K103+K110+K117+K135+K138+K148+K151+K154+K157+K160+K163+K166 -> 22082155

Sheet SC13e
A1: =muni& " - "&S71Se& " - "&Head57 -> LIM353 Molemole - Supporting Table SC13e Monthly Budget Statement - capital expenditure on upgrading of existing assets by asset class - M02 August
A2: =desc -> Description | B2: =head27 -> Ref | C2: =Head1 -> 2022/23 | D2: =Head2 -> Budget Year 2023/24
C3: =Head5 -> Audited Outcome | D3: =Head6 -> Original Budget | E3: =Head7 -> Adjusted Budget | F3: =Head38 -> Monthly actual | G3: =Head39 -> YearTD actual | H3: =Head40 -> YearTD budget | I3: =Head41 -> YTD variance | J3: =Head41 -> YTD variance | K3: =Head8 -> Full Year Forecast
A4: R thousands | B4: 1 | J4: %
A5: Capital expenditure on upgrading of existing assets by Asset Class/Sub-class
A7: Infrastructure | C7: =C8+C13+C17+C27+C38+C45+C53+C63+C69 -> 0 | D7: 0 | E7: 0 | F7: 0 | G7: 0 | H7: 0 | I7: =H7-G7 -> 0 | J7: =IF(I7=0,"",I7/H7) ->  | K7: =K8+K13+K17+K27+K38+K45+K53+K63+K69 -> 0
A8: Roads Infrastructure | C8: =SUM(C9:C12) -> 0 | D8: 0 | E8: 0 | F8: 0 | G8: 0 | H8: 0 | I8: 0 | K8: =SUM(K9:K12) -> 0
A9: Roads | I9: 0
A10: Road Structures | I10: 0
A11: Road Furniture | I11: 0
A12: Capital Spares | I12: 0
A13: Storm water Infrastructure | C13: =SUM(C14:C16) -> 0 | D13: 0 | E13: 0 | F13: 0 | G13: 0 | H13: 0 | I13: 0 | K13: =SUM(K14:K16) -> 0
A14: Drainage Collection | I14: 0
A15: Storm water Conveyance | I15: 0
A16: Attenuation | I16: 0
A17: Electrical Infrastructure | C17: =SUM(C18:C26) -> 0 | D17: 0 | E17: 0 | F17: 0 | G17: 0 | H17: 0 | I17: 0 | K17: =SUM(K18:K26) -> 0
A18: Power Plants | I18: 0
A19: HV Substations | I19: 0
A20: HV Switching Station | I20: 0
A21: HV Transmission Conductors | I21: 0
A22: MV Substations | I22: 0
A23: MV Switching Stations | I23: 0
A24: MV Networks | I24: 0
A25: LV Networks | I25: 0
A26: Capital Spares | I26: 0
A27: Water Supply Infrastructure | C27: =SUM(C28:C37) -> 0 | D27: 0 | E27: 0 | F27: 0 | G27: 0 | H27: 0 | I27: 0 | K27: =SUM(K28:K37) -> 0
A28: Dams and Weirs | I28: 0
A29: Boreholes | I29: 0
A30: Reservoirs | I30: 0
A31: Pump Stations | I31: 0
A32: Water Treatment Works | I32: 0
A33: Bulk Mains | I33: 0
A34: Distribution | I34: 0
A35: Distribution Points | I35: 0
A36: PRV Stations | I36: 0
A37: Capital Spares | I37: 0
A38: Sanitation Infrastructure | C38: =SUM(C39:C44) -> 0 | D38: 0 | E38: 0 | F38: 0 | G38: 0 | H38: 0 | I38: 0 | K38: =SUM(K39:K44) -> 0
A39: Pump Station | I39: 0
A40: Reticulation | I40: 0
A41: Waste Water Treatment Works | I41: 0
A42: Outfall Sewers | I42: 0
A43: Toilet Facilities | I43: 0
A44: Capital Spares | I44: 0
A45: Solid Waste Infrastructure | C45: =SUM(C46:C52) -> 0 | D45: 0 | E45: 0 | F45: 0 | G45: 0 | H45: 0 | I45: 0 | K45: =SUM(K46:K52) -> 0
A46: Landfill Sites | C46: 0 | D46: 0 | E46: 0 | F46: 0 | G46: 0 | H46: 0 | I46: 0 | K46: 0
A47: Waste Transfer Stations | I47: 0
A48: Waste Processing Facilities | I48: 0
A49: Waste Drop-off Points | I49: 0
A50: Waste Separation Facilities | I50: 0
A51: Electricity Generation Facilities | I51: 0
A52: Capital Spares | I52: 0
A53: Rail Infrastructure | C53: =SUM(C54:C62) -> 0 | D53: 0 | E53: 0 | F53: 0 | G53: 0 | H53: 0 | I53: 0 | K53: =SUM(K54:K62) -> 0
A54: Rail Lines | I54: 0
A55: Rail Structures | I55: 0
A56: Rail Furniture | I56: 0
A57: Drainage Collection | I57: 0
A58: Storm water Conveyance | I58: 0
A59: Attenuation | I59: 0
A60: MV Substations | I60: 0
A61: LV Networks | I61: 0
A62: Capital Spares | I62: 0
A63: Coastal Infrastructure | C63: =SUM(C64:C68) -> 0 | D63: 0 | E63: 0 | F63: 0 | G63: 0 | H63: 0 | I63: 0 | K63: =SUM(K64:K68) -> 0
A64: Sand Pumps | I64: 0
A65: Piers | I65: 0
A66: Revetments | I66: 0
A67: Promenades | I67: 0
A68: Capital Spares | I68: 0
A69: Information and Communication Infrastructure | C69: =SUM(C70:C73) -> 0 | D69: 0 | E69: 0 | F69: 0 | G69: 0 | H69: 0 | I69: 0 | K69: =SUM(K70:K73) -> 0
A70: Data Centres | I70: 0
A71: Core Layers | I71: 0
A72: Distribution Layers | I72: 0
A73: Capital Spares | I73: 0
A75: Community Assets | C75: =+C76+C99 -> 0 | D75: 0 | E75: 0 | F75: 0 | G75: 0 | H75: 0 | I75: 0 | K75: =+K76+K99 -> 0
A76: Community Facilities | C76: =SUM(C77:C98) -> 0 | D76: 0 | E76: 0 | F76: 0 | G76: 0 | H76: 0 | I76: 0 | K76: =SUM(K77:K98) -> 0
A77: Halls | I77: 0
A78: Centres | I78: 0
A79: Crèches | I79: 0
A80: Clinics/Care Centres | I80: 0
A81: Fire/Ambulance Stations | I81: 0
A82: Testing Stations | I82: 0
A83: Museums | I83: 0
A84: Galleries | I84: 0
A85: Theatres | I85: 0
A86: Libraries | I86: 0
A87: Cemeteries/Crematoria | I87: 0
A88: Police | I88: 0
A89: Purls | I89: 0
A90: Public Open Space | I90: 0
A91: Nature Reserves | I91: 0
A92: Public Ablution Facilities | I92: 0
A93: Markets | I93: 0
A94: Stalls | I94: 0
A95: Abattoirs | I95: 0
A96: Airports | I96: 0
A97: Taxi Ranks/Bus Terminals | I97: 0
A98: Capital Spares | I98: 0
A99: Sport and Recreation Facilities | C99: =SUM(C100:C102) -> 0 | D99: 0 | E99: 0 | F99: 0 | G99: 0 | H99: 0 | I99: 0 | K99: =SUM(K100:K102) -> 0
A100: Indoor Facilities | I100: 0
A101: Outdoor Facilities | I101: =H101-G101 -> 0 | J101: =IF(I101=0,"",I101/H101) -> 
A102: Capital Spares | I102: 0
A103: Heritage assets | C103: =SUM(C104:C108) -> 0 | D103: 0 | E103: 0 | F103: 0 | G103: 0 | H103: 0 | I103: 0 | K103: =SUM(K104:K108) -> 0
A104: Monuments | I104: 0
A105: Historic Buildings | I105: 0
A106: Works of Art | I106: 0
A107: Conservation Areas | I107: 0
A108: Other Heritage | I108: 0
I109: 0
A110: Investment properties | C110: =+C111+C114 -> 0 | D110: 0 | E110: 0 | F110: 0 | G110: 0 | H110: 0 | I110: 0 | K110: =+K111+K114 -> 0
A111: Revenue Generating | C111: =SUM(C112:C113) -> 0 | D111: 0 | E111: 0 | F111: 0 | G111: 0 | H111: 0 | I111: 0 | K111: =SUM(K112:K113) -> 0
A112: Improved Property | I112: 0
A113: Unimproved Property | I113: 0
A114: Non-revenue Generating | C114: =SUM(C115:C116) -> 0 | D114: 0 | E114: 0 | F114: 0 | G114: 0 | H114: 0 | I114: 0 | K114: =SUM(K115:K116) -> 0
A115: Improved Property | I115: 0
A116: Unimproved Property | I116: =H116-G116 -> 0 | J116: =IF(I116=0,"",I116/H116) -> 
A117: Other assets | C117: =+C118+C130 -> 0 | D117: 0 | E117: 0 | F117: 0 | G117: 0 | H117: 0 | I117: 0 | K117: =+K118+K130 -> 0
A118: Operational Buildings | C118: =SUM(C119:C129) -> 0 | D118: 0 | E118: 0 | F118: 0 | G118: 0 | H118: 0 | I118: 0 | K118: =SUM(K119:K129) -> 0
A119: Municipal Offices | I119: 0
A120: Pay/Enquiry Points | I120: 0
A121: Building Plan Offices | I121: 0
A122: Workshops | I122: 0
A123: Yards | I123: 0
A124: Stores | I124: 0
A125: Laboratories | I125: 0
A126: Training Centres | I126: 0
A127: Manufacturing Plant | I127: 0
A128: Depots | I128: 0
A129: Capital Spares | I129: 0
A130: Housing | C130: =SUM(C131:C133) -> 0 | D130: 0 | E130: 0 | F130: 0 | G130: 0 | H130: 0 | I130: 0 | K130: =SUM(K131:K133) -> 0
A131: Staff Housing | I131: 0
A132: Social Housing | I132: 0
A133: Capital Spares | I133: 0
A135: Biological or Cultivated Assets | C135: =SUM(C136:C136) -> 0 | D135: 0 | E135: 0 | F135: 0 | G135: 0 | H135: 0 | I135: =H135-G135 -> 0 | K135: =SUM(K136) -> 0
A136: Biological or Cultivated Assets | I136: =H136-G136 -> 0
J137: =IF(I137=0,"",I137/H137) -> 
A138: Intangible Assets | C138: =SUM(C139:C140) -> 0 | D138: 0 | E138: 0 | F138: 0 | G138: 0 | H138: 0 | I138: =H138-G138 -> 0 | K138: =SUM(K139:K140) -> 0
A139: Servitudes | I139: 0
A140: Licences and Rights | C140: =SUM(C141:C146) -> 0 | D140: 0 | E140: 0 | F140: 0 | G140: 0 | H140: 0 | I140: 0 | K140: =SUM(K141:K146) -> 0
A141: Water Rights | I141: 0
A142: Effluent Licenses | I142: 0
A143: Solid Waste Licenses | I143: 0
A144: Computer Software and Applications | I144: 0
A145: Load Settlement Software Applications | I145: 0
A146: Unspecified | I146: 0
A148: Computer Equipment | C148: =SUM(C149:C149) -> 0 | D148: 0 | E148: 0 | F148: 0 | G148: 0 | H148: 0 | I148: =H148-G148 -> 0 | J148: =IF(I148=0,"",I148/H148) ->  | K148: =SUM(K149) -> 0
A149: Computer Equipment | I149: =H149-G149 -> 0 | J149: =IF(I149=0,"",I149/H149) -> 
A151: Furniture and Office Equipment | C151: =SUM(C152:C152) -> 0 | D151: 0 | E151: 0 | F151: 0 | G151: 0 | H151: 0 | I151: =H151-G151 -> 0 | J151: =IF(I151=0,"",I151/H151) ->  | K151: =SUM(K152) -> 0
A152: Furniture and Office Equipment | I152: =H152-G152 -> 0 | J152: =IF(I152=0,"",I152/H152) -> 
J153: =IF(I153=0,"",I153/H153) -> 
A154: Machinery and Equipment | C154: =SUM(C155:C155) -> 0 | D154: 0 | E154: 0 | F154: 0 | G154: 0 | H154: 0 | I154: =H154-G154 -> 0 | J154: =IF(I154=0,"",I154/H154) ->  | K154: =SUM(K155) -> 0
A155: Machinery and Equipment | C155: 0 | D155: 0 | E155: 0 | F155: 0 | G155: 0 | H155: 0 | I155: =H155-G155 -> 0 | J155: =IF(I155=0,"",I155/H155) ->  | K155: 0
A157: Transport Assets | C157: =SUM(C158:C158) -> 0 | D157: 0 | E157: 0 | F157: 0 | G157: 0 | H157: 0 | I157: =H157-G157 -> 0 | J157: =IF(I157=0,"",I157/H157) ->  | K157: =SUM(K158) -> 0
A158: Transport Assets | I158: =H158-G158 -> 0 | J158: =IF(I158=0,"",I158/H158) -> 
A160: Land | C160: =SUM(C161:C161) -> 0 | D160: 0 | E160: 0 | F160: 0 | G160: 0 | H160: 0 | I160: =H160-G160 -> 0 | J160: =IF(I160=0,"",I160/H160) ->  | K160: =SUM(K161) -> 0
A161: Land | I161: =H161-G161 -> 0 | J161: =IF(I161=0,"",I161/H161) -> 
J162: .
A163: Zoo's, Marine and Non-biological Animals | C163: =SUM(C164:C164) -> 0 | D163: 0 | E163: 0 | F163: 0 | G163: 0 | H163: 0 | I163: =H163-G163 -> 0 | J163: =IF(I163=0,"",I163/H163) ->  | K163: =SUM(K164) -> 0
A164: Zoo's, Marine and Non-biological Animals | I164: =H164-G164 -> 0
A166: Living resources | C166: =+C167+C170 -> 0 | D166: 0 | E166: 0 | F166: 0 | G166: 0 | H166: 0 | I166: =H166-G166 -> 0 | K166: =+K167+K170 -> 0
A167: Mature | C167: =+C168+C169 -> 0 | D167: 0 | E167: 0 | F167: 0 | G167: 0 | H167: 0 | I167: 0 | K167: =+K168+K169 -> 0
A168: Policing and Protection | I168: 0
A169: Zoological plants and animals | I169: 0
A170: Immature | C170: =+C171+C172 -> 0 | D170: =+D171+D172 -> 0 | E170: 0 | F170: 0 | G170: 0 | H170: 0 | I170: 0 | K170: =+K171+K172 -> 0
A171: Policing and Protection | I171: 0
A172: Zoological plants and animals | I172: 0
A173: Total Capital Expenditure on upgrading of existing assets | B173: 1 | C173: =C7+C75+C103+C110+C117+C135+C138+C148+C151+C154+C157+C160+C163+C166 -> 0 | D173: 0 | E173: 0 | F173: 0 | G173: 0 | H173: 0 | I173: =H173-G173 -> 0 | J173: =IF(I173=0,"",I173/H173) ->  | K173: =K7+K75+K103+K110+K117+K135+K138+K148+K151+K154+K157+K160+K163+K166 -> 0
A175: =head27a -> References
A176: 1. Total Capital Expenditure on new assets (SC13a) plus Total Capital Expenditure on renewal of existing assets (SC13b) plus Total Capital Expenditure on upgrading of existing assets (SC13e) must reconcile to total capital expenditure in Table C5

